Workbook

Sheet DataHPS (hidden)

Sheet Customer Count
B1: PoLR | F1: EGS | J1: PoLR | P1: EGS | V1: PoLR | AB1: EGS | AH1: POLR HPS | AP1: EGS HPS
B2: Customers | F2: Customers | J2: Customers | P2: Customers | V2: Customers | AB2: Customers | AH2: Customers | AP2: Customers
A3: Month | B3: GM>25 | C3: GMH>25 | D3: Total | F3: GM>25 | G3: GMH>25 | H3: Total | J3: RS | K3: RA | L3: RH | M3: Lighting | N3: Total | P3: RS | Q3: RA | R3: RH | S3: Lighting | T3: Total | V3: Unmetered | W3: GS | X3: GM<25 | Y3: GMH<25 | Z3: Total | AB3: Unmetered | AC3: GS | AD3: GM<25 | AE3: GMH<25 | AF3: Total | AH3: GM>25-HPS | AI3: GMH>25-HPS | AJ3: GL | AK3: GHL | AL3: HVPS | AM3: L | AN3: Total | AP3: GM>25-HPS | AQ3: GMH>25-HPS | AR3: GL | AS3: GHL | AT3: HVPS | AU3: L | AV3: Total
A4: 2008-01-01 | B4: 6169 | C4: 853 | D4: =B4+C4 -> 7022 | F4: 2531 | G4: 79 | H4: =F4+G4 -> 2610 | J4: 377409 | K4: 2795 | L4: 26556 | M4: 5320 | N4: =SUM(J4:M4) -> 412080 | P4: 117720 | Q4: 577 | R4: 211 | S4: 1034 | T4: =SUM(P4:S4) -> 119542 | W4: 19306 | X4: 16820 | Y4: 2172 | Z4: =SUM(W4:Y4) -> 38298 | AC4: 2662 | AD4: 3660 | AE4: 256 | AF4: =SUM(AC4:AE4) -> 6578
A5: 2008-02-01 | B5: 6162 | C5: 853 | D5: =B5+C5 -> 7015 | F5: 2531 | G5: 79 | H5: =F5+G5 -> 2610 | J5: 378567 | K5: 2809 | L5: 26770 | M5: 6431 | N5: =SUM(J5:M5) -> 414577 | P5: 116598 | Q5: 577 | R5: 199 | S5: 1037 | T5: 118411 | W5: 19288 | X5: 16861 | Y5: 2179 | Z5: =SUM(W5:Y5) -> 38328 | AC5: 2659 | AD5: 3661 | AE5: 256 | AF5: 6576
A6: 2008-03-01 | B6: 6174 | C6: 853 | D6: 7027 | F6: 2515 | G6: 78 | H6: 2593 | J6: 378783 | K6: 2812 | L6: 26820 | M6: 6473 | N6: 414888 | P6: 116279 | Q6: 578 | R6: 201 | S6: 1041 | T6: 118099 | W6: 19261 | X6: 16849 | Y6: 2186 | Z6: 38296 | AC6: 2664 | AD6: 3661 | AE6: 255 | AF6: 6580
A7: 2008-04-01 | B7: 6168 | C7: 853 | D7: 7021 | F7: 2511 | G7: 78 | H7: 2589 | J7: 377929 | K7: 2824 | L7: 26777 | M7: 6494 | N7: 414024 | P7: 115779 | Q7: 569 | R7: 196 | S7: 1041 | T7: 117585 | W7: 19253 | X7: 16907 | Y7: 2184 | Z7: 38344 | AC7: 2654 | AD7: 3656 | AE7: 256 | AF7: 6566
A8: 2008-05-01 | B8: 6191 | C8: 857 | D8: 7048 | F8: 2480 | G8: 74 | H8: 2554 | J8: 378379 | K8: 2827 | L8: 26773 | M8: 6502 | N8: 414481 | P8: 115118 | Q8: 568 | R8: 198 | S8: 1041 | T8: 116925 | W8: 19242 | X8: 16962 | Y8: 2182 | Z8: 38386 | AC8: 2627 | AD8: 3629 | AE8: 254 | AF8: 6510
A9: 2008-06-01 | B9: 6240 | C9: 857 | D9: 7097 | F9: 2430 | G9: 73 | H9: 2503 | J9: 378458 | K9: 2825 | L9: 26722 | M9: 6510 | N9: 414515 | P9: 114487 | Q9: 567 | R9: 195 | S9: 1041 | T9: 116290 | W9: 19320 | X9: 16970 | Y9: 2182 | Z9: 38472 | AC9: 2596 | AD9: 3599 | AE9: 254 | AF9: 6449
A10: 2008-07-01 | B10: 6300 | C10: 855 | D10: 7155 | F10: 2367 | G10: 73 | H10: 2440 | J10: 378867 | K10: 2835 | L10: 26694 | M10: 6517 | N10: 414913 | P10: 113758 | Q10: 562 | R10: 194 | S10: 1041 | T10: 115555 | W10: 19302 | X10: 17000 | Y10: 2176 | Z10: 38478 | AC10: 2580 | AD10: 3557 | AE10: 253 | AF10: 6390
A11: 2008-08-01 | B11: 6302 | C11: 856 | D11: 7158 | F11: 2361 | G11: 73 | H11: 2434 | J11: 380586 | K11: 2852 | L11: 26822 | M11: 6524 | N11: 416784 | P11: 112176 | Q11: 566 | R11: 200 | S11: 1041 | T11: 113983 | W11: 19305 | X11: 17048 | Y11: 2171 | Z11: 38524 | AC11: 2564 | AD11: 3543 | AE11: 253 | AF11: 6360
A12: 2008-09-01 | B12: 6293 | C12: 857 | D12: 7150 | F12: 2372 | G12: 73 | H12: 2445 | J12: 381711 | K12: 2862 | L12: 26899 | M12: 6518 | N12: 417990 | P12: 110881 | Q12: 562 | R12: 199 | S12: 1041 | T12: 112683 | W12: 19287 | X12: 17036 | Y12: 2168 | Z12: 38491 | AC12: 2564 | AD12: 3536 | AE12: 253 | AF12: 6353
A13: 2008-10-01 | B13: 6282 | C13: 856 | D13: 7138 | F13: 2378 | G13: 73 | H13: 2451 | J13: 383322 | K13: 2891 | L13: 27001 | M13: 6521 | N13: 419735 | P13: 109670 | Q13: 565 | R13: 205 | S13: 1041 | T13: 111481 | W13: 19284 | X13: 17076 | Y13: 2171 | Z13: 38531 | AC13: 2567 | AD13: 3520 | AE13: 253 | AF13: 6340
A14: 2008-11-01 | B14: 6292 | C14: 857 | D14: 7149 | F14: 2375 | G14: 73 | H14: 2448 | J14: 384656 | K14: 2928 | L14: 27180 | M14: 6533 | N14: 421297 | P14: 108939 | Q14: 564 | R14: 206 | S14: 1040 | T14: 110749 | W14: 19306 | X14: 17103 | Y14: 2176 | Z14: 38585 | AC14: 2556 | AD14: 3510 | AE14: 251 | AF14: 6317
A15: 2008-12-01 | B15: 6258 | C15: 846 | D15: 7104 | F15: 2435 | G15: 89 | H15: 2524 | J15: 385602 | K15: 2950 | L15: 27345 | M15: 6526 | N15: 422423 | P15: 108305 | Q15: 564 | R15: 210 | S15: 1042 | T15: 110121 | W15: 19296 | X15: 17055 | Y15: 2181 | Z15: 38532 | AC15: 2549 | AD15: 3524 | AE15: 254 | AF15: 6327
A16: 2009-01-01 | B16: 6366 | C16: 909 | D16: 7275 | F16: 2893 | G16: 127 | H16: 3020 | J16: 386362 | K16: 2975 | L16: 27587 | M16: 6381 | N16: 423305 | P16: 107708 | Q16: 563 | R16: 206 | S16: 1039 | T16: 109516 | W16: 19365 | X16: 16505 | Y16: 2089 | Z16: 37959 | AC16: 2569 | AD16: 3419 | AE16: 243 | AF16: 6231
A17: 2009-02-01 | B17: 6242 | C17: 904 | D17: 7146 | F17: 3003 | G17: 132 | H17: 3135 | J17: 386820 | K17: 3003 | L17: 27788 | M17: 6385 | N17: 423996 | P17: 107161 | Q17: 555 | R17: 205 | S17: 1034 | T17: 108955 | W17: 19426 | X17: 16436 | Y17: 2092 | Z17: 37954 | AC17: 2572 | AD17: 3415 | AE17: 238 | AF17: 6225
A18: 2009-03-01 | B18: 6159 | C18: 894 | D18: 7053 | F18: 3088 | G18: 141 | H18: 3229 | J18: 387241 | K18: 3010 | L18: 27848 | M18: 6381 | N18: 424480 | P18: 106763 | Q18: 551 | R18: 203 | S18: 1041 | T18: 108558 | W18: 19417 | X18: 16375 | Y18: 2089 | Z18: 37881 | AC18: 2580 | AD18: 3424 | AE18: 242 | AF18: 6246
A19: 2009-04-01 | B19: 6020 | C19: 866 | D19: 6886 | F19: 3224 | G19: 167 | H19: 3391 | J19: 386090 | K19: 3011 | L19: 27766 | M19: 6344 | N19: 423211 | P19: 106371 | Q19: 554 | R19: 207 | S19: 1039 | T19: 108171 | W19: 19435 | X19: 16299 | Y19: 2082 | Z19: 37816 | AC19: 2584 | AD19: 3454 | AE19: 249 | AF19: 6287
A20: 2009-05-01 | B20: 5949 | C20: 849 | D20: 6798 | F20: 3283 | G20: 181 | H20: 3464 | J20: 385757 | K20: 3016 | L20: 27726 | M20: 6494 | N20: 422993 | P20: 106289 | Q20: 557 | R20: 215 | S20: 1025 | T20: 108086 | W20: 19472 | X20: 16225 | Y20: 2084 | Z20: 37781 | AC20: 2578 | AD20: 3476 | AE20: 248 | AF20: 6302
A21: 2009-06-01 | B21: 5886 | C21: 844 | D21: 6730 | F21: 3353 | G21: 185 | H21: 3538 | J21: 385767 | K21: 3019 | L21: 27752 | M21: 6489 | N21: 423027 | P21: 105898 | Q21: 556 | R21: 216 | S21: 1025 | T21: 107695 | W21: 19435 | X21: 16167 | Y21: 2080 | Z21: 37682 | AC21: 2600 | AD21: 3508 | AE21: 252 | AF21: 6360
A22: 2009-07-01 | B22: 5840 | C22: 832 | D22: 6672 | F22: 3389 | G22: 189 | H22: 3578 | J22: 385999 | K22: 3019 | L22: 27747 | M22: 6477 | N22: 423242 | P22: 105584 | Q22: 554 | R22: 220 | S22: 1025 | T22: 107383 | W22: 19465 | X22: 16142 | Y22: 2063 | Z22: 37670 | AC22: 2592 | AD22: 3521 | AE22: 255 | AF22: 6368
A23: 2009-08-01 | B23: 5814 | C23: 818 | D23: 6632 | F23: 3411 | G23: 200 | H23: 3611 | J23: 386065 | K23: 3023 | L23: 27779 | M23: 6475 | N23: 423342 | P23: 105390 | Q23: 553 | R23: 227 | S23: 1025 | T23: 107195 | W23: 19486 | X23: 16031 | Y23: 2060 | Z23: 37577 | AC23: 2610 | AD23: 3586 | AE23: 258 | AF23: 6454
A24: 2009-09-01 | B24: 5815 | C24: 816 | D24: 6631 | F24: 3403 | G24: 204 | H24: 3607 | J24: 386588 | K24: 3026 | L24: 27777 | M24: 6481 | N24: 423872 | P24: 104894 | Q24: 552 | R24: 225 | S24: 1025 | T24: 106696 | W24: 19570 | X24: 15964 | Y24: 2066 | Z24: 37600 | AC24: 2616 | AD24: 3588 | AE24: 260 | AF24: 6464
A25: 2009-10-01 | B25: 5744 | C25: 805 | D25: 6549 | F25: 3458 | G25: 211 | H25: 3669 | J25: 386405 | K25: 3040 | L25: 27837 | M25: 6493 | N25: 423775 | P25: 105605 | Q25: 555 | R25: 229 | S25: 1025 | T25: 107414 | W25: 19617 | X25: 15854 | Y25: 2069 | Z25: 37540 | AC25: 2640 | AD25: 3635 | AE25: 262 | AF25: 6537
A26: 2009-11-01 | B26: 5704 | C26: 807 | D26: 6511 | F26: 3497 | G26: 212 | H26: 3709 | J26: 385091 | K26: 3139 | L26: 27975 | M26: 6501 | N26: 422706 | P26: 106997 | Q26: 558 | R26: 237 | S26: 1024 | T26: 108816 | W26: 19624 | X26: 15772 | Y26: 2065 | Z26: 37461 | AC26: 2664 | AD26: 3667 | AE26: 264 | AF26: 6595
A27: 2009-12-01 | B27: 5718 | C27: 805 | D27: 6523 | F27: 3509 | G27: 214 | H27: 3723 | J27: 385992 | K27: 3207 | L27: 28116 | M27: 6486 | N27: 423801 | P27: 106813 | Q27: 558 | R27: 239 | S27: 1037 | T27: 108647 | W27: 19679 | X27: 15771 | Y27: 2071 | Z27: 37521 | AC27: 2651 | AD27: 3655 | AE27: 266 | AF27: 6572
A28: 2010-01-01 | B28: 5651 | C28: 789 | D28: 6440 | F28: 3610 | G28: 238 | H28: 3848 | J28: 386422 | K28: 3219 | L28: 28227 | M28: 6487 | N28: 424355 | P28: 106599 | Q28: 558 | R28: 237 | S28: 1041 | T28: 108435 | W28: 19716 | X28: 15652 | Y28: 2064 | Z28: 37432 | AC28: 2667 | AD28: 3685 | AE28: 267 | AF28: 6619
A29: 2010-02-01 | B29: 5712 | C29: 801 | D29: 6513 | F29: 3642 | G29: 241 | H29: 3883 | J29: 386765 | K29: 3224 | L29: 28349 | M29: 6475 | N29: 424813 | P29: 106339 | Q29: 555 | R29: 237 | S29: 1061 | T29: 108192 | W29: 19734 | X29: 15420 | Y29: 2048 | Z29: 37202 | AC29: 2699 | AD29: 3749 | AE29: 274 | AF29: 6722
A30: 2010-03-01 | B30: 5664 | C30: 785 | D30: 6449 | F30: 3689 | G30: 258 | H30: 3947 | J30: 387196 | K30: 3227 | L30: 28380 | M30: 6475 | N30: 425278 | P30: 105938 | Q30: 554 | R30: 240 | S30: 1038 | T30: 107770 | W30: 19647 | X30: 15293 | Y30: 2037 | Z30: 36977 | AC30: 2789 | AD30: 3860 | AE30: 286 | AF30: 6935
A31: 2010-04-01 | B31: 5631 | C31: 776 | D31: 6407 | F31: 3724 | G31: 266 | H31: 3990 | J31: 386767 | K31: 3227 | L31: 28329 | M31: 6482 | N31: 424805 | P31: 105363 | Q31: 552 | R31: 239 | S31: 1039 | T31: 107193 | W31: 19599 | X31: 15149 | Y31: 2033 | Z31: 36781 | AC31: 2863 | AD31: 3999 | AE31: 294 | AF31: 7156
A32: 2010-05-01 | B32: 5594 | C32: 773 | D32: 6367 | F32: 3758 | G32: 268 | H32: 4026 | J32: 387031 | K32: 3224 | L32: 28280 | M32: 6486 | N32: 425021 | P32: 104820 | Q32: 552 | R32: 241 | S32: 1037 | T32: 106650 | W32: 19591 | X32: 15110 | Y32: 1989 | Z32: 36690 | AC32: 2862 | AD32: 4045 | AE32: 331 | AF32: 7238
A33: 2010-06-01 | B33: 5481 | C33: 761 | D33: 6242 | F33: 3844 | G33: 280 | H33: 4124 | J33: 386993 | K33: 3254 | L33: 28195 | M33: 6446 | N33: 424888 | P33: 104253 | Q33: 550 | R33: 247 | S33: 1084 | T33: 106134 | W33: 19607 | X33: 14991 | Y33: 1988 | Z33: 36586 | AC33: 2867 | AD33: 4165 | AE33: 334 | AF33: 7366
A34: 2010-07-01 | B34: 5391 | C34: 744 | D34: 6135 | F34: 3922 | G34: 297 | H34: 4219 | J34: 387256 | K34: 3259 | L34: 28131 | M34: 6438 | N34: 425084 | P34: 103781 | Q34: 548 | R34: 245 | S34: 1092 | T34: 105666 | W34: 19511 | X34: 14912 | Y34: 1975 | Z34: 36398 | AC34: 2915 | AD34: 4245 | AE34: 344 | AF34: 7504
A35: 2010-08-01 | B35: 5372 | C35: 741 | D35: 6113 | F35: 3949 | G35: 298 | H35: 4247 | J35: 387563 | K35: 3258 | L35: 28223 | M35: 6497 | N35: 425541 | P35: 103488 | Q35: 549 | R35: 245 | S35: 1036 | T35: 105318 | W35: 19474 | X35: 14891 | Y35: 1974 | Z35: 36339 | AC35: 2940 | AD35: 4273 | AE35: 345 | AF35: 7558
A36: 2010-09-01 | B36: 5316 | C36: 732 | D36: 6048 | F36: 3992 | G36: 305 | H36: 4297 | J36: 387996 | K36: 3268 | L36: 28344 | M36: 6507 | N36: 426115 | P36: 103213 | Q36: 547 | R36: 245 | S36: 1035 | T36: 105040 | W36: 19467 | X36: 14891 | Y36: 1967 | Z36: 36325 | AC36: 2955 | AD36: 4300 | AE36: 351 | AF36: 7606
A37: 2010-10-01 | B37: 5276 | C37: 730 | D37: 6006 | F37: 4031 | G37: 308 | H37: 4339 | J37: 388181 | K37: 3276 | L37: 28358 | M37: 6509 | N37: 426324 | P37: 103143 | Q37: 546 | R37: 254 | S37: 1041 | T37: 104984 | W37: 19380 | X37: 14791 | Y37: 1960 | Z37: 36131 | AC37: 2997 | AD37: 4456 | AE37: 356 | AF37: 7809
A38: 2010-11-01 | B38: 5219 | C38: 723 | D38: 5942 | F38: 4082 | G38: 313 | H38: 4395 | J38: 387808 | K38: 3254 | L38: 28461 | M38: 6509 | N38: 426032 | P38: 103894 | Q38: 568 | R38: 309 | S38: 1055 | T38: 105826 | W38: 19251 | X38: 14631 | Y38: 1945 | Z38: 35827 | AC38: 3122 | AD38: 4666 | AE38: 371 | AF38: 8159
A39: 2010-12-01 | B39: 5175 | C39: 713 | D39: 5888 | F39: 4137 | G39: 324 | H39: 4461 | J39: 381722 | K39: 3225 | L39: 28452 | M39: 6475 | N39: 419874 | P39: 110854 | Q39: 602 | R39: 502 | S39: 1086 | T39: 113044 | W39: 19098 | X39: 14394 | Y39: 1931 | Z39: 35423 | AC39: 3300 | AD39: 4954 | AE39: 385 | AF39: 8639
A40: 2011-01-01 | B40: 4981 | C40: 687 | D40: 5668 | F40: 4387 | G40: 346 | H40: 4733 | J40: 377391 | K40: 3202 | L40: 28486 | M40: 4314 | N40: 413393 | P40: 115326 | Q40: 631 | R40: 669 | S40: 3257 | T40: 119883 | W40: 18900 | X40: 14092 | Y40: 1919 | Z40: 34911 | AC40: 3490 | AD40: 5250 | AE40: 398 | AF40: 9138
A41: 2011-02-01 | B41: 4969 | C41: 681 | D41: 5650 | F41: 4473 | G41: 356 | H41: 4829 | J41: 373968 | K41: 3150 | L41: 28250 | M41: 4304 | N41: 409672 | P41: 118834 | Q41: 681 | R41: 1019 | S41: 3277 | T41: 123811 | W41: 18730 | X41: 13784 | Y41: 1889 | Z41: 34403 | AC41: 3636 | AD41: 5448 | AE41: 434 | AF41: 9518
A42: 2011-03-01 | B42: 4917 | C42: 674 | D42: 5591 | F42: 4533 | G42: 364 | H42: 4897 | J42: 366495 | K42: 2997 | L42: 27353 | M42: 4259 | N42: 401104 | P42: 126472 | Q42: 838 | R42: 1952 | S42: 3339 | T42: 132601 | W42: 18664 | X42: 13636 | Y42: 1883 | Z42: 34183 | AC42: 3694 | AD42: 5610 | AE42: 440 | AF42: 9744
A43: 2011-04-01 | B43: 4778 | C43: 654 | D43: 5432 | F43: 4662 | G43: 384 | H43: 5046 | J43: 358313 | K43: 2846 | L43: 26474 | M43: 4224 | N43: 391857 | P43: 133506 | Q43: 985 | R43: 2758 | S43: 3382 | T43: 140631 | W43: 18490 | X43: 13551 | Y43: 1870 | Z43: 33911 | AC43: 3870 | AD43: 5719 | AE43: 456 | AF43: 10045
A44: 2011-05-01 | B44: 4715 | C44: 645 | D44: 5360 | F44: 4728 | G44: 393 | H44: 5121 | J44: 351554 | K44: 2702 | L44: 24923 | M44: 3498 | N44: 382677 | P44: 139780 | Q44: 1123 | R44: 4180 | S44: 4119 | T44: 149202 | W44: 18399 | X44: 13508 | Y44: 1860 | Z44: 33767 | AC44: 3969 | AD44: 5781 | AE44: 467 | AF44: 10217
A45: 2011-06-01 | B45: 4582 | C45: 630 | D45: 5212 | F45: 4851 | G45: 407 | H45: 5258 | J45: 346714 | K45: 2672 | L45: 23988 | M45: 3481 | N45: 376855 | P45: 144191 | Q45: 1153 | R45: 5097 | S45: 4144 | T45: 154585 | W45: 18320 | X45: 13441 | Y45: 1852 | Z45: 33613 | AC45: 4033 | AD45: 5891 | AE45: 469 | AF45: 10393
A46: 2011-07-01 | B46: 4556 | C46: 621 | D46: 5177 | F46: 4870 | G46: 416 | H46: 5286 | J46: 344591 | K46: 2646 | L46: 23431 | M46: 3473 | N46: 374141 | P46: 146080 | Q46: 1181 | R46: 5607 | S46: 4155 | T46: 157023 | W46: 18278 | X46: 13404 | Y46: 1846 | Z46: 33528 | AC46: 4068 | AD46: 5936 | AE46: 479 | AF46: 10483
A47: 2011-08-01 | B47: 4504 | C47: 620 | D47: 5124 | F47: 4922 | G47: 417 | H47: 5339 | J47: 342840 | K47: 2494 | L47: 23442 | M47: 3458 | N47: 372234 | P47: 147782 | Q47: 1217 | R47: 5742 | S47: 4174 | T47: 158915 | W47: 18215 | X47: 13341 | Y47: 1838 | Z47: 33394 | AC47: 4126 | AD47: 5996 | AE47: 479 | AF47: 10601
A48: 2011-09-01 | B48: 4478 | C48: 622 | D48: 5100 | F48: 4946 | G48: 416 | H48: 5362 | J48: 340541 | K48: 2436 | L48: 23336 | M48: 3460 | N48: 369773 | P48: 150361 | Q48: 1276 | R48: 5931 | S48: 4175 | T48: 161743 | W48: 18126 | X48: 13360 | Y48: 1837 | Z48: 33323 | AC48: 4165 | AD48: 6016 | AE48: 482 | AF48: 10663
A49: 2011-10-01 | B49: 4472 | C49: 620 | D49: 5092 | F49: 4946 | G49: 415 | H49: 5361 | J49: 338252 | K49: 2412 | L49: 23278 | M49: 3388 | N49: 367330 | P49: 152802 | Q49: 1304 | R49: 6042 | S49: 4252 | T49: 164400 | W49: 18166 | X49: 13355 | Y49: 1840 | Z49: 33361 | AC49: 4150 | AD49: 5997 | AE49: 474 | AF49: 10621
A50: 2011-11-01 | B50: 4446 | C50: 613 | D50: 5059 | F50: 4981 | G50: 420 | H50: 5401 | J50: 333430 | K50: 2344 | L50: 22994 | M50: 3386 | N50: 362154 | P50: 157835 | Q50: 1369 | R50: 6386 | S50: 4265 | T50: 169855 | W50: 18176 | X50: 13331 | Y50: 1837 | Z50: 33344 | AC50: 4199 | AD50: 6019 | AE50: 481 | AF50: 10699
A51: 2011-12-01 | B51: 4426 | C51: 616 | D51: 5042 | F51: 5005 | G51: 418 | H51: 5423 | J51: 327112 | K51: 2289 | L51: 22516 | M51: 3282 | N51: 355199 | P51: 165021 | Q51: 1431 | R51: 6987 | S51: 4375 | T51: 177814 | W51: 18130 | X51: 13323 | Y51: 1820 | Z51: 33273 | AC51: 4248 | AD51: 6039 | AE51: 499 | AF51: 10786
A52: 2012-01-01 | B52: 4290 | C52: 595 | D52: 4885 | F52: 5211 | G52: 438 | H52: 5649 | J52: 321443 | K52: 2239 | L52: 22158 | M52: 3167 | N52: 349007 | P52: 171002 | Q52: 1486 | R52: 7437 | S52: 4500 | T52: 184425 | W52: 17897 | X52: 12994 | Y52: 1782 | Z52: 32673 | AC52: 4486 | AD52: 6301 | AE52: 537 | AF52: 11324
A53: 2012-02-01 | B53: 4247 | C53: 576 | D53: 4823 | F53: 5309 | G53: 450 | H53: 5759 | J53: 317001 | K53: 2220 | L53: 21985 | M53: 3152 | N53: 344358 | P53: 175713 | Q53: 1518 | R53: 7782 | S53: 4523 | T53: 189536 | W53: 17760 | X53: 12685 | Y53: 1747 | Z53: 32192 | AC53: 4679 | AD53: 6515 | AE53: 576 | AF53: 11770
A54: 2012-03-01 | B54: 4145 | C54: 563 | D54: 4708 | F54: 5409 | G54: 462 | H54: 5871 | J54: 312226 | K54: 2182 | L54: 21655 | M54: 3163 | N54: 339226 | P54: 180459 | Q54: 1556 | R54: 8193 | S54: 4530 | T54: 194738 | W54: 17523 | X54: 12469 | Y54: 1711 | Z54: 31703 | AC54: 4930 | AD54: 6720 | AE54: 609 | AF54: 12259
A55: 2012-04-01 | B55: 4063 | C55: 557 | D55: 4620 | F55: 5489 | G55: 471 | H55: 5960 | J55: 307821 | K55: 2160 | L55: 21232 | M55: 3178 | N55: 334391 | P55: 184007 | Q55: 1574 | R55: 8586 | S55: 4525 | T55: 198692 | W55: 17404 | X55: 12217 | Y55: 1697 | Z55: 31318 | AC55: 5117 | AD55: 6922 | AE55: 628 | AF55: 12667
A56: 2012-05-01 | B56: 3940 | C56: 547 | D56: 4487 | F56: 5611 | G56: 481 | H56: 6092 | J56: 302889 | K56: 2120 | L56: 20933 | M56: 3183 | N56: 329125 | P56: 188508 | Q56: 1610 | R56: 8852 | S56: 4536 | T56: 203506 | W56: 17205 | X56: 11892 | Y56: 1673 | Z56: 30770 | AC56: 5355 | AD56: 7245 | AE56: 655 | AF56: 13255
A57: 2012-06-01 | B57: 3792 | C57: 513 | D57: 4305 | F57: 5753 | G57: 515 | H57: 6268 | J57: 298314 | K57: 2095 | L57: 20840 | M57: 3149 | N57: 324398 | P57: 193078 | Q57: 1636 | R57: 8945 | S57: 4575 | T57: 208234 | W57: 16976 | X57: 11635 | Y57: 1640 | Z57: 30251 | AC57: 5560 | AD57: 7514 | AE57: 685 | AF57: 13759
A58: 2012-07-01 | B58: 3686 | C58: 491 | D58: 4177 | F58: 5856 | G58: 536 | H58: 6392 | J58: 293866 | K58: 2049 | L58: 20659 | M58: 3077 | N58: 319651 | P58: 197209 | Q58: 1680 | R58: 9039 | S58: 4646 | T58: 212574 | W58: 16840 | X58: 11343 | Y58: 1618 | Z58: 29801 | AC58: 5744 | AD58: 7767 | AE58: 705 | AF58: 14216
A59: 2012-08-01 | B59: 3630 | C59: 490 | D59: 4120 | F59: 5908 | G59: 539 | H59: 6447 | J59: 288214 | K59: 1997 | L59: 20579 | M59: 3013 | N59: 313803 | P59: 202955 | Q59: 1734 | R59: 9213 | S59: 4708 | T59: 218610 | W59: 16730 | X59: 11189 | Y59: 1606 | Z59: 29525 | AC59: 5892 | AD59: 7919 | AE59: 718 | AF59: 14529
A60: 2012-09-01 | B60: 3580 | C60: 485 | D60: 4065 | F60: 5948 | G60: 544 | H60: 6492 | J60: 284471 | K60: 1954 | L60: 20495 | M60: 2969 | N60: 309889 | P60: 206828 | Q60: 1779 | R60: 9445 | S60: 4786 | T60: 222838 | W60: 16573 | X60: 10971 | Y60: 1544 | Z60: 29088 | AC60: 6057 | AD60: 8099 | AE60: 769 | AF60: 14925
A61: 2012-10-01 | B61: 3539 | C61: 491 | D61: 4030 | F61: 5975 | G61: 538 | H61: 6513 | J61: 280959 | K61: 1911 | L61: 20404 | M61: 2912 | N61: 306186 | P61: 210484 | Q61: 1823 | R61: 9684 | S61: 4891 | T61: 226882 | W61: 16437 | X61: 10798 | Y61: 1521 | Z61: 28756 | AC61: 6213 | AD61: 8262 | AE61: 794 | AF61: 15269
A62: 2012-11-01 | B62: 3538 | C62: 485 | D62: 4023 | F62: 5987 | G62: 544 | H62: 6531 | J62: 277130 | K62: 1875 | L62: 20207 | M62: 2884 | N62: 302096 | P62: 214828 | Q62: 1863 | R62: 9985 | S62: 4931 | T62: 231607 | W62: 16383 | X62: 10744 | Y62: 1543 | Z62: 28670 | AC62: 6278 | AD62: 8314 | AE62: 768 | AF62: 15360
A63: 2012-12-01 | B63: 3575 | C63: 490 | D63: 4065 | F63: 5955 | G63: 538 | H63: 6493 | J63: 275273 | K63: 1852 | L63: 20134 | M63: 2858 | N63: 300117 | P63: 217263 | Q63: 1891 | R63: 10168 | S63: 4958 | T63: 234280 | W63: 16358 | X63: 10763 | Y63: 1555 | Z63: 28676 | AC63: 6301 | AD63: 8314 | AE63: 761 | AF63: 15376
A64: 2013-01-01 | B64: 3469 | C64: 475 | D64: 3944 | F64: 6045 | G64: 544 | H64: 6589 | J64: 272659 | K64: 1816 | L64: 20079 | M64: 3063 | N64: 297617 | P64: 220261 | Q64: 1933 | R64: 10346 | S64: 4998 | T64: 237538 | W64: 16361 | X64: 10675 | Y64: 1540 | Z64: 28576 | AC64: 6328 | AD64: 8371 | AE64: 782 | AF64: 15481
A65: 2013-02-01 | B65: 3436 | C65: 460 | D65: 3896 | F65: 6067 | G65: 551 | H65: 6618 | J65: 270570 | K65: 1792 | L65: 19950 | M65: 3064 | N65: 295376 | P65: 222657 | Q65: 1961 | R65: 10540 | S65: 5025 | T65: 240183 | W65: 16372 | X65: 10626 | Y65: 1544 | Z65: 28542 | AC65: 6347 | AD65: 8420 | AE65: 794 | AF65: 15561
A66: 2013-03-01 | B66: 3475 | C66: 460 | D66: 3935 | F66: 6037 | G66: 551 | H66: 6588 | J66: 269458 | K66: 1781 | L66: 19935 | M66: 3085 | N66: 294259 | P66: 223812 | Q66: 1978 | R66: 10633 | S66: 5020 | T66: 241443 | W66: 16372 | X66: 10643 | Y66: 1556 | Z66: 28571 | AC66: 6374 | AD66: 8404 | AE66: 783 | AF66: 15561
A67: 2013-04-01 | B67: 3467 | C67: 459 | D67: 3926 | F67: 6049 | G67: 550 | H67: 6599 | J67: 267681 | K67: 1768 | L67: 19769 | M67: 3086 | N67: 292304 | P67: 224595 | Q67: 1988 | R67: 10704 | S67: 5022 | T67: 242309 | W67: 16304 | X67: 10646 | Y67: 1560 | Z67: 28510 | AC67: 6396 | AD67: 8455 | AE67: 782 | AF67: 15633
A68: 2013-05-01 | B68: 3447 | C68: 454 | D68: 3901 | F68: 6070 | G68: 553 | H68: 6623 | J68: 267476 | K68: 1759 | L68: 19752 | M68: 3117 | N68: 292104 | P68: 224594 | Q68: 1996 | R68: 10737 | S68: 5025 | T68: =SUM(P68:S68) -> 242352 | W68: 16272 | X68: 10461 | Y68: 1549 | Z68: 28282 | AC68: 6403 | AD68: 8680 | AE68: 791 | AF68: =SUM(AC68:AE68) -> 15874
A69: 2013-06-01 | B69: 3455 | C69: 450 | D69: =B69+C69 -> 3905 | F69: 6078 | G69: 554 | H69: =F69+G69 -> 6632 | J69: 266844 | K69: 1744 | L69: 19784 | M69: 3147 | N69: =SUM(J69:M69) -> 291519 | P69: 225027 | Q69: 2012 | R69: 10680 | S69: 5028 | T69: 242747 | W69: 16201 | X69: 10441 | Y69: 1537 | Z69: =SUM(W69:Y69) -> 28179 | AC69: 6460 | AD69: 8701 | AE69: 798 | AF69: 15959
A70: 2013-07-01 | B70: 3453 | C70: 454 | D70: 3907 | F70: 6080 | G70: 547 | H70: 6627 | J70: 267755 | K70: 1744 | L70: 19900 | M70: 3143 | N70: 292542 | P70: 223540 | Q70: 2008 | R70: 10448 | S70: 5042 | T70: 241038 | W70: 16146 | X70: 10339 | Y70: 1536 | Z70: 28021 | AC70: 6528 | AD70: 8779 | AE70: 797 | AF70: 16104
A71: 2013-08-01 | B71: 3413 | C71: 454 | D71: 3867 | F71: 6109 | G71: 551 | H71: 6660 | J71: 270513 | K71: 1767 | L71: 20296 | M71: 3125 | N71: 295701 | P71: 221050 | Q71: 1993 | R71: 10153 | S71: 5061 | T71: 238257 | W71: 16131 | X71: 10290 | Y71: 1499 | Z71: 27920 | AC71: 6558 | AD71: 8866 | AE71: 834 | AF71: 16258
A72: 2013-09-01 | B72: 3411 | C72: 453 | D72: 3864 | F72: 6115 | G72: 551 | H72: 6666 | J72: 271409 | K72: 1770 | L72: 20464 | M72: 3089 | N72: 296732 | P72: 220081 | Q72: 1989 | R72: 9996 | S72: 5103 | T72: 237169 | W72: 16094 | X72: 10167 | Y72: 1493 | Z72: 27754 | AC72: 6656 | AD72: 8890 | AE72: 838 | AF72: 16384
A73: 2013-10-01 | B73: 3388 | C73: 456 | D73: 3844 | F73: 6134 | G73: 551 | H73: 6685 | J73: 271630 | K73: 1767 | L73: 20585 | M73: 3066 | N73: 297048 | P73: 220325 | Q73: 1997 | R73: 9946 | S73: 5132 | T73: 237400 | W73: 16022 | X73: 10176 | Y73: 1485 | Z73: 27683 | AC73: 6735 | AD73: 8873 | AE73: 842 | AF73: 16450
A74: 2013-11-01 | B74: 3380 | C74: 457 | D74: 3837 | F74: 6134 | G74: 553 | H74: 6687 | J74: 271911 | K74: 1774 | L74: 20699 | M74: 3047 | N74: 297431 | P74: 220864 | Q74: 1994 | R74: 9921 | S74: 5165 | T74: 237944 | W74: 16018 | X74: 10113 | Y74: 1472 | Z74: 27603 | AC74: 6806 | AD74: 8941 | AE74: 859 | AF74: 16606
A75: 2013-12-01 | B75: 3354 | C75: 453 | D75: 3807 | F75: 6157 | G75: 556 | H75: 6713 | J75: 272338 | K75: 1778 | L75: 20907 | M75: 3054 | N75: 298077 | P75: 221073 | Q75: 2002 | R75: 9874 | S75: 5152 | T75: 238101 | W75: 15976 | X75: 10028 | Y75: 1457 | Z75: 27461 | AC75: 6888 | AD75: 8998 | AE75: 874 | AF75: 16760
A76: 2014-01-01 | B76: 3418 | C76: 448 | D76: 3866 | F76: 6048 | G76: 557 | H76: 6605 | J76: 272714 | K76: 1802 | L76: 21110 | M76: 3045 | N76: 298671 | P76: 221059 | Q76: 1999 | R76: 9802 | S76: 5171 | T76: 238031 | W76: 15974 | X76: 10029 | Y76: 1464 | Z76: 27467 | AC76: 6892 | AD76: 9027 | AE76: 875 | AF76: 16794
A77: 2014-02-01 | B77: 3397 | C77: 449 | D77: 3846 | F77: 6040 | G77: 547 | H77: 6587 | J77: 273501 | K77: 1857 | L77: 21292 | M77: 3038 | N77: 299688 | P77: 220509 | Q77: 2005 | R77: 9702 | S77: 5187 | T77: 237403 | W77: 15934 | X77: 10116 | Y77: 1445 | Z77: 27495 | AC77: 6893 | AD77: 9021 | AE77: 904 | AF77: 16818
A78: 2014-03-01 | B78: 3447 | C78: 458 | D78: 3905 | F78: 5991 | G78: 539 | H78: 6530 | J78: 275646 | K78: 1907 | L78: 21557 | M78: 3029 | N78: 302139 | P78: 218410 | Q78: 1997 | R78: 9451 | S78: 5198 | T78: 235056 | W78: 15945 | X78: 10191 | Y78: 1458 | Z78: 27594 | AC78: 6834 | AD78: 9008 | AE78: 888 | AF78: 16730
A79: 2014-04-01 | B79: 3503 | C79: 464 | D79: 3967 | F79: 5938 | G79: 532 | H79: 6470 | J79: 278301 | K79: 1934 | L79: 21763 | M79: 3022 | N79: 305020 | P79: 214378 | Q79: 1976 | R79: 9112 | S79: 5211 | T79: 230677 | W79: 15966 | X79: 10301 | Y79: 1460 | Z79: 27727 | AC79: 6800 | AD79: 8923 | AE79: 886 | AF79: 16609
A80: 2014-05-01 | B80: 3543 | C80: 484 | D80: 4027 | F80: 5895 | G80: 511 | H80: 6406 | J80: 281904 | K80: 1955 | L80: 21935 | M80: 3062 | N80: 308856 | P80: 210631 | Q80: 1954 | R80: 8896 | S80: 5187 | T80: 226668 | W80: 16063 | X80: 10400 | Y80: 1475 | Z80: 27938 | AC80: 6743 | AD80: 8790 | AE80: 868 | AF80: 16401
A81: 2014-06-01 | B81: 3575 | C81: 488 | D81: 4063 | F81: 5864 | G81: 507 | H81: 6371 | J81: 283128 | K81: 1958 | L81: 21986 | M81: 1895 | N81: 308967 | P81: 209070 | Q81: 1953 | R81: 8784 | S81: 829 | T81: 220636 | V81: 1815 | W81: 16170 | X81: 10358 | Y81: 1478 | Z81: =SUM(V81:Y81) -> 29821 | AB81: 3712 | AC81: 6646 | AD81: 8826 | AE81: 869 | AF81: =SUM(AB81:AE81) -> 20053
A82: 2014-07-01 | B82: 3528 | C82: 478 | D82: 4006 | F82: 5907 | G82: 518 | H82: 6425 | J82: 283918 | K82: 1969 | L82: 21996 | M82: 1893 | N82: 309776 | P82: 207925 | Q82: 1939 | R82: 8655 | S82: 831 | T82: 219350 | V82: 1835 | W82: 16202 | X82: 10322 | Y82: 1482 | Z82: =SUM(V82:Y82) -> 29841 | AB82: 3687 | AC82: 6600 | AD82: 8841 | AE82: 870 | AF82: 19998
A83: 2014-08-01 | B83: 3558 | C83: 479 | D83: 4037 | F83: 5875 | G83: 517 | H83: 6392 | J83: 285353 | K83: 1985 | L83: 22032 | M83: 1890 | N83: 311260 | P83: 206577 | Q83: 1943 | R83: 8652 | S83: 840 | T83: 218012 | V83: 1840 | W83: 16221 | X83: 10339 | Y83: 1480 | Z83: 29880 | AB83: 3682 | AC83: 6624 | AD83: 8823 | AE83: 871 | AF83: 20000
A84: 2014-09-01 | B84: 3536 | C84: 476 | D84: 4012 | F84: 5896 | G84: 520 | H84: 6416 | J84: 285532 | K84: 1998 | L84: 22164 | M84: 1885 | N84: 311579 | P84: 206226 | Q84: 1944 | R84: 8698 | S84: 865 | T84: 217733 | V84: 1840 | W84: 16262 | X84: 10372 | Y84: 1484 | Z84: 29958 | AB84: 3682 | AC84: 6634 | AD84: 8749 | AE84: 862 | AF84: 19927
A85: 2014-10-01 | B85: 3550 | C85: 481 | D85: 4031 | F85: 5875 | G85: 515 | H85: 6390 | J85: 286779 | K85: 2018 | L85: 22266 | M85: 1882 | N85: 312945 | P85: 205309 | Q85: 1937 | R85: 8710 | S85: 881 | T85: 216837 | V85: 1839 | W85: 16251 | X85: 10413 | Y85: 1481 | Z85: 29984 | AB85: 3683 | AC85: 6636 | AD85: 8708 | AE85: 861 | AF85: 19888
A86: 2014-11-01 | B86: 3568 | C86: 473 | D86: 4041 | F86: 5860 | G86: 522 | H86: 6382 | J86: 287800 | K86: 2029 | L86: 22307 | M86: 1879 | N86: 314015 | P86: 204934 | Q86: 1935 | R86: 8731 | S86: 900 | T86: 216500 | V86: 1839 | W86: 16305 | X86: 10377 | Y86: 1487 | Z86: 30008 | AB86: 3682 | AC86: 6648 | AD86: 8718 | AE86: 860 | AF86: 19908
A87: 2014-12-01 | B87: 3549 | C87: 468 | D87: 4017 | F87: 5858 | G87: 525 | H87: 6383 | J87: 311539 | K87: 2406 | L87: 23611 | M87: 769 | N87: 338325 | P87: 180275 | Q87: 1565 | R87: 7304 | S87: 216 | T87: 189360 | V87: 1871 | W87: 16232 | X87: 10318 | Y87: 1483 | Z87: 29904 | AB87: 3646 | AC87: 6646 | AD87: 8684 | AE87: 852 | AF87: 19828
A88: 2015-01-01 | B88: 3544 | C88: 459 | D88: 4003 | F88: 5864 | G88: 539 | H88: 6403 | J88: 311695 | K88: 2406 | L88: 23652 | M88: 769 | N88: 338522 | P88: 179957 | Q88: 1573 | R88: 7224 | S88: 225 | T88: 188979 | V88: 1940 | W88: 16370 | X88: 10360 | Y88: 1490 | Z88: 30160 | AB88: 3578 | AC88: 6518 | AD88: 8626 | AE88: 841 | AF88: 19563 | AJ88: 80 | AK88: 10 | AN88: 90
A89: 2015-02-01 | B89: 3454 | C89: 468 | D89: 3922 | F89: 5931 | G89: 536 | H89: 6467 | J89: 312676 | K89: 2425 | L89: 23763 | M89: 779 | N89: 339643 | P89: 179198 | Q89: 1572 | R89: 7168 | S89: 224 | T89: 188162 | V89: 1930 | W89: 16375 | X89: 10306 | Y89: 1468 | Z89: 30079 | AB89: 3584 | AC89: 6502 | AD89: 8685 | AE89: 858 | AF89: 19629 | AJ89: 73 | AK89: 8 | AN89: 81
A90: 2015-03-01 | B90: 3450 | C90: 450 | D90: 3900 | F90: 5969 | G90: 553 | H90: 6522 | J90: 315346 | K90: 2509 | L90: 24067 | M90: 777 | N90: 342699 | P90: 177865 | Q90: 1553 | R90: 7016 | S90: 239 | T90: 186673 | V90: 1939 | W90: 16410 | X90: 10400 | Y90: 1472 | Z90: 30221 | AB90: 3575 | AC90: 6479 | AD90: 8591 | AE90: 852 | AF90: 19497 | AJ90: 73 | AK90: 9 | AN90: 82
A91: 2015-04-01 | B91: 3433 | C91: 450 | D91: 3883 | F91: 5977 | G91: 554 | H91: 6531 | J91: 315808 | K91: 2524 | L91: 24101 | M91: 792 | N91: 343225 | P91: 176965 | Q91: 1544 | R91: 6934 | S91: 224 | T91: 185667 | V91: 1911 | W91: 16427 | X91: 10412 | Y91: 1485 | Z91: 30235 | AB91: 3603 | AC91: 6446 | AD91: 8547 | AE91: 838 | AF91: 19434 | AJ91: 69 | AK91: 9 | AL91: 0 | AM91: 0 | AN91: 78
A92: 2015-05-01 | B92: 3416 | C92: 447 | D92: 3863 | F92: 5988 | G92: 557 | H92: 6545 | J92: 316035 | K92: 2524 | L92: 24099 | M92: 791 | N92: 343449 | P92: 176170 | Q92: 1544 | R92: 6870 | S92: 228 | T92: 184812 | V92: 2009 | W92: 16399 | X92: 10432 | Y92: 1472 | Z92: 30312 | AB92: 3538 | AC92: 6408 | AD92: 8486 | AE92: 844 | AF92: 19276 | AJ92: 72 | AK92: 8 | AL92: 0 | AM92: 0 | AN92: 80
A93: 2015-06-01 | B93: 3416 | C93: 443 | D93: 3859 | F93: 5984 | G93: 558 | H93: 6542 | J93: 320009 | K93: 2582 | L93: 24297 | M93: 795 | N93: 347683 | P93: 171073 | Q93: 1497 | R93: 6606 | S93: 227 | T93: 179403 | V93: 2013 | W93: 16380 | X93: 10440 | Y93: 1474 | Z93: 30307 | AB93: 3539 | AC93: 6347 | AD93: 8425 | AE93: 836 | AF93: 19147 | AJ93: 71 | AK93: 10 | AL93: 0 | AM93: 0 | AN93: 81
A94: 2015-07-01 | B94: 3391 | C94: 438 | D94: 3829 | F94: 6010 | G94: 562 | H94: 6572 | J94: 319406 | K94: 2580 | L94: 24085 | M94: 794 | N94: 346865 | P94: 169993 | Q94: 1499 | R94: 6504 | S94: 225 | T94: 178221 | V94: 2017 | W94: 16403 | X94: 10472 | Y94: 1467 | Z94: 30359 | AB94: 3536 | AC94: 6328 | AD94: 8398 | AE94: 835 | AF94: 19097 | AJ94: 78 | AK94: 12 | AL94: 0 | AM94: 0 | AN94: 90
A95: 2015-08-01 | B95: 3387 | C95: 443 | D95: 3830 | F95: 6020 | G95: 558 | H95: 6578 | J95: 320803 | K95: 2614 | L95: 24254 | M95: 796 | N95: 348467 | P95: 168548 | Q95: 1471 | R95: 6397 | S95: 225 | T95: 176641 | V95: 2046 | W95: 16431 | X95: 10471 | Y95: 1459 | Z95: 30407 | AB95: 3525 | AC95: 6291 | AD95: 8371 | AE95: 838 | AF95: 19025 | AJ95: 74 | AK95: 13 | AL95: 0 | AM95: 0 | AN95: 87
A96: 2015-09-01 | B96: 3405 | C96: 443 | D96: 3848 | F96: 6008 | G96: 558 | H96: 6566 | J96: 327484 | K96: 2725 | L96: 24562 | M96: 801 | N96: 355572 | P96: 161677 | Q96: 1367 | R96: 6145 | S96: 224 | T96: 169413 | V96: 2086 | W96: 16405 | X96: 10476 | Y96: 1458 | Z96: 30425 | AB96: 3499 | AC96: 6239 | AD96: 8256 | AE96: 832 | AF96: 18826 | AJ96: 77 | AK96: 12 | AL96: 0 | AM96: 0 | AN96: 89
A97: 2015-10-01 | B97: 3431 | C97: 442 | D97: 3873 | F97: 5991 | G97: 558 | H97: 6549 | J97: 327858 | K97: 2735 | L97: 24587 | M97: 812 | N97: 355992 | P97: 161176 | Q97: 1361 | R97: 6105 | S97: 228 | T97: 168870 | V97: 1939 | W97: 16431 | X97: 10476 | Y97: 1459 | Z97: 30305 | AB97: 3527 | AC97: 6215 | AD97: 8237 | AE97: 831 | AF97: 18810 | AJ97: 77 | AK97: 14 | AL97: 0 | AM97: 0 | AN97: 91
A98: 2015-11-01 | B98: 3438 | C98: 446 | D98: 3884 | F98: 5983 | G98: 557 | H98: 6540 | J98: 327811 | K98: 2738 | L98: 24681 | M98: 766 | N98: 355996 | P98: 161241 | Q98: 1362 | R98: 6061 | S98: 228 | T98: 168892 | V98: 1945 | W98: 16443 | X98: 10464 | Y98: 1451 | Z98: 30303 | AB98: 3530 | AC98: 6206 | AD98: 8229 | AE98: 838 | AF98: 18803 | AJ98: 81 | AK98: 14 | AL98: 0 | AM98: 0 | AN98: 95
A99: 2015-12-01 | B99: 3459 | C99: 450 | D99: 3909 | F99: 5967 | G99: 550 | H99: 6517 | J99: 329117 | K99: 2746 | L99: 24731 | M99: 764 | N99: 357358 | P99: 160502 | Q99: 1352 | R99: 6010 | S99: 234 | T99: 168098 | V99: 1948 | W99: 16435 | X99: 10449 | Y99: 1456 | Z99: 30288 | AB99: 3530 | AC99: 6224 | AD99: 8244 | AE99: 827 | AF99: 18825 | AJ99: 83 | AK99: 14 | AL99: 0 | AM99: 0 | AN99: 97
A100: 2016-01-01 | B100: 3490 | C100: 453 | D100: 3943 | F100: 5980 | G100: 554 | H100: 6534 | J100: 329641 | K100: 2751 | L100: 24766 | M100: 764 | N100: 357922 | P100: 160695 | Q100: 1365 | R100: 6059 | S100: 234 | T100: 168353 | V100: 1920 | W100: 16469 | X100: 10474 | Y100: 1458 | Z100: 30321 | AB100: 3561 | AC100: 6210 | AD100: 8205 | AE100: 820 | AF100: 18796 | AJ100: 80 | AK100: 16 | AL100: 0 | AM100: 0 | AN100: 96
A101: 2016-02-01 | B101: 3480 | C101: 455 | D101: 3935 | F101: 6010 | G101: 558 | H101: 6568 | J101: 329573 | K101: 2775 | L101: 24904 | M101: 769 | N101: 358021 | P101: 161205 | Q101: 1371 | R101: 6078 | S101: 232 | T101: 168886 | V101: 1919 | W101: 16459 | X101: 10524 | Y101: 1456 | Z101: 30358 | AB101: 3563 | AC101: 6210 | AD101: 8163 | AE101: 811 | AF101: 18747 | AJ101: 77 | AK101: 13 | AL101: 0 | AM101: 0 | AN101: 90
A102: 2016-03-01 | B102: 3511 | C102: 458 | D102: 3969 | F102: 5993 | G102: 557 | H102: 6550 | J102: 329365 | K102: 2776 | L102: 25301 | M102: 761 | N102: 358203 | P102: 161117 | Q102: 1386 | R102: 6072 | S102: 233 | T102: 168808 | V102: 1922 | W102: 16397 | X102: 10614 | Y102: 1463 | Z102: 30396 | AB102: 3558 | AC102: 6178 | AD102: 8123 | AE102: 794 | AF102: 18653 | AJ102: 75 | AK102: 13 | AL102: 0 | AM102: 0 | AN102: 88
A103: 2016-04-01 | B103: 3488 | C103: 451 | D103: 3939 | F103: 6013 | G103: 566 | H103: 6579 | J103: 329627 | K103: 2817 | L103: 25389 | M103: 765 | N103: 358598 | P103: 160218 | Q103: 1373 | R103: 5986 | S103: 232 | T103: 167809 | V103: 1894 | W103: 16451 | X103: 10586 | Y103: 1461 | Z103: 30392 | AB103: 3593 | AC103: 6201 | AD103: 8043 | AE103: 796 | AF103: 18633 | AJ103: 76 | AK103: 13 | AL103: 0 | AM103: 0 | AN103: 89
A104: 2016-05-01 | B104: 3434 | C104: 441 | D104: 3875 | F104: 6078 | G104: 574 | H104: 6652 | J104: 329049 | K104: 2823 | L104: 25476 | M104: 765 | N104: 358113 | P104: 159778 | Q104: 1369 | R104: 5960 | S104: 231 | T104: 167338 | V104: 1899 | W104: 16486 | X104: 10577 | Y104: 1479 | Z104: 30441 | AB104: 3590 | AC104: 6191 | AD104: 8018 | AE104: 778 | AF104: 18577 | AJ104: 76 | AK104: 14 | AL104: 0 | AM104: 0 | AN104: 90
A105: 2016-06-01 | B105: 3460 | C105: 446 | D105: 3906 | F105: 6056 | G105: 570 | H105: 6626 | J105: 325613 | K105: 3054 | L105: 25111 | M105: 765 | N105: 354543 | P105: 158615 | Q105: 1369 | R105: 5844 | S105: 232 | T105: 166060 | V105: 1903 | W105: 16471 | X105: 10560 | Y105: 1475 | Z105: 30409 | AB105: 3590 | AC105: 6111 | AD105: 7969 | AE105: 774 | AF105: 18444 | AJ105: 76 | AK105: 15 | AL105: 0 | AM105: 0 | AN105: 91
A106: 2016-07-01 | B106: 3440 | C106: 440 | D106: 3880 | F106: 6063 | G106: 570 | H106: 6633 | J106: 325272 | K106: 3209 | L106: 25083 | M106: 766 | N106: 354330 | P106: 158254 | Q106: 1371 | R106: 5817 | S106: 233 | T106: 165675 | V106: 1903 | W106: 16426 | X106: 10532 | Y106: 1475 | Z106: 30336 | AB106: 3590 | AC106: 6144 | AD106: 7982 | AE106: 785 | AF106: 18501 | AJ106: 76 | AK106: 15 | AL106: 0 | AM106: 0 | AN106: 91
A107: 2016-08-01 | B107: 3496 | C107: 448 | D107: 3944 | F107: 6057 | G107: 564 | H107: 6621 | J107: 328860 | K107: 3227 | L107: 25773 | M107: 769 | N107: 358629 | P107: 158302 | Q107: 1379 | R107: 5813 | S107: 234 | T107: 165728 | V107: 1899 | W107: 16502 | X107: 10679 | Y107: 1490 | Z107: 30570 | AB107: 3596 | AC107: 6190 | AD107: 7960 | AE107: 786 | AF107: 18532 | AJ107: 76 | AK107: 12 | AL107: 0 | AM107: 0 | AN107: 88
A108: 2016-09-01 | B108: 3532 | C108: 448 | D108: 3980 | F108: 6032 | G108: 563 | H108: 6595 | J108: 331046 | K108: 3250 | L108: 26239 | M108: 765 | N108: 361300 | P108: 158116 | Q108: 1386 | R108: 5828 | S108: 235 | T108: 165565 | V108: 1899 | W108: 16535 | X108: 10702 | Y108: 1488 | Z108: 30624 | AB108: 3596 | AC108: 6207 | AD108: 7947 | AE108: 789 | AF108: 18539 | AJ108: 73 | AK108: 11 | AL108: 0 | AM108: 0 | AN108: 84
A109: 2016-10-01 | B109: 3542 | C109: 454 | D109: 3996 | F109: 6018 | G109: 562 | H109: 6580 | J109: 332310 | K109: 3254 | L109: 26510 | M109: 773 | N109: 362847 | P109: 158009 | Q109: 1395 | R109: 5859 | S109: 234 | T109: 165497 | V109: 1881 | W109: 16526 | X109: 10727 | Y109: 1478 | Z109: 30612 | AB109: 3594 | AC109: 6209 | AD109: 7924 | AE109: 797 | AF109: 18524 | AJ109: 70 | AK109: 13 | AL109: 0 | AM109: 0 | AN109: 83
A110: 2016-11-01 | B110: 3563 | C110: 459 | D110: 4022 | F110: 6010 | G110: 559 | H110: 6569 | J110: 333435 | K110: 3260 | L110: 26691 | M110: 771 | N110: 364157 | P110: 157882 | Q110: 1405 | R110: 5855 | S110: 233 | T110: 165375 | V110: 1857 | W110: 16604 | X110: 10680 | Y110: 1473 | Z110: 30614 | AB110: 3593 | AC110: 6253 | AD110: 7916 | AE110: 794 | AF110: 18556 | AJ110: 70 | AK110: 13 | AL110: 0 | AM110: 0 | AN110: 83
A111: 2016-12-01 | B111: 3551 | C111: 460 | D111: 4011 | F111: 5908 | G111: 545 | H111: 6453 | J111: 335231 | K111: 3269 | L111: 27042 | M111: 766 | N111: 366308 | P111: 157549 | Q111: 1405 | R111: 5808 | S111: 239 | T111: 165001 | V111: 1810 | W111: 16636 | X111: 10577 | Y111: 1463 | Z111: 30486 | AB111: 3639 | AC111: 6244 | AD111: 7806 | AE111: 779 | AF111: 18468 | AJ111: 75 | AK111: 15 | AL111: 0 | AM111: 1 | AN111: 91
A112: 2017-01-01 | B112: 3896 | C112: 490 | D112: 4386 | F112: 5996 | G112: 551 | H112: 6547 | J112: 336030 | K112: 3285 | L112: 27203 | M112: 767 | N112: 367285 | P112: 156824 | Q112: 1402 | R112: 5723 | S112: 237 | T112: 164186 | V112: 1807 | W112: 16630 | X112: 10532 | Y112: 1451 | Z112: 30420 | AB112: 3650 | AC112: 6230 | AD112: 7731 | AE112: 795 | AF112: 18406 | AJ112: 80 | AK112: 16 | AL112: 0 | AM112: 1 | AN112: 97
A113: 2017-02-01 | B113: 3902 | C113: 492 | D113: 4394 | F113: 5985 | G113: 549 | H113: 6534 | J113: 336444 | K113: 3281 | L113: 27281 | M113: 763 | N113: 367769 | P113: 156557 | Q113: 1420 | R113: 5672 | S113: 234 | T113: 163883 | V113: 1815 | W113: 16471 | X113: 10411 | Y113: 1444 | Z113: 30141 | AB113: 3650 | AC113: 6164 | AD113: 7591 | AE113: 801 | AF113: 18206 | AJ113: 72 | AK113: 14 | AL113: 0 | AM113: 0 | AN113: 86
A114: 2017-03-01 | B114: 3914 | C114: 486 | D114: 4400 | F114: 5989 | G114: 555 | H114: 6544 | J114: 336810 | K114: 3285 | L114: 27522 | M114: 764 | N114: 368381 | P114: 156001 | Q114: 1426 | R114: 5623 | S114: 233 | T114: 163283 | V114: 2035 | W114: 16612 | X114: 10568 | Y114: 1446 | Z114: 30661 | AB114: 3475 | AC114: 6219 | AD114: 7589 | AE114: 800 | AF114: 18083 | AJ114: 68 | AK114: 13 | AL114: 0 | AM114: 0 | AN114: 81
A115: 2017-04-01 | B115: 3963 | C115: 485 | D115: 4448 | F115: 5948 | G115: 555 | H115: 6503 | J115: 336549 | K115: 3303 | L115: 27515 | M115: 763 | N115: 368130 | P115: 155274 | Q115: 1423 | R115: 5588 | S115: 234 | T115: 162519 | V115: 2023 | W115: 16583 | X115: 10525 | Y115: 1456 | Z115: 30587 | AB115: 3478 | AC115: 6177 | AD115: 7535 | AE115: 786 | AF115: 17976 | AJ115: 61 | AK115: 13 | AL115: 0 | AM115: 0 | AN115: 74
A116: 2017-05-01 | B116: 4015 | C116: 494 | D116: 4509 | F116: 5875 | G116: 548 | H116: 6423 | J116: 336255 | K116: 3459 | L116: 27502 | M116: 760 | N116: 367976 | P116: 154492 | Q116: 1424 | R116: 5530 | S116: 235 | T116: 161681 | V116: 2030 | W116: 16691 | X116: 10643 | Y116: 1457 | Z116: 30821 | AB116: 3473 | AC116: 6125 | AD116: 7512 | AE116: 779 | AF116: 17889 | AJ116: 64 | AK116: 13 | AL116: 0 | AM116: 0 | AN116: 77
A117: 2017-06-01 | B117: 4067 | C117: 492 | D117: 4559 | F117: 5844 | G117: 551 | H117: 6395 | J117: 336455 | K117: 3460 | L117: 27430 | M117: 752 | N117: 368097 | P117: 153943 | Q117: 1411 | R117: 5516 | S117: 240 | T117: 161110 | V117: 2030 | W117: 16703 | X117: 10759 | Y117: 1441 | Z117: 30933 | AB117: 3480 | AC117: 6102 | AD117: 7485 | AE117: 788 | AF117: 17855 | AJ117: 71 | AK117: 12 | AL117: 0 | AM117: 0 | AN117: 83
A118: 2017-07-01 | B118: 4091 | C118: 489 | D118: 4580 | F118: 5822 | G118: 553 | H118: 6375 | J118: 339605 | K118: 3497 | L118: 27956 | M118: 750 | N118: 371808 | P118: 153952 | Q118: 1410 | R118: 5550 | S118: 244 | T118: 161156 | V118: 2017 | W118: 16813 | X118: 10813 | Y118: 1445 | Z118: 31088 | AB118: 3493 | AC118: 6072 | AD118: 7484 | AE118: 789 | AF118: 17838 | AJ118: 68 | AK118: 12 | AL118: 0 | AM118: 0 | AN118: 80
A119: 2017-08-01 | B119: 4097 | C119: 487 | D119: 4584 | F119: 5822 | G119: 559 | H119: 6381 | J119: 340230 | K119: 3507 | L119: 28291 | M119: 756 | N119: 372784 | P119: 152988 | Q119: 1401 | R119: 5557 | S119: 246 | T119: 160192 | V119: 1975 | W119: 16890 | X119: 10855 | Y119: 1452 | Z119: 31172 | AB119: 3495 | AC119: 6037 | AD119: 7438 | AE119: 783 | AF119: 17753 | AJ119: 66 | AK119: 12 | AL119: 0 | AM119: 0 | AN119: 78
A120: 2017-09-01 | B120: 4068 | C120: 489 | D120: 4557 | F120: 5843 | G120: 557 | H120: 6400 | J120: 339658 | K120: 3522 | L120: 28194 | M120: 755 | N120: 372129 | P120: 152953 | Q120: 1379 | R120: 5561 | S120: 248 | T120: 160141 | V120: 1978 | W120: 16841 | X120: 10847 | Y120: 1454 | Z120: 31120 | AB120: 3496 | AC120: 6059 | AD120: 7374 | AE120: 782 | AF120: 17711 | AJ120: 66 | AK120: 12 | AL120: 0 | AM120: 0 | AN120: 78
A121: 2017-10-01 | B121: 4065 | C121: 493 | D121: 4558 | F121: 5816 | G121: 548 | H121: 6364 | J121: 340120 | K121: 3530 | L121: 28290 | M121: 749 | N121: =SUM(J121:M121) -> 372689 | P121: 153069 | Q121: 1375 | R121: 5573 | S121: 248 | T121: =SUM(P121:S121) -> 160265 | V121: 1974 | W121: 16850 | X121: 10846 | Y121: 1435 | Z121: =SUM(V121:Y121) -> 31105 | AB121: 3438 | AC121: 6028 | AD121: 7325 | AE121: 795 | AF121: =SUM(AB121:AE121) -> 17586 | AJ121: 69 | AK121: 12 | AN121: 81
A122: 2017-11-01 | B122: 4077 | C122: 490 | D122: 4567 | F122: 5840 | G122: 554 | H122: 6394 | J122: 340542 | K122: 3541 | L122: 28384 | M122: 753 | N122: 373220 | P122: 152991 | Q122: 1366 | R122: 5640 | S122: 251 | T122: 160248 | V122: 1970 | W122: 16860 | X122: 10866 | Y122: 1429 | Z122: 31125 | AB122: 3503 | AC122: 6105 | AD122: 7331 | AE122: 805 | AF122: 17744 | AJ122: 65 | AK122: 10 | AN122: 75
A123: 2017-12-01 | B123: 4056 | C123: 489 | D123: =B123+C123 -> 4545 | F123: 5854 | G123: 553 | H123: 6407 | J123: 340662 | K123: 3680 | L123: 28302 | M123: 758 | N123: =SUM(J123:M123) -> 373402 | P123: 153232 | Q123: 1348 | R123: 5696 | S123: 250 | T123: =SUM(P123:S123) -> 160526 | V123: 1979 | W123: 16940 | X123: 10825 | Y123: 1433 | Z123: =SUM(V123:Y123) -> 31177 | AB123: 3502 | AC123: 6108 | AD123: 7300 | AE123: 802 | AF123: =SUM(AB123:AE123) -> 17712 | AJ123: 67 | AK123: 11 | AN123: 78
A124: 2018-01-01 | B124: 3711 | C124: 480 | D124: 4191 | F124: 5585 | G124: 531 | H124: 6116 | J124: 341486 | K124: 3738 | L124: 28750 | M124: 752 | N124: 374726 | P124: 152963 | Q124: 1342 | R124: 5595 | S124: 255 | T124: 160155 | V124: 1977 | W124: 16955 | X124: 11193 | Y124: 1467 | Z124: 31592 | AB124: 3504 | AC124: 6109 | AD124: 7490 | AE124: 790 | AF124: 17893 | AJ124: 64 | AK124: 11 | AN124: 75
A125: 2018-02-01 | B125: 3481 | C125: 468 | D125: 3949 | F125: 5479 | G125: 535 | H125: 6014 | J125: 342133 | K125: 3874 | L125: 29166 | M125: 752 | N125: 375925 | P125: 152694 | Q125: 1329 | R125: 5558 | S125: 257 | T125: 159838 | V125: 1974 | W125: 16994 | X125: 11455 | Y125: 1461 | Z125: 31884 | AB125: 3503 | AC125: 6103 | AD125: 7598 | AE125: 811 | AF125: 18015 | AJ125: 65 | AK125: 11 | AN125: 76
A126: 2018-03-01 | B126: 3504 | C126: 469 | D126: 3973 | F126: 5468 | G126: 535 | H126: 6003 | J126: 341767 | K126: 3884 | L126: 29210 | M126: 745 | N126: 375606 | P126: 153175 | Q126: 1327 | R126: 5725 | S126: 256 | T126: 160483 | V126: 1972 | W126: 16998 | X126: 11486 | Y126: 1464 | Z126: 31920 | AB126: 3501 | AC126: 6106 | AD126: 7600 | AE126: 805 | AF126: 18012 | AJ126: 63 | AK126: 9 | AN126: 72
A127: 2018-04-01 | B127: 3524 | C127: 469 | D127: 3993 | F127: 5451 | G127: 533 | H127: =F127+G127 -> 5984 | J127: 342018 | K127: 3943 | L127: 29330 | M127: 746 | N127: 376037 | P127: 153553 | Q127: 1329 | R127: 5790 | S127: 256 | T127: 160928 | V127: 1968 | W127: 17078 | X127: 11489 | Y127: 1485 | Z127: 32020 | AB127: 3505 | AC127: 6113 | AD127: 7590 | AE127: 787 | AF127: 17995 | AJ127: 64 | AK127: 9 | AN127: 73
A128: 2018-05-01 | B128: 3536 | C128: 467 | D128: 4003 | F128: 5448 | G128: 532 | H128: =F128+G128 -> 5980 | J128: 341431 | K128: 3938 | L128: 29249 | M128: 746 | N128: =SUM(J128:M128) -> 375364 | P128: 153282 | Q128: 1328 | R128: 5816 | S128: 258 | T128: =SUM(P128:S128) -> 160684 | V128: 1967 | W128: 17083 | X128: 11513 | Y128: 1502 | Z128: =SUM(V128:Y128) -> 32065 | AB128: 3506 | AC128: 6114 | AD128: 7537 | AE128: 766 | AF128: =SUM(AB128:AE128) -> 17923 | AJ128: 67 | AK128: 10 | AN128: 77
A129: 2018-06-01 | B129: 3510 | C129: 467 | D129: 3977 | F129: 5467 | G129: 529 | H129: =F129+G129 -> 5996 | J129: 340014 | K129: 4078 | L129: 29053 | M129: 746 | N129: 373891 | P129: 153678 | Q129: 1329 | R129: 5854 | S129: 257 | T129: 161118 | V129: 1963 | W129: 17112 | X129: 11480 | Y129: 1510 | Z129: 32065 | AB129: 3509 | AC129: 6114 | AD129: 7563 | AE129: 758 | AF129: 17944 | AJ129: 63 | AK129: 9 | AN129: 72
A130: 2018-07-01 | B130: 3505 | C130: 463 | D130: 3968 | F130: 5469 | G130: 529 | H130: =F130+G130 -> 5998 | J130: 340808 | K130: 4122 | L130: 29135 | M130: 745 | N130: 374810 | P130: 153454 | Q130: 1342 | R130: 5877 | S130: 258 | T130: 160931 | V130: 1963 | W130: 17139 | X130: 11472 | Y130: 1495 | Z130: 32069 | AB130: 3510 | AC130: 6115 | AD130: 7555 | AE130: 778 | AF130: 17958 | AJ130: 63 | AK130: 9 | AN130: 72
A131: 2018-08-01 | B131: 3528 | C131: 466 | D131: 3994 | F131: 5454 | G131: 530 | H131: =F131+G131 -> 5984 | J131: 342057 | K131: 4219 | L131: 29364 | M131: 746 | N131: 376386 | P131: 152888 | Q131: 1338 | R131: 5886 | S131: 258 | T131: 160370 | V131: 1962 | W131: 17172 | X131: 11494 | Y131: 1498 | Z131: 32126 | AB131: 3510 | AC131: 6121 | AD131: 7509 | AE131: 776 | AF131: 17916 | AJ131: 62 | AK131: 10 | AN131: 72
A132: 2018-09-01 | B132: 3557 | C132: 462 | D132: 4019 | F132: 5436 | G132: 531 | H132: =F132+G132 -> 5967 | J132: 341235 | K132: 4201 | L132: 29314 | M132: 734 | N132: 375484 | P132: 152971 | Q132: 1335 | R132: 5971 | S132: 272 | T132: 160549 | V132: 1961 | W132: 17231 | X132: 11520 | Y132: 1496 | Z132: 32208 | AB132: 3507 | AC132: 6077 | AD132: 7465 | AE132: 778 | AF132: 17827 | AJ132: 60 | AK132: 10 | AN132: 70
A133: 2018-10-01 | B133: 3561 | C133: 460 | D133: =B133+C133 -> 4021 | F133: 5432 | G133: 533 | H133: 5965 | J133: 342039 | K133: 4227 | L133: 29467 | M133: 736 | N133: 376469 | P133: 153149 | Q133: 1351 | R133: 6104 | S133: 273 | T133: 160877 | V133: 1960 | W133: 17278 | X133: 11597 | Y133: 1499 | Z133: 32334 | AB133: 3507 | AC133: 6049 | AD133: 7448 | AE133: 772 | AF133: 17776 | AJ133: 62 | AK133: 10 | AN133: 72
A134: 2018-11-01 | B134: 3582 | C134: 462 | D134: 4044 | F134: 5422 | G134: 533 | H134: 5955 | J134: 343258 | K134: 4273 | L134: 29613 | M134: 739 | N134: 377883 | P134: 152876 | Q134: 1339 | R134: 6186 | S134: 270 | T134: 160671 | V134: 1949 | W134: 17301 | X134: 11627 | Y134: 1493 | Z134: 32370 | AB134: 3508 | AC134: 6039 | AD134: 7435 | AE134: 768 | AF134: 17750 | AJ134: 62 | AK134: 10 | AL134: 0 | AM134: 0 | AN134: 72
A135: 2018-12-01 | B135: 3560 | C135: 463 | D135: 4023 | F135: 5447 | G135: 530 | H135: 5977 | J135: 343550 | K135: 4293 | L135: 29653 | M135: 732 | N135: 378228 | P135: 152709 | Q135: 1330 | R135: 6171 | S135: 270 | T135: 160480 | V135: 1949 | W135: 17336 | X135: 11668 | Y135: 1495 | Z135: 32448 | AB135: 3508 | AC135: 6007 | AD135: 7427 | AE135: 763 | AF135: 17705 | AJ135: 62 | AK135: 10 | AL135: 0 | AM135: 0 | AN135: 72
A136: 2019-01-01 | B136: 2640 | C136: 322 | D136: 2962 | F136: 4589 | G136: 435 | H136: 5024 | J136: 344268 | K136: 4316 | L136: 29855 | M136: 736 | N136: 379175 | P136: 152448 | Q136: 1310 | R136: 6114 | S136: 267 | T136: 160139 | V136: 1815 | W136: 17369 | X136: 12574 | Y136: 1638 | Z136: 33396 | AB136: 3508 | AC136: 5972 | AD136: 8353 | AE136: 860 | AF136: 18693 | AJ136: 65 | AK136: 10 | AL136: 0 | AM136: 0 | AN136: 75
A137: 2019-02-01 | B137: 2551 | C137: 308 | D137: 2859 | F137: 4452 | G137: 422 | H137: 4874 | J137: 345170 | K137: 4337 | L137: 30150 | M137: 736 | N137: 380393 | P137: 151993 | Q137: 1299 | R137: 6058 | S137: 266 | T137: 159616 | V137: 1789 | W137: 17428 | X137: 12709 | Y137: 1657 | Z137: 33583 | AB137: 3507 | AC137: 5952 | AD137: 8454 | AE137: 869 | AF137: 18782 | AJ137: 63 | AK137: 10 | AL137: 0 | AM137: 0 | AN137: 73
A138: 2019-03-01 | B138: 2546 | C138: 308 | D138: 2854 | F138: 4463 | G138: 422 | H138: 4885 | J138: 345876 | K138: 4383 | L138: 30311 | M138: 734 | N138: 381304 | P138: 150984 | Q138: 1283 | R138: 5933 | S138: 268 | T138: 158468 | V138: 1796 | W138: 17417 | X138: 12752 | Y138: 1658 | Z138: 33623 | AB138: 3507 | AC138: 5944 | AD138: 8396 | AE138: 863 | AF138: 18710 | AJ138: 60 | AK138: 10 | AL138: 0 | AM138: 0 | AN138: 70
A139: 2019-04-01 | B139: 2542 | C139: 303 | D139: 2845 | F139: 4472 | G139: 423 | H139: 4895 | J139: 347027 | K139: 4430 | L139: 30403 | M139: 732 | N139: 382592 | P139: 149689 | Q139: 1267 | R139: 5835 | S139: 270 | T139: 157061 | V139: 1812 | W139: 17422 | X139: 12835 | Y139: 1649 | Z139: 33718 | AB139: 3507 | AC139: 5949 | AD139: 8312 | AE139: 856 | AF139: 18624 | AJ139: 58 | AK139: 14 | AL139: 0 | AM139: 0 | AN139: 72
A140: 2019-05-01 | B140: 2533 | C140: 302 | D140: 2835 | F140: 4481 | G140: 423 | H140: 4904 | J140: 348133 | K140: 4449 | L140: 30635 | M140: 730 | N140: 383947 | P140: 149016 | Q140: 1248 | R140: 5758 | S140: 273 | T140: 156295 | V140: 1828 | W140: 17459 | X140: 12806 | Y140: 1657 | Z140: 33750 | AB140: 3507 | AC140: 5932 | AD140: 8292 | AE140: 849 | AF140: 18580 | AJ140: 62 | AK140: 9 | AL140: 0 | AM140: 0 | AN140: 71
A141: 2019-06-01 | B141: 2443 | C141: 289 | D141: 2732 | F141: 4042 | G141: 386 | H141: 4428 | J141: 346730 | K141: 4384 | L141: 30426 | M141: 728 | N141: 382268 | P141: 148465 | Q141: 1244 | R141: 5726 | S141: 272 | T141: 155707 | V141: 2002 | W141: 17504 | X141: 12793 | Y141: 1657 | Z141: 33956 | AB141: 3498 | AC141: 5936 | AD141: 8276 | AE141: 847 | AF141: 18557 | AH141: 84 | AI141: 12 | AJ141: 58 | AK141: 11 | AL141: 0 | AM141: 0 | AN141: 165 | AP141: 446 | AQ141: 38 | AR141: 680 | AS141: 78 | AT141: 9 | AU141: 21 | AV141: 1272
A142: 2019-07-01 | B142: 2420 | C142: 288 | D142: 2708 | F142: 4075 | G142: 388 | H142: 4463 | J142: 348471 | K142: 4492 | L142: 30846 | M142: 727 | N142: 384536 | P142: 147537 | Q142: 1248 | R142: 5673 | S142: 273 | T142: 154731 | V142: 2074 | W142: 17508 | X142: 12748 | Y142: 1657 | Z142: 33987 | AB142: 3495 | AC142: 5970 | AD142: 8287 | AE142: 850 | AF142: 18602 | AH142: 81 | AI142: 10 | AJ142: 57 | AK142: 9 | AL142: 0 | AM142: 0 | AN142: 157 | AP142: 448 | AQ142: 40 | AR142: 681 | AS142: 80 | AT142: 9 | AU142: 21 | AV142: 1279
A143: 2019-08-01 | B143: 2413 | C143: 286 | D143: 2699 | F143: 4071 | G143: 390 | H143: 4461 | J143: 349745 | K143: 4453 | L143: 30982 | M143: 724 | N143: 385904 | P143: 145301 | Q143: 1234 | R143: 5623 | S143: 272 | T143: 152430 | V143: 2065 | W143: 17544 | X143: 12766 | Y143: 1654 | Z143: 34029 | AB143: 3496 | AC143: 5972 | AD143: 8233 | AE143: 852 | AF143: 18553 | AH143: 82 | AI143: 10 | AJ143: 60 | AK143: 9 | AL143: 0 | AM143: 0 | AN143: 161 | AP143: 447 | AQ143: 40 | AR143: 679 | AS143: 80 | AT143: 9 | AU143: 21 | AV143: 1276
A144: 2019-09-01 | B144: 2412 | C144: 289 | D144: 2701 | F144: 4073 | G144: 387 | H144: 4460 | J144: 351199 | K144: 4453 | L144: 31200 | M144: 725 | N144: 387577 | P144: 144748 | Q144: 1254 | R144: 5619 | S144: 273 | T144: 151894 | V144: 2064 | W144: 17587 | X144: 12801 | Y144: 1656 | Z144: 34108 | AB144: 3502 | AC144: 5967 | AD144: 8190 | AE144: 851 | AF144: 18510 | AH144: 79 | AI144: 10 | AJ144: 59 | AK144: 9 | AL144: 0 | AM144: 1 | AN144: 158 | AP144: 448 | AQ144: 40 | AR144: 681 | AS144: 80 | AT144: 9 | AU144: 21 | AV144: 1279
A145: 2019-10-01 | B145: 2402 | C145: 286 | D145: 2688 | F145: 4082 | G145: 389 | H145: 4471 | J145: 351890 | K145: 4440 | L145: 31368 | M145: 721 | N145: 388419 | P145: 144057 | Q145: 1254 | R145: 5629 | S145: 274 | T145: 151214 | V145: 2086 | W145: 17599 | X145: 12755 | Y145: 1642 | Z145: 34082 | AB145: 3502 | AC145: 5995 | AD145: 8175 | AE145: 856 | AF145: 18528 | AH145: 76 | AI145: 10 | AJ145: 57 | AK145: 8 | AL145: 1 | AM145: 1 | AN145: 153 | AP145: 450 | AQ145: 40 | AR145: 683 | AS145: 81 | AT145: 9 | AU145: 21 | AV145: 1284
A146: 2019-11-01 | B146: 2412 | C146: 285 | D146: 2697 | F146: 4074 | G146: 392 | H146: 4466 | J146: 352261 | K146: 4451 | L146: 31478 | M146: 721 | N146: 388911 | P146: 143741 | Q146: 1241 | R146: 5635 | S146: 272 | T146: 150889 | V146: 2049 | W146: 17637 | X146: 12736 | Y146: 1640 | Z146: 34062 | AB146: 3569 | AC146: 6016 | AD146: 8174 | AE146: 853 | AF146: 18612 | AH146: 75 | AI146: 9 | AJ146: 60 | AK146: 8 | AL146: 1 | AM146: 1 | AN146: 154 | AP146: 451 | AQ146: 40 | AR146: 683 | AS146: 81 | AT146: 9 | AU146: 21 | AV146: 1285
A147: 2019-12-01 | B147: 2398 | C147: 280 | D147: 2678 | F147: 4093 | G147: 396 | H147: 4489 | J147: 352870 | K147: 4463 | L147: 31664 | M147: 721 | N147: 389718 | P147: 143993 | Q147: 1237 | R147: 5702 | S147: 272 | T147: 151204 | V147: 1925 | W147: 17673 | X147: 12732 | Y147: 1640 | Z147: 33970 | AB147: 3696 | AC147: 6022 | AD147: 8154 | AE147: 853 | AF147: 18725 | AH147: 76 | AI147: 9 | AJ147: 66 | AK147: 8 | AL147: 1 | AM147: 1 | AN147: 161 | AP147: 449 | AQ147: 40 | AR147: 679 | AS147: 81 | AT147: 9 | AU147: 21 | AV147: 1279
A148: 2020-01-01 | B148: 2301 | C148: 234 | D148: 2535 | F148: 3952 | G148: 366 | H148: 4318 | J148: 353667 | K148: 4460 | L148: 31875 | M148: 719 | N148: 390721 | P148: 143701 | Q148: 1241 | R148: 5724 | S148: 272 | T148: 150938 | V148: 1928 | W148: 17731 | X148: 12799 | Y148: 1679 | Z148: 34137 | AB148: 3697 | AC148: 6054 | AD148: 8251 | AE148: 880 | AF148: 18882 | AH148: 76 | AI148: 10 | AJ148: 65 | AK148: 8 | AL148: 1 | AM148: 1 | AN148: 161 | AP148: 484 | AQ148: 41 | AR148: 679 | AS148: 81 | AT148: 9 | AU148: 21 | AV148: 1315
A149: 2020-02-01 | B149: 2295 | C149: 235 | D149: 2530 | F149: 3970 | G149: 361 | H149: 4331 | J149: 353471 | K149: 4453 | L149: 31920 | M149: 713 | N149: 390557 | P149: 143545 | Q149: 1243 | R149: 5685 | S149: 276 | T149: 150749 | V149: 1974 | W149: 17836 | X149: 12795 | Y149: 1687 | Z149: 34292 | AB149: 3661 | AC149: 6000 | AD149: 8202 | AE149: 880 | AF149: 18743 | AH149: 73 | AI149: 9 | AJ149: 65 | AK149: 9 | AL149: 1 | AM149: 1 | AN149: 158 | AP149: 452 | AQ149: 39 | AR149: 678 | AS149: 81 | AT149: 9 | AU149: 21 | AV149: 1280
A150: 2020-03-01 | B150: 2277 | C150: 232 | D150: 2509 | F150: 3982 | G150: 365 | H150: 4347 | J150: 354069 | K150: 4449 | L150: 32045 | M150: 709 | N150: 391272 | P150: 143345 | Q150: 1250 | R150: 5653 | S150: 275 | T150: 150523 | V150: 1970 | W150: 17887 | X150: 12721 | Y150: 1678 | Z150: 34256 | AB150: 3681 | AC150: 6032 | AD150: 8198 | AE150: 884 | AF150: 18795 | AH150: 72 | AI150: 9 | AJ150: 67 | AK150: 9 | AL150: 1 | AM150: 1 | AN150: 159 | AP150: 450 | AQ150: 39 | AR150: 675 | AS150: 81 | AT150: 9 | AU150: 21 | AV150: 1275
A151: 2020-04-01 | B151: 2267 | C151: 232 | D151: 2499 | F151: 3988 | G151: 365 | H151: 4353 | J151: 354655 | K151: 4468 | L151: 32156 | M151: 716 | N151: 391995 | P151: 142576 | Q151: 1240 | R151: 5570 | S151: 276 | T151: 149662 | V151: 1954 | W151: 17872 | X151: 12692 | Y151: 1695 | Z151: 34213 | AB151: 3707 | AC151: 6105 | AD151: 8185 | AE151: 867 | AF151: 18864 | AH151: 70 | AI151: 9 | AJ151: 64 | AK151: 8 | AL151: 1 | AM151: 1 | AN151: 153 | AP151: 450 | AQ151: 39 | AR151: 676 | AS151: 81 | AT151: 9 | AU151: 21 | AV151: 1276
A152: 2020-05-01 | B152: 2256 | C152: 227 | D152: 2483 | F152: 3996 | G152: 367 | H152: 4363 | J152: 355131 | K152: 4477 | L152: 32126 | M152: 683 | N152: 392417 | P152: 141638 | Q152: 1233 | R152: 5503 | S152: 287 | T152: 148661 | V152: 1942 | W152: 17926 | X152: 12642 | Y152: 1700 | Z152: 34210 | AB152: 3720 | AC152: 6120 | AD152: 8181 | AE152: 859 | AF152: 18880 | AH152: 69 | AI152: 9 | AJ152: 68 | AK152: 8 | AL152: 1 | AM152: 1 | AN152: 156 | AP152: 452 | AQ152: 39 | AR152: 673 | AS152: 81 | AT152: 9 | AU152: 21 | AV152: 1275
A153: 2020-06-01 | B153: 2279 | C153: 228 | D153: 2507 | F153: 3995 | G153: 374 | H153: 4369 | J153: 356977 | K153: 4570 | L153: 32446 | M153: 686 | N153: 394679 | P153: 140701 | Q153: 1156 | R153: 5373 | S153: 284 | T153: 147514 | V153: 1939 | W153: 18061 | X153: 12555 | Y153: 1696 | Z153: 34251 | AB153: 3720 | AC153: 6163 | AD153: 8135 | AE153: 860 | AF153: 18878 | AH153: 66 | AI153: 8 | AJ153: 65 | AK153: 8 | AL153: 1 | AM153: 1 | AN153: 149 | AP153: 441 | AQ153: 32 | AR153: 675 | AS153: 81 | AT153: 9 | AU153: 21 | AV153: 1259
A154: 2020-07-01 | B154: 2275 | C154: 230 | D154: 2505 | F154: 3994 | G154: 373 | H154: 4367 | J154: 360396 | K154: 4632 | L154: 32774 | M154: 683 | N154: 398485 | P154: 139184 | Q154: 1139 | R154: 5325 | S154: 286 | T154: 145934 | V154: 1939 | W154: 18172 | X154: 12481 | Y154: 1702 | Z154: 34294 | AB154: 3717 | AC154: 6176 | AD154: 8104 | AE154: 858 | AF154: 18855 | AH154: 63 | AI154: 8 | AJ154: 61 | AK154: 8 | AL154: 1 | AM154: 1 | AN154: 142 | AP154: 440 | AQ154: 32 | AR154: 679 | AS154: 81 | AT154: 9 | AU154: 21 | AV154: 1262
A155: 2020-08-01 | B155: 2285 | C155: 229 | D155: 2514 | F155: 3977 | G155: 373 | H155: 4350 | J155: 360149 | K155: 4589 | L155: 32598 | M155: 685 | N155: 398021 | P155: 137206 | Q155: 1128 | R155: 5245 | S155: 283 | T155: 143862 | V155: 1941 | W155: 18262 | X155: 12455 | Y155: 1711 | Z155: 34369 | AB155: 3714 | AC155: 6183 | AD155: 8029 | AE155: 839 | AF155: 18765 | AH155: 63 | AI155: 8 | AJ155: 62 | AK155: 8 | AL155: 1 | AM155: 1 | AN155: 143 | AP155: 440 | AQ155: 32 | AR155: 676 | AS155: 81 | AT155: 9 | AU155: 21 | AV155: 1259
A156: 2020-09-01 | B156: 2272 | C156: 229 | D156: 2501 | F156: 3992 | G156: 373 | H156: 4365 | J156: 361238 | K156: 4583 | L156: 32641 | M156: 676 | N156: 399138 | P156: 136119 | Q156: 1123 | R156: 5231 | S156: 290 | T156: 142763 | V156: 1946 | W156: 18367 | X156: 12424 | Y156: 1717 | Z156: 34454 | AB156: 3709 | AC156: 6211 | AD156: 7964 | AE156: 829 | AF156: 18713 | AH156: 62 | AI156: 8 | AJ156: 65 | AK156: 9 | AL156: 1 | AM156: 1 | AN156: 146 | AP156: 439 | AQ156: 32 | AR156: 674 | AS156: 81 | AT156: 9 | AU156: 21 | AV156: 1256
A157: 2020-10-01 | B157: 2287 | C157: 234 | D157: 2521 | F157: 3981 | G157: 368 | H157: 4349 | J157: 361806 | K157: 4517 | L157: 32667 | M157: 674 | N157: 399664 | P157: 135241 | Q157: 1178 | R157: 5229 | S157: 291 | T157: 141939 | V157: 1948 | W157: 18460 | X157: 12375 | Y157: 1714 | Z157: 34497 | AB157: 3722 | AC157: 6215 | AD157: 7922 | AE157: 830 | AF157: 18689 | AH157: 60 | AI157: 8 | AJ157: 66 | AK157: 10 | AL157: 1 | AM157: 0 | AN157: 145 | AP157: 441 | AQ157: 32 | AR157: 674 | AS157: 80 | AT157: 9 | AU157: 22 | AV157: 1258
A158: 2020-11-01 | B158: 2304 | C158: 234 | D158: 2538 | F158: 3970 | G158: 367 | H158: 4337 | J158: 363545 | K158: 4526 | L158: 32821 | M158: 677 | N158: 401569 | P158: 134468 | Q158: 1166 | R158: 5204 | S158: 290 | T158: 141128 | V158: 1961 | W158: 18594 | X158: 12369 | Y158: 1708 | Z158: 34632 | AB158: 3718 | AC158: 6241 | AD158: 7864 | AE158: 845 | AF158: 18668 | AH158: 60 | AI158: 8 | AJ158: 64 | AK158: 10 | AL158: 1 | AM158: 0 | AN158: 143 | AP158: 442 | AQ158: 32 | AR158: 674 | AS158: 80 | AT158: 9 | AU158: 22 | AV158: 1259
A159: 2020-12-01 | B159: 2321 | C159: 241 | D159: 2562 | F159: 3959 | G159: 362 | H159: 4321 | J159: 365367 | K159: 4594 | L159: 33173 | M159: 665 | N159: 403799 | P159: 133588 | Q159: 1158 | R159: 5176 | S159: 300 | T159: 140222 | V159: 1985 | W159: 18740 | X159: 12321 | Y159: 1692 | Z159: 34738 | AB159: 3701 | AC159: 6272 | AD159: 7847 | AE159: 872 | AF159: 18692 | AH159: 60 | AI159: 8 | AJ159: 63 | AK159: 9 | AL159: 2 | AM159: 0 | AN159: 142 | AP159: 441 | AQ159: 32 | AR159: 675 | AS159: 80 | AT159: 8 | AU159: 22 | AV159: 1258
A160: 2021-01-01 | B160: 2210 | C160: 234 | D160: 2444 | F160: 3884 | G160: 355 | H160: 4239 | J160: 365751 | K160: 4614 | L160: 33250 | M160: 667 | N160: 404282 | P160: 132774 | Q160: 1147 | R160: 5089 | S160: 298 | T160: 139308
A161: 2021-02-01 | B161: 2167 | C161: 232 | D161: 2399 | F161: 3852 | G161: 353 | H161: 4205 | J161: 366784 | K161: 4629 | L161: 33333 | M161: 669 | N161: 405415 | P161: 131955 | Q161: 1140 | R161: 5059 | S161: 296 | T161: 138450
A162: 2021-03-01 | B162: 2258 | C162: 238 | D162: 2496 | F162: 3762 | G162: 346 | H162: 4108 | J162: 368553 | K162: 4656 | L162: 33610 | M162: 670 | N162: 407489 | P162: 130778 | Q162: 1130 | R162: 4967 | S162: 295 | T162: 137170
A163: 2021-04-01 | B163: 2207 | C163: 242 | D163: 2449 | F163: 3796 | G163: 343 | H163: 4139 | J163: 370269 | K163: 4700 | L163: 33976 | M163: 667 | N163: 409612 | P163: 129812 | Q163: 1117 | R163: 4922 | S163: 296 | T163: 136147

Sheet HPS
G10: POLR HPS | AJ10: EGS HPS | BM10: Total HPS
G11: GM>25-HPS | K11: GMH>25-HPS | O11: GL | S11: GLH | W11: HVPS | AA11: L | AE11: Total | AJ11: GM>25-HPS | AN11: GMH>25-HPS | AR11: GL | AV11: GLH | AZ11: HVPS | BD11: L | BH11: Total | BM11: GM>25-HPS | BQ11: GMH>25-HPS | BU11: GL | BY11: GLH | CC11: HVPS | CG11: L | CK11: Total
A12: Date | B12: HR | C12: On/Off | D12: LMP | E12: EDC Loss De-ration Factor | G12: Usage | H12: Lost PWR | I12: NON De-rated Total Usage | J12: De-rated Total Usage | K12: Usage | L12: Lost PWR | M12: NON De-rated Total Usage | N12: De-rated Total Usage | O12: Usage | P12: Lost PWR | Q12: NON De-rated Total Usage | R12: De-rated Total Usage | S12: Usage | T12: Lost PWR | U12: Non - Derated Total Usage | V12: De-rated Total Usage | W12: Usage | X12: Lost PWR | Y12: Non - Derated Total Usage | Z12: De-rated Total Usage | AA12: Usage | AB12: Lost PWR | AC12: Non - Derated Total Usage | AD12: De-rated Total Usage | AE12: Usage | AF12: Lost PWR | AG12: NON De-rated Total Usage | AH12: De-rated Total Usage | AJ12: Usage | AK12: Lost PWR | AL12: NON De-rated Total Usage | AM12: De-rated Total Usage | AN12: Usage | AO12: Lost PWR | AP12: NON De-rated Total Usage | AQ12: De-rated Total Usage | AR12: Usage | AS12: Lost PWR | AT12: NON De-rated Total Usage | AU12: De-rated Total Usage | AV12: Usage | AW12: Lost PWR | AX12: Non - Derated Total Usage | AY12: De-rated Total Usage | AZ12: Usage | BA12: Lost PWR | BB12: Non - Derated Total Usage | BC12: De-rated Total Usage | BD12: Usage | BE12: Lost PWR | BF12: Non - Derated Total Usage | BG12: De-rated Total Usage | BH12: Usage | BI12: Lost PWR | BJ12: NON De-rated Total Usage | BK12: De-rated Total Usage | BM12: Usage | BN12: Lost PWR | BO12: NON De-rated Total Usage | BP12: De-rated Total Usage | BQ12: Usage | BR12: Lost PWR | BS12: NON De-rated Total Usage | BT12: De-rated Total Usage | BU12: Usage | BV12: Lost PWR | BW12: NON De-rated Total Usage | BX12: De-rated Total Usage | BY12: Usage | BZ12: Lost PWR | CA12: Non - Derated Total Usage | CB12: De-rated Total Usage | CC12: Usage | CD12: Lost PWR | CE12: Non - Derated Total Usage | CF12: De-rated Total Usage | CG12: Usage | CH12: Lost PWR | CI12: Non - Derated Total Usage | CJ12: De-rated Total Usage | CK12: Usage | CL12: Lost PWR | CM12: NON De-rated Total Usage | CN12: De-rated Total Usage
A13: 2021-04-01 | B13: 1 | C13: Off | D13: 16.007475 | E13: 0.008973931 | G13: 6.442 | H13: 0.1347696456 | I13: 6.576769646 | J13: 6.517750169 | K13: 0.704 | L13: 0.01472800846 | M13: 0.7187280085 | N13: 0.7122781929 | O13: 16.472 | P13: 0.3446019253 | Q13: 16.81660193 | R13: 16.6656909 | S13: 3.918 | T13: 0.08196638801 | U13: 3.999966388 | V13: 3.964070966 | W13: 3.502 | X13: 0.07326347392 | Y13: 3.575263474 | Z13: 3.543179306 | AA13: 0 | AB13: 0 | AC13: 0 | AD13: 0 | AE13: 31.038 | AF13: 0.6493294413 | AG13: 31.68732944 | AH13: 31.40296953 | AJ13: 45.204 | AK13: 0.9456887707 | AL13: 46.14968877 | AM13: 45.73554465 | AN13: 3.796 | AO13: 0.07941409109 | AP13: 3.875414091 | AQ13: 3.840636392 | AR13: 247.641 | AS13: 5.180765261 | AT13: 252.8217653 | AU13: 250.5529602 | AV13: 28.988 | AW13: 0.6064424848 | AX13: 29.59444248 | AY13: 29.328864 | AZ13: 144.816 | BA13: 3.029618286 | BB13: 147.8456183 | BC13: 146.5188619 | BD13: 101.142 | BE13: 2.11593783 | BF13: 103.2579378 | BG13: 102.3313082 | BH13: 571.587 | BI13: 11.95786672 | BJ13: 583.5448667 | BK13: 578.3081754 | BM13: 51.646 | BN13: 1.080458416 | BO13: 52.72645842 | BP13: 52.25329482 | BQ13: 4.5 | BR13: 0.09414209955 | BS13: 4.5941421 | BT13: 4.552914585 | BU13: 264.113 | BV13: 5.525367186 | BW13: 269.6383672 | BX13: 267.2186511 | BY13: 32.906 | BZ13: 0.6884088729 | CA13: 33.59440887 | CB13: 33.29293497 | CC13: 148.318 | CD13: 3.10288176 | CE13: 151.4208818 | CF13: 150.0620412 | CG13: 101.142 | CH13: 2.11593783 | CI13: 103.2579378 | CJ13: 102.3313082 | CK13: 602.625 | CL13: 12.60719617 | CM13: 615.2321962 | CN13: 609.7111449
A14: 2021-04-01 | B14: 2 | C14: Off | D14: 16.415126 | E14: 0.009138997 | G14: 6.424 | H14: 0.1285731223 | I14: 6.552573122 | J14: 6.492689176 | K14: 0.698 | L14: 0.01397011821 | M14: 0.7119701182 | N14: 0.7054634254 | O14: 16.162 | P14: 0.3234742843 | Q14: 16.48547428 | R14: 16.33481358 | S14: 3.774 | T14: 0.07553470789 | U14: 3.849534708 | V14: 3.814353822 | W14: 3.438 | X14: 0.06880983724 | Y14: 3.506809837 | Z14: 3.474761113 | AA14: 0 | AB14: 0 | AC14: 0 | AD14: 0 | AE14: 30.496 | AF14: 0.6103620699 | AG14: 31.10636207 | AH14: 30.82208112 | AJ14: 44.455 | AK14: 0.8897444195 | AL14: 45.34474442 | AM14: 44.93033894 | AN14: 3.709 | AO14: 0.07423376565 | AP14: 3.783233766 | AQ14: 3.748658804 | AR14: 248.552 | AS14: 4.974643009 | AT14: 253.526643 | AU14: 251.2096638 | AV14: 29.111 | AW14: 0.5826419929 | AX14: 29.69364199 | AY14: 29.42227189 | AZ14: 149.364 | BA14: 2.98944518 | BB14: 152.3534452 | BC14: 150.9610875 | BD14: 101.488 | BE14: 2.03123117 | BF14: 103.5192312 | BG14: 102.5731692 | BH14: 576.679 | BI14: 11.54193954 | BJ14: 588.2209395 | BK14: 582.8451901 | BM14: 50.879 | BN14: 1.018317542 | BO14: 51.89731754 | BP14: 51.42302811 | BQ14: 4.407 | BR14: 0.08820388386 | BS14: 4.495203884 | BT14: 4.454122229 | BU14: 264.714 | BV14: 5.298117293 | BW14: 270.0121173 | BX14: 267.5444774 | BY14: 32.885 | BZ14: 0.6581767008 | CA14: 33.5431767 | CB14: 33.23662571 | CC14: 152.802 | CD14: 3.058255017 | CE14: 155.860255 | CF14: 154.4358486 | CG14: 101.488 | CH14: 2.03123117 | CI14: 103.5192312 | CJ14: 102.5731692 | CK14: 607.175 | CL14: 12.15230161 | CM14: 619.3273016 | CN14: 613.6672713
A15: 2021-04-01 | B15: 3 | C15: Off | D15: 15.85038 | E15: 0.009235648 | G15: 6.444 | H15: 0.1212352563 | I15: 6.565235256 | J15: 6.504601054 | K15: 0.714 | L15: 0.0134329567 | M15: 0.7274329567 | N15: 0.720714642 | O15: 16.318 | P15: 0.3070013829 | Q15: 16.62500138 | R15: 16.47145872 | S15: 3.716 | T15: 0.06991157857 | U15: 3.785911579 | V15: 3.750946232 | W15: 3.486 | X15: 0.06558443565 | Y15: 3.551584436 | Z15: 3.518783252 | AA15: 0 | AB15: 0 | AC15: 0 | AD15: 0 | AE15: 30.678 | AF15: 0.5771656101 | AG15: 31.25516561 | AH15: 30.9665039 | AJ15: 44.885 | AK15: 0.8444513466 | AL15: 45.72945135 | AM15: 45.30711023 | AN15: 3.74 | AO15: 0.07036310652 | AP15: 3.810363107 | AQ15: 3.775171934 | AR15: 246.546 | AS15: 4.638433813 | AT15: 251.1844338 | AU15: 248.8645828 | AV15: 30.531 | AW15: 0.5744000014 | AX15: 31.1054 | AY15: 30.81812148 | AZ15: 146.942 | BA15: 2.76451754 | BB15: 149.7065175 | BC15: 148.3238808 | BD15: 101.589 | BE15: 1.911261398 | BF15: 103.5002614 | BG15: 102.5443694 | BH15: 574.233 | BI15: 10.80342721 | BJ15: 585.0364272 | BK15: 579.6332367 | BM15: 51.329 | BN15: 0.9656866028 | BO15: 52.2946866 | BP15: 51.81171129 | BQ15: 4.454 | BR15: 0.08379606322 | BS15: 4.537796063 | BT15: 4.495886576 | BU15: 262.864 | BV15: 4.945435196 | BW15: 267.8094352 | BX15: 265.3360415 | BY15: 34.247 | BZ15: 0.64431158 | CA15: 34.89131158 | CB15: 34.56906771 | CC15: 150.428 | CD15: 2.830101975 | CE15: 153.258102 | CF15: 151.8426641 | CG15: 101.589 | CH15: 1.911261398 | CI15: 103.5002614 | CJ15: 102.5443694 | CK15: 604.911 | CL15: 11.38059282 | CM15: 616.2915928 | CN15: 610.5997406
A16: 2021-04-01 | B16: 4 | C16: Off | D16: 16.16048 | E16: 0.009179209 | G16: 6.57 | H16: 0.1575333168 | I16: 6.727533317 | J16: 6.665779882 | K16: 0.724 | L16: 0.01735983583 | M16: 0.7413598358 | N16: 0.734554739 | O16: 16.006 | P16: 0.3837866468 | Q16: 16.38978665 | R16: 16.23934137 | S16: 4.008 | T16: 0.09610251658 | U16: 4.104102517 | V16: 4.066430102 | W16: 3.508 | X16: 0.08411367968 | Y16: 3.59211368 | Z16: 3.559140917 | AA16: 0 | AB16: 0 | AC16: 0 | AD16: 0 | AE16: 30.816 | AF16: 0.7388959957 | AG16: 31.554896 | AH16: 31.26524701 | AJ16: 45.579 | AK16: 1.092878394 | AL16: 46.67187839 | AM16: 46.24346747 | AN16: 3.861 | AO16: 0.09257779853 | AP16: 3.953577799 | AQ16: 3.917287082 | AR16: 247.77 | AS16: 5.940948237 | AT16: 253.7109482 | AU16: 251.3820824 | AV16: 31.939 | AW16: 0.7658229234 | AX16: 32.70482292 | AY16: 32.40461852 | AZ16: 143.198 | BA16: 3.433554932 | BB16: 146.6315549 | BC16: 145.2855932 | BD16: 100.607 | BE16: 2.412321828 | BF16: 103.0193218 | BG16: 102.0736859 | BH16: 572.954 | BI16: 13.73810411 | BJ16: 586.6921041 | BK16: 581.3067347 | BM16: 52.149 | BN16: 1.250411711 | BO16: 53.39941171 | BP16: 52.90924735 | BQ16: 4.585 | BR16: 0.1099376344 | BS16: 4.694937634 | BT16: 4.651841821 | BU16: 263.776 | BV16: 6.324734883 | BW16: 270.1007349 | BX16: 267.6214238 | BY16: 35.947 | BZ16: 0.86192544 | CA16: 36.80892544 | CB16: 36.47104862 | CC16: 146.706 | CD16: 3.517668612 | CE16: 150.2236686 | CF16: 148.8447342 | CG16: 100.607 | CH16: 2.412321828 | CI16: 103.0193218 | CJ16: 102.0736859 | CK16: 603.77 | CL16: 14.47700011 | CM16: 618.2470001 | CN16: 612.5719817
A17: 2021-04-01 | B17: 5 | C17: Off | D17: 18.317892 | E17: 0.00922986 | G17: 7 | H17: 0.1371021256 | I17: 7.137102126 | J17: 7.071227672 | K17: 0.752 | L17: 0.01472868549 | M17: 0.7667286855 | N17: 0.7596518871 | O17: 16.032 | P17: 0.3140030396 | Q17: 16.34600304 | R17: 16.19513172 | S17: 4.032 | T17: 0.07897082433 | U17: 4.110970824 | V17: 4.073027139 | W17: 3.49 | X17: 0.0683552026 | Y17: 3.558355203 | Z17: 3.525512082 | AA17: 0 | AB17: 0 | AC17: 0 | AD17: 0 | AE17: 31.306 | AF17: 0.6131598776 | AG17: 31.91915988 | AH17: 31.6245505 | AJ17: 47.655 | AK17: 0.9333716848 | AL17: 48.58837168 | AM17: 48.13990782 | AN17: 4.253 | AO17: 0.08329933429 | AP17: 4.336299334 | AQ17: 4.296275899 | AR17: 252.459 | AS17: 4.944666503 | AT17: 257.4036665 | AU17: 255.0278667 | AV17: 32.972 | AW17: 0.6457901834 | AX17: 33.61779018 | AY17: 33.30750269 | AZ17: 137.991 | BA17: 2.702694201 | BB17: 140.6936942 | BC17: 139.3951111 | BD17: 102.336 | BE17: 2.004354732 | BF17: 104.3403547 | BG17: 103.3773079 | BH17: 577.666 | BI17: 11.31417664 | BJ17: 588.9801766 | BK17: 583.5439721 | BM17: 54.655 | BN17: 1.07047381 | BO17: 55.72547381 | BP17: 55.21113549 | BQ17: 5.005 | BR17: 0.09802801978 | BS17: 5.10302802 | BT17: 5.055927786 | BU17: 268.491 | BV17: 5.258669542 | BW17: 273.7496695 | BX17: 271.2229984 | BY17: 37.004 | BZ17: 0.7247610078 | CA17: 37.72876101 | CB17: 37.38052983 | CC17: 141.481 | CD17: 2.771049404 | CE17: 144.2520494 | CF17: 142.9206232 | CG17: 102.336 | CH17: 2.004354732 | CI17: 104.3403547 | CJ17: 103.3773079 | CK17: 608.972 | CL17: 11.92733652 | CM17: 620.8993365 | CN17: 615.1685226
A18: 2021-04-01 | B18: 6 | C18: Off | D18: 20.807481 | E18: 0.008581116 | G18: 7.924 | H18: 0.08822800729 | I18: 8.012228007 | J18: 7.943474149 | K18: 0.852 | L18: 0.009486403611 | M18: 0.8614864036 | N18: 0.8540938888 | O18: 16.902 | P18: 0.1881915421 | Q18: 17.09019154 | R18: 16.94353863 | S18: 4.266 | T18: 0.04749882371 | U18: 4.313498824 | V18: 4.27648419 | W18: 3.566 | X18: 0.03970483014 | Y18: 3.60570483 | Z18: 3.574763859 | AA18: 0 | AB18: 0 | AC18: 0 | AD18: 0 | AE18: 33.51 | AF18: 0.3731096068 | AG18: 33.88310961 | AH18: 33.59235471 | AJ18: 52.203 | AK18: 0.5812426382 | AL18: 52.78424264 | AM18: 52.33129493 | AN18: 4.563 | AO18: 0.05080570385 | AP18: 4.613805704 | AQ18: 4.574214102 | AR18: 262.612 | AS18: 2.92399463 | AT18: 265.5359946 | AU18: 263.2573995 | AV18: 35.744 | AW18: 0.3979835806 | AX18: 36.14198358 | AY18: 35.83184503 | AZ18: 167.912 | BA18: 1.869578642 | BB18: 169.7815786 | BC18: 168.3246632 | BD18: 104.337 | BE18: 1.161717011 | BF18: 105.498717 | BG18: 104.5934203 | BH18: 627.371 | BI18: 6.985322206 | BJ18: 634.3563222 | BK18: 628.912837 | BM18: 60.127 | BN18: 0.6694706455 | BO18: 60.79647065 | BP18: 60.27476908 | BQ18: 5.415 | BR18: 0.06029210746 | BS18: 5.475292107 | BT18: 5.428307991 | BU18: 279.514 | BV18: 3.112186172 | BW18: 282.6261862 | BX18: 280.2009381 | BY18: 40.01 | BZ18: 0.4454824043 | CA18: 40.4554824 | CB18: 40.10832922 | CC18: 171.478 | CD18: 1.909283472 | CE18: 173.3872835 | CF18: 171.8994271 | CG18: 104.337 | CH18: 1.161717011 | CI18: 105.498717 | CJ18: 104.5934203 | CK18: 660.881 | CL18: 7.358431813 | CM18: 668.2394318 | CN18: 662.5051917
A19: 2021-04-01 | B19: 7 | C19: Off | D19: 20.757227 | E19: 0.007711363 | G19: 8.858 | H19: 0.08333174316 | I19: 8.941331743 | J19: 8.872381888 | K19: 1.182 | L19: 0.01111967943 | M19: 1.193119679 | N19: 1.1839191 | O19: 18.294 | P19: 0.1721010284 | Q19: 18.46610103 | R19: 18.32370222 | S19: 4.534 | T19: 0.04265366036 | U19: 4.57665366 | V19: 4.541361423 | W19: 3.608 | X19: 0.03394230405 | Y19: 3.641942304 | Z19: 3.613857965 | AA19: 0 | AB19: 0 | AC19: 0 | AD19: 0 | AE19: 36.476 | AF19: 0.3431484154 | AG19: 36.81914842 | AH19: 36.5352226 | AJ19: 58.185 | AK19: 0.5473760979 | AL19: 58.7323761 | AM19: 58.27946943 | AN19: 5.747 | AO19: 0.05406497267 | AP19: 5.801064973 | AQ19: 5.756330855 | AR19: 278.815 | AS19: 2.622955517 | AT19: 281.4379555 | AU19: 279.2676853 | AV19: 39.95 | AW19: 0.3758301128 | AX19: 40.32583011 | AY19: 40.014863 | AZ19: 169.809 | BA19: 1.597480241 | BB19: 171.4064802 | BC19: 170.0847027 | BD19: 106.361 | BE19: 1.000592406 | BF19: 107.3615924 | BG19: 106.5336882 | BH19: 658.867 | BI19: 6.198299347 | BJ19: 665.0652993 | BK19: 659.9367394 | BM19: 67.043 | BN19: 0.6307078411 | BO19: 67.67370784 | BP19: 67.15185131 | BQ19: 6.929 | BR19: 0.0651846521 | BS19: 6.994184652 | BT19: 6.940249955 | BU19: 297.109 | BV19: 2.795056545 | BW19: 299.9040565 | BX19: 297.5913875 | BY19: 44.484 | BZ19: 0.4184837732 | CA19: 44.90248377 | CB19: 44.55622442 | CC19: 173.417 | CD19: 1.631422545 | CE19: 175.0484225 | CF19: 173.6985606 | CG19: 106.361 | CH19: 1.000592406 | CI19: 107.3615924 | CJ19: 106.5336882 | CK19: 695.343 | CL19: 6.541447763 | CM19: 701.8844478 | CN19: 696.471962
A20: 2021-04-01 | B20: 8 | C20: On | D20: 25.633146 | E20: 0.007306603 | G20: 9.554 | H20: 0.0224629207 | I20: 9.576462921 | J20: 9.506491508 | K20: 1.096 | L20: 0.002576864255 | M20: 1.098576864 | N20: 1.090549999 | O20: 18.794 | P20: 0.0441875792 | Q20: 18.83818758 | R20: 18.70054442 | S20: 5.002 | T20: 0.01176046989 | U20: 5.01376047 | V20: 4.977126913 | W20: 3.528 | X20: 0.008294869608 | Y20: 3.53629487 | Z20: 3.510456567 | AA20: 0 | AB20: 0 | AC20: 0 | AD20: 0 | AE20: 37.974 | AF20: 0.08928270366 | AG20: 38.0632827 | AH20: 37.78516941 | AJ20: 63.081 | AK20: 0.148313115 | AL20: 63.22931312 | AM20: 62.76732163 | AN20: 6.31 | AO20: 0.01483577869 | AP20: 6.324835779 | AQ20: 6.278622715 | AR20: 291.883 | AS20: 0.686261742 | AT20: 292.5692617 | AU20: 290.4315743 | AV20: 42.121 | AW20: 0.09903293729 | AX20: 42.22003294 | AY20: 41.91154792 | AZ20: 156.228 | BA20: 0.3673160117 | BB20: 156.595316 | BC20: 155.4511362 | BD20: 109.159 | BE20: 0.2566495668 | BF20: 109.4156496 | BG20: 108.6161929 | BH20: 668.782 | BI20: 1.572409151 | BJ20: 670.3544092 | BK20: 665.4563956 | BM20: 72.635 | BN20: 0.1707760357 | BO20: 72.80577604 | BP20: 72.27381313 | BQ20: 7.406 | BR20: 0.01741264295 | BS20: 7.423412643 | BT20: 7.369172714 | BU20: 310.677 | BV20: 0.7304493212 | BW20: 311.4074493 | BX20: 309.1321187 | BY20: 47.123 | BZ20: 0.1107934072 | CA20: 47.23379341 | CB20: 46.88867483 | CC20: 159.756 | CD20: 0.3756108813 | CE20: 160.1316109 | CF20: 158.9615928 | CG20: 109.159 | CH20: 0.2566495668 | CI20: 109.4156496 | CJ20: 108.6161929 | CK20: 706.756 | CL20: 1.661691855 | CM20: 708.4176919 | CN20: 703.241565
A21: 2021-04-01 | B21: 9 | C21: On | D21: 22.245564 | E21: 0.007271882 | G21: 10.028 | H21: -0.01499001509 | I21: 10.01300998 | J21: 9.940196558 | K21: 1.056 | L21: -0.001578525722 | M21: 1.054421474 | N21: 1.046753846 | O21: 18.896 | P21: -0.02824604359 | Q21: 18.86775396 | R21: 18.73054988 | S21: 4.956 | T21: -0.007408308216 | U21: 4.948591692 | V21: 4.912606117 | W21: 3.588 | X21: -0.005363399895 | Y21: 3.5826366 | Z21: 3.55658409 | AA21: 0 | AB21: 0 | AC21: 0 | AD21: 0 | AE21: 38.524 | AF21: -0.05758629252 | AG21: 38.46641371 | AH21: 38.18669049 | AJ21: 65.742 | AK21: -0.09827219506 | AL21: 65.6437278 | AM21: 65.16637436 | AN21: 6.542 | AO21: -0.00977908643 | AP21: 6.532220914 | AQ21: 6.484719374 | AR21: 300.406 | AS21: -0.4490517026 | AT21: 299.9569483 | AU21: 297.7756968 | AV21: 43.431 | AW21: -0.06492135475 | AX21: 43.36607865 | AY21: 43.05072564 | AZ21: 143.089 | BA21: -0.2138917301 | BB21: 142.8751083 | BC21: 141.8361373 | BD21: 112.504 | BE21: -0.168172782 | BF21: 112.3358272 | BG21: 111.5189343 | BH21: 671.714 | BI21: -1.004088851 | BJ21: 670.7099111 | BK21: 665.8325878 | BM21: 75.77 | BN21: -0.1132622102 | BO21: 75.65673779 | BP21: 75.10657092 | BQ21: 7.598 | BR21: -0.01135761215 | BS21: 7.586642388 | BT21: 7.53147322 | BU21: 319.302 | BV21: -0.4772977462 | BW21: 318.8247023 | BX21: 316.5062466 | BY21: 48.387 | BZ21: -0.07232966296 | CA21: 48.31467034 | CB21: 47.96333176 | CC21: 146.677 | CD21: -0.21925513 | CE21: 146.4577449 | CF21: 145.3927214 | CG21: 112.504 | CH21: -0.168172782 | CI21: 112.3358272 | CJ21: 111.5189343 | CK21: 710.238 | CL21: -1.061675143 | CM21: 709.1763249 | CN21: 704.0192783
A22: 2021-04-01 | B22: 10 | C22: On | D22: 20.046472 | E22: 0.007214496 | G22: 10.172 | H22: 0.03027614144 | I22: 10.20227614 | J22: 10.12867186 | K22: 1.154 | L22: 0.003434788362 | M22: 1.157434788 | N22: 1.14908448 | O22: 19.06 | P22: 0.05673055995 | Q22: 19.11673056 | R22: 18.97881298 | S22: 5.026 | T22: 0.01495948554 | U22: 5.040959486 | V22: 5.004591503 | W22: 3.674 | X22: 0.01093536607 | Y22: 3.684935366 | Z22: 3.658350415 | AA22: 0 | AB22: 0 | AC22: 0 | AD22: 0 | AE22: 39.086 | AF22: 0.1163363414 | AG22: 39.20233634 | AH22: 38.91951124 | AJ22: 67.343 | AK22: 0.2004410335 | AL22: 67.54344103 | AM22: 67.05614915 | AN22: 6.68 | AO22: 0.01988248376 | AP22: 6.699882484 | AQ22: 6.651546208 | AR22: 304.634 | AS22: 0.9067186464 | AT22: 305.5407186 | AU22: 303.3363964 | AV22: 44.323 | AW22: 0.1319238515 | AX22: 44.45492385 | AY22: 44.13420398 | AZ22: 140.679 | BA22: 0.4187197504 | BB22: 141.0977198 | BC22: 140.0797708 | BD22: 114.787 | BE22: 0.3416542909 | BF22: 115.1286543 | BG22: 114.2980591 | BH22: 678.446 | BI22: 2.019340056 | BJ22: 680.4653401 | BK22: 675.5561256 | BM22: 77.515 | BN22: 0.2307171749 | BO22: 77.74571717 | BP22: 77.18482101 | BQ22: 7.834 | BR22: 0.02331727212 | BS22: 7.857317272 | BT22: 7.800630688 | BU22: 323.694 | BV22: 0.9634492063 | BW22: 324.6574492 | BX22: 322.3152093 | BY22: 49.349 | BZ22: 0.146883337 | CA22: 49.49588334 | CB22: 49.13879548 | CC22: 144.353 | CD22: 0.4296551165 | CE22: 144.7826551 | CF22: 143.7381212 | CG22: 114.787 | CH22: 0.3416542909 | CI22: 115.1286543 | CJ22: 114.2980591 | CK22: 717.532 | CL22: 2.135676398 | CM22: 719.6676764 | CN22: 714.4756368
A23: 2021-04-01 | B23: 11 | C23: On | D23: 22.196251 | E23: 0.007324559 | G23: 10.094 | H23: 0.0004191069092 | I23: 10.09441911 | J23: 10.02048194 | K23: 1.116 | L23: 4.633676547e-05 | M23: 1.116046337 | N23: 1.10787179 | O23: 19.186 | P23: 0.0007966103784 | Q23: 19.18679661 | R23: 19.04626179 | S23: 5.222 | T23: 0.0002168195244 | U23: 5.22221682 | V23: 5.183966384 | W23: 3.6 | X23: 0.000149473437 | Y23: 3.600149473 | Z23: 3.573779966 | AA23: 0 | AB23: 0 | AC23: 0 | AD23: 0 | AE23: 39.218 | AF23: 0.001628347015 | AG23: 39.21962835 | AH23: 38.93236187 | AJ23: 68.037 | AK23: 0.002824923398 | AL23: 68.03982492 | AM23: 67.54146321 | AN23: 6.643 | AO23: 0.0002758200117 | AP23: 6.64327582 | AQ23: 6.594616754 | AR23: 306.055 | AS23: 0.01270752577 | AT23: 306.0677075 | AU23: 303.8258965 | AV23: 44.435 | AW23: 0.001844958937 | AX23: 44.43684496 | AY23: 44.11136467 | AZ23: 142.28 | BA23: 0.005907522393 | BB23: 142.2859075 | BC23: 141.243726 | BD23: 116.068 | BE23: 0.00481918969 | BF23: 116.0728192 | BG23: 115.222637 | BH23: 683.518 | BI23: 0.0283799402 | BJ23: 683.5463799 | BK23: 678.5397042 | BM23: 78.131 | BN23: 0.003244030307 | BO23: 78.13424403 | BP23: 77.56194515 | BQ23: 7.759 | BR23: 0.0003221567771 | BS23: 7.759322157 | BT23: 7.702488544 | BU23: 325.241 | BV23: 0.01350413615 | BW23: 325.2545041 | BX23: 322.8721583 | BY23: 49.657 | BZ23: 0.002061778461 | CA23: 49.65906178 | CB23: 49.29533105 | CC23: 145.88 | CD23: 0.00605699583 | CE23: 145.886057 | CF23: 144.817506 | CG23: 116.068 | CH23: 0.00481918969 | CI23: 116.0728192 | CJ23: 115.222637 | CK23: 722.736 | CL23: 0.03000828721 | CM23: 722.7660083 | CN23: 717.472066
A24: 2021-04-01 | B24: 12 | C24: On | D24: 22.461832 | E24: 0.007303516 | G24: 9.892 | H24: 0.002400167711 | I24: 9.894400168 | J24: 9.822136258 | K24: 1.122 | L24: 0.0002722389983 | M24: 1.122272239 | N24: 1.114075706 | O24: 18.894 | P24: 0.004584388266 | Q24: 18.89858439 | R24: 18.76055827 | S24: 5.148 | T24: 0.001249096581 | U24: 5.149249097 | V24: 5.111641473 | W24: 3.626 | X24: 0.0008798026809 | Y24: 3.626879803 | Z24: 3.600390828 | AA24: 0 | AB24: 0 | AC24: 0 | AD24: 0 | AE24: 38.682 | AF24: 0.009385694237 | AG24: 38.69138569 | AH24: 38.40880254 | AJ24: 67.808 | AK24: 0.01645274688 | AL24: 67.82445275 | AM24: 67.32909577 | AN24: 6.574 | AO24: 0.001595097304 | AP24: 6.575595097 | AQ24: 6.527570133 | AR24: 305.065 | AS24: 0.07402013372 | AT24: 305.1390201 | AU24: 302.9104324 | AV24: 44.207 | AW24: 0.01072626506 | AX24: 44.21772627 | AY24: 43.89478139 | AZ24: 139.08 | BA24: 0.03374598921 | BB24: 139.113746 | BC24: 138.0977265 | BD24: 114.735 | BE24: 0.02783898527 | BF24: 114.762839 | BG24: 113.9246668 | BH24: 677.469 | BI24: 0.1643792174 | BJ24: 677.6333792 | BK24: 672.684273 | BM24: 77.7 | BN24: 0.01885291459 | BO24: 77.71885291 | BP24: 77.15123203 | BQ24: 7.696 | BR24: 0.001867336302 | BS24: 7.697867336 | BT24: 7.641645839 | BU24: 323.959 | BV24: 0.07860452198 | BW24: 324.0376045 | BX24: 321.6709907 | BY24: 49.355 | BZ24: 0.01197536164 | CA24: 49.36697536 | CB24: 49.00642287 | CC24: 142.706 | CD24: 0.03462579189 | CE24: 142.7406258 | CF24: 141.6981173 | CG24: 114.735 | CH24: 0.02783898527 | CI24: 114.762839 | CJ24: 113.9246668 | CK24: 716.151 | CL24: 0.1737649117 | CM24: 716.3247649 | CN24: 711.0930755
A25: 2021-04-01 | B25: 13 | C25: On | D25: 24.856659 | E25: 0.007286529 | G25: 9.916 | H25: -0.04640187 | I25: 9.86959813 | J25: 9.797683017 | K25: 1.124 | L25: -0.005259752106 | M25: 1.118740248 | N25: 1.110588515 | O25: 18.894 | P25: -0.08841437392 | Q25: 18.80558563 | R25: 18.66855818 | S25: 5.17 | T25: -0.02419298789 | U25: 5.145807012 | V25: 5.10831194 | W25: 3.65 | X25: -0.01708015586 | Y25: 3.632919844 | Z25: 3.606448468 | AA25: 0 | AB25: 0 | AC25: 0 | AD25: 0 | AE25: 38.754 | AF25: -0.1813491398 | AG25: 38.57265086 | AH25: 38.29159012 | AJ25: 67.177 | AK25: -0.3143544192 | AL25: 66.86264558 | AM25: 66.37544897 | AN25: 6.596 | AO25: -0.03086594741 | AP25: 6.565134053 | AQ25: 6.517297013 | AR25: 303.773 | AS25: -1.42150416 | AT25: 302.3514958 | AU25: 300.1484029 | AV25: 44.276 | AW25: -0.2071893098 | AX25: 44.06881069 | AY25: 43.74770202 | AZ25: 142.741 | BA25: -0.6679557609 | BB25: 142.0730442 | BC25: 141.0378249 | BD25: 116.451 | BE25: -0.5449318438 | BF25: 115.9060682 | BG25: 115.0615152 | BH25: 681.014 | BI25: -3.186801442 | BJ25: 677.8271986 | BK25: 672.888191 | BM25: 77.093 | BN25: -0.3607562892 | BO25: 76.73224371 | BP25: 76.17313199 | BQ25: 7.72 | BR25: -0.03612569952 | BS25: 7.6838743 | BT25: 7.627885528 | BU25: 322.667 | BV25: -1.509918534 | BW25: 321.1570815 | BX25: 318.8169611 | BY25: 49.446 | BZ25: -0.2313822977 | CA25: 49.2146177 | CB25: 48.85601396 | CC25: 146.391 | CD25: -0.6850359168 | CE25: 145.7059641 | CF25: 144.6442734 | CG25: 116.451 | CH25: -0.5449318438 | CI25: 115.9060682 | CJ25: 115.0615152 | CK25: 719.768 | CL25: -3.368150581 | CM25: 716.3998494 | CN25: 711.1797811
A26: 2021-04-01 | B26: 14 | C26: On | D26: 25.963023 | E26: 0.007478593 | G26: 9.858 | H26: 0.01865956767 | I26: 9.876659568 | J26: 9.802796051 | K26: 1.094 | L26: 0.002070761517 | M26: 1.096070762 | N26: 1.087873694 | O26: 18.528 | P26: 0.03507044734 | Q26: 18.56307045 | R26: 18.4242448 | S26: 5.01 | T26: 0.009483103474 | U26: 5.019483103 | V26: 4.981944432 | W26: 3.678 | X26: 0.006961847221 | Y26: 3.684961847 | Z26: 3.657403517 | AA26: 0 | AB26: 0 | AC26: 0 | AD26: 0 | AE26: 38.168 | AF26: 0.07224572722 | AG26: 38.24024573 | AH26: 37.95426249 | AJ26: 66.473 | AK26: 0.1258224226 | AL26: 66.59882242 | AM26: 66.10075694 | AN26: 6.533 | AO26: 0.01236589122 | AP26: 6.545365891 | AQ26: 6.496415764 | AR26: 302.922 | AS26: 0.5733813713 | AT26: 303.4953814 | AU26: 301.2256629 | AV26: 43.445 | AW26: 0.08223421765 | AX26: 43.52723422 | AY26: 43.20171175 | AZ26: 146.962 | BA26: 0.2781748209 | BB26: 147.2401748 | BC26: 146.1390255 | BD26: 118.201 | BE26: 0.2237349928 | BF26: 118.424735 | BG26: 117.5390846 | BH26: 684.536 | BI26: 1.295713716 | BJ26: 685.8317137 | BK26: 680.7026575 | BM26: 76.331 | BN26: 0.1444819903 | BO26: 76.47548199 | BP26: 75.90355299 | BQ26: 7.627 | BR26: 0.01443665273 | BS26: 7.641436653 | BT26: 7.584289458 | BU26: 321.45 | BV26: 0.6084518187 | BW26: 322.0584518 | BX26: 319.6499077 | BY26: 48.455 | BZ26: 0.09171732112 | CA26: 48.54671732 | CB26: 48.18365618 | CC26: 150.64 | CD26: 0.2851366681 | CE26: 150.9251367 | CF26: 149.796429 | CG26: 118.201 | CH26: 0.2237349928 | CI26: 118.424735 | CJ26: 117.5390846 | CK26: 722.704 | CL26: 1.367959444 | CM26: 724.0719594 | CN26: 718.65692
A27: 2021-04-01 | B27: 15 | C27: On | D27: 23.377081 | E27: 0.00746825 | G27: 9.414 | H27: 0.03412464849 | I27: 9.448124648 | J27: 9.377563692 | K27: 1.098 | L27: 0.003980121525 | M27: 1.101980122 | N27: 1.093750258 | O27: 18.31 | P27: 0.06637160758 | Q27: 18.37637161 | R27: 18.23913227 | S27: 4.824 | T27: 0.01748643555 | U27: 4.841486436 | V27: 4.805329004 | W27: 3.71 | X27: 0.0134483159 | Y27: 3.723448316 | Z27: 3.695640673 | AA27: 0 | AB27: 0 | AC27: 0 | AD27: 0 | AE27: 37.356 | AF27: 0.135411129 | AG27: 37.49141113 | AH27: 37.2114159 | AJ27: 64.319 | AK27: 0.2331488492 | AL27: 64.55214885 | AM27: 64.07005726 | AN27: 6.363 | AO27: 0.02306513048 | AP27: 6.38606513 | AQ27: 6.3383724 | AR27: 297.662 | AS27: 1.078989921 | AT27: 298.7409899 | AU27: 296.5099175 | AV27: 43.373 | AW27: 0.15722205 | AX27: 43.53022205 | AY27: 43.20512747 | AZ27: 146.966 | BA27: 0.5327345538 | BB27: 147.4987346 | BC27: 146.3971771 | BD27: 117.608 | BE27: 0.4263152389 | BF27: 118.0343152 | BG27: 117.1528055 | BH27: 676.291 | BI27: 2.451475744 | BJ27: 678.7424757 | BK27: 673.6734572 | BM27: 73.733 | BN27: 0.2672734977 | BO27: 74.0002735 | BP27: 73.44762096 | BQ27: 7.461 | BR27: 0.027045252 | BS27: 7.488045252 | BT27: 7.432122658 | BU27: 315.972 | BV27: 1.145361529 | BW27: 317.1173615 | BX27: 314.7490498 | BY27: 48.197 | BZ27: 0.1747084856 | CA27: 48.37170849 | CB27: 48.01045647 | CC27: 150.676 | CD27: 0.5461828697 | CE27: 151.2221829 | CF27: 150.0928178 | CG27: 117.608 | CH27: 0.4263152389 | CI27: 118.0343152 | CJ27: 117.1528055 | CK27: 713.647 | CL27: 2.586886873 | CM27: 716.2338869 | CN27: 710.8848731
A28: 2021-04-01 | B28: 16 | C28: On | D28: 22.638252 | E28: 0.007226487 | G28: 8.932 | H28: 0.05411671768 | I28: 8.986116718 | J28: 8.921178662 | K28: 1.08 | L28: 0.006543445487 | M28: 1.086543445 | N28: 1.078691553 | O28: 18.01 | P28: 0.1091180122 | Q28: 18.11911801 | R28: 17.98818044 | S28: 4.996 | T28: 0.03026949413 | U28: 5.026269494 | V28: 4.989947223 | W28: 3.714 | X28: 0.02250218198 | Y28: 3.736502182 | Z28: 3.709500398 | AA28: 0 | AB28: 0 | AC28: 0 | AD28: 0 | AE28: 36.732 | AF28: 0.2225498515 | AG28: 36.95454985 | AH28: 36.68749828 | AJ28: 60.832 | AK28: 0.3685656258 | AL28: 61.20056563 | AM28: 60.75830053 | AN28: 6.391 | AO28: 0.03872144455 | AP28: 6.429721445 | AQ28: 6.383257146 | AR28: 292.794 | AS28: 1.773964424 | AT28: 294.5679644 | AU28: 292.4392729 | AV28: 43.529 | AW28: 0.2637311469 | AX28: 43.79273115 | AY28: 43.47626354 | AZ28: 131.911 | BA28: 0.7992152201 | BB28: 132.7102152 | BC28: 131.7511866 | BD28: 117.43 | BE28: 0.7114785218 | BF28: 118.1414785 | BG28: 117.2877307 | BH28: 652.887 | BI28: 3.955676383 | BJ28: 656.8426764 | BK28: 652.0960113 | BM28: 69.764 | BN28: 0.4226823435 | BO28: 70.18668234 | BP28: 69.6794792 | BQ28: 7.471 | BR28: 0.04526489003 | BS28: 7.51626489 | BT28: 7.4619487 | BU28: 310.804 | BV28: 1.883082436 | BW28: 312.6870824 | BX28: 310.4274533 | BY28: 48.525 | BZ28: 0.294000641 | CA28: 48.81900064 | CB28: 48.46621077 | CC28: 135.625 | CD28: 0.8217174021 | CE28: 136.4467174 | CF28: 135.460687 | CG28: 117.43 | CH28: 0.7114785218 | CI28: 118.1414785 | CJ28: 117.2877307 | CK28: 689.619 | CL28: 4.178226235 | CM28: 693.7972262 | CN28: 688.7835096
A29: 2021-04-01 | B29: 17 | C29: On | D29: 24.747579 | E29: 0.007083311 | G29: 8.578 | H29: 0.04214460198 | I29: 8.620144602 | J29: 8.559085437 | K29: 1.074 | L29: 0.005276673178 | M29: 1.079276673 | N29: 1.071631821 | O29: 17.738 | P29: 0.0871486302 | Q29: 17.82514863 | R29: 17.69888756 | S29: 5.078 | T29: 0.02494873966 | U29: 5.10294874 | V29: 5.066802967 | W29: 3.714 | X29: 0.01824726647 | Y29: 3.732247266 | Z29: 3.705810598 | AA29: 0 | AB29: 0 | AC29: 0 | AD29: 0 | AE29: 36.182 | AF29: 0.1777659115 | AG29: 36.35976591 | AH29: 36.10221838 | AJ29: 57.982 | AK29: 0.2848715682 | AL29: 58.26687157 | AM29: 57.8541492 | AN29: 6.237 | AO29: 0.03064302664 | AP29: 6.267643027 | AQ29: 6.223247362 | AR29: 286.84 | AS29: 1.409274613 | AT29: 288.2492746 | AU29: 286.2075154 | AV29: 43.155 | AW29: 0.2120249823 | AX29: 43.36702498 | AY29: 43.05984286 | AZ29: 131.144 | BA29: 0.6443240478 | BB29: 131.788324 | BC29: 130.8548264 | BD29: 115.715 | BE29: 0.5685197736 | BF29: 116.2835198 | BG29: 115.4598474 | BH29: 641.073 | BI29: 3.149658012 | BJ29: 644.222658 | BK29: 639.6594286 | BM29: 66.56 | BN29: 0.3270161702 | BO29: 66.88701617 | BP29: 66.41323463 | BQ29: 7.311 | BR29: 0.03591969982 | BS29: 7.3469197 | BT29: 7.294879183 | BU29: 304.578 | BV29: 1.496423243 | BW29: 306.0744232 | BX29: 303.9064029 | BY29: 48.233 | BZ29: 0.236973722 | CA29: 48.46997372 | CB29: 48.12664582 | CC29: 134.858 | CD29: 0.6625713142 | CE29: 135.5205713 | CF29: 134.560637 | CG29: 115.715 | CH29: 0.5685197736 | CI29: 116.2835198 | CJ29: 115.4598474 | CK29: 677.255 | CL29: 3.327423923 | CM29: 680.5824239 | CN29: 675.761647
A30: 2021-04-01 | B30: 18 | C30: On | D30: 22.420645 | E30: 0.007270971 | G30: 8.372 | H30: 0.01113248005 | I30: 8.38313248 | J30: 8.322178967 | K30: 1.028 | L30: 0.001366960045 | M30: 1.02936696 | N30: 1.021882463 | O30: 16.916 | P30: 0.02249367326 | Q30: 16.93849367 | R30: 16.81533438 | S30: 5.004 | T30: 0.00665395726 | U30: 5.010653957 | V30: 4.974221638 | W30: 3.694 | X30: 0.004912014013 | Y30: 3.698912014 | Z30: 3.672017332 | AA30: 0 | AB30: 0 | AC30: 0 | AD30: 0 | AE30: 35.014 | AF30: 0.04655908463 | AG30: 35.06055908 | AH30: 34.80563478 | AJ30: 56.122 | AK30: 0.07462697629 | AL30: 56.19662698 | AM30: 55.78802293 | AN30: 5.919 | AO30: 0.007870658078 | AP30: 5.926870658 | AQ30: 5.883776553 | AR30: 278.982 | AS30: 0.3709700848 | AT30: 279.3529701 | AU30: 277.3218027 | AV30: 41.925 | AW30: 0.05574883256 | AX30: 41.98074883 | AY30: 41.67550803 | AZ30: 134.907 | BA30: 0.1793895708 | BB30: 135.0863896 | BC30: 134.1041803 | BD30: 113.599 | BE30: 0.1510557336 | BF30: 113.7500557 | BG30: 112.9229824 | BH30: 631.454 | BI30: 0.8396618561 | BJ30: 632.2936619 | BK30: 627.696273 | BM30: 64.494 | BN30: 0.08575945634 | BO30: 64.57975946 | BP30: 64.1102019 | BQ30: 6.947 | BR30: 0.009237618123 | BS30: 6.956237618 | BT30: 6.905659016 | BU30: 295.898 | BV30: 0.3934637581 | BW30: 296.2914638 | BX30: 294.1371371 | BY30: 46.929 | BZ30: 0.06240278982 | CA30: 46.99140279 | CB30: 46.64972966 | CC30: 138.601 | CD30: 0.1843015848 | CE30: 138.7853016 | CF30: 137.7761977 | CG30: 113.599 | CH30: 0.1510557336 | CI30: 113.7500557 | CJ30: 112.9229824 | CK30: 666.468 | CL30: 0.8862209407 | CM30: 667.3542209 | CN30: 662.5019078
A31: 2021-04-01 | B31: 19 | C31: On | D31: 21.038671 | E31: 0.007194017 | G31: 8.18 | H31: 0.03977985447 | I31: 8.219779854 | J31: 8.160646618 | K31: 1.12 | L31: 0.00544663044 | M31: 1.12544663 | N31: 1.117350148 | O31: 17.182 | P31: 0.08355714663 | Q31: 17.26555715 | R31: 17.14134844 | S31: 4.612 | T31: 0.02242844606 | U31: 4.634428446 | V31: 4.601088289 | W31: 3.702 | X31: 0.01800305883 | Y31: 3.720003059 | Z31: 3.693241294 | AA31: 0 | AB31: 0 | AC31: 0 | AD31: 0 | AE31: 34.796 | AF31: 0.1692151364 | AG31: 34.96521514 | AH31: 34.71367478 | AJ31: 55.993 | AK31: 0.2722974806 | AL31: 56.26529748 | AM31: 55.86052397 | AN31: 5.46 | AO31: 0.0265523234 | AP31: 5.486552323 | AQ31: 5.447081973 | AR31: 272.558 | AS31: 1.325466696 | AT31: 273.8834667 | AU31: 271.9131444 | AV31: 40.53 | AW31: 0.1970999391 | AX31: 40.72709994 | AY31: 40.43410849 | AZ31: 141.999 | BA31: 0.6905500678 | BB31: 142.6895501 | BC31: 141.663039 | BD31: 112.202 | BE31: 0.5456453827 | BF31: 112.7476454 | BG31: 111.9365369 | BH31: 628.742 | BI31: 3.05761189 | BJ31: 631.7996119 | BK31: 627.2544347 | BM31: 64.173 | BN31: 0.312077335 | BO31: 64.48507734 | BP31: 64.02117059 | BQ31: 6.58 | BR31: 0.03199895384 | BS31: 6.611998954 | BT31: 6.564432121 | BU31: 289.74 | BV31: 1.409023843 | BW31: 291.1490238 | BX31: 289.0544928 | BY31: 45.142 | BZ31: 0.2195283851 | CA31: 45.36152839 | CB31: 45.03519678 | CC31: 145.701 | CD31: 0.7085531266 | CE31: 146.4095531 | CF31: 145.3562803 | CG31: 112.202 | CH31: 0.5456453827 | CI31: 112.7476454 | CJ31: 111.9365369 | CK31: 663.538 | CL31: 3.226827026 | CM31: 666.764827 | CN31: 661.9681095
A32: 2021-04-01 | B32: 20 | C32: On | D32: 34.695556 | E32: 0.007215955 | G32: 8.22 | H32: 0.02174064061 | I32: 8.241740641 | J32: 8.182268611 | K32: 1.142 | L32: 0.003020415033 | M32: 1.145020415 | N32: 1.136757999 | O32: 17.42 | P32: 0.04607323107 | Q32: 17.46607323 | R32: 17.34003883 | S32: 4.578 | T32: 0.0121081086 | U32: 4.590108109 | V32: 4.556986095 | W32: 3.754 | X32: 0.009928754847 | Y32: 3.763928755 | Z32: 3.736768414 | AA32: 0 | AB32: 0 | AC32: 0 | AD32: 0 | AE32: 35.114 | AF32: 0.09287115016 | AG32: 35.20687115 | AH32: 34.95281995 | AJ32: 55.352 | AK32: 0.1463975595 | AL32: 55.49839756 | AM32: 55.09792362 | AN32: 5.638 | AO32: 0.0149116462 | AP32: 5.652911646 | AQ32: 5.61212049 | AR32: 268.85 | AS32: 0.7110670593 | AT32: 269.5610671 | AU32: 267.6159265 | AV32: 40.869 | AW32: 0.1080922434 | AX32: 40.97709224 | AY32: 40.68140339 | AZ32: 142.322 | BA32: 0.3764198848 | BB32: 142.6984199 | BC32: 141.6687145 | BD32: 111.729 | BE32: 0.2955060869 | BF32: 112.0245061 | BG32: 111.2161423 | BH32: 624.76 | BI32: 1.65239448 | BJ32: 626.4123945 | BK32: 621.8922308 | BM32: 63.572 | BN32: 0.1681382001 | BO32: 63.7401382 | BP32: 63.28019223 | BQ32: 6.78 | BR32: 0.01793206123 | BS32: 6.797932061 | BT32: 6.748878489 | BU32: 286.27 | BV32: 0.7571402904 | BW32: 287.0271403 | BX32: 284.9559654 | BY32: 45.447 | BZ32: 0.120200352 | CA32: 45.56720035 | CB32: 45.23838948 | CC32: 146.076 | CD32: 0.3863486396 | CE32: 146.4623486 | CF32: 145.4054829 | CG32: 111.729 | CH32: 0.2955060869 | CI32: 112.0245061 | CJ32: 111.2161423 | CK32: 659.874 | CL32: 1.74526563 | CM32: 661.6192656 | CN32: 656.8450508
A33: 2021-04-01 | B33: 21 | C33: On | D33: 58.041192 | E33: 0.007581608 | G33: 8.208 | H33: 0.06296890124 | I33: 8.270968901 | J33: 8.208261657 | K33: 1.194 | L33: 0.009159949815 | M33: 1.20315995 | N33: 1.194038063 | O33: 17.952 | P33: 0.1377214565 | Q33: 18.08972146 | R33: 17.95257228 | S33: 4.542 | T33: 0.03484463322 | U33: 4.576844633 | V33: 4.542144791 | W33: 3.712 | X33: 0.02847716391 | Y33: 3.740477164 | Z33: 3.712118332 | AA33: 0 | AB33: 0 | AC33: 0 | AD33: 0 | AE33: 35.608 | AF33: 0.2731721047 | AG33: 35.8811721 | AH33: 35.60913512 | AJ33: 54.899 | AK33: 0.4211659002 | AL33: 55.3201659 | AM33: 54.90075009 | AN33: 5.823 | AO33: 0.04467201656 | AP33: 5.867672017 | AQ33: 5.823185627 | AR33: 266.721 | AS33: 2.046190096 | AT33: 268.7671901 | AU33: 266.7295026 | AV33: 40.053 | AW33: 0.3072725879 | AX33: 40.36027259 | AY33: 40.05427682 | AZ33: 141.135 | BA33: 1.082738289 | BB33: 142.2177383 | BC33: 141.1394991 | BD33: 110.502 | BE33: 0.8477326419 | BF33: 111.3497326 | BG33: 110.5055226 | BH33: 619.133 | BI33: 4.749771532 | BJ33: 623.8827715 | BK33: 619.1527369 | BM33: 63.107 | BN33: 0.4841348015 | BO33: 63.5911348 | BP33: 63.10901175 | BQ33: 7.017 | BR33: 0.05383196637 | BS33: 7.070831966 | BT33: 7.01722369 | BU33: 284.673 | BV33: 2.183911552 | BW33: 286.8569116 | BX33: 284.6820749 | BY33: 44.595 | BZ33: 0.3421172211 | CA33: 44.93711722 | CB33: 44.59642161 | CC33: 144.847 | CD33: 1.111215453 | CE33: 145.9582155 | CF33: 144.8516175 | CG33: 110.502 | CH33: 0.8477326419 | CI33: 111.3497326 | CJ33: 110.5055226 | CK33: 654.741 | CL33: 5.022943636 | CM33: 659.7639436 | CN33: 654.761872
A34: 2021-04-01 | B34: 22 | C34: On | D34: 28.773781 | E34: 0.007870523 | G34: 7.918 | H34: 0.09211506641 | I34: 8.010115066 | J34: 7.947071272 | K34: 1.11 | L34: 0.01291332707 | M34: 1.122913327 | N34: 1.114075412 | O34: 18.408 | P34: 0.214151824 | Q34: 18.62215182 | R34: 18.47558575 | S34: 4.148 | T34: 0.0482562889 | U34: 4.196256289 | V34: 4.163229557 | W34: 3.766 | X34: 0.04381224301 | Y34: 3.809812243 | Z34: 3.779827028 | AA34: 0 | AB34: 0 | AC34: 0 | AD34: 0 | AE34: 35.35 | AF34: 0.4112487494 | AG34: 35.76124875 | AH34: 35.47978902 | AJ34: 53.233 | AK34: 0.6192929187 | AL34: 53.85229292 | AM34: 53.42844721 | AN34: 5.807 | AO34: 0.06755647773 | AP34: 5.874556478 | AQ34: 5.828320646 | AR34: 263.459 | AS34: 3.064983996 | AT34: 266.523984 | AU34: 264.4263009 | AV34: 39.299 | AW34: 0.4571899463 | AX34: 39.75618995 | AY34: 39.44328794 | AZ34: 150.757 | BA34: 1.753850855 | BB34: 152.5108509 | BC34: 151.3105107 | BD34: 109.772 | BE34: 1.277046612 | BF34: 111.0490466 | BG34: 110.1750325 | BH34: 622.327 | BI34: 7.239920805 | BJ34: 629.5669208 | BK34: 624.6118999 | BM34: 61.151 | BN34: 0.7114079851 | BO34: 61.86240799 | BP34: 61.37551848 | BQ34: 6.917 | BR34: 0.0804698048 | BS34: 6.997469805 | BT34: 6.942396058 | BU34: 281.867 | BV34: 3.27913582 | BW34: 285.1461358 | BX34: 282.9018866 | BY34: 43.447 | BZ34: 0.5054462352 | CA34: 43.95244624 | CB34: 43.6065175 | CC34: 154.523 | CD34: 1.797663098 | CE34: 156.3206631 | CF34: 155.0903377 | CG34: 109.772 | CH34: 1.277046612 | CI34: 111.0490466 | CJ34: 110.1750325 | CK34: 657.677 | CL34: 7.651169555 | CM34: 665.3281696 | CN34: 660.0916889
A35: 2021-04-01 | B35: 23 | C35: On | D35: 23.42845 | E35: 0.007808797 | G35: 7.754 | H35: 0.120191913 | I35: 7.874191913 | J35: 7.812703947 | K35: 1.044 | L35: 0.01618266149 | M35: 1.060182661 | N35: 1.05190391 | O35: 18.518 | P35: 0.2870407332 | Q35: 18.80504073 | R35: 18.65819599 | S35: 4.188 | T35: 0.06491665355 | U35: 4.252916654 | V35: 4.219706491 | W35: 3.798 | X35: 0.05887140645 | Y35: 3.856871406 | Z35: 3.826753881 | AA35: 0 | AB35: 0 | AC35: 0 | AD35: 0 | AE35: 35.302 | AF35: 0.5472033677 | AG35: 35.84920337 | AH35: 35.56926422 | AJ35: 51.948 | AK35: 0.8052269147 | AL35: 52.75322691 | AM35: 52.34128767 | AN35: 5.77 | AO35: 0.08943865592 | AP35: 5.859438656 | AQ35: 5.813683489 | AR35: 260.552 | AS35: 4.038721088 | AT35: 264.5907211 | AU35: 262.5245859 | AV35: 39.148 | AW35: 0.6068188045 | AX35: 39.7548188 | AY35: 39.44438149 | AZ35: 136.048 | BA35: 2.108830201 | BB35: 138.1568302 | BC35: 137.0779916 | BD35: 108.94 | BE35: 1.688639025 | BF35: 110.628639 | BG35: 109.7647624 | BH35: 602.406 | BI35: 9.33767469 | BJ35: 611.7436747 | BK35: 606.9666925 | BM35: 59.702 | BN35: 0.9254188277 | BO35: 60.62741883 | BP35: 60.15399162 | BQ35: 6.814 | BR35: 0.1056213174 | BS35: 6.919621317 | BT35: 6.865587399 | BU35: 279.07 | BV35: 4.325761821 | BW35: 283.3957618 | BX35: 281.1827818 | BY35: 43.336 | BZ35: 0.6717354581 | CA35: 44.00773546 | CB35: 43.66408799 | CC35: 139.846 | CD35: 2.167701608 | CE35: 142.0137016 | CF35: 140.9047454 | CG35: 108.94 | CH35: 1.688639025 | CI35: 110.628639 | CJ35: 109.7647624 | CK35: 637.708 | CL35: 9.884878057 | CM35: 647.5928781 | CN35: 642.5359567
A36: 2021-04-01 | B36: 24 | C36: Off | D36: 23.140289 | E36: 0.007791853 | G36: 7.766 | H36: 0.1072055125 | I36: 7.873205513 | J36: 7.811858653 | K36: 1.046 | L36: 0.01443947542 | M36: 1.060439475 | N36: 1.052176687 | O36: 18.086 | P36: 0.2496676409 | Q36: 18.33566764 | R36: 18.19279881 | S36: 4.216 | T36: 0.0581996447 | U36: 4.274199645 | V36: 4.240895709 | W36: 3.81 | X36: 0.05259502996 | Y36: 3.86259503 | Z36: 3.832498257 | AA36: 0 | AB36: 0 | AC36: 0 | AD36: 0 | AE36: 34.924 | AF36: 0.4821073035 | AG36: 35.4061073 | AH36: 35.13022812 | AJ36: 50.167 | AK36: 0.6925288367 | AL36: 50.85952884 | AM36: 50.46323886 | AN36: 5.578 | AO36: 0.07700133257 | AP36: 5.655001333 | AQ36: 5.610938393 | AR36: 255.696 | AS36: 3.529747711 | AT36: 259.2257477 | AU36: 257.2058988 | AV36: 38.066 | AW36: 0.5254809476 | AX36: 38.59148095 | AY36: 38.2907818 | AZ36: 127.85 | BA36: 1.764901465 | BB36: 129.6149015 | BC36: 128.6049612 | BD36: 109.087 | BE36: 1.505888198 | BF36: 110.5928882 | BG36: 109.7311647 | BH36: 586.444 | BI36: 8.09554849 | BJ36: 594.5395485 | BK36: 589.9069837 | BM36: 57.933 | BN36: 0.7997343492 | BO36: 58.73273435 | BP36: 58.27509752 | BQ36: 6.624 | BR36: 0.09144080799 | BS36: 6.715440808 | BT36: 6.66311508 | BU36: 273.782 | BV36: 3.779415352 | BW36: 277.5614154 | BX36: 275.3986976 | BY36: 42.282 | BZ36: 0.5836805923 | CA36: 42.86568059 | CB36: 42.53167751 | CC36: 131.66 | CD36: 1.817496494 | CE36: 133.4774965 | CF36: 132.4374595 | CG36: 109.087 | CH36: 1.505888198 | CI36: 110.5928882 | CJ36: 109.7311647 | CK36: 621.368 | CL36: 8.577655794 | CM36: 629.9456558 | CN36: 625.0372118
A37: 2021-04-02 | B37: 1 | C37: Off | D37: 19.077196 | E37: 0.007690837 | G37: 7.472 | H37: 0.1644727586 | I37: 7.636472759 | J37: 7.577741891 | K37: 0.97 | L37: 0.02135152247 | M37: 0.9913515225 | N37: 0.9837271995 | O37: 18.168 | P37: 0.3999118146 | Q37: 18.56791181 | R37: 18.42510903 | S37: 4.272 | T37: 0.09403474637 | U37: 4.366034746 | V37: 4.332456285 | W37: 3.812 | X37: 0.08390928211 | Y37: 3.895909282 | Z37: 3.865946479 | AA37: 0 | AB37: 0 | AC37: 0 | AD37: 0 | AE37: 34.694 | AF37: 0.7636801242 | AG37: 35.45768012 | AH37: 35.18498089 | AJ37: 49.085 | AK37: 1.080453072 | AL37: 50.16545307 | AM37: 49.77963875 | AN37: 5.171 | AO37: 0.1138234254 | AP37: 5.284823425 | AQ37: 5.24417871 | AR37: 251.635 | AS37: 5.53895913 | AT37: 257.1739591 | AU37: 255.1960761 | AV37: 38.159 | AW37: 0.8399512844 | AX37: 38.99895128 | AY37: 38.69901671 | AZ37: 133.491 | BA37: 2.938387717 | BB37: 136.4293877 | BC37: 135.3801315 | BD37: 107.966 | BE37: 2.37653451 | BF37: 110.3425345 | BG37: 109.4939081 | BH37: 585.507 | BI37: 12.88810914 | BJ37: 598.3951091 | BK37: 593.7929499 | BM37: 56.557 | BN37: 1.244925831 | BO37: 57.80192583 | BP37: 57.35738064 | BQ37: 6.141 | BR37: 0.1351749479 | BS37: 6.276174948 | BT37: 6.227905909 | BU37: 269.803 | BV37: 5.938870945 | BW37: 275.7418709 | BX37: 273.6211852 | BY37: 42.431 | BZ37: 0.9339860307 | CA37: 43.36498603 | CB37: 43.03147299 | CC37: 137.303 | CD37: 3.022296999 | CE37: 140.325297 | CF37: 139.246078 | CG37: 107.966 | CH37: 2.37653451 | CI37: 110.3425345 | CJ37: 109.4939081 | CK37: 620.201 | CL37: 13.65178926 | CM37: 633.8527893 | CN37: 628.9779308
A38: 2021-04-02 | B38: 2 | C38: Off | D38: 21.08656 | E38: 0.007888764 | G38: 7.422 | H38: 0.118367644 | I38: 7.540367644 | J38: 7.480883463 | K38: 1.026 | L38: 0.01636286752 | M38: 1.042362868 | N38: 1.034139913 | O38: 18.618 | P38: 0.2969238474 | Q38: 18.91492385 | R38: 18.76570848 | S38: 4.288 | T38: 0.06838594143 | U38: 4.356385941 | V38: 4.322019441 | W38: 3.852 | X38: 0.06143252015 | Y38: 3.91343252 | Z38: 3.882560375 | AA38: 0 | AB38: 0 | AC38: 0 | AD38: 0 | AE38: 35.206 | AF38: 0.5614728204 | AG38: 35.76747282 | AH38: 35.48531167 | AJ38: 48.745 | AK38: 0.7773956891 | AL38: 49.52239569 | AM38: 49.1317252 | AN38: 5.188 | AO38: 0.08273933399 | AP38: 5.270739334 | AQ38: 5.229159715 | AR38: 250.099 | AS38: 3.988632361 | AT38: 254.0876324 | AU38: 252.083195 | AV38: 38.283 | AW38: 0.6105454748 | AX38: 38.89354547 | AY38: 38.58672347 | AZ38: 136.094 | BA38: 2.17045623 | BB38: 138.2644562 | BC38: 137.1737206 | BD38: 108.116 | BE38: 1.7242571 | BF38: 109.8402571 | BG38: 108.9737532 | BH38: 586.525 | BI38: 9.354026189 | BJ38: 595.8790262 | BK38: 591.1782772 | BM38: 56.167 | BN38: 0.8957633331 | BO38: 57.06276333 | BP38: 56.61260866 | BQ38: 6.214 | BR38: 0.0991022015 | BS38: 6.313102202 | BT38: 6.263299628 | BU38: 268.717 | BV38: 4.285556209 | BW38: 273.0025562 | BX38: 270.8489035 | BY38: 42.571 | BZ38: 0.6789314162 | CA38: 43.24993142 | CB38: 42.90874291 | CC38: 139.946 | CD38: 2.23188875 | CE38: 142.1778887 | CF38: 141.0562809 | CG38: 108.116 | CH38: 1.7242571 | CI38: 109.8402571 | CJ38: 108.9737532 | CK38: 621.731 | CL38: 9.915499009 | CM38: 631.646499 | CN38: 626.6635888
A39: 2021-04-02 | B39: 3 | C39: Off | D39: 20.435201 | E39: 0.007952136 | G39: 7.506 | H39: 0.1223027814 | I39: 7.628302781 | J39: 7.56764148 | K39: 1.05 | L39: 0.01710870243 | M39: 1.067108702 | N39: 1.058622909 | O39: 18.582 | P39: 0.3027751511 | Q39: 18.88477515 | R39: 18.73460085 | S39: 4.318 | T39: 0.07035750201 | U39: 4.388357502 | V39: 4.353460686 | W39: 3.854 | X39: 0.06279708494 | Y39: 3.916797085 | Z39: 3.885650182 | AA39: 0 | AB39: 0 | AC39: 0 | AD39: 0 | AE39: 35.31 | AF39: 0.5753412219 | AG39: 35.88534122 | AH39: 35.59997611 | AJ39: 48.878 | AK39: 0.7964182453 | AL39: 49.67441825 | AM39: 49.27940052 | AN39: 5.224 | AO39: 0.08511986811 | AP39: 5.309119868 | AQ39: 5.266901025 | AR39: 250.845 | AS39: 4.087269012 | AT39: 254.932269 | AU39: 252.9050129 | AV39: 39.453 | AW39: 0.6428472735 | AX39: 40.09584727 | AY39: 39.77699964 | AZ39: 136.801 | BA39: 2.229035811 | BB39: 139.0300358 | BC39: 137.9244501 | BD39: 107.324 | BE39: 1.748737505 | BF39: 109.0727375 | BG39: 108.2053763 | BH39: 588.525 | BI39: 9.589427715 | BJ39: 598.1144277 | BK39: 593.3581404 | BM39: 56.384 | BN39: 0.9187210267 | BO39: 57.30272103 | BP39: 56.847042 | BQ39: 6.274 | BR39: 0.1022285705 | BS39: 6.376228571 | BT39: 6.325523934 | BU39: 269.427 | BV39: 4.390044163 | BW39: 273.8170442 | BX39: 271.6396138 | BY39: 43.771 | BZ39: 0.7132047755 | CA39: 44.48420478 | CB39: 44.13046033 | CC39: 140.655 | CD39: 2.291832896 | CE39: 142.9468329 | CF39: 141.8101002 | CG39: 107.324 | CH39: 1.748737505 | CI39: 109.0727375 | CJ39: 108.2053763 | CK39: 623.835 | CL39: 10.16476894 | CM39: 633.9997689 | CN39: 628.9581165
A40: 2021-04-02 | B40: 4 | C40: Off | D40: 27.024701 | E40: 0.007145491 | G40: 7.638 | H40: 0.05986766421 | I40: 7.697867664 | J40: 7.64286262 | K40: 1.044 | L40: 0.008183011447 | M40: 1.052183011 | N40: 1.044664647 | O40: 18.222 | P40: 0.1428264699 | Q40: 18.36482647 | R40: 18.23360077 | S40: 4.51 | T40: 0.0353499824 | U40: 4.545349982 | V40: 4.512871225 | W40: 3.824 | X40: 0.02997302277 | Y40: 3.853973023 | Z40: 3.826434493 | AA40: 0 | AB40: 0 | AC40: 0 | AD40: 0 | AE40: 35.238 | AF40: 0.2762001508 | AG40: 35.51420015 | AH40: 35.26043375 | AJ40: 50.194 | AK40: 0.3934272764 | AL40: 50.58742728 | AM40: 50.22595527 | AN40: 5.361 | AO40: 0.04202023407 | AP40: 5.403020234 | AQ40: 5.364413002 | AR40: 252.312 | AS40: 1.977655157 | AT40: 254.2896552 | AU40: 252.4726307 | AV40: 40.812 | AW40: 0.3198899073 | AX40: 41.13188991 | AY40: 40.83798236 | AZ40: 143.735 | BA40: 1.126614129 | BB40: 144.8616141 | BC40: 143.8265068 | BD40: 104.736 | BE40: 0.8209347576 | BF40: 105.5569348 | BG40: 104.8026786 | BH40: 597.15 | BI40: 4.680541462 | BJ40: 601.8305415 | BK40: 597.5301667 | BM40: 57.832 | BN40: 0.4532949406 | BO40: 58.28529494 | BP40: 57.86881789 | BQ40: 6.405 | BR40: 0.05020324552 | BS40: 6.455203246 | BT40: 6.409077649 | BU40: 270.534 | BV40: 2.120481627 | BW40: 272.6544816 | BX40: 270.7062315 | BY40: 45.322 | BZ40: 0.3552398897 | CA40: 45.67723989 | CB40: 45.35085358 | CC40: 147.559 | CD40: 1.156587152 | CE40: 148.7155872 | CF40: 147.6529413 | CG40: 104.736 | CH40: 0.8209347576 | CI40: 105.5569348 | CJ40: 104.8026786 | CK40: 632.388 | CL40: 4.956741612 | CM40: 637.3447416 | CN40: 632.7906005
A41: 2021-04-02 | B41: 5 | C41: Off | D41: 20.797173 | E41: 0.006992123 | G41: 7.942 | H41: 0.1471971968 | I41: 8.089197197 | J41: 8.032636535 | K41: 1.044 | L41: 0.01934951819 | M41: 1.063349518 | N41: 1.055914448 | O41: 18.43 | P41: 0.3415820116 | Q41: 18.77158201 | R41: 18.6403288 | S41: 4.506 | T41: 0.08351429975 | U41: 4.5895143 | V41: 4.557423851 | W41: 3.848 | X41: 0.07131891377 | Y41: 3.919318914 | Z41: 3.891914554 | AA41: 0 | AB41: 0 | AC41: 0 | AD41: 0 | AE41: 35.77 | AF41: 0.6629619401 | AG41: 36.43296194 | AH41: 36.17821819 | AJ41: 51.674 | AK41: 0.9577270141 | AL41: 52.63172701 | AM41: 52.26371951 | AN41: 5.725 | AO41: 0.1061072717 | AP41: 5.831107272 | AQ41: 5.790335452 | AR41: 255.423 | AS41: 4.73401531 | AT41: 260.1570153 | AU41: 258.3379655 | AV41: 41.846 | AW41: 0.7755746532 | AX41: 42.62157465 | AY41: 42.32355936 | AZ41: 139.544 | BA41: 2.586311461 | BB41: 142.1303115 | BC41: 141.1365188 | BD41: 106.392 | BE41: 1.971871589 | BF41: 108.3638716 | BG41: 107.6061781 | BH41: 600.604 | BI41: 11.1316073 | BJ41: 611.7356073 | BK41: 607.4582767 | BM41: 59.616 | BN41: 1.104924211 | BO41: 60.72092421 | BP41: 60.29635604 | BQ41: 6.769 | BR41: 0.1254567898 | BS41: 6.89445679 | BT41: 6.8462499 | BU41: 273.853 | BV41: 5.075597321 | BW41: 278.9285973 | BX41: 276.9782943 | BY41: 46.352 | BZ41: 0.859088953 | CA41: 47.21108895 | CB41: 46.88098321 | CC41: 143.392 | CD41: 2.657630375 | CE41: 146.0496304 | CF41: 145.0284334 | CG41: 106.392 | CH41: 1.971871589 | CI41: 108.3638716 | CJ41: 107.6061781 | CK41: 636.374 | CL41: 11.79456924 | CM41: 648.1685692 | CN41: 643.6364949
A42: 2021-04-02 | B42: 6 | C42: Off | D42: 22.858418 | E42: 0.007156847 | G42: 8.312 | H42: 0.07804778329 | I42: 8.390047783 | J42: 8.330001495 | K42: 1.122 | L42: 0.01053532397 | M42: 1.132535324 | N42: 1.124429942 | O42: 18.82 | P42: 0.1767155055 | Q42: 18.99671551 | R42: 18.86075892 | S42: 4.636 | T42: 0.04353098212 | U42: 4.679530982 | V42: 4.646040295 | W42: 3.882 | X42: 0.03645109417 | Y42: 3.918451094 | Z42: 3.890407339 | AA42: 0 | AB42: 0 | AC42: 0 | AD42: 0 | AE42: 36.772 | AF42: 0.345280689 | AG42: 37.11728069 | AH42: 36.85163799 | AJ42: 54.423 | AK42: 0.5110195513 | AL42: 54.93401955 | AM42: 54.54086518 | AN42: 5.957 | AO42: 0.05593487068 | AP42: 6.012934871 | AQ42: 5.969901216 | AR42: 262.895 | AS42: 2.46852406 | AT42: 265.3635241 | AU42: 263.4643579 | AV42: 44.331 | AW42: 0.4162579741 | AX42: 44.74725797 | AY42: 44.4270087 | AZ42: 132.995 | BA42: 1.248792702 | BB42: 134.2437927 | BC42: 133.2830304 | BD42: 109.231 | BE42: 1.025654165 | BF42: 110.2566542 | BG42: 109.4675642 | BH42: 609.832 | BI42: 5.726183323 | BJ42: 615.5581833 | BK42: 611.1527276 | BM42: 62.735 | BN42: 0.5890673346 | BO42: 63.32406733 | BP42: 62.87086667 | BQ42: 7.079 | BR42: 0.06647019465 | BS42: 7.145470195 | BT42: 7.094331158 | BU42: 281.715 | BV42: 2.645239566 | BW42: 284.3602396 | BX42: 282.3251168 | BY42: 48.967 | BZ42: 0.4597889563 | CA42: 49.42678896 | CB42: 49.07304899 | CC42: 136.877 | CD42: 1.285243796 | CE42: 138.1622438 | CF42: 137.1734378 | CG42: 109.231 | CH42: 1.025654165 | CI42: 110.2566542 | CJ42: 109.4675642 | CK42: 646.604 | CL42: 6.071464012 | CM42: 652.675464 | CN42: 648.0043656
A43: 2021-04-02 | B43: 7 | C43: Off | D43: 24.202948 | E43: 0.007391637 | G43: 8.796 | H43: 0.0881490004 | I43: 8.884149 | J43: 8.818480596 | K43: 1.516 | L43: 0.01519257442 | M43: 1.531192574 | N43: 1.519874555 | O43: 19.648 | P43: 0.1969021782 | Q43: 19.84490218 | R43: 19.69821587 | S43: 4.932 | T43: 0.0494259743 | U43: 4.981425974 | V43: 4.944605082 | W43: 3.884 | X43: 0.03892345584 | Y43: 3.922923456 | Z43: 3.89392663 | AA43: 0 | AB43: 0 | AC43: 0 | AD43: 0 | AE43: 38.776 | AF43: 0.3885931832 | AG43: 39.16459318 | AH43: 38.87510273 | AJ43: 57.586 | AK43: 0.5770973553 | AL43: 58.16309736 | AM43: 57.73317685 | AN43: 6.962 | AO43: 0.06976959309 | AP43: 7.031769593 | AQ43: 6.979793305 | AR43: 274.212 | AS43: 2.748012017 | AT43: 276.960012 | AU43: 274.9128241 | AV43: 47.258 | AW43: 0.4735954367 | AX43: 47.73159544 | AY43: 47.37878081 | AZ43: 142.201 | BA43: 1.425065485 | BB43: 143.6260655 | BC43: 142.5644337 | BD43: 111.182 | BE43: 1.114208977 | BF43: 112.296209 | BG43: 111.4661562 | BH43: 639.401 | BI43: 6.407748864 | BJ43: 645.8087489 | BK43: 641.035165 | BM43: 66.382 | BN43: 0.6652463557 | BO43: 67.04724636 | BP43: 66.55165745 | BQ43: 8.478 | BR43: 0.08496216751 | BS43: 8.562962168 | BT43: 8.49966786 | BU43: 293.86 | BV43: 2.944914195 | BW43: 296.8049142 | BX43: 294.61104 | BY43: 52.19 | BZ43: 0.523021411 | CA43: 52.71302141 | CB43: 52.32338589 | CC43: 146.085 | CD43: 1.463988941 | CE43: 147.5489889 | CF43: 146.4583604 | CG43: 111.182 | CH43: 1.114208977 | CI43: 112.296209 | CJ43: 111.4661562 | CK43: 678.177 | CL43: 6.796342047 | CM43: 684.973342 | CN43: 679.9102677
A44: 2021-04-02 | B44: 8 | C44: On | D44: 25.600679 | E44: 0.007776323 | G44: 8.836 | H44: 0.0441723675 | I44: 8.880172367 | J44: 8.811117279 | K44: 1.452 | L44: 0.007258745768 | M44: 1.459258746 | N44: 1.447911078 | O44: 19.908 | P44: 0.09952280354 | Q44: 20.0075228 | R44: 19.85193784 | S44: 5.292 | T44: 0.02645542879 | U44: 5.318455429 | V44: 5.277097402 | W44: 3.862 | X44: 0.01930666402 | Y44: 3.881306664 | Z44: 3.85112437 | AA44: 0 | AB44: 0 | AC44: 0 | AD44: 0 | AE44: 39.35 | AF44: 0.1967160096 | AG44: 39.54671601 | AH44: 39.23918797 | AJ44: 60.169 | AK44: 0.3007930262 | AL44: 60.46979303 | AM44: 59.99956038 | AN44: 7.418 | AO44: 0.03708359236 | AP44: 7.455083592 | AQ44: 7.397110454 | AR44: 281.322 | AS44: 1.406366995 | AT44: 282.728367 | AU44: 280.5297799 | AV44: 47.92 | AW44: 0.2395586069 | AX44: 48.15955861 | AY44: 47.78505432 | AZ44: 127.132 | BA44: 0.6355501838 | BB44: 127.7675502 | BC44: 126.7739884 | BD44: 112.748 | BE44: 0.5636426087 | BF44: 113.3116426 | BG44: 112.4304947 | BH44: 636.709 | BI44: 3.182995013 | BJ44: 639.891995 | BK44: 634.9159882 | BM44: 69.005 | BN44: 0.3449653937 | BO44: 69.34996539 | BP44: 68.81067766 | BQ44: 8.87 | BR44: 0.04434233813 | BS44: 8.914342338 | BT44: 8.845021533 | BU44: 301.23 | BV44: 1.505889799 | BW44: 302.7358898 | BX44: 300.3817177 | BY44: 53.212 | BZ44: 0.2660140357 | CA44: 53.47801404 | CB44: 53.06215173 | CC44: 130.994 | CD44: 0.6548568479 | CE44: 131.6488568 | CF44: 130.6251128 | CG44: 112.748 | CH44: 0.5636426087 | CI44: 113.3116426 | CJ44: 112.4304947 | CK44: 676.059 | CL44: 3.379711023 | CM44: 679.438711 | CN44: 674.1551761
A45: 2021-04-02 | B45: 9 | C45: On | D45: 21.80831 | E45: 0.007006865 | G45: 8.896 | H45: 0.03884865874 | I45: 8.934848659 | J45: 8.87224338 | K45: 1.226 | L45: 0.005353918122 | M45: 1.231353918 | N45: 1.222725987 | O45: 19.828 | P45: 0.08658848983 | Q45: 19.91458849 | R45: 19.77504966 | S45: 5.554 | T45: 0.02425420983 | U45: 5.57825421 | V45: 5.539168136 | W45: 3.822 | X45: 0.01669059956 | Y45: 3.8386906 | Z45: 3.811793413 | AA45: 0 | AB45: 0 | AC45: 0 | AD45: 0 | AE45: 39.326 | AF45: 0.1717358761 | AG45: 39.49773588 | AH45: 39.22098057 | AJ45: 60.578 | AK45: 0.2645429462 | AL45: 60.84254295 | AM45: 60.41622746 | AN45: 7.409 | AO45: 0.0323549587 | AP45: 7.441354959 | AQ45: 7.389214389 | AR45: 284.58 | AS45: 1.242755318 | AT45: 285.8227553 | AU45: 283.8200339 | AV45: 46.795 | AW45: 0.2043528536 | AX45: 46.99935285 | AY45: 46.67003473 | AZ45: 135.217 | BA45: 0.5904900055 | BB45: 135.80749 | BC45: 134.8559053 | BD45: 113.246 | BE45: 0.4945430764 | BF45: 113.7405431 | BG45: 112.9435784 | BH45: 647.825 | BI45: 2.829039158 | BJ45: 650.6540392 | BK45: 646.0949941 | BM45: 69.474 | BN45: 0.3033916049 | BO45: 69.7773916 | BP45: 69.28847084 | BQ45: 8.635 | BR45: 0.03770887682 | BS45: 8.672708877 | BT45: 8.611940377 | BU45: 304.408 | BV45: 1.329343807 | BW45: 305.7373438 | BX45: 303.5950835 | BY45: 52.349 | BZ45: 0.2286070635 | CA45: 52.57760706 | CB45: 52.20920287 | CC45: 139.039 | CD45: 0.6071806051 | CE45: 139.6461806 | CF45: 138.6676987 | CG45: 113.246 | CH45: 0.4945430764 | CI45: 113.7405431 | CJ45: 112.9435784 | CK45: 687.151 | CL45: 3.000775034 | CM45: 690.151775 | CN45: 685.3159747
A46: 2021-04-02 | B46: 10 | C46: On | D46: 23.023952 | E46: 0.006947643 | G46: 8.942 | H46: 0.001723600898 | I46: 8.943723601 | J46: 8.881585802 | K46: 1.226 | L46: 0.0002363156678 | M46: 1.226236316 | N46: 1.217716864 | O46: 19.034 | P46: 0.003668868206 | Q46: 19.03766887 | R46: 18.90540194 | S46: 5.064 | T46: 0.0009761032151 | U46: 5.064976103 | V46: 5.029786457 | W46: 3.784 | X46: 0.0007293788638 | Y46: 3.784729379 | Z46: 3.75843443 | AA46: 0 | AB46: 0 | AC46: 0 | AD46: 0 | AE46: 38.05 | AF46: 0.007334266852 | AG46: 38.05733427 | AH46: 37.79292549 | AJ46: 59.916 | AK46: 0.01154901269 | AL46: 59.92754901 | AM46: 59.5111938 | AN46: 7.099 | AO46: 0.001368356383 | AP46: 7.100368356 | AQ46: 7.051037532 | AR46: 285.291 | AS46: 0.0549908101 | AT46: 285.3459908 | AU46: 283.3635087 | AV46: 45.215 | AW46: 0.008715344959 | AX46: 45.22371534 | AY46: 44.90951712 | AZ46: 137.465 | BA46: 0.02649684606 | BB46: 137.4914968 | BC46: 136.536255 | BD46: 114.275 | BE46: 0.02202689473 | BF46: 114.2970269 | BG46: 113.502932 | BH46: 649.261 | BI46: 0.1251472649 | BJ46: 649.3861473 | BK46: 644.8744441 | BM46: 68.858 | BN46: 0.01327261358 | BO46: 68.87127261 | BP46: 68.3927796 | BQ46: 8.325 | BR46: 0.001604672051 | BS46: 8.326604672 | BT46: 8.268754395 | BU46: 304.325 | BV46: 0.05865967831 | BW46: 304.3836597 | BX46: 302.2689107 | BY46: 50.279 | BZ46: 0.009691448174 | CA46: 50.28869145 | CB46: 49.93930357 | CC46: 141.249 | CD46: 0.02722622493 | CE46: 141.2762262 | CF46: 140.2946894 | CG46: 114.275 | CH46: 0.02202689473 | CI46: 114.2970269 | CJ46: 113.502932 | CK46: 687.311 | CL46: 0.1324815318 | CM46: 687.4434815 | CN46: 682.6673696
A47: 2021-04-02 | B47: 11 | C47: On | D47: 21.463939 | E47: 0.00671777 | G47: 8.732 | H47: 0.03346512753 | I47: 8.765465128 | J47: 8.706580749 | K47: 1.114 | L47: 0.004269371515 | M47: 1.118269372 | N47: 1.110757095 | O47: 18.372 | P47: 0.07041013777 | Q47: 18.44241014 | R47: 18.31851827 | S47: 4.808 | T47: 0.01842651548 | U47: 4.826426515 | V47: 4.794003692 | W47: 3.694 | X47: 0.01415714396 | Y47: 3.708157144 | Z47: 3.683246597 | AA47: 0 | AB47: 0 | AC47: 0 | AD47: 0 | AE47: 36.72 | AF47: 0.1407282963 | AG47: 36.8607283 | AH47: 36.6131064 | AJ47: 60.369 | AK47: 0.2313623779 | AL47: 60.60036238 | AM47: 60.19326308 | AN47: 6.712 | AO47: 0.02572353825 | AP47: 6.737723538 | AQ47: 6.692461061 | AR47: 284.795 | AS47: 1.091468277 | AT47: 285.8864683 | AU47: 283.9659487 | AV47: 45.083 | AW47: 0.1727792424 | AX47: 45.25577924 | AY47: 44.95176133 | AZ47: 123.286 | BA47: 0.4724898892 | BB47: 123.7584899 | BC47: 122.9271088 | BD47: 115.405 | BE47: 0.4422861936 | BF47: 115.8472862 | BG47: 115.0690508 | BH47: 635.65 | BI47: 2.436109518 | BJ47: 638.0861095 | BK47: 633.7995938 | BM47: 69.101 | BN47: 0.2648275054 | BO47: 69.36582751 | BP47: 68.89984383 | BQ47: 7.826 | BR47: 0.02999290976 | BS47: 7.85599291 | BT47: 7.803218156 | BU47: 303.167 | BV47: 1.161878415 | BW47: 304.3288784 | BX47: 302.284467 | BY47: 49.891 | BZ47: 0.1912057579 | CA47: 50.08220576 | CB47: 49.74576502 | CC47: 126.98 | CD47: 0.4866470332 | CE47: 127.466647 | CF47: 126.6103554 | CG47: 115.405 | CH47: 0.4422861936 | CI47: 115.8472862 | CJ47: 115.0690508 | CK47: 672.37 | CL47: 2.576837815 | CM47: 674.9468378 | CN47: 670.4127002
A48: 2021-04-02 | B48: 12 | C48: On | D48: 19.323328 | E48: 0.006721029 | G48: 8.718 | H48: 0.06289420468 | I48: 8.780894205 | J48: 8.72187756 | K48: 1.084 | L48: 0.007820293402 | M48: 1.091820293 | N48: 1.084482138 | O48: 17.514 | P48: 0.1263511242 | Q48: 17.64035112 | R48: 17.52178981 | S48: 4.708 | T48: 0.03396489053 | U48: 4.741964891 | V48: 4.710094007 | W48: 3.678 | X48: 0.02653416894 | Y48: 3.704534169 | Z48: 3.679635887 | AA48: 0 | AB48: 0 | AC48: 0 | AD48: 0 | AE48: 35.702 | AF48: 0.2575646818 | AG48: 35.95956468 | AH48: 35.7178794 | AJ48: 59.625 | AK48: 0.4301522086 | AL48: 60.05515221 | AM48: 59.65151979 | AN48: 6.529 | AO48: 0.04710211773 | AP48: 6.576102118 | AQ48: 6.531903945 | AR48: 285.711 | AS48: 2.061202812 | AT48: 287.7722028 | AU48: 285.8380775 | AV48: 43.507 | AW48: 0.3138722371 | AX48: 43.82087224 | AY48: 43.52635088 | AZ48: 121.026 | BA48: 0.8731170012 | BB48: 121.899117 | BC48: 121.0798295 | BD48: 115.816 | BE48: 0.8355305356 | BF48: 116.6515305 | BG48: 115.8675122 | BH48: 632.214 | BI48: 4.560976912 | BJ48: 636.7749769 | BK48: 632.4951938 | BM48: 68.343 | BN48: 0.4930464132 | BO48: 68.83604641 | BP48: 68.37339735 | BQ48: 7.613 | BR48: 0.05492241113 | BS48: 7.667922411 | BT48: 7.616386082 | BU48: 303.225 | BV48: 2.187553936 | BW48: 305.4125539 | BX48: 303.3598673 | BY48: 48.215 | BZ48: 0.3478371276 | CA48: 48.56283713 | CB48: 48.23644489 | CC48: 124.704 | CD48: 0.8996511701 | CE48: 125.6036512 | CF48: 124.7594654 | CG48: 115.816 | CH48: 0.8355305356 | CI48: 116.6515305 | CJ48: 115.8675122 | CK48: 667.916 | CL48: 4.818541594 | CM48: 672.7345416 | CN48: 668.2130732
A49: 2021-04-02 | B49: 13 | C49: On | D49: 19.521873 | E49: 0.006959821 | G49: 8.416 | H49: 0.04545037814 | I49: 8.461450378 | J49: 8.402560198 | K49: 1.054 | L49: 0.005692098212 | M49: 1.059692098 | N49: 1.052316831 | O49: 17.534 | P49: 0.0946918881 | Q49: 17.62869189 | R49: 17.50599935 | S49: 4.676 | T49: 0.02525261029 | U49: 4.70125261 | V49: 4.668532734 | W49: 3.558 | X49: 0.01921488182 | Y49: 3.577214882 | Z49: 3.552318107 | AA49: 0 | AB49: 0 | AC49: 0 | AD49: 0 | AE49: 35.238 | AF49: 0.1903018566 | AG49: 35.42830186 | AH49: 35.18172722 | AJ49: 58.03 | AK49: 0.31338943 | AL49: 58.34338943 | AM49: 57.93732988 | AN49: 6.251 | AO49: 0.03375835477 | AP49: 6.284758355 | AQ49: 6.241017562 | AR49: 277.474 | AS49: 1.498490758 | AT49: 278.9724908 | AU49: 277.0308922 | AV49: 41.795 | AW49: 0.225712756 | AX49: 42.02071276 | AY49: 41.72825612 | AZ49: 113.022 | BA49: 0.6103722241 | BB49: 113.6323722 | BC49: 112.8415113 | BD49: 115.666 | BE49: 0.6246510738 | BF49: 116.2906511 | BG49: 115.481289 | BH49: 612.238 | BI49: 3.306374597 | BJ49: 615.5443746 | BK49: 611.2602959 | BM49: 66.446 | BN49: 0.3588398082 | BO49: 66.80483981 | BP49: 66.33989008 | BQ49: 7.305 | BR49: 0.03945045298 | BS49: 7.344450453 | BT49: 7.293334392 | BU49: 295.008 | BV49: 1.593182647 | BW49: 296.6011826 | BX49: 294.5368915 | BY49: 46.471 | BZ49: 0.2509653663 | CA49: 46.72196537 | CB49: 46.39678885 | CC49: 116.58 | CD49: 0.6295871059 | CE49: 117.2095871 | CF49: 116.3938294 | CG49: 115.666 | CH49: 0.6246510738 | CI49: 116.2906511 | CJ49: 115.481289 | CK49: 647.476 | CL49: 3.496676454 | CM49: 650.9726765 | CN49: 646.4420231
A50: 2021-04-02 | B50: 14 | C50: On | D50: 18.836928 | E50: 0.007383674 | G50: 8.16 | H50: 0.05414136807 | I50: 8.214141368 | J50: 8.153490826 | K50: 0.998 | L50: 0.006621701634 | M50: 1.004621702 | N50: 0.9972039025 | O50: 16.986 | P50: 0.1127016272 | Q50: 17.09870163 | R50: 16.97245039 | S50: 4.764 | T50: 0.03160900459 | U50: 4.795609005 | V50: 4.760199791 | W50: 3.536 | X50: 0.0234612595 | Y50: 3.559461259 | Z50: 3.533179358 | AA50: 0 | AB50: 0 | AC50: 0 | AD50: 0 | AE50: 34.444 | AF50: 0.228534961 | AG50: 34.67253496 | AH50: 34.41652427 | AJ50: 56.678 | AK50: 0.3760569191 | AL50: 57.05405692 | AM50: 56.63278836 | AN50: 6.102 | AO50: 0.04048659656 | AP50: 6.142486597 | AQ50: 6.097132478 | AR50: 275.392 | AS50: 1.827218093 | AT50: 277.2192181 | AU50: 275.1723218 | AV50: 40.056 | AW50: 0.2657704215 | AX50: 40.32177042 | AY50: 40.02404761 | AZ50: 123.299 | BA50: 0.8180853605 | BB50: 124.1170854 | BC50: 123.2006453 | BD50: 116.374 | BE50: 0.7721381823 | BF50: 117.1461382 | BG50: 116.2811693 | BH50: 617.901 | BI50: 4.099755573 | BJ50: 622.0007556 | BK50: 617.4081048 | BM50: 64.838 | BN50: 0.4301982871 | BO50: 65.26819829 | BP50: 64.78627919 | BQ50: 7.1 | BR50: 0.0471082982 | BS50: 7.147108298 | BT50: 7.09433638 | BU50: 292.378 | BV50: 1.93991972 | BW50: 294.3179197 | BX50: 292.1447721 | BY50: 44.82 | BZ50: 0.2973794261 | CA50: 45.11737943 | CB50: 44.7842474 | CC50: 126.835 | CD50: 0.84154662 | CE50: 127.6765466 | CF50: 126.7338246 | CG50: 116.374 | CH50: 0.7721381823 | CI50: 117.1461382 | CJ50: 116.2811693 | CK50: 652.345 | CL50: 4.328290534 | CM50: 656.6732905 | CN50: 651.824629
A51: 2021-04-02 | B51: 15 | C51: On | D51: 17.94468 | E51: 0.007475455 | G51: 7.956 | H51: 0.04534791873 | I51: 8.001347919 | J51: 7.941534202 | K51: 1.048 | L51: 0.005973431226 | M51: 1.053973431 | N51: 1.0460945 | O51: 16.522 | P51: 0.09417273923 | Q51: 16.61617274 | R51: 16.49195929 | S51: 4.548 | T51: 0.02592286757 | U51: 4.573922868 | V51: 4.539730713 | W51: 3.536 | X51: 0.02015463055 | Y51: 3.556154631 | Z51: 3.529570757 | AA51: 0 | AB51: 0 | AC51: 0 | AD51: 0 | AE51: 33.61 | AF51: 0.1915715873 | AG51: 33.80157159 | AH51: 33.54888946 | AJ51: 55.548 | AK51: 0.3166146543 | AL51: 55.86461465 | AM51: 55.44700124 | AN51: 5.888 | AO51: 0.03356065177 | AP51: 5.921560652 | AQ51: 5.877294292 | AR51: 272.977 | AS51: 1.555924939 | AT51: 274.5329249 | AU51: 272.4806664 | AV51: 40.165 | AW51: 0.2289340317 | AX51: 40.39393403 | AY51: 40.091971 | AZ51: 131.181 | BA51: 0.7477105741 | BB51: 131.9287106 | BC51: 130.9424834 | BD51: 115.903 | BE51: 0.6606284345 | BF51: 116.5636284 | BG51: 115.6922623 | BH51: 621.662 | BI51: 3.543373285 | BJ51: 625.2053733 | BK51: 620.5316787 | BM51: 63.504 | BN51: 0.3619625731 | BO51: 63.86596257 | BP51: 63.38853544 | BQ51: 6.936 | BR51: 0.039534083 | BS51: 6.975534083 | BT51: 6.923388792 | BU51: 289.499 | BV51: 1.650097678 | BW51: 291.1490977 | BX51: 288.9726257 | BY51: 44.713 | BZ51: 0.2548568992 | CA51: 44.9678569 | CB51: 44.63170171 | CC51: 134.717 | CD51: 0.7678652046 | CE51: 135.4848652 | CF51: 134.4720542 | CG51: 115.903 | CH51: 0.6606284345 | CI51: 116.5636284 | CJ51: 115.6922623 | CK51: 655.272 | CL51: 3.734944872 | CM51: 659.0069449 | CN51: 654.0805681
A52: 2021-04-02 | B52: 16 | C52: On | D52: 16.439879 | E52: 0.007461712 | G52: 7.758 | H52: 0.04614521293 | I52: 7.804145213 | J52: 7.745912929 | K52: 1.012 | L52: 0.006019458041 | M52: 1.018019458 | N52: 1.01042329 | O52: 15.854 | P52: 0.09430087726 | Q52: 15.94830088 | R52: 15.82929925 | S52: 4.636 | T52: 0.02757530383 | U52: 4.663575304 | V52: 4.628777048 | W52: 3.528 | X52: 0.02098483001 | Y52: 3.54898483 | Z52: 3.522503327 | AA52: 0 | AB52: 0 | AC52: 0 | AD52: 0 | AE52: 32.788 | AF52: 0.1950256821 | AG52: 32.98302568 | AH52: 32.73691584 | AJ52: 53.822 | AK52: 0.3201376193 | AL52: 54.14213762 | AM52: 53.73814458 | AN52: 5.736 | AO52: 0.03411819301 | AP52: 5.770118193 | AQ52: 5.727063233 | AR52: 270.386 | AS52: 1.608277848 | AT52: 271.9942778 | AU52: 269.9647349 | AV52: 39.893 | AW52: 0.2372867981 | AX52: 40.1302868 | AY52: 39.83084616 | AZ52: 117.691 | BA52: 0.700035609 | BB52: 118.3910356 | BC52: 117.5076358 | BD52: 114.281 | BE52: 0.6797526526 | BF52: 114.9607527 | BG52: 114.1029486 | BH52: 601.809 | BI52: 3.57960872 | BJ52: 605.3886087 | BK52: 600.8713733 | BM52: 61.58 | BN52: 0.3662828322 | BO52: 61.94628283 | BP52: 61.48405751 | BQ52: 6.748 | BR52: 0.04013765105 | BS52: 6.788137651 | BT52: 6.737486523 | BU52: 286.24 | BV52: 1.702578725 | BW52: 287.9425787 | BX52: 285.7940341 | BY52: 44.529 | BZ52: 0.2648621019 | CA52: 44.7938621 | CB52: 44.4596232 | CC52: 121.219 | CD52: 0.721020439 | CE52: 121.9400204 | CF52: 121.0301391 | CG52: 114.281 | CH52: 0.6797526526 | CI52: 114.9607527 | CJ52: 114.1029486 | CK52: 634.597 | CL52: 3.774634402 | CM52: 638.3716344 | CN52: 633.6082891
A53: 2021-04-02 | B53: 17 | C53: On | D53: 16.40626 | E53: 0.007472966 | G53: 7.456 | H53: 0.01907357714 | I53: 7.475073577 | J53: 7.419212606 | K53: 0.924 | L53: 0.002363731931 | M53: 0.9263637319 | N53: 0.9194410473 | O53: 15.65 | P53: 0.04003507004 | Q53: 15.69003507 | R53: 15.57278397 | S53: 4.534 | T53: 0.01159865863 | U53: 4.545598659 | V53: 4.511629554 | W53: 3.546 | X53: 0.009071205006 | Y53: 3.555071205 | Z53: 3.528504279 | AA53: 0 | AB53: 0 | AC53: 0 | AD53: 0 | AE53: 32.11 | AF53: 0.08214224274 | AG53: 32.19214224 | AH53: 31.95157146 | AJ53: 51.999 | AK53: 0.1330213167 | AL53: 52.13202132 | AM53: 51.74244049 | AN53: 5.606 | AO53: 0.01434099697 | AP53: 5.620340997 | AQ53: 5.57834038 | AR53: 267.834 | AS53: 0.6851599328 | AT53: 268.5191599 | AU53: 266.5125254 | AV53: 38.163 | AW53: 0.0976267334 | AX53: 38.26062673 | AY53: 37.97470637 | AZ53: 135.492 | BA53: 0.3466090549 | BB53: 135.8386091 | BC53: 134.8234917 | BD53: 113.409 | BE53: 0.2901173967 | BF53: 113.6991174 | BG53: 112.8494478 | BH53: 612.503 | BI53: 1.566875431 | BJ53: 614.0698754 | BK53: 609.4809521 | BM53: 59.455 | BN53: 0.1520948939 | BO53: 59.60709489 | BP53: 59.1616531 | BQ53: 6.53 | BR53: 0.0167047289 | BS53: 6.546704729 | BT53: 6.497781427 | BU53: 283.484 | BV53: 0.7251950028 | BW53: 284.209195 | BX53: 282.0853094 | BY53: 42.697 | BZ53: 0.109225392 | CA53: 42.80622539 | CB53: 42.48633593 | CC53: 139.038 | CD53: 0.3556802599 | CE53: 139.3936803 | CF53: 138.351996 | CG53: 113.409 | CH53: 0.2901173967 | CI53: 113.6991174 | CJ53: 112.8494478 | CK53: 644.613 | CL53: 1.649017674 | CM53: 646.2620177 | CN53: 641.4325236
A54: 2021-04-02 | B54: 18 | C54: On | D54: 16.712883 | E54: 0.007534762 | G54: 7.316 | H54: 0.07722644154 | I54: 7.393226442 | J54: 7.33752024 | K54: 0.856 | L54: 0.009035789223 | M54: 0.8650357892 | N54: 0.8585179504 | O54: 15.522 | P54: 0.1638475705 | Q54: 15.68584757 | R54: 15.56765844 | S54: 4.5 | T54: 0.04750122839 | U54: 4.547501228 | V54: 4.513236889 | W54: 3.568 | X54: 0.0376631962 | Y54: 3.605663196 | Z54: 3.578495382 | AA54: 0 | AB54: 0 | AC54: 0 | AD54: 0 | AE54: 31.762 | AF54: 0.3352742258 | AG54: 32.09727423 | AH54: 31.8554289 | AJ54: 51.266 | AK54: 0.5411551055 | AL54: 51.80715511 | AM54: 51.41680052 | AN54: 5.309 | AO54: 0.05604089367 | AP54: 5.365040894 | AQ54: 5.324616587 | AR54: 263.363 | AS54: 2.78001467 | AT54: 266.1430147 | AU54: 264.1376904 | AV54: 37.395 | AW54: 0.3947352079 | AX54: 37.78973521 | AY54: 37.50499855 | AZ54: 133.92 | BA54: 1.413636557 | BB54: 135.3336366 | BC54: 134.3139298 | BD54: 112.115 | BE54: 1.183466716 | BF54: 113.2984667 | BG54: 112.4447897 | BH54: 603.368 | BI54: 6.369049149 | BJ54: 609.7370491 | BK54: 605.1428256 | BM54: 58.582 | BN54: 0.618381547 | BO54: 59.20038155 | BP54: 58.75432076 | BQ54: 6.165 | BR54: 0.0650766829 | BS54: 6.230076683 | BT54: 6.183134538 | BU54: 278.885 | BV54: 2.94386224 | BW54: 281.8288622 | BX54: 279.7053488 | BY54: 41.895 | BZ54: 0.4422364363 | CA54: 42.33723644 | CB54: 42.01823544 | CC54: 137.488 | CD54: 1.451299753 | CE54: 138.9392998 | CF54: 137.8924252 | CG54: 112.115 | CH54: 1.183466716 | CI54: 113.2984667 | CJ54: 112.4447897 | CK54: 635.13 | CL54: 6.704323375 | CM54: 641.8343234 | CN54: 636.9982545
A55: 2021-04-02 | B55: 19 | C55: On | D55: 17.399132 | E55: 0.008599981 | G55: 7.218 | H55: 0.06004888323 | I55: 7.278048883 | J55: 7.215457801 | K55: 0.87 | L55: 0.007237812193 | M55: 0.8772378122 | N55: 0.8696935837 | O55: 15.82 | P55: 0.1316117114 | Q55: 15.95161171 | R55: 15.81442815 | S55: 4.032 | T55: 0.03354351582 | U55: 4.065543516 | V55: 4.030579919 | W55: 3.558 | X55: 0.02960015607 | Y55: 3.587600156 | Z55: 3.556746863 | AA55: 0 | AB55: 0 | AC55: 0 | AD55: 0 | AE55: 31.498 | AF55: 0.2620420787 | AG55: 31.76004208 | AH55: 31.48690632 | AJ55: 50.568 | AK55: 0.4206915943 | AL55: 50.98869159 | AM55: 50.55018982 | AN55: 4.826 | AO55: 0.04014905936 | AP55: 4.866149059 | AQ55: 4.82430027 | AR55: 260.037 | AS55: 2.163332149 | AT55: 262.2003321 | AU55: 259.9454143 | AV55: 35.438 | AW55: 0.2948202167 | AX55: 35.73282022 | AY55: 35.42551864 | AZ55: 130.818 | BA55: 1.088317374 | BB55: 131.9063174 | BC55: 130.7719256 | BD55: 109.866 | BE55: 0.9140108902 | BF55: 110.7800109 | BG55: 109.8273049 | BH55: 591.553 | BI55: 4.921321283 | BJ55: 596.4743213 | BK55: 591.3446535 | BM55: 57.786 | BN55: 0.4807404775 | BO55: 58.26674048 | BP55: 57.76564762 | BQ55: 5.696 | BR55: 0.04738687156 | BS55: 5.743386872 | BT55: 5.693993854 | BU55: 275.857 | BV55: 2.29494386 | BW55: 278.1519439 | BX55: 275.7598424 | BY55: 39.47 | BZ55: 0.3283637325 | CA55: 39.79836373 | CB55: 39.45609856 | CC55: 134.376 | CD55: 1.11791753 | CE55: 135.4939175 | CF55: 134.3286724 | CG55: 109.866 | CH55: 0.9140108902 | CI55: 110.7800109 | CJ55: 109.8273049 | CK55: 623.051 | CL55: 5.183363362 | CM55: 628.2343634 | CN55: 622.8315598
A56: 2021-04-02 | B56: 20 | C56: On | D56: 19.836248 | E56: 0.008851244 | G56: 7.196 | H56: 0.01357238261 | I56: 7.209572383 | J56: 7.145758698 | K56: 0.854 | L56: 0.001610730232 | M56: 0.8556107302 | N56: 0.8480375109 | O56: 16.598 | P56: 0.03130550398 | Q56: 16.6293055 | R56: 16.48211546 | S56: 4.114 | T56: 0.00775941941 | U56: 4.121759419 | V56: 4.085276721 | W56: 3.58 | X56: 0.00675224149 | Y56: 3.586752241 | Z56: 3.555005022 | AA56: 0 | AB56: 0 | AC56: 0 | AD56: 0 | AE56: 32.342 | AF56: 0.06100027773 | AG56: 32.40300028 | AH56: 32.11619342 | AJ56: 50.663 | AK56: 0.09555553368 | AL56: 50.75855553 | AM56: 50.30927917 | AN56: 4.981 | AO56: 0.009394668955 | AP56: 4.990394669 | AQ56: 4.946223468 | AR56: 256.867 | AS56: 0.4844770991 | AT56: 257.3514771 | AU56: 255.0735964 | AV56: 35.894 | AW56: 0.06769970839 | AX56: 35.96169971 | AY56: 35.64339393 | AZ56: 131.934 | BA56: 0.248840846 | BB56: 132.1828408 | BC56: 131.0128583 | BD56: 109.003 | BE56: 0.2055906646 | BF56: 109.2085907 | BG56: 108.2419588 | BH56: 589.342 | BI56: 1.111558521 | BJ56: 590.4535585 | BK56: 585.22731 | BM56: 57.859 | BN56: 0.1091279163 | BO56: 57.96812792 | BP56: 57.45503787 | BQ56: 5.835 | BR56: 0.01100539919 | BS56: 5.846005399 | BT56: 5.794260979 | BU56: 273.465 | BV56: 0.5157826031 | BW56: 273.9807826 | BX56: 271.5557118 | BY56: 40.008 | BZ56: 0.0754591278 | CA56: 40.08345913 | CB56: 39.72867065 | CC56: 135.514 | CD56: 0.2555930875 | CE56: 135.7695931 | CF56: 134.5678633 | CG56: 109.003 | CH56: 0.2055906646 | CI56: 109.2085907 | CJ56: 108.2419588 | CK56: 621.684 | CL56: 1.172558798 | CM56: 622.8565588 | CN56: 617.3435034
A57: 2021-04-02 | B57: 21 | C57: On | D57: 25.230388 | E57: 0.008552715 | G57: 7.236 | H57: 0.0705752645 | I57: 7.306575265 | J57: 7.244084209 | K57: 0.956 | L57: 0.009324205758 | M57: 0.9653242058 | N57: 0.9570680629 | O57: 17.278 | P57: 0.1685184384 | Q57: 17.44651844 | R57: 17.29730334 | S57: 4.194 | T57: 0.04090556375 | U57: 4.234905564 | V57: 4.198685623 | W57: 3.65 | X57: 0.03559973956 | Y57: 3.68559974 | Z57: 3.654077855 | AA57: 0 | AB57: 0 | AC57: 0 | AD57: 0 | AE57: 33.314 | AF57: 0.3249232119 | AG57: 33.63892321 | AH57: 33.35121909 | AJ57: 50.703 | AK57: 0.4945242725 | AL57: 51.19752427 | AM57: 50.75964644 | AN57: 5.059 | AO57: 0.04934221436 | AP57: 5.108342214 | AQ57: 5.064652019 | AR57: 256.054 | AS57: 2.497385127 | AT57: 258.5513851 | AU57: 256.3400688 | AV57: 35.518 | AW57: 0.3464196026 | AX57: 35.8644196 | AY57: 35.55768144 | AZ57: 133.715 | BA57: 1.304169637 | BB57: 135.0191696 | BC57: 133.8643892 | BD57: 108.484 | BE57: 1.05808278 | BF57: 109.5420828 | BG57: 108.6052006 | BH57: 589.533 | BI57: 5.749923633 | BJ57: 595.2829236 | BK57: 590.1916384 | BM57: 57.939 | BN57: 0.565099537 | BO57: 58.50409954 | BP57: 58.00373065 | BQ57: 6.015 | BR57: 0.05866642012 | BS57: 6.07366642 | BT57: 6.021720082 | BU57: 273.332 | BV57: 2.665903565 | BW57: 275.9979036 | BX57: 273.6373722 | BY57: 39.712 | BZ57: 0.3873251664 | CA57: 40.09932517 | CB57: 39.75636707 | CC57: 137.365 | CD57: 1.339769377 | CE57: 138.7047694 | CF57: 137.518467 | CG57: 108.484 | CH57: 1.05808278 | CI57: 109.5420828 | CJ57: 108.6052006 | CK57: 622.847 | CL57: 6.074846845 | CM57: 628.9218468 | CN57: 623.5428575
A58: 2021-04-02 | B58: 22 | C58: On | D58: 20.133345 | E58: 0.008632212 | G58: 7.072 | H58: 0.08802276138 | I58: 7.160022761 | J58: 7.098215927 | K58: 0.962 | L58: 0.01197368445 | M58: 0.9739736845 | N58: 0.9655661371 | O58: 17.33 | P58: 0.2157005733 | Q58: 17.54570057 | R58: 17.39424237 | S58: 4.25 | T58: 0.0528982941 | U58: 4.302898294 | V58: 4.265754764 | W58: 3.632 | X58: 0.0452062598 | Y58: 3.67720626 | Z58: 3.645463836 | AA58: 0 | AB58: 0 | AC58: 0 | AD58: 0 | AE58: 33.246 | AF58: 0.4138015731 | AG58: 33.65980157 | AH58: 33.36924303 | AJ58: 48.893 | AK58: 0.6085544219 | AL58: 49.50155442 | AM58: 49.07424651 | AN58: 5.003 | AO58: 0.06227062714 | AP58: 5.065270627 | AQ58: 5.021546137 | AR58: 254.037 | AS58: 3.161911515 | AT58: 257.1989115 | AU58: 254.978716 | AV58: 35.279 | AW58: 0.4391056276 | AX58: 35.71810563 | AY58: 35.40977937 | AZ58: 136.904 | BA58: 1.703997189 | BB58: 138.6079972 | BC58: 137.4115036 | BD58: 107.391 | BE58: 1.336658989 | BF58: 108.727659 | BG58: 107.7890988 | BH58: 587.507 | BI58: 7.312498369 | BJ58: 594.8194984 | BK58: 589.6848904 | BM58: 55.965 | BN58: 0.6965771833 | BO58: 56.66157718 | BP58: 56.17246244 | BQ58: 5.965 | BR58: 0.0742443116 | BS58: 6.039244312 | BT58: 5.987112274 | BU58: 271.367 | BV58: 3.377612088 | BW58: 274.7446121 | BX58: 272.3729584 | BY58: 39.529 | BZ58: 0.4920039217 | CA58: 40.02100392 | CB58: 39.67553413 | CC58: 140.536 | CD58: 1.749203449 | CE58: 142.2852034 | CF58: 141.0569674 | CG58: 107.391 | CH58: 1.336658989 | CI58: 108.727659 | CJ58: 107.7890988 | CK58: 620.753 | CL58: 7.726299942 | CM58: 628.4792999 | CN58: 623.0541334
A59: 2021-04-02 | B59: 23 | C59: On | D59: 25.918568 | E59: 0.0089525 | G59: 7.08 | H59: 0.1224904919 | I59: 7.202490492 | J59: 7.138010196 | K59: 0.864 | L59: 0.01494799223 | M59: 0.8789479922 | N59: 0.8710792103 | O59: 17.252 | P59: 0.298475419 | Q59: 17.55047542 | R59: 17.39335479 | S59: 4.246 | T59: 0.0734596933 | U59: 4.319459693 | V59: 4.28078973 | W59: 3.638 | X59: 0.06294073581 | Y59: 3.700940736 | Z59: 3.667808064 | AA59: 0 | AB59: 0 | AC59: 0 | AD59: 0 | AE59: 33.08 | AF59: 0.5723143322 | AG59: 33.65231433 | AH59: 33.35104199 | AJ59: 48.069 | AK59: 0.8316377761 | AL59: 48.90063778 | AM59: 48.46285482 | AN59: 4.95 | AO59: 0.08563953883 | AP59: 5.035639539 | AQ59: 4.990557976 | AR59: 248.62 | AS59: 4.301353968 | AT59: 252.921354 | AU59: 250.6570755 | AV59: 35.136 | AW59: 0.6078850174 | AX59: 35.74388502 | AY59: 35.42388789 | AZ59: 136.895 | BA59: 2.368409024 | BB59: 139.263409 | BC59: 138.0166534 | BD59: 105.905 | BE59: 1.832253608 | BF59: 107.7372536 | BG59: 106.7727358 | BH59: 579.575 | BI59: 10.02717893 | BJ59: 589.6021789 | BK59: 584.3237654 | BM59: 55.149 | BN59: 0.954128268 | BO59: 56.10312827 | BP59: 55.60086501 | BQ59: 5.814 | BR59: 0.1005875311 | BS59: 5.914587531 | BT59: 5.861637186 | BU59: 265.872 | BV59: 4.599829387 | BW59: 270.4718294 | BX59: 268.0504303 | BY59: 39.382 | BZ59: 0.6813447107 | CA59: 40.06334471 | CB59: 39.70467762 | CC59: 140.533 | CD59: 2.43134976 | CE59: 142.9643498 | CF59: 141.6844614 | CG59: 105.905 | CH59: 1.832253608 | CI59: 107.7372536 | CJ59: 106.7727358 | CK59: 612.655 | CL59: 10.59949326 | CM59: 623.2544933 | CN59: 617.6748074
A60: 2021-04-02 | B60: 24 | C60: Off | D60: 19.292246 | E60: 0.009282858 | G60: 7.15 | H60: 0.1002600129 | I60: 7.250260013 | J60: 7.182956879 | K60: 0.876 | L60: 0.01228360438 | M60: 0.8882836044 | N60: 0.8800377938 | O60: 17.13 | P60: 0.2402033596 | Q60: 17.37020336 | R60: 17.20895823 | S60: 4.252 | T60: 0.05962315732 | U60: 4.311623157 | V60: 4.271598972 | W60: 3.716 | X60: 0.05210716194 | Y60: 3.768107162 | Z60: 3.733128358 | AA60: 0 | AB60: 0 | AC60: 0 | AD60: 0 | AE60: 33.124 | AF60: 0.4644772961 | AG60: 33.5884773 | AH60: 33.27668023 | AJ60: 47.013 | AK60: 0.6592341239 | AL60: 47.67223412 | AM60: 47.22969954 | AN60: 5.012 | AO60: 0.07028016568 | AP60: 5.082280166 | AQ60: 5.035102081 | AR60: 245.447 | AS60: 3.441750963 | AT60: 248.888751 | AU60: 246.578352 | AV60: 33.777 | AW60: 0.4736339098 | AX60: 34.25063391 | AY60: 33.93269014 | AZ60: 141.058 | BA60: 1.977968797 | BB60: 143.0359688 | BC60: 141.7081862 | BD60: 105.225 | BE60: 1.475504875 | BF60: 106.7005049 | BG60: 105.7100192 | BH60: 577.532 | BI60: 8.098372834 | BJ60: 585.6303728 | BK60: 580.1940492 | BM60: 54.163 | BN60: 0.7594941368 | BO60: 54.92249414 | BP60: 54.41265642 | BQ60: 5.888 | BR60: 0.08256377005 | BS60: 5.97056377 | BT60: 5.915139874 | BU60: 262.577 | BV60: 3.681954322 | BW60: 266.2589543 | BX60: 263.7873103 | BY60: 38.029 | BZ60: 0.5332570672 | CA60: 38.56225707 | CB60: 38.20428911 | CC60: 144.774 | CD60: 2.030075959 | CE60: 146.804076 | CF60: 145.4413146 | CG60: 105.225 | CH60: 1.475504875 | CI60: 106.7005049 | CJ60: 105.7100192 | CK60: 610.656 | CL60: 8.56285013 | CM60: 619.2188501 | CN60: 613.4707295
A61: 2021-04-03 | B61: 1 | C61: Off | D61: 20.993017 | E61: 0.009385626 | G61: 6.976 | H61: 0.09496105129 | I61: 7.070961051 | J61: 7.004595655 | K61: 0.904 | L61: 0.01230573256 | M61: 0.9163057326 | N61: 0.9077056297 | O61: 17.034 | P61: 0.2318759386 | Q61: 17.26587594 | R61: 17.10382488 | S61: 4.234 | T61: 0.05763547752 | U61: 4.291635478 | V61: 4.251355792 | W61: 3.756 | X61: 0.0511286853 | Y61: 3.807128685 | Z61: 3.771396399 | AA61: 0 | AB61: 0 | AC61: 0 | AD61: 0 | AE61: 32.904 | AF61: 0.4479068853 | AG61: 33.35190689 | AH61: 33.03887836 | AJ61: 45.979 | AK61: 0.6258907937 | AL61: 46.60489079 | AM61: 46.16747472 | AN61: 4.819 | AO61: 0.06559881109 | AP61: 4.884598811 | AQ61: 4.838753793 | AR61: 241.681 | AS61: 3.289891318 | AT61: 244.9708913 | AU61: 242.6716862 | AV61: 33.67 | AW61: 0.4583340879 | AX61: 34.12833409 | AY61: 33.80801831 | AZ61: 136.716 | BA61: 1.861051475 | BB61: 138.5770515 | BC61: 137.2764191 | BD61: 105.125 | BE61: 1.431017849 | BF61: 106.5560178 | BG61: 105.5559229 | BH61: 567.99 | BI61: 7.731784335 | BJ61: 575.7217843 | BK61: 570.318275 | BM61: 52.955 | BN61: 0.720851845 | BO61: 53.67585185 | BP61: 53.17207037 | BQ61: 5.723 | BR61: 0.07790454365 | BS61: 5.800904544 | BT61: 5.746459423 | BU61: 258.715 | BV61: 3.521767257 | BW61: 262.2367673 | BX61: 259.775511 | BY61: 37.904 | BZ61: 0.5159695654 | CA61: 38.41996957 | CB61: 38.0593741 | CC61: 140.472 | CD61: 1.91218016 | CE61: 142.3841802 | CF61: 141.0478155 | CG61: 105.125 | CH61: 1.431017849 | CI61: 106.5560178 | CJ61: 105.5559229 | CK61: 600.894 | CL61: 8.17969122 | CM61: 609.0736912 | CN61: 603.3571533
A62: 2021-04-03 | B62: 2 | C62: Off | D62: 24.681307 | E62: 0.009262301 | G62: 7.02 | H62: 0.08963171677 | I62: 7.109631717 | J62: 7.043780168 | K62: 0.93 | L62: 0.01187428726 | M62: 0.9418742873 | N62: 0.9331503641 | O62: 17.04 | P62: 0.217567586 | Q62: 17.25756759 | R62: 17.0977228 | S62: 4.116 | T62: 0.05255329718 | U62: 4.168553297 | V62: 4.129942902 | W62: 3.762 | X62: 0.04803340719 | Y62: 3.810033407 | Z62: 3.774743731 | AA62: 0 | AB62: 0 | AC62: 0 | AD62: 0 | AE62: 32.868 | AF62: 0.4196602944 | AG62: 33.28766029 | AH62: 32.97933997 | AJ62: 46.436 | AK62: 0.592897208 | AL62: 47.02889721 | AM62: 46.59330141 | AN62: 4.783 | AO62: 0.06106958708 | AP62: 4.844069587 | AQ62: 4.799202357 | AR62: 240.942 | AS62: 3.076359701 | AT62: 244.0183597 | AU62: 241.7581882 | AV62: 34.084 | AW62: 0.4351862442 | AX62: 34.51918624 | AY62: 34.19945915 | AZ62: 125.06 | BA62: 1.596772436 | BB62: 126.6567724 | BC62: 125.4836393 | BD62: 104.615 | BE62: 1.335729637 | BF62: 105.9507296 | BG62: 104.9693821 | BH62: 555.92 | BI62: 7.098014813 | BJ62: 563.0180148 | BK62: 557.8031725 | BM62: 53.456 | BN62: 0.6825289247 | BO62: 54.13852892 | BP62: 53.63708157 | BQ62: 5.713 | BR62: 0.07294387435 | BS62: 5.785943874 | BT62: 5.732352721 | BU62: 257.982 | BV62: 3.293927287 | BW62: 261.2759273 | BX62: 258.855911 | BY62: 38.2 | BZ62: 0.4877395414 | CA62: 38.68773954 | CB62: 38.32940205 | CC62: 128.822 | CD62: 1.644805843 | CE62: 130.4668058 | CF62: 129.258383 | CG62: 104.615 | CH62: 1.335729637 | CI62: 105.9507296 | CJ62: 104.9693821 | CK62: 588.788 | CL62: 7.517675107 | CM62: 596.3056751 | CN62: 590.7825125
A63: 2021-04-03 | B63: 3 | C63: Off | D63: 21.758022 | E63: 0.009281744 | G63: 7.068 | H63: 0.1102301665 | I63: 7.178230167 | J63: 7.111603672 | K63: 0.974 | L63: 0.01519017858 | M63: 0.9891901786 | N63: 0.9800087686 | O63: 17.088 | P63: 0.2664987387 | Q63: 17.35449874 | R63: 17.19341872 | S63: 3.988 | T63: 0.06219551557 | U63: 4.050195516 | V63: 4.012602638 | W63: 3.83 | X63: 0.05973140036 | Y63: 3.8897314 | Z63: 3.853627909 | AA63: 0 | AB63: 0 | AC63: 0 | AD63: 0 | AE63: 32.948 | AF63: 0.5138459998 | AG63: 33.461846 | AH63: 33.15126171 | AJ63: 46.765 | AK63: 0.7293313154 | AL63: 47.49433132 | AM63: 47.05350109 | AN63: 4.732 | AO63: 0.07379869099 | AP63: 4.805798691 | AQ63: 4.761192498 | AR63: 239.88 | AS63: 3.741088334 | AT63: 243.6210883 | AU63: 241.3598598 | AV63: 34.628 | AW63: 0.5400467185 | AX63: 35.16804672 | AY63: 34.84162591 | AZ63: 130.945 | BA63: 2.04217447 | BB63: 132.9871745 | BC63: 131.7528216 | BD63: 104.065 | BE63: 1.622962971 | BF63: 105.687963 | BG63: 104.7069944 | BH63: 561.015 | BI63: 8.749402499 | BJ63: 569.7644025 | BK63: 564.4759952 | BM63: 53.833 | BN63: 0.8395614819 | BO63: 54.67256148 | BP63: 54.16510476 | BQ63: 5.706 | BR63: 0.08898886957 | BS63: 5.79498887 | BT63: 5.741201266 | BU63: 256.968 | BV63: 4.007587073 | BW63: 260.9755871 | BX63: 258.5532785 | BY63: 38.616 | BZ63: 0.602242234 | CA63: 39.21824223 | CB63: 38.85422855 | CC63: 134.775 | CD63: 2.10190587 | CE63: 136.8769059 | CF63: 135.6064495 | CG63: 104.065 | CH63: 1.622962971 | CI63: 105.687963 | CJ63: 104.7069944 | CK63: 593.963 | CL63: 9.263248499 | CM63: 603.2262485 | CN63: 597.6272569
A64: 2021-04-03 | B64: 4 | C64: Off | D64: 27.547819 | E64: 0.009506148 | G64: 7.144 | H64: 0.1085009366 | I64: 7.252500937 | J64: 7.183557589 | K64: 0.984 | L64: 0.01494469787 | M64: 0.9989446979 | N64: 0.9894485817 | O64: 17.214 | P64: 0.2614410865 | Q64: 17.47544109 | R64: 17.30931696 | S64: 3.996 | T64: 0.06069005354 | U64: 4.056690054 | V64: 4.018126557 | W64: 3.788 | X64: 0.05753101171 | Y64: 3.845531012 | Z64: 3.808974825 | AA64: 0 | AB64: 0 | AC64: 0 | AD64: 0 | AE64: 33.126 | AF64: 0.5031077862 | AG64: 33.62910779 | AH64: 33.30942451 | AJ64: 47.17 | AK64: 0.7164038602 | AL64: 47.88640386 | AM64: 47.43118862 | AN64: 4.894 | AO64: 0.07432860911 | AP64: 4.968328609 | AQ64: 4.921098942 | AR64: 240.026 | AS64: 3.645443141 | AT64: 243.6714431 | AU64: 241.3550663 | AV64: 35.486 | AW64: 0.5389507607 | AX64: 36.02495076 | AY64: 35.68249225 | AZ64: 134.088 | BA64: 2.036488463 | BB64: 136.1244885 | BC64: 134.8304689 | BD64: 103.699 | BE64: 1.574949415 | BF64: 105.2739494 | BG64: 104.2731997 | BH64: 565.363 | BI64: 8.586564249 | BJ64: 573.9495642 | BK64: 568.4935147 | BM64: 54.314 | BN64: 0.8249047967 | BO64: 55.1389048 | BP64: 54.61474621 | BQ64: 5.878 | BR64: 0.08927330698 | BS64: 5.967273307 | BT64: 5.910547524 | BU64: 257.24 | BV64: 3.906884227 | BW64: 261.1468842 | BX64: 258.6643833 | BY64: 39.482 | BZ64: 0.5996408143 | CA64: 40.08164081 | CB64: 39.7006188 | CC64: 137.876 | CD64: 2.094019475 | CE64: 139.9700195 | CF64: 138.6394438 | CG64: 103.699 | CH64: 1.574949415 | CI64: 105.2739494 | CJ64: 104.2731997 | CK64: 598.489 | CL64: 9.089672035 | CM64: 607.578672 | CN64: 601.8029393
A65: 2021-04-03 | B65: 5 | C65: Off | D65: 25.328246 | E65: 0.009659089 | G65: 7.14 | H65: 0.1184217372 | I65: 7.258421737 | J65: 7.188311996 | K65: 0.98 | L65: 0.01625396393 | M65: 0.9962539639 | N65: 0.9866310582 | O65: 16.62 | P65: 0.2756539596 | Q65: 16.89565396 | R65: 16.73245733 | S65: 4.044 | T65: 0.06707247971 | U65: 4.11107248 | V65: 4.071363265 | W65: 3.782 | X65: 0.06272703221 | Y65: 3.844727032 | Z65: 3.807590472 | AA65: 0 | AB65: 0 | AC65: 0 | AD65: 0 | AE65: 32.566 | AF65: 0.5401291727 | AG65: 33.10612917 | AH65: 32.78635412 | AJ65: 47.812 | AK65: 0.7929944115 | AL65: 48.60499441 | AM65: 48.13551444 | AN65: 4.894 | AO65: 0.08117030557 | AP65: 4.975170306 | AQ65: 4.927114693 | AR65: 241.72 | AS65: 4.009089959 | AT65: 245.72909 | AU65: 243.3555708 | AV65: 36.808 | AW65: 0.6104856165 | AX65: 37.41848562 | AY65: 37.05705713 | AZ65: 142.861 | BA65: 2.36944647 | BB65: 145.2304465 | BC65: 143.8276527 | BD65: 105.528 | BE65: 1.750253373 | BF65: 107.2782534 | BG65: 106.2420432 | BH65: 579.623 | BI65: 9.613440136 | BJ65: 589.2364401 | BK65: 583.5449529 | BM65: 54.952 | BN65: 0.9114161486 | BO65: 55.86341615 | BP65: 55.32382644 | BQ65: 5.874 | BR65: 0.09742426949 | BS65: 5.971424269 | BT65: 5.913745751 | BU65: 258.34 | BV65: 4.284743919 | BW65: 262.6247439 | BX65: 260.0880281 | BY65: 40.852 | BZ65: 0.6775580962 | CA65: 41.5295581 | CB65: 41.1284204 | CC65: 146.643 | CD65: 2.432173502 | CE65: 149.0751735 | CF65: 147.6352431 | CG65: 105.528 | CH65: 1.750253373 | CI65: 107.2782534 | CJ65: 106.2420432 | CK65: 612.189 | CL65: 10.15356931 | CM65: 622.3425693 | CN65: 616.331307
A66: 2021-04-03 | B66: 6 | C66: Off | D66: 23.002138 | E66: 0.009921512 | G66: 7.24 | H66: 0.1083210093 | I66: 7.348321009 | J66: 7.275414554 | K66: 0.99 | L66: 0.01481185072 | M66: 1.004811851 | N66: 0.9948425979 | O66: 17.01 | P66: 0.2544945261 | Q66: 17.26449453 | R66: 17.09320464 | S66: 4.134 | T66: 0.06185069787 | U66: 4.195850698 | V66: 4.154221515 | W66: 3.874 | X66: 0.05796071688 | Y66: 3.931960717 | Z66: 3.892949721 | AA66: 0 | AB66: 0 | AC66: 0 | AD66: 0 | AE66: 33.248 | AF66: 0.4974388009 | AG66: 33.7454388 | AH66: 33.41063302 | AJ66: 49.131 | AK66: 0.7350717555 | AL66: 49.86607176 | AM66: 49.37132493 | AN66: 5.249 | AO66: 0.07853273177 | AP66: 5.327532732 | AQ66: 5.274675552 | AR66: 244.532 | AS66: 3.658557052 | AT66: 248.1905571 | AU66: 245.7281315 | AV66: 37.775 | AW66: 0.5651693547 | AX66: 38.34016935 | AY66: 37.9597769 | AZ66: 135.663 | BA66: 2.029717278 | BB66: 137.6927173 | BC66: 136.3265973 | BD66: 106.447 | BE66: 1.592603105 | BF66: 108.0396031 | BG66: 106.9676869 | BH66: 578.797 | BI66: 8.659651277 | BJ66: 587.4566513 | BK66: 581.6281931 | BM66: 56.371 | BN66: 0.8433927648 | BO66: 57.21439276 | BP66: 56.64673948 | BQ66: 6.239 | BR66: 0.09334458249 | BS66: 6.332344582 | BT66: 6.26951815 | BU66: 261.542 | BV66: 3.913051578 | BW66: 265.4550516 | BX66: 262.8213361 | BY66: 41.909 | BZ66: 0.6270200525 | CA66: 42.53602005 | CB66: 42.11399842 | CC66: 139.537 | CD66: 2.087677994 | CE66: 141.624678 | CF66: 140.2195471 | CG66: 106.447 | CH66: 1.592603105 | CI66: 108.0396031 | CJ66: 106.9676869 | CK66: 612.045 | CL66: 9.157090077 | CM66: 621.2020901 | CN66: 615.0388261
A67: 2021-04-03 | B67: 7 | C67: Off | D67: 26.455173 | E67: 0.010409131 | G67: 7.476 | H67: 0.1104164855 | I67: 7.586416485 | J67: 7.507448482 | K67: 1.034 | L67: 0.01527162199 | M67: 1.049271622 | N67: 1.038349616 | O67: 17.448 | P67: 0.257697544 | Q67: 17.70569754 | R67: 17.52139662 | S67: 4.248 | T67: 0.06274066752 | U67: 4.310740668 | V67: 4.265869603 | W67: 3.878 | X67: 0.05727596719 | Y67: 3.935275967 | Z67: 3.894313164 | AA67: 0 | AB67: 0 | AC67: 0 | AD67: 0 | AE67: 34.084 | AF67: 0.5034022862 | AG67: 34.58740229 | AH67: 34.22737748 | AJ67: 50.868 | AK67: 0.7512929085 | AL67: 51.61929291 | AM67: 51.08198093 | AN67: 6.274 | AO67: 0.09266359416 | AP67: 6.366663594 | AQ67: 6.300392159 | AR67: 250.833 | AS67: 3.704668045 | AT67: 254.537668 | AU67: 251.8881521 | AV67: 39.111 | AW67: 0.5776483633 | AX67: 39.68864836 | AY67: 39.27552402 | AZ67: 138.685 | BA67: 2.048302607 | BB67: 140.7333026 | BC67: 139.2683912 | BD67: 106.961 | BE67: 1.579756247 | BF67: 108.5407562 | BG67: 107.4109413 | BH67: 592.732 | BI67: 8.754331765 | BJ67: 601.4863318 | BK67: 595.2253817 | BM67: 58.344 | BN67: 0.861709394 | BO67: 59.20570939 | BP67: 58.58942941 | BQ67: 7.308 | BR67: 0.1079352162 | BS67: 7.415935216 | BT67: 7.338741775 | BU67: 268.281 | BV67: 3.962365589 | BW67: 272.2433656 | BX67: 269.4095487 | BY67: 43.359 | BZ67: 0.6403890308 | CA67: 43.99938903 | CB67: 43.54139363 | CC67: 142.563 | CD67: 2.105578574 | CE67: 144.6685786 | CF67: 143.1627044 | CG67: 106.961 | CH67: 1.579756247 | CI67: 108.5407562 | CJ67: 107.4109413 | CK67: 626.816 | CL67: 9.257734052 | CM67: 636.0737341 | CN67: 629.4527592
A68: 2021-04-03 | B68: 8 | C68: Off | D68: 22.519039 | E68: 0.010403921 | G68: 7.452 | H68: 0.06830696683 | I68: 7.520306967 | J68: 7.442066287 | K68: 0.98 | L68: 0.008982934446 | M68: 0.9889829344 | N68: 0.9786936341 | O68: 17.172 | P68: 0.1574030105 | Q68: 17.32940301 | R68: 17.14910927 | S68: 4.154 | T68: 0.03807664254 | U68: 4.192076643 | V68: 4.148462608 | W68: 3.796 | X68: 0.03479512159 | Y68: 3.830795122 | Z68: 3.790939832 | AA68: 0 | AB68: 0 | AC68: 0 | AD68: 0 | AE68: 33.554 | AF68: 0.3075646759 | AG68: 33.86156468 | AH68: 33.50927163 | AJ68: 51.527 | AK68: 0.4723098604 | AL68: 51.99930986 | AM68: 51.45831315 | AN68: 6.378 | AO68: 0.05846240398 | AP68: 6.436462404 | AQ68: 6.369497958 | AR68: 253.057 | AS68: 2.319586166 | AT68: 255.3765862 | AU68: 252.7196683 | AV68: 39.144 | AW68: 0.3588040673 | AX68: 39.50280407 | AY68: 39.09182001 | AZ68: 136.379 | BA68: 1.250085323 | BB68: 137.6290853 | BC68: 136.1972032 | BD68: 106.289 | BE68: 0.9742725708 | BF68: 107.2632726 | BG68: 106.147314 | BH68: 592.774 | BI68: 5.433520391 | BJ68: 598.2075204 | BK68: 591.9838166 | BM68: 58.979 | BN68: 0.5406168273 | BO68: 59.51961683 | BP68: 58.90037944 | BQ68: 7.358 | BR68: 0.06744533842 | BS68: 7.425445338 | BT68: 7.348191592 | BU68: 270.229 | BV68: 2.476989176 | BW68: 272.7059892 | BX68: 269.8687776 | BY68: 43.298 | BZ68: 0.3968807099 | CA68: 43.69488071 | CB68: 43.24028262 | CC68: 140.175 | CD68: 1.284880445 | CE68: 141.4598804 | CF68: 139.988143 | CG68: 106.289 | CH68: 0.9742725708 | CI68: 107.2632726 | CJ68: 106.147314 | CK68: 626.328 | CL68: 5.741085067 | CM68: 632.0690851 | CN68: 625.4930882
A69: 2021-04-03 | B69: 9 | C69: Off | D69: 20.171504 | E69: 0.009151435 | G69: 7.394 | H69: 0.1137121016 | I69: 7.507712102 | J69: 7.439005762 | K69: 0.93 | L69: 0.01430244177 | M69: 0.9443024418 | N69: 0.9356607194 | O69: 17.042 | P69: 0.2620884008 | Q69: 17.3040884 | R69: 17.14573116 | S69: 4.046 | T69: 0.0622233112 | U69: 4.108223311 | V69: 4.070627173 | W69: 3.774 | X69: 0.05804023146 | Y69: 3.832040231 | Z69: 3.796971564 | AA69: 0 | AB69: 0 | AC69: 0 | AD69: 0 | AE69: 33.186 | AF69: 0.5103664868 | AG69: 33.69636649 | AH69: 33.38799638 | AJ69: 51.721 | AK69: 0.7954156893 | AL69: 52.51641569 | AM69: 52.03581512 | AN69: 6.097 | AO69: 0.09376557796 | AP69: 6.190765578 | AQ69: 6.134111189 | AR69: 254.48 | AS69: 3.913640197 | AT69: 258.3936402 | AU69: 256.0289676 | AV69: 38.571 | AW69: 0.5931822384 | AX69: 39.16418224 | AY69: 38.80577377 | AZ69: 139.777 | BA69: 2.149626241 | BB69: 141.9266262 | BC69: 140.6277939 | BD69: 107.667 | BE69: 1.655807525 | BF69: 109.3228075 | BG69: 108.322347 | BH69: 598.313 | BI69: 9.201437468 | BJ69: 607.5144375 | BK69: 601.9548086 | BM69: 59.115 | BN69: 0.9091277909 | BO69: 60.02412779 | BP69: 59.47482089 | BQ69: 7.027 | BR69: 0.1080680197 | BS69: 7.13506802 | BT69: 7.069771909 | BU69: 271.522 | BV69: 4.175728597 | BW69: 275.6977286 | BX69: 273.1746988 | BY69: 42.617 | BZ69: 0.6554055496 | CA69: 43.27240555 | CB69: 42.87640094 | CC69: 143.551 | CD69: 2.207666472 | CE69: 145.7586665 | CF69: 144.4247655 | CG69: 107.667 | CH69: 1.655807525 | CI69: 109.3228075 | CJ69: 108.322347 | CK69: 631.499 | CL69: 9.711803955 | CM69: 641.210804 | CN69: 635.342805
A70: 2021-04-03 | B70: 10 | C70: Off | D70: 19.626805 | E70: 0.008817189 | G70: 7.442 | H70: -0.02037449393 | I70: 7.421625506 | J70: 7.356187631 | K70: 0.978 | L70: -0.00267754032 | M70: 0.9753224597 | N70: 0.9667228572 | O70: 16.604 | P70: -0.04545795447 | Q70: 16.55854205 | R70: 16.41254225 | S70: 3.79 | T70: -0.01037615318 | U70: 3.779623847 | V70: 3.746298189 | W70: 3.648 | X70: -0.00998738966 | Y70: 3.63801261 | Z70: 3.605935566 | AA70: 0 | AB70: 0 | AC70: 0 | AD70: 0 | AE70: 32.462 | AF70: -0.08887353156 | AG70: 32.37312647 | AH70: 32.08768649 | AJ70: 50.363 | AK70: -0.1378823754 | AL70: 50.22511762 | AM70: 49.78227327 | AN70: 5.846 | AO70: -0.01600501095 | AP70: 5.829994989 | AQ70: 5.778590821 | AR70: 252.695 | AS70: -0.6918211157 | AT70: 252.0031789 | AU70: 249.7812192 | AV70: 37.742 | AW70: -0.103328964 | AX70: 37.63867104 | AY70: 37.30680376 | AZ70: 133.459 | BA70: -0.3653802184 | BB70: 133.0936198 | BC70: 131.9201082 | BD70: 108.016 | BE70: -0.2957231035 | BF70: 107.7202769 | BG70: 106.7704869 | BH70: 588.121 | BI70: -1.610140788 | BJ70: 586.5108592 | BK70: 581.3394821 | BM70: 57.805 | BN70: -0.1582568693 | BO70: 57.64674313 | BP70: 57.1384609 | BQ70: 6.824 | BR70: -0.01868255127 | BS70: 6.805317449 | BT70: 6.745313679 | BU70: 269.299 | BV70: -0.7372790702 | BW70: 268.5617209 | BX70: 266.1937615 | BY70: 41.532 | BZ70: -0.1137051171 | CA70: 41.41829488 | CB70: 41.05310195 | CC70: 137.107 | CD70: -0.375367608 | CE70: 136.7316324 | CF70: 135.5260437 | CG70: 108.016 | CH70: -0.2957231035 | CI70: 107.7202769 | CJ70: 106.7704869 | CK70: 620.583 | CL70: -1.699014319 | CM70: 618.8839857 | CN70: 613.4271686
A71: 2021-04-03 | B71: 11 | C71: Off | D71: 19.546975 | E71: 0.008518514 | G71: 7.258 | H71: 0.01777295822 | I71: 7.275772958 | J71: 7.213794184 | K71: 0.898 | L71: 0.002198968928 | M71: 0.9001989689 | N71: 0.8925306114 | O71: 15.604 | P71: 0.03821014606 | Q71: 15.64221015 | R71: 15.50896176 | S71: 3.772 | T71: 0.009236648995 | U71: 3.781236649 | V71: 3.749026132 | W71: 3.4 | X71: 0.008325717546 | Y71: 3.408325718 | Z71: 3.379291847 | AA71: 0 | AB71: 0 | AC71: 0 | AD71: 0 | AE71: 30.932 | AF71: 0.07574443974 | AG71: 31.00774444 | AH71: 30.74360453 | AJ71: 49.612 | AK71: 0.1214869114 | AL71: 49.73348691 | AM71: 49.30983151 | AN71: 5.4 | AO71: 0.01322319846 | AP71: 5.413223198 | AQ71: 5.367110581 | AR71: 252.441 | AS71: 0.6181624891 | AT71: 253.0591625 | AU71: 250.9034745 | AV71: 36.483 | AW71: 0.08933739801 | AX71: 36.5723374 | AY71: 36.26079543 | AZ71: 126.676 | BA71: 0.3101966458 | BB71: 126.9861966 | BC71: 125.904463 | BD71: 109.2 | BE71: 0.2674024577 | BF71: 109.4674025 | BG71: 108.5349029 | BH71: 579.812 | BI71: 1.419809101 | BJ71: 581.2318091 | BK71: 576.2805778 | BM71: 56.87 | BN71: 0.1392598697 | BO71: 57.00925987 | BP71: 56.52362569 | BQ71: 6.298 | BR71: 0.01542216738 | BS71: 6.313422167 | BT71: 6.259641192 | BU71: 268.045 | BV71: 0.6563726352 | BW71: 268.7013726 | BX71: 266.4124362 | BY71: 40.255 | BZ71: 0.098574047 | CA71: 40.35357405 | CB71: 40.00982156 | CC71: 130.076 | CD71: 0.3185223634 | CE71: 130.3945224 | CF71: 129.2837548 | CG71: 109.2 | CH71: 0.2674024577 | CI71: 109.4674025 | CJ71: 108.5349029 | CK71: 610.744 | CL71: 1.49555354 | CM71: 612.2395535 | CN71: 607.0241823
A72: 2021-04-03 | B72: 12 | C72: Off | D72: 18.681127 | E72: 0.009238917 | G72: 7.124 | H72: 0.04309668515 | I72: 7.167096685 | J72: 7.100880474 | K72: 0.818 | L72: 0.004948496414 | M72: 0.8229484964 | N72: 0.8153453436 | O72: 14.994 | P72: 0.09070630224 | Q72: 15.0847063 | R72: 14.94533995 | S72: 3.718 | T72: 0.02249206561 | U72: 3.740492066 | V72: 3.70593397 | W72: 3.15 | X72: 0.01905594585 | Y72: 3.169055946 | Z72: 3.139777301 | AA72: 0 | AB72: 0 | AC72: 0 | AD72: 0 | AE72: 29.804 | AF72: 0.1802994953 | AG72: 29.9842995 | AH72: 29.70727704 | AJ72: 48.648 | AK72: 0.294296398 | AL72: 48.9422964 | AM72: 48.49012258 | AN72: 5.075 | AO72: 0.03070124609 | AP72: 5.105701246 | AQ72: 5.058530096 | AR72: 252.164 | AS72: 1.525467787 | AT72: 253.6894678 | AU72: 251.3456519 | AV72: 34.693 | AW72: 0.2098755331 | AX72: 34.90287553 | AY72: 34.58041076 | AZ72: 139.349 | BA72: 0.8429926978 | BB72: 140.1919927 | BC72: 138.8967705 | BD72: 108.937 | BE72: 0.6590151025 | BF72: 109.5960151 | BG72: 108.5834666 | BH72: 588.866 | BI72: 3.562348765 | BJ72: 592.4283488 | BK72: 586.9549524 | BM72: 55.772 | BN72: 0.3373930831 | BO72: 56.10939308 | BP72: 55.59100306 | BQ72: 5.893 | BR72: 0.0356497425 | BS72: 5.928649743 | BT72: 5.87387544 | BU72: 267.158 | BV72: 1.616174089 | BW72: 268.7741741 | BX72: 266.2909918 | BY72: 38.411 | BZ72: 0.2323675987 | CA72: 38.6433676 | CB72: 38.28634473 | CC72: 142.499 | CD72: 0.8620486437 | CE72: 143.3610486 | CF72: 142.0365478 | CG72: 108.937 | CH72: 0.6590151025 | CI72: 109.5960151 | CJ72: 108.5834666 | CK72: 618.67 | CL72: 3.74264826 | CM72: 622.4126483 | CN72: 616.6622295
A73: 2021-04-03 | B73: 13 | C73: Off | D73: 18.055884 | E73: 0.009388991 | G73: 6.898 | H73: 0.0300572145 | I73: 6.928057215 | J73: 6.863009748 | K73: 0.758 | L73: 0.003302894838 | M73: 0.7613028948 | N73: 0.7541550288 | O73: 14.636 | P73: 0.06377462909 | Q73: 14.69977463 | R73: 14.56175858 | S73: 3.696 | T73: 0.01610488037 | U73: 3.71210488 | V73: 3.677251961 | W73: 3.15 | X73: 0.01372575032 | Y73: 3.16372575 | Z73: 3.134021558 | AA73: 0 | AB73: 0 | AC73: 0 | AD73: 0 | AE73: 29.138 | AF73: 0.1269653691 | AG73: 29.26496537 | AH73: 28.99019687 | AJ73: 48.134 | AK73: 0.2097381796 | AL73: 48.34373818 | AM73: 47.88983926 | AN73: 4.79 | AO73: 0.02087185524 | AP73: 4.810871855 | AQ73: 4.765702623 | AR73: 251.564 | AS73: 1.096160207 | AT73: 252.6601602 | AU73: 250.2879362 | AV73: 32.75 | AW73: 0.1427042295 | AX73: 32.89270423 | AY73: 32.58387493 | AZ73: 136.919 | BA73: 0.5966082564 | BB73: 137.5156083 | BC73: 136.2244754 | BD73: 109.512 | BE73: 0.4771855138 | BF73: 109.9891855 | BG73: 108.956498 | BH73: 583.669 | BI73: 2.543268242 | BJ73: 586.2122682 | BK73: 580.7083265 | BM73: 55.032 | BN73: 0.2397953941 | BO73: 55.27179539 | BP73: 54.752849 | BQ73: 5.548 | BR73: 0.02417475008 | BS73: 5.57217475 | BT73: 5.519857652 | BU73: 266.2 | BV73: 1.159934836 | BW73: 267.3599348 | BX73: 264.8496948 | BY73: 36.446 | BZ73: 0.1588091098 | CA73: 36.60480911 | CB73: 36.26112689 | CC73: 140.069 | CD73: 0.6103340067 | CE73: 140.679334 | CF73: 139.358497 | CG73: 109.512 | CH73: 0.4771855138 | CI73: 109.9891855 | CJ73: 108.956498 | CK73: 612.807 | CL73: 2.670233611 | CM73: 615.4772336 | CN73: 609.6985234
A74: 2021-04-03 | B74: 14 | C74: Off | D74: 16.463727 | E74: 0.009059954 | G74: 6.79 | H74: 0.03861417192 | I74: 6.828614172 | J74: 6.766747242 | K74: 0.786 | L74: 0.004469917398 | M74: 0.7904699174 | N74: 0.7833082963 | O74: 14.216 | P74: 0.08084522357 | Q74: 14.29684522 | R74: 14.16731646 | S74: 3.672 | T74: 0.0208823622 | U74: 3.692882362 | V74: 3.659425018 | W74: 3.11 | X74: 0.01768631439 | Y74: 3.127686314 | Z74: 3.09934962 | AA74: 0 | AB74: 0 | AC74: 0 | AD74: 0 | AE74: 28.574 | AF74: 0.1624979895 | AG74: 28.73649799 | AH74: 28.47614664 | AJ74: 47.188 | AK74: 0.2683542776 | AL74: 47.45635428 | AM74: 47.02640189 | AN74: 4.569 | AO74: 0.02598352747 | AP74: 4.594983527 | AQ74: 4.553353188 | AR74: 250.515 | AS74: 1.424658215 | AT74: 251.9396582 | AU74: 249.6570965 | AV74: 30.177 | AW74: 0.1716141187 | AX74: 30.34861412 | AY74: 30.07365707 | AZ74: 135.257 | BA74: 0.7691954421 | BB74: 136.0261954 | BC74: 134.7938044 | BD74: 107.963 | BE74: 0.6139767074 | BF74: 108.5769767 | BG74: 107.5932743 | BH74: 575.669 | BI74: 3.273782288 | BJ74: 578.9427823 | BK74: 573.6975873 | BM74: 53.978 | BN74: 0.3069684495 | BO74: 54.28496845 | BP74: 53.79314913 | BQ74: 5.355 | BR74: 0.03045344487 | BS74: 5.385453445 | BT74: 5.336661484 | BU74: 264.731 | BV74: 1.505503439 | BW74: 266.2365034 | BX74: 263.824413 | BY74: 33.849 | BZ74: 0.1924964809 | CA74: 34.04149648 | CB74: 33.73308209 | CC74: 138.367 | CD74: 0.7868817565 | CE74: 139.1538818 | CF74: 137.893154 | CG74: 107.963 | CH74: 0.6139767074 | CI74: 108.5769767 | CJ74: 107.5932743 | CK74: 604.243 | CL74: 3.436280278 | CM74: 607.6792803 | CN74: 602.173734
A75: 2021-04-03 | B75: 15 | C75: Off | D75: 16.265394 | E75: 0.008999993 | G75: 6.756 | H75: 0.05641569694 | I75: 6.812415697 | J75: 6.751104003 | K75: 0.778 | L75: 0.006496656634 | M75: 0.7844966566 | N75: 0.7774361922 | O75: 14.156 | P75: 0.1182090891 | Q75: 14.27420909 | R75: 14.14574131 | S75: 3.724 | T75: 0.03109710707 | U75: 3.755097107 | V75: 3.721301259 | W75: 2.998 | X75: 0.02503467428 | Y75: 3.023034674 | Z75: 2.995827383 | AA75: 0 | AB75: 0 | AC75: 0 | AD75: 0 | AE75: 28.412 | AF75: 0.237253224 | AG75: 28.64925322 | AH75: 28.39141015 | AJ75: 47.015 | AK75: 0.3925968016 | AL75: 47.4075968 | AM75: 46.98092876 | AN75: 4.41 | AO75: 0.03682552153 | AP75: 4.446825522 | AQ75: 4.406804123 | AR75: 249.552 | AS75: 2.083873594 | AT75: 251.6358736 | AU75: 249.3711525 | AV75: 29.424 | AW75: 0.2457038879 | AX75: 29.66970389 | AY75: 29.40267676 | AZ75: 131.844 | BA75: 1.100957837 | BB75: 132.9449578 | BC75: 131.7484541 | BD75: 107.293 | BE75: 0.8959457329 | BF75: 108.1889457 | BG75: 107.215246 | BH75: 569.538 | BI75: 4.755903375 | BJ75: 574.2939034 | BK75: 569.1252623 | BM75: 53.771 | BN75: 0.4490124985 | BO75: 54.2200125 | BP75: 53.73203277 | BQ75: 5.188 | BR75: 0.04332217817 | BS75: 5.231322178 | BT75: 5.184240315 | BU75: 263.708 | BV75: 2.202082683 | BW75: 265.9100827 | BX75: 263.5168938 | BY75: 33.148 | BZ75: 0.276800995 | CA75: 33.42480099 | CB75: 33.12397802 | CC75: 134.842 | CD75: 1.125992511 | CE75: 135.9679925 | CF75: 134.7442815 | CG75: 107.293 | CH75: 0.8959457329 | CI75: 108.1889457 | CJ75: 107.215246 | CK75: 597.95 | CL75: 4.993156599 | CM75: 602.9431566 | CN75: 597.5166724
A76: 2021-04-03 | B76: 16 | C76: Off | D76: 16.206661 | E76: 0.009176315 | G76: 6.66 | H76: 0.03936327586 | I76: 6.699363276 | J76: 6.637887808 | K76: 0.754 | L76: 0.004456442943 | M76: 0.7584564429 | N76: 0.7514966077 | O76: 14.174 | P76: 0.08377403485 | Q76: 14.25777403 | R76: 14.12694021 | S76: 3.726 | T76: 0.02202215704 | U76: 3.748022157 | V76: 3.713629125 | W76: 2.97 | X76: 0.01755389329 | Y76: 2.987553893 | Z76: 2.960139158 | AA76: 0 | AB76: 0 | AC76: 0 | AD76: 0 | AE76: 28.284 | AF76: 0.167169804 | AG76: 28.4511698 | AH76: 28.19009291 | AJ76: 46.658 | AK76: 0.2757675263 | AL76: 46.93376753 | AM76: 46.50308849 | AN76: 4.325 | AO76: 0.0255624877 | AP76: 4.350562488 | AQ76: 4.310640356 | AR76: 248.531 | AS76: 1.468918065 | AT76: 249.9999181 | AU76: 247.7058401 | AV76: 28.95 | AW76: 0.1711061316 | AX76: 29.12110613 | AY76: 28.85388169 | AZ76: 121.804 | BA76: 0.7199105786 | BB76: 122.5239106 | BC76: 121.3995926 | BD76: 106.727 | BE76: 0.6307994509 | BF76: 107.3577995 | BG76: 106.3726505 | BH76: 556.995 | BI76: 3.29206424 | BJ76: 560.2870642 | BK76: 555.1456936 | BM76: 53.318 | BN76: 0.3151308022 | BO76: 53.6331308 | BP76: 53.1409763 | BQ76: 5.079 | BR76: 0.03001893065 | BS76: 5.109018931 | BT76: 5.062136964 | BU76: 262.705 | BV76: 1.5526921 | BW76: 264.2576921 | BX76: 261.8327803 | BY76: 32.676 | BZ76: 0.1931282886 | CA76: 32.86912829 | CB76: 32.56751081 | CC76: 124.774 | CD76: 0.7374644719 | CE76: 125.5114645 | CF76: 124.3597317 | CG76: 106.727 | CH76: 0.6307994509 | CI76: 107.3577995 | CJ76: 106.3726505 | CK76: 585.279 | CL76: 3.459234044 | CM76: 588.738234 | CN76: 583.3357866
A77: 2021-04-03 | B77: 17 | C77: Off | D77: 16.28022 | E77: 0.009213373 | G77: 6.426 | H77: 0.04460498397 | I77: 6.470604984 | J77: 6.410988887 | K77: 0.726 | L77: 0.005039405285 | M77: 0.7310394053 | N77: 0.7243040666 | O77: 14.166 | P77: 0.09833087503 | Q77: 14.26433088 | R77: 14.13290827 | S77: 3.596 | T77: 0.02496102122 | U77: 3.620961021 | V77: 3.587599757 | W77: 2.896 | X77: 0.0201020905 | Y77: 2.916102091 | Z77: 2.889234954 | AA77: 0 | AB77: 0 | AC77: 0 | AD77: 0 | AE77: 27.81 | AF77: 0.193038376 | AG77: 28.00303838 | AH77: 27.74503594 | AJ77: 46.12 | AK77: 0.3201341209 | AL77: 46.44013412 | AM77: 46.01226384 | AN77: 4.26 | AO77: 0.02957006407 | AP77: 4.289570064 | AQ77: 4.250048655 | AR77: 248.449 | AS77: 1.724566396 | AT77: 250.1735664 | AU77: 247.868624 | AV77: 28.168 | AW77: 0.195523372 | AX77: 28.36352337 | AY77: 28.10219965 | AZ77: 142.784 | BA77: 0.9911108047 | BB77: 143.7751108 | BC77: 142.4504571 | BD77: 106.894 | BE77: 0.7419864856 | BF77: 107.6359865 | BG77: 106.644296 | BH77: 576.675 | BI77: 4.002891244 | BJ77: 580.6778912 | BK77: 575.3278892 | BM77: 52.546 | BN77: 0.3647391048 | BO77: 52.9107391 | BP77: 52.42325273 | BQ77: 4.986 | BR77: 0.03460946936 | BS77: 5.020609469 | BT77: 4.974352722 | BU77: 262.615 | BV77: 1.822897271 | BW77: 264.4378973 | BX77: 262.0015323 | BY77: 31.764 | BZ77: 0.2204843932 | CA77: 31.98448439 | CB77: 31.68979941 | CC77: 145.68 | CD77: 1.011212895 | CE77: 146.6912129 | CF77: 145.339692 | CG77: 106.894 | CH77: 0.7419864856 | CI77: 107.6359865 | CJ77: 106.644296 | CK77: 604.485 | CL77: 4.19592962 | CM77: 608.6809296 | CN77: 603.0729252
A78: 2021-04-03 | B78: 18 | C78: Off | D78: 16.615896 | E78: 0.009400628 | G78: 6.382 | H78: 0.06779304242 | I78: 6.449793042 | J78: 6.389160937 | K78: 0.726 | L78: 0.007711963146 | M78: 0.7337119631 | N78: 0.7268146099 | O78: 14.49 | P78: 0.1539205868 | Q78: 14.64392059 | R78: 14.50625854 | S78: 3.552 | T78: 0.03773125771 | U78: 3.589731258 | V78: 3.55598553 | W78: 2.97 | X78: 0.03154894014 | Y78: 3.00154894 | Z78: 2.973332495 | AA78: 0 | AB78: 0 | AC78: 0 | AD78: 0 | AE78: 28.12 | AF78: 0.2987057902 | AG78: 28.41870579 | AH78: 28.15155211 | AJ78: 45.31 | AK78: 0.4813072316 | AL78: 45.79130723 | AM78: 45.36084019 | AN78: 4.032 | AO78: 0.04283007632 | AP78: 4.074830076 | AQ78: 4.036524115 | AR78: 248.279 | AS78: 2.637353303 | AT78: 250.9163533 | AU78: 248.557582 | AV78: 27.894 | AW78: 0.2963050964 | AX78: 28.1903051 | AY78: 27.92529852 | AZ78: 143.463 | BA78: 1.523941279 | BB78: 144.9869413 | BC78: 143.623973 | BD78: 106.777 | BE78: 1.134242822 | BF78: 107.9112428 | BG78: 106.8968094 | BH78: 575.755 | BI78: 6.115979809 | BJ78: 581.8709798 | BK78: 576.4010272 | BM78: 51.692 | BN78: 0.549100274 | BO78: 52.24110027 | BP78: 51.75000112 | BQ78: 4.758 | BR78: 0.05054203946 | BS78: 4.808542039 | BT78: 4.763338725 | BU78: 262.769 | BV78: 2.79127389 | BW78: 265.5602739 | BX78: 263.0638405 | BY78: 31.446 | BZ78: 0.3340363541 | CA78: 31.78003635 | CB78: 31.48128405 | CC78: 146.433 | CD78: 1.55549022 | CE78: 147.9884902 | CF78: 146.5973055 | CG78: 106.777 | CH78: 1.134242822 | CI78: 107.9112428 | CJ78: 106.8968094 | CK78: 603.875 | CL78: 6.414685599 | CM78: 610.2896856 | CN78: 604.5525793
A79: 2021-04-03 | B79: 19 | C79: Off | D79: 19.274921 | E79: 0.009788644 | G79: 6.422 | H79: 0.07938788031 | I79: 6.50138788 | J79: 6.437748109 | K79: 0.66 | L79: 0.008158829182 | M79: 0.6681588292 | N79: 0.6616184603 | O79: 14.792 | P79: 0.1828566686 | Q79: 14.97485667 | R79: 14.82827313 | S79: 3.468 | T79: 0.04287093879 | U79: 3.510870939 | V79: 3.476504273 | W79: 2.948 | X79: 0.03644277035 | Y79: 2.98444277 | Z79: 2.955229123 | AA79: 0 | AB79: 0 | AC79: 0 | AD79: 0 | AE79: 28.29 | AF79: 0.3497170872 | AG79: 28.63971709 | AH79: 28.35937309 | AJ79: 44.913 | AK79: 0.5552083258 | AL79: 45.46820833 | AM79: 45.02313622 | AN79: 3.768 | AO79: 0.04657949751 | AP79: 3.814579498 | AQ79: 3.777239937 | AR79: 245.809 | AS79: 3.038657034 | AT79: 248.847657 | AU79: 246.4117759 | AV79: 27.807 | AW79: 0.3437463077 | AX79: 28.15074631 | AY79: 27.87518867 | AZ79: 124.98 | BA79: 1.544985562 | BB79: 126.5249856 | BC79: 125.2864775 | BD79: 106.301 | BE79: 1.314078335 | BF79: 107.6150783 | BG79: 106.5616726 | BH79: 553.578 | BI79: 6.843255062 | BJ79: 560.4212551 | BK79: 554.9354909 | BM79: 51.335 | BN79: 0.6345962061 | BO79: 51.96959621 | BP79: 51.46088433 | BQ79: 4.428 | BR79: 0.05473832669 | BS79: 4.482738327 | BT79: 4.438858397 | BU79: 260.601 | BV79: 3.221513702 | BW79: 263.8225137 | BX79: 261.240049 | BY79: 31.275 | BZ79: 0.3866172465 | CA79: 31.66161725 | CB79: 31.35169295 | CC79: 127.928 | CD79: 1.581428333 | CE79: 129.5094283 | CF79: 128.2417066 | CG79: 106.301 | CH79: 1.314078335 | CI79: 107.6150783 | CJ79: 106.5616726 | CK79: 581.868 | CL79: 7.192972149 | CM79: 589.0609721 | CN79: 583.294864
A80: 2021-04-03 | B80: 20 | C80: Off | D80: 34.299908 | E80: 0.009808737 | G80: 6.498 | H80: 0.0409603141 | I80: 6.538960314 | J80: 6.474821372 | K80: 0.672 | L80: 0.004235969695 | M80: 0.6762359697 | N80: 0.6696029489 | O80: 15.148 | P80: 0.09548581687 | Q80: 15.24348582 | R80: 15.09396647 | S80: 3.47 | T80: 0.02187323637 | U80: 3.491873236 | V80: 3.45762237 | W80: 2.916 | X80: 0.01838108278 | Y80: 2.934381083 | Z80: 2.90559851 | AA80: 0 | AB80: 0 | AC80: 0 | AD80: 0 | AE80: 28.704 | AF80: 0.1809364198 | AG80: 28.88493642 | AH80: 28.60161168 | AJ80: 44.949 | AK80: 0.2833372051 | AL80: 45.23233721 | AM80: 44.78866511 | AN80: 3.808 | AO80: 0.02400382827 | AP80: 3.832003828 | AQ80: 3.794416711 | AR80: 244.207 | AS80: 1.539365255 | AT80: 245.7463653 | AU80: 243.3359038 | AV80: 28.121 | AW80: 0.177261464 | AX80: 28.29826146 | AY80: 28.02069126 | AZ80: 135.242 | BA80: 0.8525015082 | BB80: 136.0945015 | BC80: 134.7595863 | BD80: 105.756 | BE80: 0.6666357307 | BF80: 106.4226357 | BG80: 105.3787641 | BH80: 562.083 | BI80: 3.543104991 | BJ80: 565.626105 | BK80: 560.0780273 | BM80: 51.447 | BN80: 0.3242975192 | BO80: 51.77129752 | BP80: 51.26348648 | BQ80: 4.48 | BR80: 0.02823979797 | BS80: 4.508239798 | BT80: 4.464019659 | BU80: 259.355 | BV80: 1.634851072 | BW80: 260.9898511 | BX80: 258.4298703 | BY80: 31.591 | BZ80: 0.1991347003 | CA80: 31.7901347 | CB80: 31.47831363 | CC80: 138.158 | CD80: 0.8708825909 | CE80: 139.0288826 | CF80: 137.6651848 | CG80: 105.756 | CH80: 0.6666357307 | CI80: 106.4226357 | CJ80: 105.3787641 | CK80: 590.787 | CL80: 3.724041411 | CM80: 594.5110414 | CN80: 588.679639
A81: 2021-04-03 | B81: 21 | C81: Off | D81: 21.222022 | E81: 0.009613106 | G81: 6.394 | H81: 0.07914141979 | I81: 6.47314142 | J81: 6.410914425 | K81: 0.722 | L81: 0.008936519407 | M81: 0.7309365194 | N81: 0.7239099492 | O81: 15.004 | P81: 0.1857112703 | Q81: 15.18971127 | R81: 15.04369097 | S81: 3.486 | T81: 0.04314779315 | U81: 3.529147793 | V81: 3.495221721 | W81: 2.95 | X81: 0.03651347957 | Y81: 2.98651348 | Z81: 2.957803809 | AA81: 0 | AB81: 0 | AC81: 0 | AD81: 0 | AE81: 28.556 | AF81: 0.3534504823 | AG81: 28.90945048 | AH81: 28.63154087 | AJ81: 45.519 | AK81: 0.5634091785 | AL81: 46.08240918 | AM81: 45.63941409 | AN81: 4.009 | AO81: 0.04962119987 | AP81: 4.0586212 | AQ81: 4.019605244 | AR81: 243.975 | AS81: 3.019788535 | AT81: 246.9947885 | AU81: 244.6204015 | AV81: 28.376 | AW81: 0.3512225411 | AX81: 28.72722254 | AY81: 28.45106471 | AZ81: 134.862 | BA81: 1.669247757 | BB81: 136.5312478 | BC81: 135.2187584 | BD81: 105.586 | BE81: 1.30688551 | BF81: 106.8928855 | BG81: 105.8653129 | BH81: 562.327 | BI81: 6.960174721 | BJ81: 569.2871747 | BK81: 563.8145568 | BM81: 51.913 | BN81: 0.6425505983 | BO81: 52.5555506 | BP81: 52.05032852 | BQ81: 4.731 | BR81: 0.05855771927 | BS81: 4.789557719 | BT81: 4.743515193 | BU81: 258.979 | BV81: 3.205499806 | BW81: 262.1844998 | BX81: 259.6640924 | BY81: 31.862 | BZ81: 0.3943703343 | CA81: 32.25637033 | CB81: 31.94628643 | CC81: 137.812 | CD81: 1.705761236 | CE81: 139.5177612 | CF81: 138.1765622 | CG81: 105.586 | CH81: 1.30688551 | CI81: 106.8928855 | CJ81: 105.8653129 | CK81: 590.883 | CL81: 7.313625204 | CM81: 598.1966252 | CN81: 592.4460976
A82: 2021-04-03 | B82: 22 | C82: Off | D82: 21.67935 | E82: 0.009436805 | G82: 6.306 | H82: 0.08514509673 | I82: 6.391145097 | J82: 6.330833107 | K82: 0.684 | L82: 0.009235529045 | M82: 0.693235529 | N82: 0.6866936005 | O82: 15.104 | P82: 0.2039377642 | Q82: 15.30793776 | R82: 15.16347974 | S82: 3.538 | T82: 0.04777090901 | U82: 3.585770909 | V82: 3.551932688 | W82: 2.948 | X82: 0.0398045901 | Y82: 2.98780459 | Z82: 2.959609261 | AA82: 0 | AB82: 0 | AC82: 0 | AD82: 0 | AE82: 28.58 | AF82: 0.3858938891 | AG82: 28.96589389 | AH82: 28.6925484 | AJ82: 45.045 | AK82: 0.6082081957 | AL82: 45.6532082 | AM82: 45.22238777 | AN82: 3.893 | AO82: 0.05256420259 | AP82: 3.945564203 | AQ82: 3.908330683 | AR82: 240.841 | AS82: 3.251891887 | AT82: 244.0928919 | AU82: 241.7894349 | AV82: 28.068 | AW82: 0.3789807445 | AX82: 28.44698074 | AY82: 28.17853213 | AZ82: 129.037 | BA82: 1.742287955 | BB82: 130.779288 | BC82: 129.5451493 | BD82: 104.419 | BE82: 1.409889923 | BF82: 105.8288899 | BG82: 104.8302033 | BH82: 551.303 | BI82: 7.443822908 | BJ82: 558.7468229 | BK82: 553.4740381 | BM82: 51.351 | BN82: 0.6933532924 | BO82: 52.04435329 | BP82: 51.55322088 | BQ82: 4.577 | BR82: 0.06179973164 | BS82: 4.638799732 | BT82: 4.595024283 | BU82: 255.945 | BV82: 3.455829651 | BW82: 259.4008297 | BX82: 256.9529146 | BY82: 31.606 | BZ82: 0.4267516535 | CA82: 32.03275165 | CB82: 31.73046482 | CC82: 131.985 | CD82: 1.782092545 | CE82: 133.7670925 | CF82: 132.5047586 | CG82: 104.419 | CH82: 1.409889923 | CI82: 105.8288899 | CJ82: 104.8302033 | CK82: 579.883 | CL82: 7.829716797 | CM82: 587.7127168 | CN82: 582.1665865
A83: 2021-04-03 | B83: 23 | C83: Off | D83: 19.692508 | E83: 0.009641523 | G83: 6.236 | H83: 0.10905118 | I83: 6.34505118 | J83: 6.283875223 | K83: 0.656 | L83: 0.01147170848 | M83: 0.6674717085 | N83: 0.6610362646 | O83: 15.704 | P83: 0.274621509 | Q83: 15.97862151 | R83: 15.82456326 | S83: 3.388 | T83: 0.05924717731 | U83: 3.447247177 | V83: 3.414010464 | W83: 2.974 | X83: 0.05200741007 | Y83: 3.02600741 | Z83: 2.99683209 | AA83: 0 | AB83: 0 | AC83: 0 | AD83: 0 | AE83: 28.958 | AF83: 0.5063989848 | AG83: 29.46439898 | AH83: 29.1803173 | AJ83: 44.19 | AK83: 0.7727664597 | AL83: 44.96276646 | AM83: 44.52925691 | AN83: 3.806 | AO83: 0.066556894 | AP83: 3.872556894 | AQ83: 3.835219548 | AR83: 236.68 | AS83: 4.138908479 | AT83: 240.8189085 | AU83: 238.4970474 | AV83: 27.356 | AW83: 0.4783842334 | AX83: 27.83438423 | AY83: 27.56601838 | AZ83: 130.633 | BA83: 2.284426362 | BB83: 132.9174264 | BC83: 131.6358999 | BD83: 103.545 | BE83: 1.810728741 | BF83: 105.3557287 | BG83: 104.3399391 | BH83: 546.21 | BI83: 9.551771169 | BJ83: 555.7617712 | BK83: 550.4033813 | BM83: 50.426 | BN83: 0.8818176397 | BO83: 51.30781764 | BP83: 50.81313214 | BQ83: 4.462 | BR83: 0.07802860247 | BS83: 4.540028602 | BT83: 4.496255812 | BU83: 252.384 | BV83: 4.413529988 | BW83: 256.79753 | BX83: 254.3216107 | BY83: 30.744 | BZ83: 0.5376314107 | CA83: 31.28163141 | CB83: 30.98002884 | CC83: 133.607 | CD83: 2.336433772 | CE83: 135.9434338 | CF83: 134.632732 | CG83: 103.545 | CH83: 1.810728741 | CI83: 105.3557287 | CJ83: 104.3399391 | CK83: 575.168 | CL83: 10.05817015 | CM83: 585.2261702 | CN83: 579.5836986
A84: 2021-04-03 | B84: 24 | C84: Off | D84: 18.51055 | E84: 0.00970651 | G84: 6.134 | H84: 0.1161330733 | I84: 6.250133073 | J84: 6.189466094 | K84: 0.648 | L84: 0.01226837813 | M84: 0.6602683781 | N84: 0.6538594765 | O84: 15.472 | P84: 0.2929264606 | Q84: 15.76492646 | R84: 15.61190404 | S84: 3.34 | T84: 0.0632351589 | U84: 3.403235159 | V84: 3.370201623 | W84: 2.988 | X84: 0.05657085473 | Y84: 3.044570855 | Z84: 3.015018697 | AA84: 0 | AB84: 0 | AC84: 0 | AD84: 0 | AE84: 28.582 | AF84: 0.5411339256 | AG84: 29.12313393 | AH84: 28.84044993 | AJ84: 43.271 | AK84: 0.819236096 | AL84: 44.0902361 | AM84: 43.66227378 | AN84: 3.776 | AO84: 0.07148980838 | AP84: 3.847489808 | AQ84: 3.81014411 | AR84: 232.077 | AS84: 4.393840111 | AT84: 236.4708401 | AU84: 234.1755335 | AV84: 26.921 | AW84: 0.5096867403 | AX84: 27.43068674 | AY84: 27.16443051 | AZ84: 121.91 | BA84: 2.3080833 | BB84: 124.2180833 | BC84: 123.0123592 | BD84: 102.392 | BE84: 1.938555207 | BF84: 104.3305552 | BG84: 103.3178696 | BH84: 530.347 | BI84: 10.04089126 | BJ84: 540.3878913 | BK84: 535.1426108 | BM84: 49.405 | BN84: 0.9353691693 | BO84: 50.34036917 | BP84: 49.85173987 | BQ84: 4.424 | BR84: 0.08375818652 | BS84: 4.507758187 | BT84: 4.464003587 | BU84: 247.549 | BV84: 4.686766572 | BW84: 252.2357666 | BX84: 249.7874376 | BY84: 30.261 | BZ84: 0.5729218992 | CA84: 30.8339219 | CB84: 30.53463213 | CC84: 124.898 | CD84: 2.364654155 | CE84: 127.2626542 | CF84: 126.0273779 | CG84: 102.392 | CH84: 1.938555207 | CI84: 104.3305552 | CJ84: 103.3178696 | CK84: 558.929 | CL84: 10.58202519 | CM84: 569.5110252 | CN84: 563.9830607
A85: 2021-04-04 | B85: 1 | C85: Off | D85: 17.053937 | E85: 0.009944027 | G85: 6.178 | H85: 0.1437292306 | I85: 6.321729231 | J85: 6.258865784 | K85: 0.634 | L85: 0.01474981098 | M85: 0.648749811 | N85: 0.6422986253 | O85: 15.44 | P85: 0.3592067531 | Q85: 15.79920675 | R85: 15.64209901 | S85: 3.398 | T85: 0.0790534033 | U85: 3.477053403 | V85: 3.44247749 | W85: 3.016 | X85: 0.07016629322 | Y85: 3.086166293 | Z85: 3.055477372 | AA85: 0 | AB85: 0 | AC85: 0 | AD85: 0 | AE85: 28.666 | AF85: 0.6669054912 | AG85: 29.33290549 | AH85: 29.04121829 | AJ85: 42.326 | AK85: 0.9847011031 | AL85: 43.3107011 | AM85: 42.88001832 | AN85: 3.741 | AO85: 0.08703319063 | AP85: 3.828033191 | AQ85: 3.789967125 | AR85: 228.69 | AS85: 5.32040106 | AT85: 234.0104011 | AU85: 231.6833953 | AV85: 27.222 | AW85: 0.6333112845 | AX85: 27.85531128 | AY85: 27.57831732 | AZ85: 135.563 | BA85: 3.153830639 | BB85: 138.7168306 | BC85: 137.3374267 | BD85: 101.498 | BE85: 2.361319108 | BF85: 103.8593191 | BG85: 102.8265392 | BH85: 539.04 | BI85: 12.54059639 | BJ85: 551.5805964 | BK85: 546.095664 | BM85: 48.504 | BN85: 1.128430334 | BO85: 49.63243033 | BP85: 49.13888411 | BQ85: 4.375 | BR85: 0.1017830016 | BS85: 4.476783002 | BT85: 4.432265751 | BU85: 244.13 | BV85: 5.679607813 | BW85: 249.8096078 | BX85: 247.3254943 | BY85: 30.62 | BZ85: 0.7123646878 | CA85: 31.33236469 | CB85: 31.02079481 | CC85: 138.579 | CD85: 3.223996932 | CE85: 141.8029969 | CF85: 140.3929041 | CG85: 101.498 | CH85: 2.361319108 | CI85: 103.8593191 | CJ85: 102.8265392 | CK85: 567.706 | CL85: 13.20750188 | CM85: 580.9135019 | CN85: 575.1368823
A86: 2021-04-04 | B86: 2 | C86: Off | D86: 18.108262 | E86: 0.010168829 | G86: 6.12 | H86: 0.1059646373 | I86: 6.225964637 | J86: 6.162653868 | K86: 0.632 | L86: 0.01094275339 | M86: 0.6429427534 | N86: 0.6364047785 | O86: 15.358 | P86: 0.2659158332 | Q86: 15.62391583 | R86: 15.4650389 | S86: 3.4 | T86: 0.05886924294 | U86: 3.458869243 | V86: 3.423696593 | W86: 3.008 | X86: 0.05208196552 | Y86: 3.060081966 | Z86: 3.028964515 | AA86: 0 | AB86: 0 | AC86: 0 | AD86: 0 | AE86: 28.518 | AF86: 0.4937744324 | AG86: 29.01177443 | AH86: 28.71675866 | AJ86: 41.928 | AK86: 0.7259616523 | AL86: 42.65396165 | AM86: 42.22022081 | AN86: 3.723 | AO86: 0.06446182102 | AP86: 3.787461821 | AQ86: 3.748947769 | AR86: 227.388 | AS86: 3.93710571 | AT86: 231.3251057 | AU86: 228.9728003 | AV86: 27.104 | AW86: 0.4692917531 | AX86: 27.57329175 | AY86: 27.29290366 | AZ86: 130.248 | BA86: 2.25517681 | BB86: 132.5031768 | BC86: 131.1557747 | BD86: 101.068 | BE86: 1.74994019 | BF86: 102.8179402 | BG86: 101.7724021 | BH86: 531.459 | BI86: 9.201937936 | BJ86: 540.6609379 | BK86: 535.1630493 | BM86: 48.048 | BN86: 0.8319262896 | BO86: 48.87992629 | BP86: 48.38287468 | BQ86: 4.355 | BR86: 0.07540457441 | BS86: 4.430404574 | BT86: 4.385352548 | BU86: 242.746 | BV86: 4.203021543 | BW86: 246.9490215 | BX86: 244.4378392 | BY86: 30.504 | BZ86: 0.528160996 | CA86: 31.032161 | CB86: 30.71660026 | CC86: 133.256 | CD86: 2.307258776 | CE86: 135.5632588 | CF86: 134.1847392 | CG86: 101.068 | CH86: 1.74994019 | CI86: 102.8179402 | CJ86: 101.7724021 | CK86: 559.977 | CL86: 9.695712368 | CM86: 569.6727124 | CN86: 563.879808
A87: 2021-04-04 | B87: 3 | C87: Off | D87: 17.599748 | E87: 0.010235888 | G87: 6.138 | H87: 0.1384236327 | I87: 6.276423633 | J87: 6.212178863 | K87: 0.638 | L87: 0.01438811953 | M87: 0.6523881195 | N87: 0.6457103478 | O87: 15.234 | P87: 0.3435558195 | Q87: 15.57755582 | R87: 15.4181057 | S87: 3.374 | T87: 0.07609014934 | U87: 3.450090149 | V87: 3.414775413 | W87: 3.006 | X87: 0.06779104592 | Y87: 3.073791046 | Z87: 3.042328065 | AA87: 0 | AB87: 0 | AC87: 0 | AD87: 0 | AE87: 28.39 | AF87: 0.640248767 | AG87: 29.03024877 | AH87: 28.73309839 | AJ87: 41.571 | AK87: 0.9375055123 | AL87: 42.50850551 | AM87: 42.07339321 | AN87: 3.632 | AO87: 0.08190854251 | AP87: 3.713908543 | AQ87: 3.675893391 | AR87: 225.941 | AS87: 5.095401432 | AT87: 231.0364014 | AU87: 228.6715387 | AV87: 27.015 | AW87: 0.6092398887 | AX87: 27.62423989 | AY87: 27.34148126 | AZ87: 129.702 | BA87: 2.925028023 | BB87: 132.627028 | BC87: 131.2694726 | BD87: 100.718 | BE87: 2.271383421 | BF87: 102.9893834 | BG87: 101.9351956 | BH87: 528.579 | BI87: 11.92046682 | BJ87: 540.4994668 | BK87: 534.9669748 | BM87: 47.709 | BN87: 1.075929145 | BO87: 48.78492914 | BP87: 48.28557207 | BQ87: 4.27 | BR87: 0.09629666203 | BS87: 4.366296662 | BT87: 4.321603738 | BU87: 241.175 | BV87: 5.438957252 | BW87: 246.6139573 | BX87: 244.0896444 | BY87: 30.389 | BZ87: 0.6853300381 | CA87: 31.07433004 | CB87: 30.75625668 | CC87: 132.708 | CD87: 2.992819069 | CE87: 135.7008191 | CF87: 134.3118007 | CG87: 100.718 | CH87: 2.271383421 | CI87: 102.9893834 | CJ87: 101.9351956 | CK87: 556.969 | CL87: 12.56071559 | CM87: 569.5297156 | CN87: 563.7000732
A88: 2021-04-04 | B88: 4 | C88: Off | D88: 17.385667 | E88: 0.010240368 | G88: 6.15 | H88: 0.1239853039 | I88: 6.273985304 | J88: 6.209737386 | K88: 0.674 | L88: 0.0135879829 | M88: 0.6875879829 | N88: 0.6805468289 | O88: 15.314 | P88: 0.3087334868 | Q88: 15.62273349 | R88: 15.46275095 | S88: 3.358 | T88: 0.06769799194 | U88: 3.425697992 | V88: 3.390617584 | W88: 2.986 | X88: 0.06019839307 | Y88: 3.046198393 | Z88: 3.015004201 | AA88: 0 | AB88: 0 | AC88: 0 | AD88: 0 | AE88: 28.482 | AF88: 0.5742031585 | AG88: 29.05620316 | AH88: 28.75865695 | AJ88: 41.797 | AK88: 0.8426363815 | AL88: 42.63963638 | AM88: 42.20299081 | AN88: 3.563 | AO88: 0.0718308354 | AP88: 3.634830835 | AQ88: 3.59760883 | AR88: 226.807 | AS88: 4.572477206 | AT88: 231.3794772 | AU88: 229.0100662 | AV88: 27.241 | AW88: 0.5491843354 | AX88: 27.79018434 | AY88: 27.50560262 | AZ88: 122.548 | BA88: 2.470593662 | BB88: 125.0185937 | BC88: 123.7383573 | BD88: 100.779 | BE88: 2.031726006 | BF88: 102.810726 | BG88: 101.7579063 | BH88: 522.735 | BI88: 10.53844843 | BJ88: 533.2734484 | BK88: 527.8125321 | BM88: 47.947 | BN88: 0.9666216853 | BO88: 48.91362169 | BP88: 48.4127282 | BQ88: 4.237 | BR88: 0.0854188183 | BS88: 4.322418818 | BT88: 4.278155659 | BU88: 242.121 | BV88: 4.881210693 | BW88: 247.0022107 | BX88: 244.4728172 | BY88: 30.599 | BZ88: 0.6168823274 | CA88: 31.21588233 | CB88: 30.8962202 | CC88: 125.534 | CD88: 2.530792055 | CE88: 128.0647921 | CF88: 126.7533615 | CG88: 100.779 | CH88: 2.031726006 | CI88: 102.810726 | CJ88: 101.7579063 | CK88: 551.217 | CL88: 11.11265158 | CM88: 562.3296516 | CN88: 556.571189
A89: 2021-04-04 | B89: 5 | C89: Off | D89: 18.314341 | E89: 0.010122763 | G89: 6.206 | H89: 0.1512254402 | I89: 6.35722544 | J89: 6.292872754 | K89: 0.672 | L89: 0.01637503961 | M89: 0.6883750396 | N89: 0.6814067822 | O89: 15.304 | P89: 0.372922033 | Q89: 15.67692203 | R89: 15.51822827 | S89: 3.358 | T89: 0.08182646281 | U89: 3.439826463 | V89: 3.405005915 | W89: 3.01 | X89: 0.07334653158 | Y89: 3.083346532 | Z89: 3.052134545 | AA89: 0 | AB89: 0 | AC89: 0 | AD89: 0 | AE89: 28.55 | AF89: 0.6956955072 | AG89: 29.24569551 | AH89: 28.94964826 | AJ89: 42.358 | AK89: 1.032163583 | AL89: 43.39016358 | AM89: 42.95093524 | AN89: 3.607 | AO89: 0.0878939998 | AP89: 3.694894 | AQ89: 3.657491464 | AR89: 226.376 | AS89: 5.516243998 | AT89: 231.892244 | AU89: 229.5448538 | AV89: 27.61 | AW89: 0.6727899458 | AX89: 28.28278995 | AY89: 27.99648997 | AZ89: 132.839 | BA89: 3.236970069 | BB89: 136.0759701 | BC89: 134.6985053 | BD89: 99.892 | BE89: 2.434130144 | BF89: 102.3261301 | BG89: 101.290307 | BH89: 532.682 | BI89: 12.98019174 | BJ89: 545.6621917 | BK89: 540.1385827 | BM89: 48.564 | BN89: 1.183389023 | BO89: 49.74738902 | BP89: 49.24380799 | BQ89: 4.279 | BR89: 0.1042690394 | BS89: 4.383269039 | BT89: 4.338898246 | BU89: 241.68 | BV89: 5.889166031 | BW89: 247.569166 | BX89: 245.063082 | BY89: 30.968 | BZ89: 0.7546164086 | CA89: 31.72261641 | CB89: 31.40149588 | CC89: 135.849 | CD89: 3.310316601 | CE89: 139.1593166 | CF89: 137.7506398 | CG89: 99.892 | CH89: 2.434130144 | CI89: 102.3261301 | CJ89: 101.290307 | CK89: 561.232 | CL89: 13.67588725 | CM89: 574.9078872 | CN89: 569.088231
A90: 2021-04-04 | B90: 6 | C90: Off | D90: 19.34081 | E90: 0.010123021 | G90: 6.194 | H90: 0.1132804726 | I90: 6.307280473 | J90: 6.24343174 | K90: 0.646 | L90: 0.01181452782 | M90: 0.6578145278 | N90: 0.6511554575 | O90: 15.52 | P90: 0.2838412876 | Q90: 15.80384129 | R90: 15.64385867 | S90: 3.384 | T90: 0.06188910549 | U90: 3.445889105 | V90: 3.411006298 | W90: 3.07 | X90: 0.05614644027 | Y90: 3.12614644 | Z90: 3.094500394 | AA90: 0 | AB90: 0 | AC90: 0 | AD90: 0 | AE90: 28.814 | AF90: 0.5269718338 | AG90: 29.34097183 | AH90: 29.04395256 | AJ90: 43.595 | AK90: 0.7972977405 | AL90: 44.39229774 | AM90: 43.94291358 | AN90: 3.822 | AO90: 0.06989957482 | AP90: 3.891899575 | AQ90: 3.852501794 | AR90: 227.463 | AS90: 4.160012294 | AT90: 231.6230123 | AU90: 229.2782877 | AV90: 28.374 | AW90: 0.518924787 | AX90: 28.89292479 | AY90: 28.6004411 | AZ90: 134.437 | BA90: 2.45868371 | BB90: 136.8956837 | BC90: 135.5098858 | BD90: 99.789 | BE90: 1.825015351 | BF90: 101.6140154 | BG90: 100.5853745 | BH90: 537.48 | BI90: 9.829833457 | BJ90: 547.3098335 | BK90: 541.7694045 | BM90: 49.789 | BN90: 0.9105782132 | BO90: 50.69957821 | BP90: 50.18634532 | BQ90: 4.468 | BR90: 0.08171410264 | BS90: 4.549714103 | BT90: 4.503657251 | BU90: 242.983 | BV90: 4.443853581 | BW90: 247.4268536 | BX90: 244.9221463 | BY90: 31.758 | BZ90: 0.5808138925 | CA90: 32.33881389 | CB90: 32.0114474 | CC90: 137.507 | CD90: 2.51483015 | CE90: 140.0218302 | CF90: 138.6043862 | CG90: 99.789 | CH90: 1.825015351 | CI90: 101.6140154 | CJ90: 100.5853745 | CK90: 566.294 | CL90: 10.35680529 | CM90: 576.6508053 | CN90: 570.8133571
A91: 2021-04-04 | B91: 7 | C91: Off | D91: 20.458492 | E91: 0.009849901 | G91: 6.348 | H91: 0.1061995437 | I91: 6.454199544 | J91: 6.390626317 | K91: 0.656 | L91: 0.01097462203 | M91: 0.666974622 | N91: 0.660404988 | O91: 15.768 | P91: 0.2637924393 | Q91: 16.03179244 | R91: 15.87388087 | S91: 3.48 | T91: 0.0582190315 | U91: 3.538219031 | V91: 3.503367924 | W91: 3.246 | X91: 0.05430430352 | Y91: 3.300304304 | Z91: 3.267796633 | AA91: 0 | AB91: 0 | AC91: 0 | AD91: 0 | AE91: 29.498 | AF91: 0.49348994 | AG91: 29.99148994 | AH91: 29.69607673 | AJ91: 44.71 | AK91: 0.7479807179 | AL91: 45.45798072 | AM91: 45.01022411 | AN91: 4.502 | AO91: 0.0753166896 | AP91: 4.57731669 | AQ91: 4.532230573 | AR91: 231.874 | AS91: 3.879160836 | AT91: 235.7531608 | AU91: 233.4310155 | AV91: 28.836 | AW91: 0.4824149403 | AX91: 29.31841494 | AY91: 29.02963146 | AZ91: 133.557 | BA91: 2.234356089 | BB91: 135.7913561 | BC91: 134.4538247 | BD91: 99.527 | BE91: 1.665047571 | BF91: 101.1920476 | BG91: 100.1953159 | BH91: 543.006 | BI91: 9.084276844 | BJ91: 552.0902768 | BK91: 546.6522423 | BM91: 51.058 | BN91: 0.8541802616 | BO91: 51.91218026 | BP91: 51.40085043 | BQ91: 5.158 | BR91: 0.08629131163 | BS91: 5.244291312 | BT91: 5.192635561 | BU91: 247.642 | BV91: 4.142953275 | BW91: 251.7849533 | BX91: 249.3048964 | BY91: 32.316 | BZ91: 0.5406339718 | CA91: 32.85663397 | CB91: 32.53299938 | CC91: 136.803 | CD91: 2.288660393 | CE91: 139.0916604 | CF91: 137.7216213 | CG91: 99.527 | CH91: 1.665047571 | CI91: 101.1920476 | CJ91: 100.1953159 | CK91: 572.504 | CL91: 9.577766784 | CM91: 582.0817668 | CN91: 576.348319
A92: 2021-04-04 | B92: 8 | C92: Off | D92: 22.798794 | E92: 0.00972727 | G92: 6.234 | H92: 0.05815425832 | I92: 6.292154258 | J92: 6.230948775 | K92: 0.654 | L92: 0.006100879843 | M92: 0.6601008798 | N92: 0.6536799004 | O92: 15.284 | P92: 0.1425777485 | Q92: 15.42657775 | R92: 15.27651926 | S92: 3.458 | T92: 0.03225816896 | U92: 3.490258169 | V92: 3.456307485 | W92: 3.238 | X92: 0.03020588522 | Y92: 3.268205885 | Z92: 3.236415164 | AA92: 0 | AB92: 0 | AC92: 0 | AD92: 0 | AE92: 28.868 | AF92: 0.2692969408 | AG92: 29.13729694 | AH92: 28.85387059 | AJ92: 44.684 | AK92: 0.4168374846 | AL92: 45.10083748 | AM92: 44.66212946 | AN92: 4.587 | AO92: 0.04279011596 | AP92: 4.629790116 | AQ92: 4.584754897 | AR92: 234.286 | AS92: 2.185551583 | AT92: 236.4715516 | AU92: 234.171329 | AV92: 28.882 | AW92: 0.2694275407 | AX92: 29.15142754 | AY92: 28.86786373 | AZ92: 126.513 | BA92: 1.180184421 | BB92: 127.6931844 | BC92: 126.4510783 | BD92: 98.278 | BE92: 0.9167924606 | BF92: 99.19479246 | BG92: 98.22989793 | BH92: 537.23 | BI92: 5.011583606 | BJ92: 542.2415836 | BK92: 536.9670533 | BM92: 50.918 | BN92: 0.4749917429 | BO92: 51.39299174 | BP92: 50.89307824 | BQ92: 5.241 | BR92: 0.04889099581 | BS92: 5.289890996 | BT92: 5.238434798 | BU92: 249.57 | BV92: 2.328129331 | BW92: 251.8981293 | BX92: 249.4478482 | BY92: 32.34 | BZ92: 0.3016857097 | CA92: 32.64168571 | CB92: 32.32417122 | CC92: 129.751 | CD92: 1.210390307 | CE92: 130.9613903 | CF92: 129.6874935 | CG92: 98.278 | CH92: 0.9167924606 | CI92: 99.19479246 | CJ92: 98.22989793 | CK92: 566.098 | CL92: 5.280880547 | CM92: 571.3788805 | CN92: 565.8209239
A93: 2021-04-04 | B93: 9 | C93: Off | D93: 20.7401 | E93: 0.009562146 | G93: 6.162 | H93: 0.0262523827 | I93: 6.188252383 | J93: 6.12907941 | K93: 0.616 | L93: 0.002624386197 | M93: 0.6186243862 | N93: 0.6127090095 | O93: 15.054 | P93: 0.06413556787 | Q93: 15.11813557 | R93: 14.97357375 | S93: 3.466 | T93: 0.01476643272 | U93: 3.480766433 | V93: 3.447482836 | W93: 3.23 | X93: 0.01376098606 | Y93: 3.243760986 | Z93: 3.21274367 | AA93: 0 | AB93: 0 | AC93: 0 | AD93: 0 | AE93: 28.528 | AF93: 0.1215397556 | AG93: 28.64953976 | AH93: 28.37558867 | AJ93: 44.883 | AK93: 0.1912180612 | AL93: 45.07421806 | AM93: 44.64321181 | AN93: 4.542 | AO93: 0.01935058783 | AP93: 4.561350588 | AQ93: 4.517734288 | AR93: 236.183 | AS93: 1.006226307 | AT93: 237.1892263 | AU93: 234.9211883 | AV93: 28.04 | AW93: 0.1194606964 | AX93: 28.1594607 | AY93: 27.89019582 | AZ93: 121.895 | BA93: 0.5193174602 | BB93: 122.4143175 | BC93: 121.2437739 | BD93: 98.272 | BE93: 0.4186748057 | BF93: 98.69067481 | BG93: 97.74698016 | BH93: 533.815 | BI93: 2.274247918 | BJ93: 536.0892479 | BK93: 530.9630843 | BM93: 51.045 | BN93: 0.2174704439 | BO93: 51.26247044 | BP93: 50.77229122 | BQ93: 5.158 | BR93: 0.02197497403 | BS93: 5.179974974 | BT93: 5.130443297 | BU93: 251.237 | BV93: 1.070361875 | BW93: 252.3073619 | BX93: 249.894762 | BY93: 31.506 | BZ93: 0.1342271291 | CA93: 31.64022713 | CB93: 31.33767866 | CC93: 125.125 | CD93: 0.5330784462 | CE93: 125.6580784 | CF93: 124.4565176 | CG93: 98.272 | CH93: 0.4186748057 | CI93: 98.69067481 | CJ93: 97.74698016 | CK93: 562.343 | CL93: 2.395787674 | CM93: 564.7387877 | CN93: 559.3386729
A94: 2021-04-04 | B94: 10 | C94: Off | D94: 19.484552 | E94: 0.009484841 | G94: 6.084 | H94: 0.01630198631 | I94: 6.100301986 | J94: 6.042441592 | K94: 0.726 | L94: 0.001945306059 | M94: 0.7279453061 | N94: 0.7210408606 | O94: 14.68 | P94: 0.03933483877 | Q94: 14.71933484 | R94: 14.57972429 | S94: 3.398 | T94: 0.009104889791 | U94: 3.40710489 | V94: 3.374789042 | W94: 3.248 | X94: 0.008702967052 | Y94: 3.256702967 | Z94: 3.225813657 | AA94: 0 | AB94: 0 | AC94: 0 | AD94: 0 | AE94: 28.136 | AF94: 0.07538998798 | AG94: 28.21138999 | AH94: 27.94380944 | AJ94: 44.497 | AK94: 0.1192290409 | AL94: 44.61622904 | AM94: 44.1930512 | AN94: 4.44 | AO94: 0.01189691309 | AP94: 4.451896913 | AQ94: 4.409671379 | AR94: 236.742 | AS94: 0.6343466212 | AT94: 237.3763466 | AU94: 235.1248697 | AV94: 26.984 | AW94: 0.07230322134 | AX94: 27.05630322 | AY94: 26.79967849 | AZ94: 126.246 | BA94: 0.3382742544 | BB94: 126.5842743 | BC94: 125.3836425 | BD94: 99.394 | BE94: 0.2663247251 | BF94: 99.66032473 | BG94: 98.71506239 | BH94: 538.303 | BI94: 1.442374776 | BJ94: 539.7453748 | BK94: 534.6259757 | BM94: 50.581 | BN94: 0.1355310272 | BO94: 50.71653103 | BP94: 50.23549279 | BQ94: 5.166 | BR94: 0.01384221915 | BS94: 5.179842219 | BT94: 5.130712239 | BU94: 251.422 | BV94: 0.67368146 | BW94: 252.0956815 | BX94: 249.704594 | BY94: 30.382 | BZ94: 0.08140811113 | CA94: 30.46340811 | CB94: 30.17446753 | CC94: 129.494 | CD94: 0.3469772215 | CE94: 129.8409772 | CF94: 128.6094562 | CG94: 99.394 | CH94: 0.2663247251 | CI94: 99.66032473 | CJ94: 98.71506239 | CK94: 566.439 | CL94: 1.517764764 | CM94: 567.9567648 | CN94: 562.5697852
A95: 2021-04-04 | B95: 11 | C95: Off | D95: 18.342577 | E95: 0.009313739 | G95: 6.036 | H95: 0.04477439092 | I95: 6.080774391 | J95: 6.024139645 | K95: 0.722 | L95: 0.005355717403 | M95: 0.7273557174 | N95: 0.7205813161 | O95: 14.694 | P95: 0.1089984924 | Q95: 14.80299849 | R95: 14.66512723 | S95: 3.468 | T95: 0.02572524647 | U95: 3.493725246 | V95: 3.461185601 | W95: 3.15 | X95: 0.02336635709 | Y95: 3.173366357 | Z95: 3.143810451 | AA95: 0 | AB95: 0 | AC95: 0 | AD95: 0 | AE95: 28.07 | AF95: 0.2082202043 | AG95: 28.2782202 | AH95: 28.01484424 | AJ95: 44.823 | AK95: 0.3324921346 | AL95: 45.15549213 | AM95: 44.73492567 | AN95: 4.217 | AO95: 0.03128124694 | AP95: 4.248281247 | AQ95: 4.208713864 | AR95: 239.554 | AS95: 1.776985494 | AT95: 241.3309855 | AU95: 239.0832917 | AV95: 26.171 | AW95: 0.194133629 | AX95: 26.36513363 | AY95: 26.11957566 | AZ95: 131.589 | BA95: 0.9761128772 | BB95: 132.5651129 | BC95: 131.330436 | BD95: 100.757 | BE95: 0.7474044576 | BF95: 101.5044045 | BG95: 100.5590189 | BH95: 547.111 | BI95: 4.05840984 | BJ95: 551.1694098 | BK95: 546.0359618 | BM95: 50.859 | BN95: 0.3772665255 | BO95: 51.23626653 | BP95: 50.75906531 | BQ95: 4.939 | BR95: 0.03663696434 | BS95: 4.975636964 | BT95: 4.92929518 | BU95: 254.248 | BV95: 1.885983987 | BW95: 256.133984 | BX95: 253.7484189 | BY95: 29.639 | BZ95: 0.2198588755 | CA95: 29.85885888 | CB95: 29.58076126 | CC95: 134.739 | CD95: 0.9994792343 | CE95: 135.7384792 | CF95: 134.4742465 | CG95: 100.757 | CH95: 0.7474044576 | CI95: 101.5044045 | CJ95: 100.5590189 | CK95: 575.181 | CL95: 4.266630044 | CM95: 579.44763 | CN95: 574.0508061
A96: 2021-04-04 | B96: 12 | C96: Off | D96: 18.20209 | E96: 0.009435451 | G96: 6.018 | H96: 0.0352729329 | I96: 6.053272933 | J96: 5.996157573 | K96: 0.718 | L96: 0.004208369197 | M96: 0.7222083692 | N96: 0.7153940075 | O96: 14.622 | P96: 0.0857030284 | Q96: 14.70770303 | R96: 14.56892922 | S96: 3.456 | T96: 0.02025644003 | U96: 3.47625644 | V96: 3.443456393 | W96: 3.156 | X96: 0.0184980685 | Y96: 3.174498069 | Z96: 3.144545248 | AA96: 0 | AB96: 0 | AC96: 0 | AD96: 0 | AE96: 27.97 | AF96: 0.163938839 | AG96: 28.13393884 | AH96: 27.86848244 | AJ96: 44.817 | AK96: 0.262683123 | AL96: 45.07968312 | AM96: 44.65433598 | AN96: 4.078 | AO96: 0.02390213034 | AP96: 4.10190213 | AQ96: 4.063198834 | AR96: 242.386 | AS96: 1.420682139 | AT96: 243.8066821 | AU96: 241.5062561 | AV96: 25.879 | AW96: 0.1516829895 | AX96: 26.03068299 | AY96: 25.78507176 | AZ96: 124.295 | BA96: 0.7285226313 | BB96: 125.0235226 | BC96: 123.8438693 | BD96: 101.966 | BE96: 0.5976470383 | BF96: 102.563647 | BG96: 101.5959128 | BH96: 543.421 | BI96: 3.185120052 | BJ96: 546.6061201 | BK96: 541.4486448 | BM96: 50.835 | BN96: 0.2979560559 | BO96: 51.13295606 | BP96: 50.65049355 | BQ96: 4.796 | BR96: 0.02811049954 | BS96: 4.8241105 | BT96: 4.778592841 | BU96: 257.008 | BV96: 1.506385168 | BW96: 258.5143852 | BX96: 256.0751854 | BY96: 29.335 | BZ96: 0.1719394295 | CA96: 29.50693943 | CB96: 29.22852815 | CC96: 127.451 | CD96: 0.7470206998 | CE96: 128.1980207 | CF96: 126.9884146 | CG96: 101.966 | CH96: 0.5976470383 | CI96: 102.563647 | CJ96: 101.5959128 | CK96: 571.391 | CL96: 3.349058891 | CM96: 574.7400589 | CN96: 569.3171272
A97: 2021-04-04 | B97: 13 | C97: Off | D97: 17.577883 | E97: 0.009399882 | G97: 5.988 | H97: 0.03998972166 | I97: 6.027989722 | J97: 5.97132733 | K97: 0.722 | L97: 0.004821739986 | M97: 0.72682174 | N97: 0.7199897014 | O97: 14.39 | P97: 0.09610088421 | Q97: 14.48610088 | R97: 14.34993325 | S97: 3.496 | T97: 0.02334737256 | U97: 3.519347373 | V97: 3.486265923 | W97: 3.158 | X97: 0.02109010371 | Y97: 3.179090104 | Z97: 3.149207032 | AA97: 0 | AB97: 0 | AC97: 0 | AD97: 0 | AE97: 27.754 | AF97: 0.1853498221 | AG97: 27.93934982 | AH97: 27.67672323 | AJ97: 45.161 | AK97: 0.3015991683 | AL97: 45.46259917 | AM97: 45.0352561 | AN97: 4.046 | AO97: 0.02702044319 | AP97: 4.073020443 | AQ97: 4.034734532 | AR97: 244.595 | AS97: 1.633481291 | AT97: 246.2284813 | AU97: 243.9139626 | AV97: 25.826 | AW97: 0.17247404 | AX97: 25.99847404 | AY97: 25.75409145 | AZ97: 130.688 | BA97: 0.8727750073 | BB97: 131.560775 | BC97: 130.3241192 | BD97: 102.912 | BE97: 0.6872782624 | BF97: 103.5992783 | BG97: 102.6254573 | BH97: 553.228 | BI97: 3.694628212 | BJ97: 556.9226282 | BK97: 551.6876212 | BM97: 51.149 | BN97: 0.34158889 | BO97: 51.49058889 | BP97: 51.00658343 | BQ97: 4.768 | BR97: 0.03184218318 | BS97: 4.799842183 | BT97: 4.754724233 | BU97: 258.985 | BV97: 1.729582175 | BW97: 260.7145822 | BX97: 258.2638959 | BY97: 29.322 | BZ97: 0.1958214126 | CA97: 29.51782141 | CB97: 29.24035737 | CC97: 133.846 | CD97: 0.893865111 | CE97: 134.7398651 | CF97: 133.4733263 | CG97: 102.912 | CH97: 0.6872782624 | CI97: 103.5992783 | CJ97: 102.6254573 | CK97: 580.982 | CL97: 3.879978034 | CM97: 584.861978 | CN97: 579.3643445
A98: 2021-04-04 | B98: 14 | C98: Off | D98: 16.440748 | E98: 0.009467556 | G98: 5.964 | H98: 0.04658895478 | I98: 6.010588955 | J98: 5.953683367 | K98: 0.7 | L98: 0.005468187181 | M98: 0.7054681872 | N98: 0.6987891276 | O98: 13.738 | P98: 0.1073170793 | Q98: 13.84531708 | R98: 13.71423576 | S98: 3.48 | T98: 0.02718470199 | U98: 3.507184702 | V98: 3.473980234 | W98: 3.164 | X98: 0.02471620606 | Y98: 3.188716206 | Z98: 3.158526857 | AA98: 0 | AB98: 0 | AC98: 0 | AD98: 0 | AE98: 27.046 | AF98: 0.2112751293 | AG98: 27.25727513 | AH98: 26.99921535 | AJ98: 45.356 | AK98: 0.3543072825 | AL98: 45.71030728 | AM98: 45.27754239 | AN98: 3.926 | AO98: 0.03066871839 | AP98: 3.956668718 | AQ98: 3.919208736 | AR98: 245.936 | AS98: 1.921177261 | AT98: 247.8571773 | AU98: 245.5105756 | AV98: 25.815 | AW98: 0.2016589315 | AX98: 26.01665893 | AY98: 25.77034476 | AZ98: 131.776 | BA98: 1.029394049 | BB98: 132.805394 | BC98: 131.5480515 | BD98: 104.276 | BE98: 0.8145724093 | BF98: 105.0905724 | BG98: 104.0956215 | BH98: 557.085 | BI98: 4.351778651 | BJ98: 561.4367787 | BK98: 556.1213445 | BM98: 51.32 | BN98: 0.4008962373 | BO98: 51.72089624 | BP98: 51.23122576 | BQ98: 4.626 | BR98: 0.03613690557 | BS98: 4.662136906 | BT98: 4.617997863 | BU98: 259.674 | BV98: 2.02849434 | BW98: 261.7024943 | BX98: 259.2248113 | BY98: 29.295 | BZ98: 0.2288436335 | CA98: 29.52384363 | CB98: 29.24432499 | CC98: 134.94 | CD98: 1.054110255 | CE98: 135.9941103 | CF98: 134.7065784 | CG98: 104.276 | CH98: 0.8145724093 | CI98: 105.0905724 | CJ98: 104.0956215 | CK98: 584.131 | CL98: 4.56305378 | CM98: 588.6940538 | CN98: 583.1205599
A99: 2021-04-04 | B99: 15 | C99: Off | D99: 16.206011 | E99: 0.009560198 | G99: 5.946 | H99: 0.04380594229 | I99: 5.989805942 | J99: 5.932542211 | K99: 0.71 | L99: 0.005230780192 | M99: 0.7152307802 | N99: 0.7083930323 | O99: 13.376 | P99: 0.09854495191 | Q99: 13.47454495 | R99: 13.34572563 | S99: 3.578 | T99: 0.02636018525 | U99: 3.604360185 | V99: 3.569901788 | W99: 3.156 | X99: 0.02325118632 | Y99: 3.179251186 | Z99: 3.148856915 | AA99: 0 | AB99: 0 | AC99: 0 | AD99: 0 | AE99: 26.766 | AF99: 0.197193046 | AG99: 26.96319305 | AH99: 26.70541958 | AJ99: 44.967 | AK99: 0.3312852013 | AL99: 45.2982852 | AM99: 44.86522463 | AN99: 3.842 | AO99: 0.02830515141 | AP99: 3.870305151 | AQ99: 3.833304268 | AR99: 246.75 | AS99: 1.817880299 | AT99: 248.5678803 | AU99: 246.1915221 | AV99: 25.706 | AW99: 0.1893837121 | AX99: 25.89538371 | AY99: 25.64781872 | AZ99: 124.718 | BA99: 0.9188344282 | BB99: 125.6368344 | BC99: 124.4357214 | BD99: 104.643 | BE99: 0.7709359601 | BF99: 105.413936 | BG99: 104.4061579 | BH99: 550.626 | BI99: 4.056624752 | BJ99: 554.6826248 | BK99: 549.379749 | BM99: 50.913 | BN99: 0.3750911436 | BO99: 51.28809114 | BP99: 50.79776684 | BQ99: 4.552 | BR99: 0.0335359316 | BS99: 4.585535932 | BT99: 4.5416973 | BU99: 260.126 | BV99: 1.916425251 | BW99: 262.0424253 | BX99: 259.5372478 | BY99: 29.284 | BZ99: 0.2157438974 | CA99: 29.4997439 | CB99: 29.2177205 | CC99: 127.874 | CD99: 0.9420856145 | CE99: 128.8160856 | CF99: 127.5845783 | CG99: 104.643 | CH99: 0.7709359601 | CI99: 105.413936 | CJ99: 104.4061579 | CK99: 577.392 | CL99: 4.253817798 | CM99: 581.6458178 | CN99: 576.0851686
A100: 2021-04-04 | B100: 16 | C100: Off | D100: 15.216293 | E100: 0.009605201 | G100: 6.02 | H100: 0.06227929873 | I100: 6.082279299 | J100: 6.023857784 | K100: 0.676 | L100: 0.006993489359 | M100: 0.6829934894 | N100: 0.6764331996 | O100: 13.28 | P100: 0.1373868915 | Q100: 13.41738689 | R100: 13.28851019 | S100: 3.644 | T100: 0.03769863199 | U100: 3.681698632 | V100: 3.646335177 | W100: 3.156 | X100: 0.03265007754 | Y100: 3.188650078 | Z100: 3.158022453 | AA100: 0 | AB100: 0 | AC100: 0 | AD100: 0 | AE100: 26.776 | AF100: 0.2770083892 | AG100: 27.05300839 | AH100: 26.79315881 | AJ100: 44.776 | AK100: 0.4632255614 | AL100: 45.23922556 | AM100: 44.80469371 | AN100: 3.821 | AO100: 0.03952976752 | AP100: 3.860529768 | AQ100: 3.823448603 | AR100: 245.479 | AS100: 2.539578069 | AT100: 248.0185781 | AU100: 245.6363098 | AV100: 25.588 | AW100: 0.2647180558 | AX100: 25.85271806 | AY100: 25.6043975 | AZ100: 128.45 | BA100: 1.328866432 | BB100: 129.7788664 | BC100: 128.5323143 | BD100: 105.204 | BE100: 1.0883773 | BF100: 106.2923773 | BG100: 105.2714177 | BH100: 553.318 | BI100: 5.724295185 | BJ100: 559.0422952 | BK100: 553.6725816 | BM100: 50.796 | BN100: 0.5255048602 | BO100: 51.32150486 | BP100: 50.82855149 | BQ100: 4.497 | BR100: 0.04652325687 | BS100: 4.543523257 | BT100: 4.499881803 | BU100: 258.759 | BV100: 2.67696496 | BW100: 261.435965 | BX100: 258.92482 | BY100: 29.232 | BZ100: 0.3024166878 | CA100: 29.53441669 | CB100: 29.25073268 | CC100: 131.606 | CD100: 1.36151651 | CE100: 132.9675165 | CF100: 131.6903368 | CG100: 105.204 | CH100: 1.0883773 | CI100: 106.2923773 | CJ100: 105.2714177 | CK100: 580.094 | CL100: 6.001303574 | CM100: 586.0953036 | CN100: 580.4657404
A101: 2021-04-04 | B101: 17 | C101: Off | D101: 15.52178 | E101: 0.009373205 | G101: 5.962 | H101: 0.06581059684 | I101: 6.027810597 | J101: 5.971310692 | K101: 0.708 | L101: 0.007815146354 | M101: 0.7158151464 | N101: 0.7091056642 | O101: 13.354 | P101: 0.1474060232 | Q101: 13.50140602 | R101: 13.37485458 | S101: 3.728 | T101: 0.04115094013 | U101: 3.76915094 | V101: 3.733821916 | W101: 3.164 | X101: 0.03492531506 | Y101: 3.198925315 | Z101: 3.168941132 | AA101: 0 | AB101: 0 | AC101: 0 | AD101: 0 | AE101: 26.916 | AF101: 0.2971080216 | AG101: 27.21310802 | AH101: 26.95803398 | AJ101: 44.653 | AK101: 0.4928950991 | AL101: 45.1458951 | AM101: 44.72273337 | AN101: 3.704 | AO101: 0.04088601991 | AP101: 3.74488602 | AQ101: 3.709784436 | AR101: 245.898 | AS101: 2.714306297 | AT101: 248.6123063 | AU101: 246.2820122 | AV101: 25.572 | AW101: 0.2822724895 | AX101: 25.85427249 | AY101: 25.61193509 | AZ101: 107.364 | BA101: 1.185120584 | BB101: 108.5491206 | BC101: 107.5316674 | BD101: 105.127 | BE101: 1.160427812 | BF101: 106.2874278 | BG101: 105.291174 | BH101: 532.318 | BI101: 5.875908301 | BJ101: 538.1939083 | BK101: 533.1493065 | BM101: 50.615 | BN101: 0.5587056959 | BO101: 51.1737057 | BP101: 50.69404406 | BQ101: 4.412 | BR101: 0.04870116626 | BS101: 4.460701166 | BT101: 4.4188901 | BU101: 259.252 | BV101: 2.86171232 | BW101: 262.1137123 | BX101: 259.6568668 | BY101: 29.3 | BZ101: 0.3234234296 | CA101: 29.62342343 | CB101: 29.34575701 | CC101: 110.528 | CD101: 1.220045899 | CE101: 111.7480459 | CF101: 110.7006086 | CG101: 105.127 | CH101: 1.160427812 | CI101: 106.2874278 | CJ101: 105.291174 | CK101: 559.234 | CL101: 6.173016323 | CM101: 565.4070163 | CN101: 560.1073405
A102: 2021-04-04 | B102: 18 | C102: Off | D102: 16.77496 | E102: 0.009095613 | G102: 5.908 | H102: 0.06170866827 | I102: 5.969708668 | J102: 5.915410509 | K102: 0.676 | L102: 0.007060775178 | M102: 0.6830607752 | N102: 0.6768479187 | O102: 13.372 | P102: 0.1396696534 | Q102: 13.51166965 | R102: 13.38877274 | S102: 3.756 | T102: 0.03923117096 | U102: 3.795231171 | V102: 3.760711217 | W102: 3.17 | X102: 0.03311043981 | Y102: 3.20311044 | Z102: 3.173976187 | AA102: 0 | AB102: 0 | AC102: 0 | AD102: 0 | AE102: 26.882 | AF102: 0.2807807076 | AG102: 27.16278071 | AH102: 26.91571857 | AJ102: 44.418 | AK102: 0.4639430649 | AL102: 44.88194306 | AM102: 44.47371428 | AN102: 3.6 | AO102: 0.0376017613 | AP102: 3.637601761 | AQ102: 3.604515543 | AR102: 244.357 | AS102: 2.552292663 | AT102: 246.9092927 | AU102: 244.6635013 | AV102: 25.637 | AW102: 0.2677767651 | AX102: 25.90477677 | AY102: 25.66915694 | AZ102: 106.753 | BA102: 1.115028007 | BB102: 107.868028 | BC102: 106.8869022 | BD102: 104.798 | BE102: 1.094608161 | BF102: 105.8926082 | BG102: 104.92945 | BH102: 529.563 | BI102: 5.531250422 | BJ102: 535.0942504 | BK102: 530.2272402 | BM102: 50.326 | BN102: 0.5256517331 | BO102: 50.85165173 | BP102: 50.38912479 | BQ102: 4.276 | BR102: 0.04466253648 | BS102: 4.320662536 | BT102: 4.281363462 | BU102: 257.729 | BV102: 2.691962316 | BW102: 260.4209623 | BX102: 258.052274 | BY102: 29.393 | BZ102: 0.3070079361 | CA102: 29.70000794 | CB102: 29.42986816 | CC102: 109.923 | CD102: 1.148138447 | CE102: 111.0711384 | CF102: 110.0608784 | CG102: 104.798 | CH102: 1.094608161 | CI102: 105.8926082 | CJ102: 104.92945 | CK102: 556.445 | CL102: 5.81203113 | CM102: 562.2570311 | CN102: 557.1429588
A103: 2021-04-04 | B103: 19 | C103: Off | D103: 18.502724 | E103: 0.009395309 | G103: 5.848 | H103: 0.08078825145 | I103: 5.928788251 | J103: 5.873085454 | K103: 0.614 | L103: 0.008482213816 | M103: 0.6224822138 | N103: 0.6166338011 | O103: 13.268 | P103: 0.1832931806 | Q103: 13.45129318 | R103: 13.32491412 | S103: 3.764 | T103: 0.05199845733 | U103: 3.815998457 | V103: 3.780145973 | W103: 3.16 | X103: 0.04365439032 | Y103: 3.20365439 | Z103: 3.173555067 | AA103: 0 | AB103: 0 | AC103: 0 | AD103: 0 | AE103: 26.654 | AF103: 0.3682164935 | AG103: 27.02221649 | AH103: 26.76833442 | AJ103: 44.318 | AK103: 0.6122390096 | AL103: 44.93023901 | AM103: 44.50810553 | AN103: 3.264 | AO103: 0.04509111709 | AP103: 3.309091117 | AQ103: 3.278001184 | AR103: 242.385 | AS103: 3.348471328 | AT103: 245.7334713 | AU103: 243.4247294 | AV103: 25.393 | AW103: 0.3507961815 | AX103: 25.74379618 | AY103: 25.50192526 | AZ103: 110.06 | BA103: 1.520443734 | BB103: 111.5804437 | BC103: 110.532111 | BD103: 103.883 | BE103: 1.435110452 | BF103: 105.3181105 | BG103: 104.3286143 | BH103: 529.303 | BI103: 7.312151823 | BJ103: 536.6151518 | BK103: 531.5734867 | BM103: 50.166 | BN103: 0.693027261 | BO103: 50.85902726 | BP103: 50.38119098 | BQ103: 3.878 | BR103: 0.05357333091 | BS103: 3.931573331 | BT103: 3.894634985 | BU103: 255.653 | BV103: 3.531764509 | BW103: 259.1847645 | BX103: 256.7496436 | BY103: 29.157 | BZ103: 0.4027946388 | CA103: 29.55979464 | CB103: 29.28207123 | CC103: 113.22 | CD103: 1.564098124 | CE103: 114.7840981 | CF103: 113.7056661 | CG103: 103.883 | CH103: 1.435110452 | CI103: 105.3181105 | CJ103: 104.3286143 | CK103: 555.957 | CL103: 7.680368316 | CM103: 563.6373683 | CN103: 558.3418211
A104: 2021-04-04 | B104: 20 | C104: Off | D104: 18.702977 | E104: 0.009478474 | G104: 5.916 | H104: 0.04031500871 | I104: 5.956315009 | J104: 5.899858232 | K104: 0.546 | L104: 0.003720756382 | M104: 0.5497207564 | N104: 0.5445102425 | O104: 13.648 | P104: 0.09300528041 | Q104: 13.74100528 | R104: 13.61076152 | S104: 3.706 | T104: 0.02525480431 | U104: 3.731254804 | V104: 3.695888203 | W104: 3.14 | X104: 0.02139775648 | Y104: 3.161397756 | Z104: 3.13143253 | AA104: 0 | AB104: 0 | AC104: 0 | AD104: 0 | AE104: 26.956 | AF104: 0.1836936063 | AG104: 27.13969361 | AH104: 26.88245073 | AJ104: 44.055 | AK104: 0.3002159751 | AL104: 44.35521598 | AM104: 43.93479621 | AN104: 3.347 | AO104: 0.02280837291 | AP104: 3.369808373 | AQ104: 3.337867732 | AR104: 240.67 | AS104: 1.640063074 | AT104: 242.3100631 | AU104: 240.0133334 | AV104: 24.826 | AW104: 0.1691785677 | AX104: 24.99517857 | AY104: 24.75826242 | AZ104: 124.045 | BA104: 0.8453135996 | BB104: 124.8903136 | BC104: 123.706544 | BD104: 103.043 | BE104: 0.7021939558 | BF104: 103.745194 | BG104: 102.7618478 | BH104: 539.986 | BI104: 3.679773545 | BJ104: 543.6657735 | BK104: 538.5126516 | BM104: 49.971 | BN104: 0.3405309838 | BO104: 50.31153098 | BP104: 49.83465445 | BQ104: 3.893 | BR104: 0.0265291293 | BS104: 3.919529129 | BT104: 3.882377974 | BU104: 254.318 | BV104: 1.733068355 | BW104: 256.0510684 | BX104: 253.624095 | BY104: 28.532 | BZ104: 0.194433372 | CA104: 28.72643337 | CB104: 28.45415062 | CC104: 127.185 | CD104: 0.8667113561 | CE104: 128.0517114 | CF104: 126.8379765 | CG104: 103.043 | CH104: 0.7021939558 | CI104: 103.745194 | CJ104: 102.7618478 | CK104: 566.942 | CL104: 3.863467152 | CM104: 570.8054672 | CN104: 565.3951024
A105: 2021-04-04 | B105: 21 | C105: Off | D105: 21.755357 | E105: 0.009405296 | G105: 5.892 | H105: 0.05956545605 | I105: 5.951565456 | J105: 5.895589221 | K105: 0.59 | L105: 0.005964633243 | M105: 0.5959646332 | N105: 0.5903594095 | O105: 14.192 | P105: 0.1434747034 | Q105: 14.3354747 | R105: 14.20064532 | S105: 3.776 | T105: 0.03817365276 | U105: 3.814173653 | V105: 3.778300221 | W105: 3.14 | X105: 0.03174398031 | Y105: 3.17174398 | Z105: 3.141912789 | AA105: 0 | AB105: 0 | AC105: 0 | AD105: 0 | AE105: 27.59 | AF105: 0.2789224257 | AG105: 27.86892243 | AH105: 27.60680696 | AJ105: 44.209 | AK105: 0.4469330018 | AL105: 44.655933 | AM105: 44.23593073 | AN105: 3.322 | AO105: 0.03358391802 | AP105: 3.355583918 | AQ105: 3.324023658 | AR105: 240.765 | AS105: 2.434025293 | AT105: 243.1990253 | AU105: 240.9116665 | AV105: 24.758 | AW105: 0.2502921862 | AX105: 25.00829219 | AY105: 24.7730818 | AZ105: 130.665 | BA105: 1.320964072 | BB105: 131.9859641 | BC105: 130.744597 | BD105: 102.719 | BE105: 1.038442648 | BF105: 103.7574426 | BG105: 102.7815732 | BH105: 546.438 | BI105: 5.524241119 | BJ105: 551.9622411 | BK105: 546.7708729 | BM105: 50.101 | BN105: 0.5064984578 | BO105: 50.60749846 | BP105: 50.13151996 | BQ105: 3.912 | BR105: 0.03954855127 | BS105: 3.951548551 | BT105: 3.914383067 | BU105: 254.957 | BV105: 2.577499996 | BW105: 257.5345 | BX105: 255.1123118 | BY105: 28.534 | BZ105: 0.2884658389 | CA105: 28.82246584 | CB105: 28.55138202 | CC105: 133.805 | CD105: 1.352708053 | CE105: 135.1577081 | CF105: 133.8865098 | CG105: 102.719 | CH105: 1.038442648 | CI105: 103.7574426 | CJ105: 102.7815732 | CK105: 574.028 | CL105: 5.803163545 | CM105: 579.8311635 | CN105: 574.3776798
A106: 2021-04-04 | B106: 22 | C106: Off | D106: 18.718733 | E106: 0.009247287 | G106: 5.926 | H106: 0.1258661908 | I106: 6.051866191 | J106: 5.995902847 | K106: 0.55 | L106: 0.01168180981 | M106: 0.5616818098 | N106: 0.5564877769 | O106: 14.414 | P106: 0.3061483758 | Q106: 14.72014838 | R106: 14.58402694 | S106: 3.696 | T106: 0.07850176196 | U106: 3.774501762 | V106: 3.739597861 | W106: 3.138 | X106: 0.06665003491 | Y106: 3.204650035 | Z106: 3.175015716 | AA106: 0 | AB106: 0 | AC106: 0 | AD106: 0 | AE106: 27.724 | AF106: 0.5888481733 | AG106: 28.31284817 | AH106: 28.05103114 | AJ106: 43.735 | AK106: 0.9289162768 | AL106: 44.66391628 | AM106: 44.25089622 | AN106: 3.402 | AO106: 0.07225730362 | AP106: 3.474257304 | AQ106: 3.442129849 | AR106: 237.66 | AS106: 5.047816219 | AT106: 242.7078162 | AU106: 240.4634274 | AV106: 24.905 | AW106: 0.5289735881 | AX106: 25.43397359 | AY106: 25.19877833 | AZ106: 123.189 | BA106: 2.616491762 | BB106: 125.8054918 | BC106: 124.6421323 | BD106: 102.399 | BE106: 2.174919351 | BF106: 104.5739194 | BG106: 103.6068943 | BH106: 535.29 | BI106: 11.3693745 | BJ106: 546.6593745 | BK106: 541.6042584 | BM106: 49.661 | BN106: 1.054782468 | BO106: 50.71578247 | BP106: 50.24679907 | BQ106: 3.952 | BR106: 0.08393911343 | BS106: 4.035939113 | BT106: 3.998617626 | BU106: 252.074 | BV106: 5.353964595 | BW106: 257.4279646 | BX106: 255.0474543 | BY106: 28.601 | BZ106: 0.60747535 | CA106: 29.20847535 | CB106: 28.9383762 | CC106: 126.327 | CD106: 2.683141797 | CE106: 129.0101418 | CF106: 127.817148 | CG106: 102.399 | CH106: 2.174919351 | CI106: 104.5739194 | CJ106: 103.6068943 | CK106: 563.014 | CL106: 11.95822267 | CM106: 574.9722227 | CN106: 569.6552895
A107: 2021-04-04 | B107: 23 | C107: Off | D107: 17.714395 | E107: 0.009417906 | G107: 6 | H107: 0.1109394796 | I107: 6.11093948 | J107: 6.053387226 | K107: 0.55 | L107: 0.0101694523 | M107: 0.5601694523 | N107: 0.5548938291 | O107: 14.608 | P107: 0.270100653 | Q107: 14.87810065 | R107: 14.7379801 | S107: 3.516 | T107: 0.06501053505 | U107: 3.581010535 | V107: 3.547284914 | W107: 3.14 | X107: 0.05805832766 | Y107: 3.198058328 | Z107: 3.167939315 | AA107: 0 | AB107: 0 | AC107: 0 | AD107: 0 | AE107: 27.814 | AF107: 0.5142784476 | AG107: 28.32827845 | AH107: 28.06148538 | AJ107: 43.032 | AK107: 0.7956579477 | AL107: 43.82765795 | AM107: 43.41489318 | AN107: 3.406 | AO107: 0.06297664459 | AP107: 3.468976645 | AQ107: 3.436306149 | AR107: 235.777 | AS107: 4.359496281 | AT107: 240.1364963 | AU107: 237.8749133 | AV107: 24.558 | AW107: 0.45407529 | AX107: 25.01207529 | AY107: 24.77651392 | AZ107: 129.159 | BA107: 2.388138708 | BB107: 131.5471387 | BC107: 130.3082401 | BD107: 101.17 | BE107: 1.870624525 | BF107: 103.0406245 | BG107: 102.0701976 | BH107: 537.102 | BI107: 9.930969396 | BJ107: 547.0329694 | BK107: 541.8810643 | BM107: 49.032 | BN107: 0.9065974274 | BO107: 49.93859743 | BP107: 49.46828041 | BQ107: 3.956 | BR107: 0.07314609689 | BS107: 4.029146097 | BT107: 3.991199978 | BU107: 250.385 | BV107: 4.629596934 | BW107: 255.0145969 | BX107: 252.6128934 | BY107: 28.074 | BZ107: 0.5190858251 | CA107: 28.59308583 | CB107: 28.32379883 | CC107: 132.299 | CD107: 2.446197035 | CE107: 134.745197 | CF107: 133.4761794 | CG107: 101.17 | CH107: 1.870624525 | CI107: 103.0406245 | CJ107: 102.0701976 | CK107: 564.916 | CL107: 10.44524784 | CM107: 575.3612478 | CN107: 569.9425497
A108: 2021-04-04 | B108: 24 | C108: Off | D108: 16.5276 | E108: 0.009259063 | G108: 6.022 | H108: 0.1060470844 | I108: 6.128047084 | J108: 6.07130711 | K108: 0.558 | L108: 0.009826348903 | M108: 0.5678263489 | N108: 0.562568809 | O108: 14.604 | P108: 0.2571756261 | Q108: 14.86117563 | R108: 14.72357506 | S108: 3.406 | T108: 0.05997947018 | U108: 3.46597947 | V108: 3.433887748 | W108: 3.186 | X108: 0.05610528244 | Y108: 3.242105282 | Z108: 3.212086425 | AA108: 0 | AB108: 0 | AC108: 0 | AD108: 0 | AE108: 27.776 | AF108: 0.489133812 | AG108: 28.26513381 | AH108: 28.00342516 | AJ108: 42.422 | AK108: 0.7470490558 | AL108: 43.16904906 | AM108: 42.76934411 | AN108: 3.332 | AO108: 0.05867633431 | AP108: 3.390676334 | AQ108: 3.359281849 | AR108: 234.051 | AS108: 4.121625066 | AT108: 238.1726251 | AU108: 235.9673697 | AV108: 24.82 | AW108: 0.4370788168 | AX108: 25.25707882 | AY108: 25.02322193 | AZ108: 128.078 | BA108: 2.255446442 | BB108: 130.3334464 | BC108: 129.1266809 | BD108: 99.754 | BE108: 1.756662381 | BF108: 101.5106624 | BG108: 100.5707688 | BH108: 532.457 | BI108: 9.376538096 | BJ108: 541.8335381 | BK108: 536.8166672 | BM108: 48.444 | BN108: 0.8530961402 | BO108: 49.29709614 | BP108: 48.84065122 | BQ108: 3.89 | BR108: 0.06850268321 | BS108: 3.958502683 | BT108: 3.921850657 | BU108: 248.655 | BV108: 4.378800692 | BW108: 253.0338007 | BX108: 250.6909448 | BY108: 28.226 | BZ108: 0.497058287 | CA108: 28.72305829 | CB108: 28.45710968 | CC108: 131.264 | CD108: 2.311551725 | CE108: 133.5755517 | CF108: 132.3387673 | CG108: 99.754 | CH108: 1.756662381 | CI108: 101.5106624 | CJ108: 100.5707688 | CK108: 560.233 | CL108: 9.865671908 | CM108: 570.0986719 | CN108: 564.8200924
A109: 2021-04-05 | B109: 1 | C109: Off | D109: 15.834685 | E109: 0.008896757 | G109: 6.162 | H109: 0.1580249246 | I109: 6.320024925 | J109: 6.263797199 | K109: 0.604 | L109: 0.0154896226 | M109: 0.6194896226 | N109: 0.613978174 | O109: 14.674 | P109: 0.3763157649 | Q109: 15.05031576 | R109: 14.91641676 | S109: 3.4 | T109: 0.08719323979 | U109: 3.48719324 | V109: 3.456168529 | W109: 3.286 | X109: 0.08426970175 | Y109: 3.370269702 | Z109: 3.340285231 | AA109: 0 | AB109: 0 | AC109: 0 | AD109: 0 | AE109: 28.126 | AF109: 0.7212932536 | AG109: 28.84729325 | AH109: 28.5906459 | AJ109: 41.913 | AK109: 1.074861841 | AL109: 42.98786184 | AM109: 42.60540928 | AN109: 3.219 | AO109: 0.08255148202 | AP109: 3.301551482 | AQ109: 3.272178381 | AR109: 233.754 | AS109: 5.994637816 | AT109: 239.7486378 | AU109: 237.6156524 | AV109: 25.913 | AW109: 0.6645407126 | AX109: 26.57754071 | AY109: 26.34108679 | AZ109: 133.786 | BA109: 3.430951405 | BB109: 137.2169514 | BC109: 135.9961655 | BD109: 100.311 | BE109: 2.57248267 | BF109: 102.8834827 | BG109: 101.9681533 | BH109: 538.896 | BI109: 13.82002593 | BJ109: 552.7160259 | BK109: 547.7986458 | BM109: 48.075 | BN109: 1.232886766 | BO109: 49.30788677 | BP109: 48.86920648 | BQ109: 3.823 | BR109: 0.09804110462 | BS109: 3.921041105 | BT109: 3.886156555 | BU109: 248.428 | BV109: 6.370953581 | BW109: 254.7989536 | BX109: 252.5320692 | BY109: 29.313 | BZ109: 0.7517339523 | CA109: 30.06473395 | CB109: 29.79725532 | CC109: 137.072 | CD109: 3.515221107 | CE109: 140.5872211 | CF109: 139.3364508 | CG109: 100.311 | CH109: 2.57248267 | CI109: 102.8834827 | CJ109: 101.9681533 | CK109: 567.022 | CL109: 14.54131918 | CM109: 581.5633192 | CN109: 576.3892916
A110: 2021-04-05 | B110: 2 | C110: Off | D110: 16.172033 | E110: 0.009455596 | G110: 6.124 | H110: 0.1344726486 | I110: 6.258472649 | J110: 6.19929506 | K110: 0.6 | L110: 0.0131749819 | M110: 0.6131749819 | N110: 0.607377047 | O110: 14.692 | P110: 0.3226113901 | Q110: 15.01461139 | R110: 14.87263929 | S110: 3.426 | T110: 0.07522914665 | U110: 3.501229147 | V110: 3.468122938 | W110: 3.468 | X110: 0.07615139539 | Y110: 3.544151395 | Z110: 3.510639332 | AA110: 0 | AB110: 0 | AC110: 0 | AD110: 0 | AE110: 28.31 | AF110: 0.6216395627 | AG110: 28.93163956 | AH110: 28.65807367 | AJ110: 41.739 | AK110: 0.9165176159 | AL110: 42.65551762 | AM110: 42.25218427 | AN110: 3.279 | AO110: 0.07200127609 | AP110: 3.351001276 | AQ110: 3.319315562 | AR110: 232.115 | AS110: 5.09685154 | AT110: 237.2118515 | AU110: 234.9688721 | AV110: 26.92 | AW110: 0.5911175213 | AX110: 27.51111752 | AY110: 27.25098351 | AZ110: 132.631 | BA110: 2.912351708 | BB110: 135.5433517 | BC110: 134.2617085 | BD110: 102.015 | BE110: 2.240076298 | BF110: 104.2550763 | BG110: 103.2692824 | BH110: 538.699 | BI110: 11.82891596 | BJ110: 550.527916 | BK110: 545.3223464 | BM110: 47.863 | BN110: 1.050990265 | BO110: 48.91399026 | BP110: 48.45147933 | BQ110: 3.879 | BR110: 0.08517625799 | BS110: 3.964176258 | BT110: 3.926692609 | BU110: 246.807 | BV110: 5.41946293 | BW110: 252.2264629 | BX110: 249.8415114 | BY110: 30.346 | BZ110: 0.6663466679 | CA110: 31.01234667 | CB110: 30.71910645 | CC110: 136.099 | CD110: 2.988503103 | CE110: 139.0875031 | CF110: 137.7723479 | CG110: 102.015 | CH110: 2.240076298 | CI110: 104.2550763 | CJ110: 103.2692824 | CK110: 567.009 | CL110: 12.45055552 | CM110: 579.4595555 | CN110: 573.9804201
A111: 2021-04-05 | B111: 3 | C111: Off | D111: 16.463452 | E111: 0.009466042 | G111: 6.184 | H111: 0.1349960468 | I111: 6.318996047 | J111: 6.259180165 | K111: 0.624 | L111: 0.01362185207 | M111: 0.6376218521 | N111: 0.6315860968 | O111: 14.732 | P111: 0.3215979563 | Q111: 15.05359796 | R111: 14.91109997 | S111: 3.444 | T111: 0.07518214509 | U111: 3.519182145 | V111: 3.485869419 | W111: 3.564 | X111: 0.07780173203 | Y111: 3.641801732 | Z111: 3.607328284 | AA111: 0 | AB111: 0 | AC111: 0 | AD111: 0 | AE111: 28.548 | AF111: 0.6231997323 | AG111: 29.17119973 | AH111: 28.89506393 | AJ111: 42.582 | AK111: 0.9295604246 | AL111: 43.51156042 | AM111: 43.09967817 | AN111: 3.323 | AO111: 0.07254072826 | AP111: 3.395540728 | AQ111: 3.363398397 | AR111: 233.202 | AS111: 5.090774274 | AT111: 238.2927743 | AU111: 236.0370849 | AV111: 27.27 | AW111: 0.5953011314 | AX111: 27.86530113 | AY111: 27.60152702 | AZ111: 134.773 | BA111: 2.942079919 | BB111: 137.7150799 | BC111: 136.4114632 | BD111: 103.848 | BE111: 2.266990535 | BF111: 106.1149905 | BG111: 105.1105016 | BH111: 544.998 | BI111: 11.89724701 | BJ111: 556.895247 | BK111: 551.6236532 | BM111: 48.766 | BN111: 1.064556471 | BO111: 49.83055647 | BP111: 49.35885833 | BQ111: 3.947 | BR111: 0.08616258034 | BS111: 4.03316258 | BT111: 3.994984494 | BU111: 247.934 | BV111: 5.41237223 | BW111: 253.3463722 | BX111: 250.9481848 | BY111: 30.714 | BZ111: 0.6704832765 | CA111: 31.38448328 | CB111: 31.08739644 | CC111: 138.337 | CD111: 3.019881651 | CE111: 141.3568817 | CF111: 140.0187915 | CG111: 103.848 | CH111: 2.266990535 | CI111: 106.1149905 | CJ111: 105.1105016 | CK111: 573.546 | CL111: 12.52044674 | CM111: 586.0664467 | CN111: 580.5187171
A112: 2021-04-05 | B112: 4 | C112: Off | D112: 16.939796 | E112: 0.00971983 | G112: 6.344 | H112: 0.1119932308 | I112: 6.455993231 | J112: 6.393242074 | K112: 0.614 | L112: 0.01083919352 | M112: 0.6248391935 | N112: 0.6187658628 | O112: 14.708 | P112: 0.259646349 | Q112: 14.96764635 | R112: 14.82216337 | S112: 3.614 | T112: 0.06379942245 | U112: 3.677799422 | V112: 3.642051837 | W112: 3.578 | X112: 0.0631638997 | Y112: 3.6411639 | Z112: 3.605772406 | AA112: 0 | AB112: 0 | AC112: 0 | AD112: 0 | AE112: 28.858 | AF112: 0.5094420955 | AG112: 29.3674421 | AH112: 29.08199555 | AJ112: 43.273 | AK112: 0.7639159955 | AL112: 44.036916 | AM112: 43.60888466 | AN112: 3.548 | AO112: 0.06263429741 | AP112: 3.610634297 | AQ112: 3.575539546 | AR112: 235.397 | AS112: 4.15555967 | AT112: 239.5525597 | AU112: 237.2241495 | AV112: 28.084 | AW112: 0.4957783564 | AX112: 28.57977836 | AY112: 28.30198777 | AZ112: 135.034 | BA112: 2.383810518 | BB112: 137.4178105 | BC112: 136.0821328 | BD112: 103.862 | BE112: 1.833518432 | BF112: 105.6955184 | BG112: 104.668176 | BH112: 549.198 | BI112: 9.695217269 | BJ112: 558.8932173 | BK112: 553.4608702 | BM112: 49.617 | BN112: 0.8759092262 | BO112: 50.49290923 | BP112: 50.00212673 | BQ112: 4.162 | BR112: 0.07347349093 | BS112: 4.235473491 | BT112: 4.194305409 | BU112: 250.105 | BV112: 4.415206019 | BW112: 254.520206 | BX112: 252.0463129 | BY112: 31.698 | BZ112: 0.5595777789 | CA112: 32.25757778 | CB112: 31.94403961 | CC112: 138.612 | CD112: 2.446974417 | CE112: 141.0589744 | CF112: 139.6879052 | CG112: 103.862 | CH112: 1.833518432 | CI112: 105.6955184 | CJ112: 104.668176 | CK112: 578.056 | CL112: 10.20465936 | CM112: 588.2606594 | CN112: 582.5428658
A113: 2021-04-05 | B113: 5 | C113: Off | D113: 17.93148 | E113: 0.009285333 | G113: 6.896 | H113: 0.1047749754 | I113: 7.000774975 | J113: 6.935770449 | K113: 0.744 | L113: 0.01130402867 | M113: 0.7553040287 | N113: 0.7482907793 | O113: 14.864 | P113: 0.2258374761 | Q113: 15.08983748 | R113: 14.94972331 | S113: 3.686 | T113: 0.05600356141 | U113: 3.742003561 | V113: 3.707257812 | W113: 3.584 | X113: 0.05445381554 | Y113: 3.638453816 | Z113: 3.60466956 | AA113: 0 | AB113: 0 | AC113: 0 | AD113: 0 | AE113: 29.774 | AF113: 0.4523738571 | AG113: 30.22637386 | AH113: 29.94571191 | AJ113: 45.522 | AK113: 0.691642464 | AL113: 46.21364246 | AM113: 45.7845334 | AN113: 3.76 | AO113: 0.05712788684 | AP113: 3.817127887 | AQ113: 3.781684583 | AR113: 240.169 | AS113: 3.649028578 | AT113: 243.8180286 | AU113: 241.554097 | AV113: 30.699 | AW113: 0.466427925 | AX113: 31.16542793 | AY113: 30.87604655 | AZ113: 141.048 | BA113: 2.143025049 | BB113: 143.191025 | BC113: 141.8614487 | BD113: 104.727 | BE113: 1.591178778 | BF113: 106.3181788 | BG113: 105.3309791 | BH113: 565.925 | BI113: 8.598430681 | BJ113: 574.5234307 | BK113: 569.1887893 | BM113: 52.418 | BN113: 0.7964174395 | BO113: 53.21441744 | BP113: 52.72030385 | BQ113: 4.504 | BR113: 0.06843191551 | BS113: 4.572431916 | BT113: 4.529975363 | BU113: 255.033 | BV113: 3.874866054 | BW113: 258.9078661 | BX113: 256.5038203 | BY113: 34.385 | BZ113: 0.5224314864 | CA113: 34.90743149 | CB113: 34.58330436 | CC113: 144.632 | CD113: 2.197478864 | CE113: 146.8294789 | CF113: 145.4661183 | CG113: 104.727 | CH113: 1.591178778 | CI113: 106.3181788 | CJ113: 105.3309791 | CK113: 595.699 | CL113: 9.050804538 | CM113: 604.7498045 | CN113: 599.1345012
A114: 2021-04-05 | B114: 6 | C114: Off | D114: 26.701882 | E114: 0.008654997 | G114: 7.674 | H114: 0.1120541938 | I114: 7.786054194 | J114: 7.718665918 | K114: 0.744 | L114: 0.01086373732 | M114: 0.7548637373 | N114: 0.7483303939 | O114: 15.878 | P114: 0.2318473403 | Q114: 16.10984734 | R114: 15.97041666 | S114: 3.796 | T114: 0.05542842321 | U114: 3.851428423 | V114: 3.818094322 | W114: 3.626 | X114: 0.05294611764 | Y114: 3.678946118 | Z114: 3.64710485 | AA114: 0 | AB114: 0 | AC114: 0 | AD114: 0 | AE114: 31.718 | AF114: 0.4631398122 | AG114: 32.18113981 | AH114: 31.90261214 | AJ114: 49.737 | AK114: 0.7262496009 | AL114: 50.4632496 | AM114: 50.02649033 | AN114: 4.138 | AO114: 0.06042223794 | AP114: 4.198422238 | AQ114: 4.162084906 | AR114: 251.154 | AS114: 3.667299842 | AT114: 254.8212998 | AU114: 252.6158223 | AV114: 33.037 | AW114: 0.4823995831 | AX114: 33.51939958 | AY114: 33.22928928 | AZ114: 150.026 | BA114: 2.190649268 | BB114: 152.2166493 | BC114: 150.8992146 | BD114: 108.903 | BE114: 1.59017955 | BF114: 110.4931796 | BG114: 109.5368614 | BH114: 596.995 | BI114: 8.717200082 | BJ114: 605.7122001 | BK114: 600.4697628 | BM114: 57.411 | BN114: 0.8383037947 | BO114: 58.24930379 | BP114: 57.74515625 | BQ114: 4.882 | BR114: 0.07128597526 | BS114: 4.953285975 | BT114: 4.9104153 | BU114: 267.032 | BV114: 3.899147183 | BW114: 270.9311472 | BX114: 268.5862389 | BY114: 36.833 | BZ114: 0.5378280063 | CA114: 37.37082801 | CB114: 37.0473836 | CC114: 153.652 | CD114: 2.243595385 | CE114: 155.8955954 | CF114: 154.5463195 | CG114: 108.903 | CH114: 1.59017955 | CI114: 110.4931796 | CJ114: 109.5368614 | CK114: 628.713 | CL114: 9.180339894 | CM114: 637.8933399 | CN114: 632.372375
A115: 2021-04-05 | B115: 7 | C115: Off | D115: 23.259279 | E115: 0.008193889 | G115: 8.488 | H115: 0.100634959 | I115: 8.588634959 | J115: 8.518260637 | K115: 0.976 | L115: 0.01157159754 | M115: 0.9875715975 | N115: 0.9794795455 | O115: 17.22 | P115: 0.2041628173 | Q115: 17.42416282 | R115: 17.28139116 | S115: 4.004 | T115: 0.04747200467 | U115: 4.051472005 | V115: 4.018274693 | W115: 3.658 | X115: 0.04336977849 | Y115: 3.701369778 | Z115: 3.671041165 | AA115: 0 | AB115: 0 | AC115: 0 | AD115: 0 | AE115: 34.346 | AF115: 0.407211157 | AG115: 34.75321116 | AH115: 34.4684472 | AJ115: 55.799 | AK115: 0.6615610361 | AL115: 56.46056104 | AM115: 55.99792947 | AN115: 5.06 | AO115: 0.05999209382 | AP115: 5.119992094 | AQ115: 5.078039447 | AR115: 271.408 | AS115: 3.217852608 | AT115: 274.6258526 | AU115: 272.3755989 | AV115: 37.483 | AW115: 0.4444038839 | AX115: 37.92740388 | AY115: 37.61663095 | AZ115: 157.162 | BA115: 1.863335464 | BB115: 159.0253355 | BC115: 157.7222995 | BD115: 115.574 | BE115: 1.370262105 | BF115: 116.9442621 | BG115: 115.9860338 | BH115: 642.486 | BI115: 7.617407191 | BJ115: 650.1034072 | BK115: 644.776532 | BM115: 64.287 | BN115: 0.7621959951 | BO115: 65.049196 | BP115: 64.5161901 | BQ115: 6.036 | BR115: 0.07156369136 | BS115: 6.107563691 | BT115: 6.057518992 | BU115: 288.628 | BV115: 3.422015426 | BW115: 292.0500154 | BX115: 289.65699 | BY115: 41.487 | BZ115: 0.4918758886 | CA115: 41.97887589 | CB115: 41.63490564 | CC115: 160.82 | CD115: 1.906705243 | CE115: 162.7267052 | CF115: 161.3933407 | CG115: 115.574 | CH115: 1.370262105 | CI115: 116.9442621 | CJ115: 115.9860338 | CK115: 676.832 | CL115: 8.024618348 | CM115: 684.8566183 | CN115: 679.2449792
A116: 2021-04-05 | B116: 8 | C116: On | D116: 21.386774 | E116: 0.007992043 | G116: 9.182 | H116: -0.0009178906369 | I116: 9.181082109 | J116: 9.107706506 | K116: 0.916 | L116: -9.156913781e-05 | M116: 0.9159084309 | N116: 0.9085884513 | O116: 17.394 | P116: -0.001738813955 | Q116: 17.39226119 | R116: 17.25326149 | S116: 4.138 | T116: -0.0004136605811 | U116: 4.137586339 | V116: 4.104518571 | W116: 3.674 | X116: -0.0003672762143 | Y116: 3.673632724 | Z116: 3.644272893 | AA116: 0 | AB116: 0 | AC116: 0 | AD116: 0 | AE116: 35.304 | AF116: -0.003529210525 | AG116: 35.30047079 | AH116: 35.01834791 | AJ116: 61.602 | AK116: -0.006158124484 | AL116: 61.59584188 | AM116: 61.10356526 | AN116: 5.503 | AO116: -0.000550114591 | AP116: 5.502449885 | AQ116: 5.458474069 | AR116: 284.791 | AS116: -0.02846950472 | AT116: 284.7625305 | AU116: 282.4866961 | AV116: 39.548 | AW116: -0.003953467535 | AX116: 39.54404653 | AY116: 39.22800881 | AZ116: 161.116 | BA116: -0.01610617162 | BB116: 161.0998938 | BC116: 159.8123765 | BD116: 115.584 | BE116: -0.0115545057 | BF116: 115.5724455 | BG116: 114.6487855 | BH116: 668.144 | BI116: -0.06679188866 | BJ116: 668.0772081 | BK116: 662.7379063 | BM116: 70.784 | BN116: -0.007076015121 | BO116: 70.77692398 | BP116: 70.21127176 | BQ116: 6.419 | BR116: -0.0006416837288 | BS116: 6.418358316 | BT116: 6.367062521 | BU116: 302.185 | BV116: -0.03020831868 | BW116: 302.1547917 | BX116: 299.7399576 | BY116: 43.686 | BZ116: -0.004367128116 | CA116: 43.68163287 | CB116: 43.33252738 | CC116: 164.79 | CD116: -0.01647344784 | CE116: 164.7735266 | CF116: 163.4566494 | CG116: 115.584 | CH116: -0.0115545057 | CI116: 115.5724455 | CJ116: 114.6487855 | CK116: 703.448 | CL116: -0.07032109919 | CM116: 703.3776789 | CN116: 697.7562542
A117: 2021-04-05 | B117: 9 | C117: On | D117: 20.326167 | E117: 0.007706607 | G117: 9.506 | H117: -0.009343740639 | I117: 9.496656259 | J117: 9.423469262 | K117: 0.898 | L117: -0.0008826719013 | M117: 0.8971173281 | N117: 0.8902035974 | O117: 18.12 | P117: -0.01781070696 | Q117: 18.10218929 | R117: 17.96268283 | S117: 4.706 | T117: -0.00462567257 | U117: 4.701374327 | V117: 4.665142683 | W117: 3.524 | X117: -0.003463848307 | Y117: 3.520536152 | Z117: 3.493404763 | AA117: 0 | AB117: 0 | AC117: 0 | AD117: 0 | AE117: 36.754 | AF117: -0.03612664038 | AG117: 36.71787336 | AH117: 36.43490314 | AJ117: 64.115 | AK117: -0.0630206113 | AL117: 64.05197939 | AM117: 63.55835596 | AN117: 5.439 | AO117: -0.005346160881 | AP117: 5.433653839 | AQ117: 5.391778804 | AR117: 296.444 | AS117: -0.2913839522 | AT117: 296.152616 | AU117: 293.8702842 | AV117: 38.92 | AW117: -0.03825566859 | AX117: 38.88174433 | AY117: 38.58209801 | AZ117: 152.449 | BA117: -0.1498468248 | BB117: 152.2991532 | BC117: 151.1254435 | BD117: 117.258 | BE117: -0.1152565053 | BF117: 117.1427435 | BG117: 116.2399704 | BH117: 674.625 | BI117: -0.6631097232 | BJ117: 673.9618903 | BK117: 668.7679309 | BM117: 73.621 | BN117: -0.07236435194 | BO117: 73.54863565 | BP117: 72.98182522 | BQ117: 6.337 | BR117: -0.006228832782 | BS117: 6.330771167 | BT117: 6.281982402 | BU117: 314.564 | BV117: -0.3091946592 | BW117: 314.2548053 | BX117: 311.8329671 | BY117: 43.626 | BZ117: -0.04288134116 | CA117: 43.58311866 | CB117: 43.24724069 | CC117: 155.973 | CD117: -0.1533106731 | CE117: 155.8196893 | CF117: 154.6188482 | CG117: 117.258 | CH117: -0.1152565053 | CI117: 117.1427435 | CJ117: 116.2399704 | CK117: 711.379 | CL117: -0.6992363635 | CM117: 710.6797636 | CN117: 705.202834
A118: 2021-04-05 | B118: 10 | C118: On | D118: 25.200276 | E118: 0.007552273 | G118: 9.766 | H118: -0.09517685317 | I118: 9.670823147 | J118: 9.59778645 | K118: 0.916 | L118: -0.008927093744 | M118: 0.9070729063 | N118: 0.900222444 | O118: 17.684 | P118: -0.1723435871 | Q118: 17.51165641 | R118: 17.3794036 | S118: 4.544 | T118: -0.04428462224 | U118: 4.499715378 | V118: 4.465732299 | W118: 3.438 | X118: -0.03350583874 | Y118: 3.404494161 | Z118: 3.378782492 | AA118: 0 | AB118: 0 | AC118: 0 | AD118: 0 | AE118: 36.348 | AF118: -0.354237995 | AG118: 35.99376201 | AH118: 35.72192729 | AJ118: 64.471 | AK118: -0.6283173152 | AL118: 63.84268268 | AM118: 63.36052532 | AN118: 5.15 | AO118: -0.05019053797 | AP118: 5.099809462 | AQ118: 5.061294309 | AR118: 301.637 | AS118: -2.939674427 | AT118: 298.6973256 | AU118: 296.4414818 | AV118: 37.798 | AW118: -0.3683693115 | AX118: 37.42963069 | AY118: 37.1469519 | AZ118: 154.171 | BA118: -1.502509792 | BB118: 152.6684902 | BC118: 151.5154961 | BD118: 121.798 | BE118: -1.187011096 | BF118: 120.6109889 | BG118: 119.7001018 | BH118: 685.025 | BI118: -6.67607248 | BJ118: 678.3489275 | BK118: 673.2258512 | BM118: 74.237 | BN118: -0.7234941684 | BO118: 73.51350583 | BP118: 72.95831177 | BQ118: 6.066 | BR118: -0.05911763171 | BS118: 6.006882368 | BT118: 5.961516753 | BU118: 319.321 | BV118: -3.112018014 | BW118: 316.208982 | BX118: 313.8208854 | BY118: 42.342 | BZ118: -0.4126539337 | CA118: 41.92934607 | CB118: 41.6126842 | CC118: 157.609 | CD118: -1.536015631 | CE118: 156.0729844 | CF118: 154.8942786 | CG118: 121.798 | CH118: -1.187011096 | CI118: 120.6109889 | CJ118: 119.7001018 | CK118: 721.373 | CL118: -7.030310475 | CM118: 714.3426895 | CN118: 708.9477785
A119: 2021-04-05 | B119: 11 | C119: On | D119: 111.398943 | E119: 0.007453427 | G119: 9.794 | H119: 0.01404011357 | I119: 9.808040114 | J119: 9.734936603 | K119: 0.888 | L119: 0.001272985588 | M119: 0.8892729856 | N119: 0.8826448543 | O119: 17.114 | P119: 0.02453364342 | Q119: 17.13853364 | R119: 17.01079283 | S119: 4.426 | T119: 0.00634485835 | U119: 4.432344858 | V119: 4.3993087 | W119: 3.372 | X119: 0.004833904735 | Y119: 3.376833905 | Z119: 3.35166492 | AA119: 0 | AB119: 0 | AC119: 0 | AD119: 0 | AE119: 35.594 | AF119: 0.05102550567 | AG119: 35.64502551 | AH119: 35.37934791 | AJ119: 65.271 | AK119: 0.09356874138 | AL119: 65.36456874 | AM119: 64.8773787 | AN119: 4.901 | AO119: 0.007025790956 | AP119: 4.908025791 | AQ119: 4.871444179 | AR119: 307.125 | AS119: 0.4402766879 | AT119: 307.5652767 | AU119: 305.2728614 | AV119: 37.073 | AW119: 0.05314571478 | AX119: 37.12614571 | AY119: 36.8494287 | AZ119: 150.771 | BA119: 0.2161366105 | BB119: 150.9871366 | BC119: 149.861765 | BD119: 123.76 | BE119: 0.1774151987 | BF119: 123.9374152 | BG119: 123.0136567 | BH119: 688.901 | BI119: 0.9875687442 | BJ119: 689.8885687 | BK119: 684.7465347 | BM119: 75.065 | BN119: 0.107608855 | BO119: 75.17260885 | BP119: 74.6123153 | BQ119: 5.789 | BR119: 0.008298776545 | BS119: 5.797298777 | BT119: 5.754089033 | BU119: 324.239 | BV119: 0.4648103313 | BW119: 324.7038103 | BX119: 322.2836542 | BY119: 41.499 | BZ119: 0.05949057313 | CA119: 41.55849057 | CB119: 41.2487374 | CC119: 154.143 | CD119: 0.2209705153 | CE119: 154.3639705 | CF119: 153.2134299 | CG119: 123.76 | CH119: 0.1774151987 | CI119: 123.9374152 | CJ119: 123.0136567 | CK119: 724.495 | CL119: 1.03859425 | CM119: 725.5335942 | CN119: 720.1258826
A120: 2021-04-05 | B120: 12 | C120: On | D120: 26.250933 | E120: 0.007702605 | G120: 9.828 | H120: 0.002357542913 | I120: 9.830357543 | J120: 9.754638182 | K120: 0.956 | L120: 0.0002293255011 | M120: 0.9562293255 | N120: 0.9488638687 | O120: 16.898 | P120: 0.004053496147 | Q120: 16.9020535 | R120: 16.77186365 | S120: 4.402 | T120: 0.001055952778 | U120: 4.403055953 | V120: 4.369140952 | W120: 3.13 | X120: 0.0007508251237 | Y120: 3.130750825 | Z120: 3.106635888 | AA120: 0 | AB120: 0 | AC120: 0 | AD120: 0 | AE120: 35.214 | AF120: 0.008447142462 | AG120: 35.22244714 | AH120: 34.95114254 | AJ120: 65.315 | AK120: 0.0156677773 | AL120: 65.33066778 | AM120: 64.82745145 | AN120: 4.915 | AO120: 0.001179011336 | AP120: 4.916179011 | AQ120: 4.878311626 | AR120: 312.924 | AS120: 0.07506428148 | AT120: 312.9990643 | AU120: 310.5881561 | AV120: 36.252 | AW120: 0.008696138142 | AX120: 36.26069614 | AY120: 35.98139432 | AZ120: 143.393 | BA120: 0.034397146 | BB120: 143.4273971 | BC120: 142.3226326 | BD120: 126.625 | BE120: 0.03037483428 | BF120: 126.6553748 | BG120: 125.6797985 | BH120: 689.424 | BI120: 0.1653791885 | BJ120: 689.5893792 | BK120: 684.2777446 | BM120: 75.143 | BN120: 0.01802532022 | BO120: 75.16102532 | BP120: 74.58208963 | BQ120: 5.871 | BR120: 0.001408336838 | BS120: 5.872408337 | BT120: 5.827175495 | BU120: 329.822 | BV120: 0.07911777762 | BW120: 329.9011178 | BX120: 327.3600198 | BY120: 40.654 | BZ120: 0.00975209092 | CA120: 40.66375209 | CB120: 40.35053527 | CC120: 146.523 | CD120: 0.03514797112 | CE120: 146.558148 | CF120: 145.4292684 | CG120: 126.625 | CH120: 0.03037483428 | CI120: 126.6553748 | CJ120: 125.6797985 | CK120: 724.638 | CL120: 0.173826331 | CM120: 724.8118263 | CN120: 719.2288871
A121: 2021-04-05 | B121: 13 | C121: On | D121: 21.884264 | E121: 0.007361018 | G121: 9.958 | H121: 0.01439591015 | I121: 9.97239591 | J121: 9.898988924 | K121: 0.902 | L121: 0.001303987845 | M121: 0.9033039878 | N121: 0.8966547509 | O121: 16.476 | P121: 0.02381874027 | Q121: 16.49981874 | R121: 16.37836328 | S121: 4.438 | T121: 0.006415851501 | U121: 4.444415852 | V121: 4.411700426 | W121: 3.124 | X121: 0.004516250583 | Y121: 3.128516251 | Z121: 3.105487186 | AA121: 0 | AB121: 0 | AC121: 0 | AD121: 0 | AE121: 34.898 | AF121: 0.05045074035 | AG121: 34.94845074 | AH121: 34.69119457 | AJ121: 64.539 | AK121: 0.09330163137 | AL121: 64.63230163 | AM121: 64.1565421 | AN121: 4.923 | AO121: 0.007116997958 | AP121: 4.930116998 | AQ121: 4.893826318 | AR121: 316.369 | AS121: 0.457362894 | AT121: 316.8263629 | AU121: 314.4941983 | AV121: 35.805 | AW121: 0.05176195651 | AX121: 35.85676196 | AY121: 35.59281969 | AZ121: 154.415 | BA121: 0.2232320211 | BB121: 154.638232 | BC121: 153.4999372 | BD121: 129.025 | BE121: 0.1865266426 | BF121: 129.2115266 | BG121: 128.2603983 | BH121: 705.076 | BI121: 1.019302144 | BJ121: 706.0953021 | BK121: 700.8977219 | BM121: 74.497 | BN121: 0.1076975415 | BO121: 74.60469754 | BP121: 74.05553102 | BQ121: 5.825 | BR121: 0.008420985803 | BS121: 5.833420986 | BT121: 5.790481069 | BU121: 332.845 | BV121: 0.4811816343 | BW121: 333.3261816 | BX121: 330.8725616 | BY121: 40.243 | BZ121: 0.05817780801 | CA121: 40.30117781 | CB121: 40.00452011 | CC121: 157.539 | CD121: 0.2277482717 | CE121: 157.7667483 | CF121: 156.6054244 | CG121: 129.025 | CH121: 0.1865266426 | CI121: 129.2115266 | CJ121: 128.2603983 | CK121: 739.974 | CL121: 1.069752884 | CM121: 741.0437529 | CN121: 735.5889165
A122: 2021-04-05 | B122: 14 | C122: On | D122: 22.405536 | E122: 0.007332293 | G122: 10.046 | H122: 0.06705814902 | I122: 10.11305815 | J122: 10.03890624 | K122: 0.868 | L122: 0.005793994959 | M122: 0.873793995 | N122: 0.8673870814 | O122: 16.244 | P122: 0.1084304771 | Q122: 16.35243048 | R122: 16.23252967 | S122: 4.41 | T122: 0.02943723245 | U122: 4.439437232 | V122: 4.406885978 | W122: 3.234 | X122: 0.0215873038 | Y122: 3.255587304 | Z122: 3.231716384 | AA122: 0 | AB122: 0 | AC122: 0 | AD122: 0 | AE122: 34.802 | AF122: 0.2323071573 | AG122: 35.03430716 | AH122: 34.77742535 | AJ122: 66.061 | AK122: 0.440964402 | AL122: 66.5019644 | AM122: 66.01435251 | AN122: 4.748 | AO122: 0.03169341943 | AP122: 4.779693419 | AQ122: 4.744647307 | AR122: 320.838 | AS122: 2.141628749 | AT122: 322.9796287 | AU122: 320.6114475 | AV122: 35.597 | AW122: 0.2376138693 | AX122: 35.83461387 | AY122: 35.57186398 | AZ122: 157.818 | BA122: 1.053452415 | BB122: 158.8714524 | BC122: 157.7065604 | BD122: 128.872 | BE122: 0.8602346985 | BF122: 129.7322347 | BG122: 128.7809999 | BH122: 713.934 | BI122: 4.765587554 | BJ122: 718.6995876 | BK122: 713.4298716 | BM122: 76.107 | BN122: 0.508022551 | BO122: 76.61502255 | BP122: 76.05325876 | BQ122: 5.616 | BR122: 0.03748741439 | BS122: 5.653487414 | BT122: 5.612034388 | BU122: 337.082 | BV122: 2.250059227 | BW122: 339.3320592 | BX122: 336.8439771 | BY122: 40.007 | BZ122: 0.2670511017 | CA122: 40.2740511 | CB122: 39.97874996 | CC122: 161.052 | CD122: 1.075039719 | CE122: 162.1270397 | CF122: 160.9382768 | CG122: 128.872 | CH122: 0.8602346985 | CI122: 129.7322347 | CJ122: 128.7809999 | CK122: 748.736 | CL122: 4.997894711 | CM122: 753.7338947 | CN122: 748.207297
A123: 2021-04-05 | B123: 15 | C123: On | D123: 21.956061 | E123: 0.007197213 | G123: 9.738 | H123: 0.03112684494 | I123: 9.769126845 | J123: 9.698816358 | K123: 0.874 | L123: 0.002793680682 | M123: 0.8767936807 | N123: 0.8704832098 | O123: 16.924 | P123: 0.05409639801 | Q123: 16.9780964 | R123: 16.85590142 | S123: 4.426 | T123: 0.01414740354 | U123: 4.440147404 | V123: 4.408190717 | W123: 3.232 | X123: 0.01033086495 | Y123: 3.242330865 | Z123: 3.218995119 | AA123: 0 | AB123: 0 | AC123: 0 | AD123: 0 | AE123: 35.194 | AF123: 0.1124951921 | AG123: 35.30649519 | AH123: 35.05238683 | AJ123: 65.328 | AK123: 0.2088164434 | AL123: 65.53681644 | AM123: 65.06513402 | AN123: 4.773 | AO123: 0.0152565651 | AP123: 4.788256565 | AQ123: 4.753794463 | AR123: 320.593 | AS123: 1.024753399 | AT123: 321.6177534 | AU123: 319.3030019 | AV123: 35.378 | AW123: 0.1130833354 | AX123: 35.49108334 | AY123: 35.23564645 | AZ123: 152.536 | BA123: 0.4875707969 | BB123: 153.0235708 | BC123: 151.9222276 | BD123: 132.613 | BE123: 0.4238883023 | BF123: 133.0368883 | BG123: 132.0793935 | BH123: 711.221 | BI123: 2.273368842 | BJ123: 713.4943688 | BK123: 708.3591979 | BM123: 75.066 | BN123: 0.2399432884 | BO123: 75.30594329 | BP123: 74.76395037 | BQ123: 5.647 | BR123: 0.01805024578 | BS123: 5.665050246 | BT123: 5.624277673 | BU123: 337.517 | BV123: 1.078849797 | BW123: 338.5958498 | BX123: 336.1589033 | BY123: 39.804 | BZ123: 0.127230739 | CA123: 39.93123074 | CB123: 39.64383717 | CC123: 155.768 | CD123: 0.4979016618 | CE123: 156.2659017 | CF123: 155.1412227 | CG123: 132.613 | CH123: 0.4238883023 | CI123: 133.0368883 | CJ123: 132.0793935 | CK123: 746.415 | CL123: 2.385864034 | CM123: 748.800864 | CN123: 743.4115847
A124: 2021-04-05 | B124: 16 | C124: On | D124: 22.710674 | E124: 0.007431737 | G124: 9.32 | H124: -0.0005028574095 | I124: 9.319497143 | J124: 9.250237091 | K124: 0.89 | L124: -4.801964533e-05 | M124: 0.8899519804 | N124: 0.8833380913 | O124: 15.92 | P124: -0.0008589581501 | Q124: 15.91914104 | R124: 15.80083417 | S124: 4.39 | T124: -0.0002368609472 | U124: 4.389763139 | V124: 4.357139574 | W124: 3.21 | X124: -0.0001731944511 | Y124: 3.209826806 | Z124: 3.185972217 | AA124: 0 | AB124: 0 | AC124: 0 | AD124: 0 | AE124: 33.73 | AF124: -0.001819890603 | AG124: 33.72818011 | AH124: 33.47752115 | AJ124: 61.895 | AK124: -0.003339523537 | AL124: 61.89166048 | AM124: 61.43169793 | AN124: 4.679 | AO124: -0.0002524538432 | AP124: 4.678747546 | AQ124: 4.643976325 | AR124: 314.532 | AS124: -0.01697046639 | AT124: 314.5150295 | AU124: 312.1776366 | AV124: 35.27 | AW124: -0.001902980776 | AX124: 35.26809702 | AY124: 35.0059938 | AZ124: 140.109 | BA124: -0.007559533132 | BB124: 140.1014405 | BC124: 139.0602434 | BD124: 131.576 | BE124: -0.007099138038 | BF124: 131.5689009 | BG124: 130.5911154 | BH124: 688.061 | BI124: -0.03712409571 | BJ124: 688.0238759 | BK124: 682.9106634 | BM124: 71.215 | BN124: -0.003842380946 | BO124: 71.21115762 | BP124: 70.68193502 | BQ124: 5.569 | BR124: -0.0003004734886 | BS124: 5.568699527 | BT124: 5.527314416 | BU124: 330.452 | BV124: -0.01782942454 | BW124: 330.4341706 | BX124: 327.9784707 | BY124: 39.66 | BZ124: -0.002139841723 | CA124: 39.65786016 | CB124: 39.36313337 | CC124: 143.319 | CD124: -0.007732727583 | CE124: 143.3112673 | CF124: 142.2462156 | CG124: 131.576 | CH124: -0.007099138038 | CI124: 131.5689009 | CJ124: 130.5911154 | CK124: 721.791 | CL124: -0.03894398632 | CM124: 721.752056 | CN124: 716.3881846
A125: 2021-04-05 | B125: 17 | C125: On | D125: 21.64865 | E125: 0.007322635 | G125: 8.682 | H125: 0.053506402 | I125: 8.735506402 | J125: 8.671539477 | K125: 0.84 | L125: 0.005176846081 | M125: 0.8451768461 | N125: 0.8389879245 | O125: 15.428 | P125: 0.09508140636 | Q125: 15.52308141 | R125: 15.40941155 | S125: 4.322 | T125: 0.02663610567 | U125: 4.348636106 | V125: 4.316792631 | W125: 3.224 | X125: 0.01986922829 | Y125: 3.243869228 | Z125: 3.220115558 | AA125: 0 | AB125: 0 | AC125: 0 | AD125: 0 | AE125: 32.496 | AF125: 0.2002699884 | AG125: 32.69626999 | AH125: 32.45684714 | AJ125: 58.474 | AK125: 0.3603701164 | AL125: 58.83437012 | AM125: 58.4035475 | AN125: 4.577 | AO125: 0.02820764823 | AP125: 4.605207648 | AQ125: 4.571485394 | AR125: 310.162 | AS125: 1.911501112 | AT125: 312.0735011 | AU125: 309.7883008 | AV125: 34.935 | AW125: 0.2153013308 | AX125: 35.15030133 | AY125: 34.8929085 | AZ125: 147.654 | BA125: 0.9099786087 | BB125: 148.5639786 | BC125: 147.4760988 | BD125: 128.478 | BE125: 0.7917986081 | BF125: 129.2697986 | BG125: 128.3232031 | BH125: 684.28 | BI125: 4.217157424 | BJ125: 688.4971574 | BK125: 683.455544 | BM125: 67.156 | BN125: 0.4138765184 | BO125: 67.56987652 | BP125: 67.07508698 | BQ125: 5.417 | BR125: 0.03338449431 | BS125: 5.450384494 | BT125: 5.410473318 | BU125: 325.59 | BV125: 2.006582519 | BW125: 327.5965825 | BX125: 325.1977123 | BY125: 39.257 | BZ125: 0.2419374364 | CA125: 39.49893744 | CB125: 39.20970113 | CC125: 150.878 | CD125: 0.929847837 | CE125: 151.8078478 | CF125: 150.6962144 | CG125: 128.478 | CH125: 0.7917986081 | CI125: 129.2697986 | CJ125: 128.3232031 | CK125: 716.776 | CL125: 4.417427413 | CM125: 721.1934274 | CN125: 715.9123912
A126: 2021-04-05 | B126: 18 | C126: On | D126: 25.655006 | E126: 0.007615152 | G126: 7.952 | H126: 0.03885293845 | I126: 7.990852938 | J126: 7.930001379 | K126: 0.776 | L126: 0.003791483933 | M126: 0.7797914839 | N126: 0.7738532533 | O126: 15.492 | P126: 0.07569287255 | Q126: 15.56769287 | R126: 15.44914253 | S126: 4.06 | T126: 0.01983688759 | U126: 4.079836888 | V126: 4.04876831 | W126: 3.226 | X126: 0.01576201955 | Y126: 3.24176202 | Z126: 3.217075509 | AA126: 0 | AB126: 0 | AC126: 0 | AD126: 0 | AE126: 31.506 | AF126: 0.1539362021 | AG126: 31.6599362 | AH126: 31.41884098 | AJ126: 55.682 | AK126: 0.272058516 | AL126: 55.95405852 | AM126: 55.52795986 | AN126: 4.176 | AO126: 0.02040365581 | AP126: 4.196403656 | AQ126: 4.164447404 | AR126: 301.829 | AS126: 1.474716242 | AT126: 303.3037162 | AU126: 300.9940123 | AV126: 33.103 | AW126: 0.1617390369 | AX126: 33.26473904 | AY126: 33.01142299 | AZ126: 154.566 | BA126: 0.7551991052 | BB126: 155.3211991 | BC126: 154.1384046 | BD126: 126.909 | BE126: 0.6200688589 | BF126: 127.5290689 | BG126: 126.5579156 | BH126: 676.265 | BI126: 3.304185415 | BJ126: 679.5691854 | BK126: 674.3941628 | BM126: 63.634 | BN126: 0.3109114544 | BO126: 63.94491145 | BP126: 63.45796123 | BQ126: 4.952 | BR126: 0.02419513974 | BS126: 4.97619514 | BT126: 4.938300657 | BU126: 317.321 | BV126: 1.550409115 | BW126: 318.8714091 | BX126: 316.4431549 | BY126: 37.163 | BZ126: 0.1815759245 | CA126: 37.34457592 | CB126: 37.0601913 | CC126: 157.792 | CD126: 0.7709611248 | CE126: 158.5629611 | CF126: 157.3554801 | CG126: 126.909 | CH126: 0.6200688589 | CI126: 127.5290689 | CJ126: 126.5579156 | CK126: 707.771 | CL126: 3.458121617 | CM126: 711.2291216 | CN126: 705.8130037
A127: 2021-04-05 | B127: 19 | C127: On | D127: 23.917926 | E127: 0.008269337 | G127: 7.648 | H127: 0.02588737253 | I127: 7.673887373 | J127: 7.610429412 | K127: 0.724 | L127: 0.002450635161 | M127: 0.7264506352 | N127: 0.72044337 | O127: 15.222 | P127: 0.05152426578 | Q127: 15.27352427 | R127: 15.14722235 | S127: 3.996 | T127: 0.01352588136 | U127: 4.009525881 | V127: 3.976369761 | W127: 3.228 | X127: 0.01092631257 | Y127: 3.238926313 | Z127: 3.212142539 | AA127: 0 | AB127: 0 | AC127: 0 | AD127: 0 | AE127: 30.818 | AF127: 0.1043144674 | AG127: 30.92231447 | AH127: 30.66660743 | AJ127: 53.178 | AK127: 0.1799998296 | AL127: 53.35799983 | AM127: 52.91676455 | AN127: 3.605 | AO127: 0.01220240298 | AP127: 3.617202403 | AQ127: 3.587290537 | AR127: 292.87 | AS127: 0.9913225409 | AT127: 293.8613225 | AU127: 291.4312842 | AV127: 30.981 | AW127: 0.1048661988 | AX127: 31.0858662 | AY127: 30.8288067 | AZ127: 161.784 | BA127: 0.5476154129 | BB127: 162.3316154 | BC127: 160.9892406 | BD127: 122.918 | BE127: 0.4160596308 | BF127: 123.3340596 | BG127: 122.3141687 | BH127: 665.336 | BI127: 2.252066016 | BJ127: 667.588066 | BK127: 662.0675553 | BM127: 60.826 | BN127: 0.2058872021 | BO127: 61.0318872 | BP127: 60.52719396 | BQ127: 4.329 | BR127: 0.01465303814 | BS127: 4.343653038 | BT127: 4.307733907 | BU127: 308.092 | BV127: 1.042846807 | BW127: 309.1348468 | BX127: 306.5785066 | BY127: 34.977 | BZ127: 0.1183920802 | CA127: 35.09539208 | CB127: 34.80517646 | CC127: 165.012 | CD127: 0.5585417254 | CE127: 165.5705417 | CF127: 164.2013831 | CG127: 122.918 | CH127: 0.4160596308 | CI127: 123.3340596 | CJ127: 122.3141687 | CK127: 696.154 | CL127: 2.356380483 | CM127: 698.5103805 | CN127: 692.7341627
A128: 2021-04-05 | B128: 20 | C128: On | D128: 23.532573 | E128: 0.00865478 | G128: 7.412 | H128: 0.08038762825 | I128: 7.492387628 | J128: 7.427542662 | K128: 0.72 | L128: 0.007808835987 | M128: 0.727808836 | N128: 0.7215098106 | O128: 15.052 | P128: 0.1632480546 | Q128: 15.21524805 | R128: 15.08356343 | S128: 3.966 | T128: 0.04301367156 | U128: 4.009013672 | V128: 3.97431654 | W128: 3.184 | X128: 0.03453240803 | Y128: 3.218532408 | Z128: 3.190676718 | AA128: 0 | AB128: 0 | AC128: 0 | AD128: 0 | AE128: 30.334 | AF128: 0.3289905984 | AG128: 30.6629906 | AH128: 30.39760916 | AJ128: 52.118 | AK128: 0.5652512694 | AL128: 52.68325127 | AM128: 52.22728932 | AN128: 3.539 | AO128: 0.038382598 | AP128: 3.577382598 | AQ128: 3.546421139 | AR128: 286.497 | AS128: 3.10723345 | AT128: 289.6042334 | AU128: 287.0977725 | AV128: 30.127 | AW128: 0.326745558 | AX128: 30.45374556 | AY128: 30.19017509 | AZ128: 144.38 | BA128: 1.565888528 | BB128: 145.9458885 | BC128: 144.682759 | BD128: 119.305 | BE128: 1.293934969 | BF128: 120.598935 | BG128: 119.5551777 | BH128: 635.966 | BI128: 6.897436371 | BJ128: 642.8634364 | BK128: 637.2995948 | BM128: 59.53 | BN128: 0.6456388977 | BO128: 60.1756389 | BP128: 59.65483198 | BQ128: 4.259 | BR128: 0.04619143399 | BS128: 4.305191434 | BT128: 4.267930949 | BU128: 301.549 | BV128: 3.270481504 | BW128: 304.8194815 | BX128: 302.181336 | BY128: 34.093 | BZ128: 0.3697592296 | CA128: 34.46275923 | CB128: 34.16449163 | CC128: 147.564 | CD128: 1.600420936 | CE128: 149.1644209 | CF128: 147.8734357 | CG128: 119.305 | CH128: 1.293934969 | CI128: 120.598935 | CJ128: 119.5551777 | CK128: 666.3 | CL128: 7.22642697 | CM128: 673.526427 | CN128: 667.6972039
A129: 2021-04-05 | B129: 21 | C129: On | D129: 28.351754 | E129: 0.008662471 | G129: 7.46 | H129: 0.06695901543 | I129: 7.526959015 | J129: 7.461756951 | K129: 0.704 | L129: 0.006318920491 | M129: 0.7103189205 | N129: 0.7041658034 | O129: 15.568 | P129: 0.13973431 | Q129: 15.70773431 | R129: 15.57166652 | S129: 3.848 | T129: 0.03453864496 | U129: 3.882538645 | V129: 3.848906267 | W129: 3.164 | X129: 0.02839923925 | Y129: 3.192399239 | Z129: 3.164745173 | AA129: 0 | AB129: 0 | AC129: 0 | AD129: 0 | AE129: 30.744 | AF129: 0.2759501301 | AG129: 31.01995013 | AH129: 30.75124071 | AJ129: 51.054 | AK129: 0.458247396 | AL129: 51.5122474 | AM129: 51.06602405 | AN129: 3.489 | AO129: 0.03131635454 | AP129: 3.520316355 | AQ129: 3.489821716 | AR129: 280.588 | AS129: 2.518484748 | AT129: 283.1064847 | AU129: 280.654083 | AV129: 27.972 | AW129: 0.2510693806 | AX129: 28.22306938 | AY129: 27.97858786 | AZ129: 154.117 | BA129: 1.383314019 | BB129: 155.500314 | BC129: 154.1532971 | BD129: 115.771 | BE129: 1.039130318 | BF129: 116.8101303 | BG129: 115.798266 | BH129: 632.991 | BI129: 5.681562217 | BJ129: 638.6725622 | BK129: 633.1400797 | BM129: 58.514 | BN129: 0.5252064114 | BO129: 59.03920641 | BP129: 58.527781 | BQ129: 4.193 | BR129: 0.03763527503 | BS129: 4.230635275 | BT129: 4.19398752 | BU129: 296.156 | BV129: 2.658219058 | BW129: 298.8142191 | BX129: 296.2257496 | BY129: 31.82 | BZ129: 0.2856080256 | CA129: 32.10560803 | CB129: 31.82749413 | CC129: 157.281 | CD129: 1.411713258 | CE129: 158.6927133 | CF129: 157.3180422 | CG129: 115.771 | CH129: 1.039130318 | CI129: 116.8101303 | CJ129: 115.798266 | CK129: 663.735 | CL129: 5.957512347 | CM129: 669.6925123 | CN129: 663.8913204
A130: 2021-04-05 | B130: 22 | C130: On | D130: 24.580431 | E130: 0.008777339 | G130: 6.862 | H130: 0.1344768135 | I130: 6.996476813 | J130: 6.935066365 | K130: 0.652 | L130: 0.01277745299 | M130: 0.664777453 | N130: 0.6589424759 | O130: 15.916 | P130: 0.3119109536 | Q130: 16.22791095 | R130: 16.08547308 | S130: 3.69 | T130: 0.07231411276 | U130: 3.762314113 | V130: 3.729291006 | W130: 3.156 | X130: 0.06184914359 | Y130: 3.217849144 | Z130: 3.189604991 | AA130: 0 | AB130: 0 | AC130: 0 | AD130: 0 | AE130: 30.276 | AF130: 0.5933284764 | AG130: 30.86932848 | AH130: 30.59837792 | AJ130: 48.953 | AK130: 0.9593476319 | AL130: 49.91234763 | AM130: 49.47425004 | AN130: 3.372 | AO130: 0.06608216483 | AP130: 3.438082165 | AQ130: 3.407904952 | AR130: 270.489 | AS130: 5.300859633 | AT130: 275.7898596 | AU130: 273.3691585 | AV130: 27.057 | AW130: 0.5302447016 | AX130: 27.5872447 | AY130: 27.3451021 | AZ130: 158.238 | BA130: 3.101040806 | BB130: 161.3390408 | BC130: 159.9229134 | BD130: 113.456 | BE130: 2.223433598 | BF130: 115.6794336 | BG130: 114.664076 | BH130: 621.565 | BI130: 12.18100854 | BJ130: 633.7460085 | BK130: 628.183405 | BM130: 55.815 | BN130: 1.093824445 | BO130: 56.90882445 | BP130: 56.4093164 | BQ130: 4.024 | BR130: 0.07885961782 | BS130: 4.102859618 | BT130: 4.066847428 | BU130: 286.405 | BV130: 5.612770587 | BW130: 292.0177706 | BX130: 289.4546316 | BY130: 30.747 | BZ130: 0.6025588144 | CA130: 31.34955881 | CB130: 31.07439311 | CC130: 161.394 | CD130: 3.16288995 | CE130: 164.5568899 | CF130: 163.1125183 | CG130: 113.456 | CH130: 2.223433598 | CI130: 115.6794336 | CJ130: 114.664076 | CK130: 651.841 | CL130: 12.77433701 | CM130: 664.615337 | CN130: 658.7817829
A131: 2021-04-05 | B131: 23 | C131: On | D131: 18.002523 | E131: 0.008383274 | G131: 6.512 | H131: 0.0927050406 | I131: 6.604705041 | J131: 6.549335989 | K131: 0.484 | L131: 0.006890239504 | M131: 0.4908902395 | N131: 0.4867749721 | O131: 15.992 | P131: 0.2276626243 | Q131: 16.21966262 | R131: 16.08368875 | S131: 3.676 | T131: 0.05233165375 | U131: 3.728331654 | V131: 3.697076028 | W131: 3.154 | X131: 0.04490044503 | Y131: 3.198900445 | Z131: 3.172083186 | AA131: 0 | AB131: 0 | AC131: 0 | AD131: 0 | AE131: 29.818 | AF131: 0.4244900032 | AG131: 30.24249 | AH131: 29.98895892 | AJ131: 47.242 | AK131: 0.6725386253 | AL131: 47.91453863 | AM131: 47.51285792 | AN131: 3.227 | AO131: 0.04593967537 | AP131: 3.272939675 | AQ131: 3.245501725 | AR131: 263.954 | AS131: 3.757657599 | AT131: 267.7116576 | AU131: 265.4673574 | AV131: 26.209 | AW131: 0.3731121636 | AX131: 26.58211216 | AY131: 26.35926703 | AZ131: 146.41 | BA131: 2.08429745 | BB131: 148.4942974 | BC131: 147.2494291 | BD131: 111.413 | BE131: 1.586079037 | BF131: 112.999079 | BG131: 112.0517768 | BH131: 598.455 | BI131: 8.51962455 | BJ131: 606.9746246 | BK131: 601.88619 | BM131: 53.754 | BN131: 0.7652436659 | BO131: 54.51924367 | BP131: 54.06219391 | BQ131: 3.711 | BR131: 0.05282991488 | BS131: 3.763829915 | BT131: 3.732276697 | BU131: 279.946 | BV131: 3.985320224 | BW131: 283.9313202 | BX131: 281.5510462 | BY131: 29.885 | BZ131: 0.4254438173 | CA131: 30.31044382 | CB131: 30.05634306 | CC131: 149.564 | CD131: 2.129197895 | CE131: 151.6931979 | CF131: 150.4215123 | CG131: 111.413 | CH131: 1.586079037 | CI131: 112.999079 | CJ131: 112.0517768 | CK131: 628.273 | CL131: 8.944114554 | CM131: 637.2171146 | CN131: 631.8751489
A132: 2021-04-05 | B132: 24 | C132: Off | D132: 17.187568 | E132: 0.008520314 | G132: 6.648 | H132: 0.1173367064 | I132: 6.765336706 | J132: 6.707693913 | K132: 0.498 | L132: 0.008789663025 | M132: 0.506789663 | N132: 0.502471656 | O132: 15.342 | P132: 0.2707851609 | Q132: 15.61278516 | R132: 15.47975933 | S132: 3.622 | T132: 0.06392803108 | U132: 3.685928031 | V132: 3.654522767 | W132: 3.142 | X132: 0.05545606672 | Y132: 3.197456067 | Z132: 3.170212737 | AA132: 0 | AB132: 0 | AC132: 0 | AD132: 0 | AE132: 29.252 | AF132: 0.5162956281 | AG132: 29.76829563 | AH132: 29.5146604 | AJ132: 45.557 | AK132: 0.8040776676 | AL132: 46.36107767 | AM132: 45.96606673 | AN132: 3.049 | AO132: 0.05381462362 | AP132: 3.102814624 | AQ132: 3.076377669 | AR132: 258.601 | AS132: 4.56428845 | AT132: 263.1652884 | AU132: 260.9230376 | AV132: 24.482 | AW132: 0.4321054823 | AX132: 24.91410548 | AY132: 24.70182948 | AZ132: 125.846 | BA132: 2.221172556 | BB132: 128.0671726 | BC132: 126.976 | BD132: 110.017 | BE132: 1.941791882 | BF132: 111.9587919 | BG132: 111.0048678 | BH132: 567.552 | BI132: 10.01725066 | BJ132: 577.5692507 | BK132: 572.6481793 | BM132: 52.205 | BN132: 0.921414374 | BO132: 53.12641437 | BP132: 52.67376064 | BQ132: 3.547 | BR132: 0.06260428665 | BS132: 3.609604287 | BT132: 3.578849325 | BU132: 273.943 | BV132: 4.835073611 | BW132: 278.7780736 | BX132: 276.4027969 | BY132: 28.104 | BZ132: 0.4960335134 | CA132: 28.60003351 | CB132: 28.35635225 | CC132: 128.988 | CD132: 2.276628623 | CE132: 131.2646286 | CF132: 130.1462128 | CG132: 110.017 | CH132: 1.941791882 | CI132: 111.9587919 | CJ132: 111.0048678 | CK132: 596.804 | CL132: 10.53354629 | CM132: 607.3375463 | CN132: 602.1628397
A133: 2021-04-06 | B133: 1 | C133: Off | D133: 16.507999 | E133: 0.008482974 | G133: 6.202 | H133: 0.1564436701 | I133: 6.35844367 | J133: 6.304505158 | K133: 0.48 | L133: 0.01210786225 | M133: 0.4921078622 | N133: 0.487933324 | O133: 14.794 | P133: 0.3731744043 | Q133: 15.1671744 | R133: 15.03851166 | S133: 3.682 | T133: 0.09287739332 | U133: 3.774877393 | V133: 3.742855207 | W133: 3.158 | X133: 0.0796596437 | Y133: 3.237659644 | Z133: 3.210194661 | AA133: 0 | AB133: 0 | AC133: 0 | AD133: 0 | AE133: 28.316 | AF133: 0.7142629737 | AG133: 29.03026297 | AH133: 28.78400001 | AJ133: 44.232 | AK133: 1.115739506 | AL133: 45.34773951 | AM133: 44.96305581 | AN133: 2.968 | AO133: 0.07486694823 | AP133: 3.042866948 | AQ133: 3.017054387 | AR133: 253.094 | AS133: 6.384223516 | AT133: 259.4782235 | AU133: 257.2770765 | AV133: 24.165 | AW133: 0.60955519 | AX133: 24.77455519 | AY133: 24.56439328 | AZ133: 116.959 | BA133: 2.950257209 | BB133: 119.9092572 | BC133: 118.8920701 | BD133: 109.45 | BE133: 2.760844839 | BF133: 112.2108448 | BG133: 111.2589632 | BH133: 550.868 | BI133: 13.89548721 | BJ133: 564.7634872 | BK133: 559.9726132 | BM133: 50.434 | BN133: 1.272183176 | BO133: 51.70618318 | BP133: 51.26756097 | BQ133: 3.448 | BR133: 0.08697481047 | BS133: 3.53497481 | BT133: 3.504987711 | BU133: 267.888 | BV133: 6.75739792 | BW133: 274.6453979 | BX133: 272.3155882 | BY133: 27.847 | BZ133: 0.7024325833 | CA133: 28.54943258 | CB133: 28.30724849 | CC133: 120.117 | CD133: 3.029916853 | CE133: 123.1469169 | CF133: 122.1022648 | CG133: 109.45 | CH133: 2.760844839 | CI133: 112.2108448 | CJ133: 111.2589632 | CK133: 579.184 | CL133: 14.60975018 | CM133: 593.7937502 | CN133: 588.7566132
A134: 2021-04-06 | B134: 2 | C134: Off | D134: 16.582309 | E134: 0.008663203 | G134: 6.108 | H134: 0.1415763326 | I134: 6.249576333 | J134: 6.195434984 | K134: 0.488 | L134: 0.01131127215 | M134: 0.4993112722 | N134: 0.4949856372 | O134: 15.298 | P134: 0.3545898389 | Q134: 15.65258984 | R134: 15.51698828 | S134: 3.668 | T134: 0.08501997182 | U134: 3.753019972 | V134: 3.720506798 | W134: 3.176 | X134: 0.07361598433 | Y134: 3.249615984 | Z134: 3.221463901 | AA134: 0 | AB134: 0 | AC134: 0 | AD134: 0 | AE134: 28.738 | AF134: 0.6661133997 | AG134: 29.4041134 | AH134: 29.1493796 | AJ134: 43.482 | AK134: 1.007862163 | AL134: 44.48986216 | AM134: 44.10443746 | AN134: 2.851 | AO134: 0.0660828625 | AP134: 2.917082863 | AQ134: 2.891811581 | AR134: 251.624 | AS134: 5.832351524 | AT134: 257.4563515 | AU134: 255.2259549 | AV134: 23.761 | AW134: 0.5507523311 | AX134: 24.31175233 | AY134: 24.10113469 | AZ134: 116.328 | BA134: 2.696347678 | BB134: 119.0243477 | BC134: 117.9932156 | BD134: 109.151 | BE134: 2.529993169 | BF134: 111.6809932 | BG134: 110.7134781 | BH134: 547.197 | BI134: 12.68338973 | BJ134: 559.8803897 | BK134: 555.0300323 | BM134: 49.59 | BN134: 1.149438496 | BO134: 50.7394385 | BP134: 50.29987244 | BQ134: 3.339 | BR134: 0.07739413465 | BS134: 3.416394135 | BT134: 3.386797219 | BU134: 266.922 | BV134: 6.186941363 | BW134: 273.1089414 | BX134: 270.7429432 | BY134: 27.429 | BZ134: 0.6357723029 | CA134: 28.0647723 | CB134: 27.82164148 | CC134: 119.504 | CD134: 2.769963662 | CE134: 122.2739637 | CF134: 121.2146795 | CG134: 109.151 | CH134: 2.529993169 | CI134: 111.6809932 | CJ134: 110.7134781 | CK134: 575.935 | CL134: 13.34950313 | CM134: 589.2845031 | CN134: 584.1794119
A135: 2021-04-06 | B135: 3 | C135: Off | D135: 16.397164 | E135: 0.008606481 | G135: 6.164 | H135: 0.1233201789 | I135: 6.287320179 | J135: 6.233208477 | K135: 0.512 | L135: 0.01024333738 | M135: 0.5222433374 | N135: 0.51774866 | O135: 15.26 | P135: 0.3052994696 | Q135: 15.56529947 | R135: 15.43133702 | S135: 3.71 | T135: 0.07422418297 | U135: 3.784224183 | V135: 3.751655329 | W135: 3.192 | X135: 0.06386080648 | Y135: 3.255860806 | Z135: 3.227839302 | AA135: 0 | AB135: 0 | AC135: 0 | AD135: 0 | AE135: 28.838 | AF135: 0.5769479753 | AG135: 29.41494798 | AH135: 29.16178878 | AJ135: 43.344 | AK135: 0.8671625301 | AL135: 44.21116253 | AM135: 43.83066 | AN135: 2.895 | AO135: 0.05791887054 | AP135: 2.952918871 | AQ135: 2.92750463 | AR135: 249.44 | AS135: 4.99042593 | AT135: 254.4304259 | AU135: 252.2406753 | AV135: 24.17 | AW135: 0.4835575478 | AX135: 24.65355755 | AY135: 24.44137717 | AZ135: 141.736 | BA135: 2.835643881 | BB135: 144.5716439 | BC135: 143.3273908 | BD135: 109.734 | BE135: 2.195395281 | BF135: 111.9293953 | BG135: 110.9660771 | BH135: 571.319 | BI135: 11.43010404 | BJ135: 582.749104 | BK135: 577.7336849 | BM135: 49.508 | BN135: 0.990482709 | BO135: 50.49848271 | BP135: 50.06386848 | BQ135: 3.407 | BR135: 0.06816220792 | BS135: 3.475162208 | BT135: 3.44525329 | BU135: 264.7 | BV135: 5.295725399 | BW135: 269.9957254 | BX135: 267.6720123 | BY135: 27.88 | BZ135: 0.5577817308 | CA135: 28.43778173 | CB135: 28.1930325 | CC135: 144.928 | CD135: 2.899504687 | CE135: 147.8275047 | CF135: 146.5552301 | CG135: 109.734 | CH135: 2.195395281 | CI135: 111.9293953 | CJ135: 110.9660771 | CK135: 600.157 | CL135: 12.00705202 | CM135: 612.164052 | CN135: 606.8954737
A136: 2021-04-06 | B136: 4 | C136: Off | D136: 16.21664 | E136: 0.008558283 | G136: 6.214 | H136: 0.1334929647 | I136: 6.347492965 | J136: 6.293169324 | K136: 0.482 | L136: 0.01035462005 | M136: 0.49235462 | N136: 0.4881409099 | O136: 14.996 | P136: 0.3221532826 | Q136: 15.31815328 | R136: 15.18705619 | S136: 3.754 | T136: 0.08064573372 | U136: 3.834645734 | V136: 3.80182775 | W136: 3.256 | X136: 0.06994739185 | Y136: 3.325947392 | Z136: 3.297482993 | AA136: 0 | AB136: 0 | AC136: 0 | AD136: 0 | AE136: 28.702 | AF136: 0.6165939929 | AG136: 29.31859399 | AH136: 29.06767717 | AJ136: 43.816 | AK136: 0.9412822239 | AL136: 44.75728222 | AM136: 44.37423674 | AN136: 3.121 | AO136: 0.06704723893 | AP136: 3.188047239 | AQ136: 3.160763028 | AR136: 249.119 | AS136: 5.351727368 | AT136: 254.4707274 | AU136: 252.2928949 | AV136: 25.004 | AW136: 0.5371512855 | AX136: 25.54115129 | AY136: 25.32256288 | AZ136: 138.531 | BA136: 2.976008028 | BB136: 141.507008 | BC136: 140.295951 | BD136: 108.189 | BE136: 2.324182548 | BF136: 110.5131825 | BG136: 109.5673795 | BH136: 567.78 | BI136: 12.19739869 | BJ136: 579.9773987 | BK136: 575.013788 | BM136: 50.03 | BN136: 1.074775189 | BO136: 51.10477519 | BP136: 50.66740606 | BQ136: 3.603 | BR136: 0.07740185897 | BS136: 3.680401859 | BT136: 3.648903938 | BU136: 264.115 | BV136: 5.67388065 | BW136: 269.7888807 | BX136: 267.4799511 | BY136: 28.758 | BZ136: 0.6177970193 | CA136: 29.37579702 | CB136: 29.12439064 | CC136: 141.787 | CD136: 3.04595542 | CE136: 144.8329554 | CF136: 143.593434 | CG136: 108.189 | CH136: 2.324182548 | CI136: 110.5131825 | CJ136: 109.5673795 | CK136: 596.482 | CL136: 12.81399269 | CM136: 609.2959927 | CN136: 604.0814651
A137: 2021-04-06 | B137: 5 | C137: Off | D137: 16.791468 | E137: 0.008935958 | G137: 6.78 | H137: 0.1231840877 | I137: 6.903184088 | J137: 6.841497525 | K137: 0.494 | L137: 0.008975359784 | M137: 0.5029753598 | N137: 0.4984807931 | O137: 15.058 | P137: 0.2735849547 | Q137: 15.33158495 | R137: 15.19458256 | S137: 3.818 | T137: 0.06936826651 | U137: 3.887368267 | V137: 3.852630907 | W137: 3.262 | X137: 0.05926644457 | Y137: 3.321266445 | Z137: 3.291587747 | AA137: 0 | AB137: 0 | AC137: 0 | AD137: 0 | AE137: 29.412 | AF137: 0.5343791133 | AG137: 29.94637911 | AH137: 29.67877953 | AJ137: 45.122 | AK137: 0.8198100894 | AL137: 45.94181009 | AM137: 45.531276 | AN137: 3.282 | AO137: 0.05962981946 | AP137: 3.341629819 | AQ137: 3.311769156 | AR137: 252.23 | AS137: 4.582702426 | AT137: 256.8127024 | AU137: 254.5178349 | AV137: 25.756 | AW137: 0.4679541834 | AX137: 26.22395418 | AY137: 25.98961803 | AZ137: 137.063 | BA137: 2.490262628 | BB137: 139.5532626 | BC137: 138.3062205 | BD137: 107.357 | BE137: 1.950541904 | BF137: 109.3075419 | BG137: 108.3307743 | BH137: 570.81 | BI137: 10.37090105 | BJ137: 581.180901 | BK137: 575.9874929 | BM137: 51.902 | BN137: 0.9429941772 | BO137: 52.84499418 | BP137: 52.37277353 | BQ137: 3.776 | BR137: 0.06860517924 | BS137: 3.844605179 | BT137: 3.810249949 | BU137: 267.288 | BV137: 4.856287381 | BW137: 272.1442874 | BX137: 269.7124175 | BY137: 29.574 | BZ137: 0.5373224499 | CA137: 30.11132245 | CB137: 29.84224894 | CC137: 140.325 | CD137: 2.549529072 | CE137: 142.8745291 | CF137: 141.5978083 | CG137: 107.357 | CH137: 1.950541904 | CI137: 109.3075419 | CJ137: 108.3307743 | CK137: 600.222 | CL137: 10.90528016 | CM137: 611.1272802 | CN137: 605.6662725
A138: 2021-04-06 | B138: 6 | C138: Off | D138: 17.751554 | E138: 0.008702084 | G138: 7.472 | H138: 0.1224356397 | I138: 7.59443564 | J138: 7.528348223 | K138: 0.552 | L138: 0.009045031202 | M138: 0.5610450312 | N138: 0.5561627702 | O138: 15.978 | P138: 0.2618143271 | Q138: 16.23981433 | R138: 16.0984941 | S138: 3.992 | T138: 0.06541261695 | U138: 4.057412617 | V138: 4.022104672 | W138: 3.292 | X138: 0.05394246869 | Y138: 3.345942469 | Z138: 3.316825796 | AA138: 0 | AB138: 0 | AC138: 0 | AD138: 0 | AE138: 31.286 | AF138: 0.5126500836 | AG138: 31.79865008 | AH138: 31.52193556 | AJ138: 49.185 | AK138: 0.8059417747 | AL138: 49.99094177 | AM138: 49.5559164 | AN138: 3.543 | AO138: 0.05805533614 | AP138: 3.601055336 | AQ138: 3.56971865 | AR138: 263.145 | AS138: 4.311874521 | AT138: 267.4568745 | AU138: 265.1294423 | AV138: 28.235 | AW138: 0.4626566231 | AX138: 28.69765662 | AY138: 28.4479272 | AZ138: 145.979 | BA138: 2.392001105 | BB138: 148.3710011 | BC138: 147.0798642 | BD138: 110.114 | BE138: 1.804319865 | BF138: 111.9183199 | BG138: 110.9443972 | BH138: 600.201 | BI138: 9.834849225 | BJ138: 610.0358492 | BK138: 604.727266 | BM138: 56.657 | BN138: 0.9283774145 | BO138: 57.58537741 | BP138: 57.08426462 | BQ138: 4.095 | BR138: 0.06710036734 | BS138: 4.162100367 | BT138: 4.12588142 | BU138: 279.123 | BV138: 4.573688848 | BW138: 283.6966888 | BX138: 281.2279364 | BY138: 32.227 | BZ138: 0.5280692401 | CA138: 32.75506924 | CB138: 32.47003188 | CC138: 149.271 | CD138: 2.445943573 | CE138: 151.7169436 | CF138: 150.39669 | CG138: 110.114 | CH138: 1.804319865 | CI138: 111.9183199 | CJ138: 110.9443972 | CK138: 631.487 | CL138: 10.34749931 | CM138: 641.8344993 | CN138: 636.2492016
A139: 2021-04-06 | B139: 7 | C139: Off | D139: 19.168416 | E139: 0.007926981 | G139: 8.35 | H139: 0.07605307398 | I139: 8.426053074 | J139: 8.359259911 | K139: 0.856 | L139: 0.007796578602 | M139: 0.8637965786 | N139: 0.8569492795 | O139: 17.262 | P139: 0.1572249297 | Q139: 17.41922493 | R139: 17.28114306 | S139: 4.174 | T139: 0.03801742884 | U139: 4.212017429 | V139: 4.178628847 | W139: 3.286 | X139: 0.02992938935 | Y139: 3.315929389 | Z139: 3.28964408 | AA139: 0 | AB139: 0 | AC139: 0 | AD139: 0 | AE139: 33.928 | AF139: 0.3090214005 | AG139: 34.2370214 | AH139: 33.96562518 | AJ139: 55.547 | AK139: 0.5059305509 | AL139: 56.05293055 | AM139: 55.60860004 | AN139: 4.385 | AO139: 0.03993924903 | AP139: 4.424939249 | AQ139: 4.38986284 | AR139: 281.853 | AS139: 2.567160127 | AT139: 284.4201601 | AU139: 282.1655669 | AV139: 33.427 | AW139: 0.304458216 | AX139: 33.73145822 | AY139: 33.46406959 | AZ139: 141.123 | BA139: 1.285369816 | BB139: 142.4083698 | BC139: 141.2795014 | BD139: 116.28 | BE139: 1.059095981 | BF139: 117.339096 | BG139: 116.4089512 | BH139: 632.615 | BI139: 5.76195394 | BJ139: 638.3769539 | BK139: 633.316552 | BM139: 63.897 | BN139: 0.5819836249 | BO139: 64.47898362 | BP139: 63.96785995 | BQ139: 5.241 | BR139: 0.04773582763 | BS139: 5.288735828 | BT139: 5.246812119 | BU139: 299.115 | BV139: 2.724385057 | BW139: 301.8393851 | BX139: 299.44671 | BY139: 37.601 | BZ139: 0.3424756449 | CA139: 37.94347564 | CB139: 37.64269843 | CC139: 144.409 | CD139: 1.315299205 | CE139: 145.7242992 | CF139: 144.5691455 | CG139: 116.28 | CH139: 1.059095981 | CI139: 117.339096 | CJ139: 116.4089512 | CK139: 666.543 | CL139: 6.07097534 | CM139: 672.6139753 | CN139: 667.2821771
A140: 2021-04-06 | B140: 8 | C140: On | D140: 21.287031 | E140: 0.007614546 | G140: 8.93 | H140: 0.01427207852 | I140: 8.944272079 | J140: 8.876165507 | K140: 0.862 | L140: 0.001377663123 | M140: 0.8633776631 | N140: 0.8568034342 | O140: 17.874 | P140: 0.02856653208 | Q140: 17.90256653 | R140: 17.76624662 | S140: 4.326 | T140: 0.006913887087 | U140: 4.332913887 | V140: 4.299920715 | W140: 3.252 | X140: 0.005197401943 | Y140: 3.257197402 | Z140: 3.232395322 | AA140: 0 | AB140: 0 | AC140: 0 | AD140: 0 | AE140: 35.244 | AF140: 0.05632756276 | AG140: 35.30032756 | AH140: 35.03153159 | AJ140: 62.202 | AK140: 0.09941229879 | AL140: 62.3014123 | AM140: 61.82701533 | AN140: 4.669 | AO140: 0.007462075545 | AP140: 4.676462076 | AQ140: 4.64085294 | AR140: 299.088 | AS140: 0.4780075499 | AT140: 299.5660075 | AU140: 297.2849484 | AV140: 34.461 | AW140: 0.05507615878 | AX140: 34.51607616 | AY140: 34.25325191 | AZ140: 150.127 | BA140: 0.2399355355 | BB140: 150.3669355 | BC140: 149.2219596 | BD140: 118.254 | BE140: 0.1889955625 | BF140: 118.4429956 | BG140: 117.5411059 | BH140: 668.801 | BI140: 1.068889181 | BJ140: 669.8698892 | BK140: 664.7691341 | BM140: 71.132 | BN140: 0.1136843773 | BO140: 71.24568438 | BP140: 70.70318084 | BQ140: 5.531 | BR140: 0.008839738668 | BS140: 5.539839739 | BT140: 5.497656374 | BU140: 316.962 | BV140: 0.506574082 | BW140: 317.4685741 | BX140: 315.051195 | BY140: 38.787 | BZ140: 0.06199004587 | CA140: 38.84899005 | CB140: 38.55317262 | CC140: 153.379 | CD140: 0.2451329375 | CE140: 153.6241329 | CF140: 152.4543549 | CG140: 118.254 | CH140: 0.1889955625 | CI140: 118.4429956 | CJ140: 117.5411059 | CK140: 704.045 | CL140: 1.125216744 | CM140: 705.1702167 | CN140: 699.8006657
A141: 2021-04-06 | B141: 9 | C141: On | D141: 18.980676 | E141: 0.007588094 | G141: 9.278 | H141: -0.03390087297 | I141: 9.244099127 | J141: 9.173954034 | K141: 0.824 | L141: -0.003010812603 | M141: 0.8209891874 | N141: 0.8147594443 | O141: 17.348 | P141: -0.06338783621 | Q141: 17.28461216 | R141: 17.1534549 | S141: 4.426 | T141: -0.01617215605 | U141: 4.409827844 | V141: 4.376365656 | W141: 3.25 | X141: -0.01187517107 | Y141: 3.238124829 | Z141: 3.213553633 | AA141: 0 | AB141: 0 | AC141: 0 | AD141: 0 | AE141: 35.126 | AF141: -0.1283468489 | AG141: 34.99765315 | AH141: 34.73208767 | AJ141: 66.41 | AK141: -0.2426554187 | AL141: 66.16734458 | AM141: 65.66526055 | AN141: 4.809 | AO141: -0.01757159928 | AP141: 4.791428401 | AQ141: 4.755070592 | AR141: 312.874 | AS141: -1.14320993 | AT141: 311.7307901 | AU141: 309.3653475 | AV141: 34.769 | AW141: -0.127042407 | AX141: 34.64195759 | AY141: 34.37909116 | AZ141: 145.258 | BA141: -0.5307580305 | BB141: 144.727242 | BC141: 143.6290381 | BD141: 116.299 | BE141: -0.4249447754 | BF141: 115.8740552 | BG141: 114.994792 | BH141: 680.419 | BI141: -2.486182161 | BJ141: 677.9328178 | BK141: 672.7885999 | BM141: 75.688 | BN141: -0.2765562916 | BO141: 75.41144371 | BP141: 74.83921458 | BQ141: 5.633 | BR141: -0.02058241188 | BS141: 5.612417588 | BT141: 5.569830036 | BU141: 330.222 | BV141: -1.206597766 | BW141: 329.0154022 | BX141: 326.5188024 | BY141: 39.195 | BZ141: -0.1432145631 | CA141: 39.05178544 | CB141: 38.75545682 | CC141: 148.508 | CD141: -0.5426332015 | CE141: 147.9653668 | CF141: 146.8425917 | CG141: 116.299 | CH141: -0.4249447754 | CI141: 115.8740552 | CJ141: 114.994792 | CK141: 715.545 | CL141: -2.61452901 | CM141: 712.930471 | CN141: 707.5206876
A142: 2021-04-06 | B142: 10 | C142: On | D142: 21.598358 | E142: 0.007392222 | G142: 9.722 | H142: -0.05302355401 | I142: 9.668976446 | J142: 9.597501226 | K142: 0.82 | L142: -0.004472260264 | M142: 0.8155277397 | N142: 0.8094991776 | O142: 17.832 | P142: -0.09725529881 | Q142: 17.7347447 | R142: 17.60364553 | S142: 4.42 | T142: -0.02410657362 | U142: 4.395893426 | V142: 4.363398006 | W142: 3.072 | X142: -0.01675461406 | Y142: 3.055245386 | Z142: 3.032660334 | AA142: 0 | AB142: 0 | AC142: 0 | AD142: 0 | AE142: 35.866 | AF142: -0.1956123008 | AG142: 35.6703877 | AH142: 35.40670427 | AJ142: 67.868 | AK142: -0.3701504385 | AL142: 67.49784956 | AM142: 66.99889047 | AN142: 4.78 | AO142: -0.02607000495 | AP142: 4.753929995 | AQ142: 4.718787889 | AR142: 323.673 | AS142: -1.765304752 | AT142: 321.9076952 | AU142: 319.5280821 | AV142: 35.165 | AW142: -0.1917890636 | AX142: 34.97321094 | AY142: 34.7146812 | AZ142: 143.282 | BA142: -0.7814565794 | BB142: 142.5005434 | BC142: 141.4471478 | BD142: 120.753 | BE142: -0.6585839557 | BF142: 120.094416 | BG142: 119.2066515 | BH142: 695.521 | BI142: -3.793354794 | BJ142: 691.7276452 | BK142: 686.6142409 | BM142: 77.59 | BN142: -0.4231739925 | BO142: 77.16682601 | BP142: 76.5963917 | BQ142: 5.6 | BR142: -0.03054226522 | BS142: 5.569457735 | BT142: 5.528287067 | BU142: 341.505 | BV142: -1.862560051 | BW142: 339.6424399 | BX142: 337.1317276 | BY142: 39.585 | BZ142: -0.2158956373 | CA142: 39.36910436 | CB142: 39.0780792 | CC142: 146.354 | CD142: -0.7982111935 | CE142: 145.5557888 | CF142: 144.4798081 | CG142: 120.753 | CH142: -0.6585839557 | CI142: 120.094416 | CJ142: 119.2066515 | CK142: 731.387 | CL142: -3.988967095 | CM142: 727.3980329 | CN142: 722.0209452
A143: 2021-04-06 | B143: 11 | C143: On | D143: 24.012338 | E143: 0.007206724 | G143: 10.012 | H143: 0.02724102106 | I143: 10.03924102 | J143: 9.966890982 | K143: 0.87 | L143: 0.002367128278 | M143: 0.8723671283 | N143: 0.8660802192 | O143: 18.196 | P143: 0.0495083519 | Q143: 18.24550835 | R143: 18.11401801 | S143: 4.418 | T143: 0.01202065831 | U143: 4.430020658 | V143: 4.398094722 | W143: 3.216 | X143: 0.008750212118 | Y143: 3.224750212 | Z143: 3.201510327 | AA143: 0 | AB143: 0 | AC143: 0 | AD143: 0 | AE143: 36.712 | AF143: 0.09988737166 | AG143: 36.81188737 | AH143: 36.54659426 | AJ143: 70.075 | AK143: 0.1906626599 | AL143: 70.26566266 | AM143: 69.75927742 | AN143: 4.78 | AO143: 0.01300560134 | AP143: 4.793005601 | AQ143: 4.758463733 | AR143: 331.684 | AS143: 0.9024581331 | AT143: 332.5864581 | AU143: 330.1895993 | AV143: 35.29 | AW143: 0.09601834131 | AX143: 35.38601834 | AY143: 35.13100107 | AZ143: 141.462 | BA143: 0.384895058 | BB143: 141.8468951 | BC143: 140.8246436 | BD143: 128.993 | BE143: 0.3509689402 | BF143: 129.3439689 | BG143: 128.4118227 | BH143: 712.284 | BI143: 1.938008734 | BJ143: 714.2220087 | BK143: 709.0748078 | BM143: 80.087 | BN143: 0.2179036809 | BO143: 80.30490368 | BP143: 79.7261684 | BQ143: 5.65 | BR143: 0.01537272962 | BS143: 5.66537273 | BT143: 5.624543952 | BU143: 349.88 | BV143: 0.951966485 | BW143: 350.8319665 | BX143: 348.3036173 | BY143: 39.708 | BZ143: 0.1080389996 | CA143: 39.816039 | CB143: 39.5290958 | CC143: 144.678 | CD143: 0.3936452701 | CE143: 145.0716453 | CF143: 144.026154 | CG143: 128.993 | CH143: 0.3509689402 | CI143: 129.3439689 | CJ143: 128.4118227 | CK143: 748.996 | CL143: 2.037896106 | CM143: 751.0338961 | CN143: 745.6214021
A144: 2021-04-06 | B144: 12 | C144: On | D144: 65.804469 | E144: 0.007604097 | G144: 9.87 | H144: 0.0006120313457 | I144: 9.870612031 | J144: 9.79555494 | K144: 0.918 | L144: 5.692449598e-05 | M144: 0.9180569245 | N144: 0.9110759306 | O144: 17.96 | P144: 0.001113686218 | Q144: 17.96111369 | R144: 17.82453564 | S144: 4.518 | T144: 0.0002801578136 | U144: 4.518280158 | V144: 4.483922717 | W144: 3.134 | X144: 0.0001943370048 | Y144: 3.134194337 | Z144: 3.110361619 | AA144: 0 | AB144: 0 | AC144: 0 | AD144: 0 | AE144: 36.4 | AF144: 0.002257136878 | AG144: 36.40225714 | AH144: 36.12545084 | AJ144: 70.899 | AK144: 0.004396394162 | AL144: 70.90339639 | AM144: 70.36424009 | AN144: 4.698 | AO144: 0.0002913194794 | AP144: 4.698291319 | AQ144: 4.662565057 | AR144: 339.953 | AS144: 0.02108023222 | AT144: 339.9740802 | AU144: 337.3888843 | AV144: 35.866 | AW144: 0.002224023936 | AX144: 35.86822402 | AY144: 35.59547857 | AZ144: 144.22 | BA144: 0.008942974739 | BB144: 144.228943 | BC144: 143.1322121 | BD144: 131.974 | BE144: 0.008183609404 | BF144: 131.9821836 | BG144: 130.9785783 | BH144: 727.61 | BI144: 0.04511855394 | BJ144: 727.6551186 | BK144: 722.1219584 | BM144: 80.769 | BN144: 0.005008425508 | BO144: 80.77400843 | BP144: 80.15979503 | BQ144: 5.616 | BR144: 0.0003482439754 | BS144: 5.616348244 | BT144: 5.573640987 | BU144: 357.913 | BV144: 0.02219391844 | BW144: 357.9351939 | BX144: 355.21342 | BY144: 40.384 | BZ144: 0.002504181749 | CA144: 40.38650418 | CB144: 40.07940129 | CC144: 147.354 | CD144: 0.009137311744 | CE144: 147.3631373 | CF144: 146.2425737 | CG144: 131.974 | CH144: 0.008183609404 | CI144: 131.9821836 | CJ144: 130.9785783 | CK144: 764.01 | CL144: 0.04737569082 | CM144: 764.0573757 | CN144: 758.2474093
A145: 2021-04-06 | B145: 13 | C145: On | D145: 106.100482 | E145: 0.007957832 | G145: 10.178 | H145: 0.06579918696 | I145: 10.24379919 | J145: 10.16228075 | K145: 0.91 | L145: 0.005883008462 | M145: 0.9158830085 | N145: 0.9085945653 | O145: 17.91 | P145: 0.1157853644 | Q145: 18.02578536 | R145: 17.88233919 | S145: 4.494 | T145: 0.02905301102 | U145: 4.523053011 | V145: 4.487059315 | W145: 3.14 | X145: 0.02029961162 | Y145: 3.160299612 | Z145: 3.135150478 | AA145: 0 | AB145: 0 | AC145: 0 | AD145: 0 | AE145: 36.632 | AF145: 0.2368201824 | AG145: 36.86882018 | AH145: 36.57542431 | AJ145: 71.042 | AK145: 0.4592754804 | AL145: 71.50127548 | AM145: 70.93228034 | AN145: 4.82 | AO145: 0.03116055032 | AP145: 4.85116055 | AQ145: 4.81255583 | AR145: 342.976 | AS145: 2.217286495 | AT145: 345.1932865 | AU145: 342.4462963 | AV145: 36.782 | AW145: 0.2377899091 | AX145: 37.01978991 | AY145: 36.72519264 | AZ145: 133.541 | BA145: 0.8633217946 | BB145: 134.4043218 | BC145: 133.3347548 | BD145: 133.794 | BE145: 0.8649574002 | BF145: 134.6589574 | BG145: 133.587364 | BH145: 722.955 | BI145: 4.67379163 | BJ145: 727.6287916 | BK145: 721.8384439 | BM145: 81.22 | BN145: 0.5250746674 | BO145: 81.74507467 | BP145: 81.0945611 | BQ145: 5.73 | BR145: 0.03704355878 | BS145: 5.767043559 | BT145: 5.721150395 | BU145: 360.886 | BV145: 2.333071859 | BW145: 363.2190719 | BX145: 360.3286355 | BY145: 41.276 | BZ145: 0.2668429201 | CA145: 41.54284292 | CB145: 41.21225196 | CC145: 136.681 | CD145: 0.8836214062 | CE145: 137.5646214 | CF145: 136.4699053 | CG145: 133.794 | CH145: 0.8649574002 | CI145: 134.6589574 | CJ145: 133.587364 | CK145: 759.587 | CL145: 4.910611812 | CM145: 764.4976118 | CN145: 758.4138683
A146: 2021-04-06 | B146: 14 | C146: On | D146: 34.853163 | E146: 0.008139501 | G146: 10.254 | H146: 0.04950168472 | I146: 10.30350168 | J146: 10.21963632 | K146: 0.916 | L146: 0.004422034641 | M146: 0.9204220346 | N146: 0.9129302586 | O146: 17.826 | P146: 0.08605588374 | Q146: 17.91205588 | R146: 17.76626069 | S146: 4.542 | T146: 0.02192672635 | U146: 4.563926726 | V146: 4.52677864 | W146: 3.412 | X146: 0.01647159628 | Y146: 3.428471596 | Z146: 3.400565548 | AA146: 0 | AB146: 0 | AC146: 0 | AD146: 0 | AE146: 36.95 | AF146: 0.1783779257 | AG146: 37.12837793 | AH146: 36.82617146 | AJ146: 71.917 | AK146: 0.3471828223 | AL146: 72.26418282 | AM146: 71.67598843 | AN146: 4.845 | AO146: 0.02338947362 | AP146: 4.868389474 | AQ146: 4.828763213 | AR146: 347.617 | AS146: 1.678138008 | AT146: 349.295138 | AU146: 346.4520499 | AV146: 37.357 | AW146: 0.1803427381 | AX146: 37.53734274 | AY146: 37.2318075 | AZ146: 149.112 | BA146: 0.7198454469 | BB146: 149.8318454 | BC146: 148.612289 | BD146: 139.478 | BE146: 0.6733368424 | BF146: 140.1513368 | BG146: 139.0105749 | BH146: 750.326 | BI146: 3.622235332 | BJ146: 753.9482353 | BK146: 747.8114729 | BM146: 82.171 | BN146: 0.3966845071 | BO146: 82.56768451 | BP146: 81.89562476 | BQ146: 5.761 | BR146: 0.02781150826 | BS146: 5.788811508 | BT146: 5.741693471 | BU146: 365.443 | BV146: 1.764193892 | BW146: 367.2071939 | BX146: 364.2183106 | BY146: 41.899 | BZ146: 0.2022694644 | CA146: 42.10126946 | CB146: 41.75858614 | CC146: 152.524 | CD146: 0.7363170432 | CE146: 153.260317 | CF146: 152.0128545 | CG146: 139.478 | CH146: 0.6733368424 | CI146: 140.1513368 | CJ146: 139.0105749 | CK146: 787.276 | CL146: 3.800613258 | CM146: 791.0766133 | CN146: 784.6376444
A147: 2021-04-06 | B147: 15 | C147: On | D147: 30.551514 | E147: 0.008193654 | G147: 9.936 | H147: 0.0838274176 | I147: 10.01982742 | J147: 9.937728419 | K147: 0.918 | L147: 0.007744924452 | M147: 0.9257449245 | N147: 0.9181596908 | O147: 17.162 | P147: 0.1447912783 | Q147: 17.30679128 | R147: 17.16498542 | S147: 4.576 | T147: 0.03860650795 | U147: 4.614606508 | V147: 4.576796019 | W147: 3.34 | X147: 0.02817870117 | Y147: 3.368178701 | Z147: 3.34058101 | AA147: 0 | AB147: 0 | AC147: 0 | AD147: 0 | AE147: 35.932 | AF147: 0.3031488294 | AG147: 36.23514883 | AH147: 35.93825056 | AJ147: 71.247 | AK147: 0.6010921922 | AL147: 71.84809219 | AM147: 71.25939378 | AN147: 4.827 | AO147: 0.0407241289 | AP147: 4.867724129 | AQ147: 4.827839682 | AR147: 342.528 | AS147: 2.889818609 | AT147: 345.4178186 | AU147: 342.5875845 | AV147: 37.221 | AW147: 0.3140237833 | AX147: 37.53502378 | AY147: 37.22747479 | AZ147: 148.741 | BA147: 1.25488868 | BB147: 149.9958887 | BC147: 148.7668743 | BD147: 136.974 | BE147: 1.155613597 | BF147: 138.1296136 | BG147: 136.9978273 | BH147: 741.538 | BI147: 6.25616099 | BJ147: 747.794161 | BK147: 741.6669944 | BM147: 81.183 | BN147: 0.6849196098 | BO147: 81.86791961 | BP147: 81.1971222 | BQ147: 5.745 | BR147: 0.04846905335 | BS147: 5.793469053 | BT147: 5.745999372 | BU147: 359.69 | BV147: 3.034609887 | BW147: 362.7246099 | BX147: 359.7525699 | BY147: 41.797 | BZ147: 0.3526302912 | CA147: 42.14963029 | CB147: 41.8042708 | CC147: 152.081 | CD147: 1.283067381 | CE147: 153.3640674 | CF147: 152.1074553 | CG147: 136.974 | CH147: 1.155613597 | CI147: 138.1296136 | CJ147: 136.9978273 | CK147: 777.47 | CL147: 6.559309819 | CM147: 784.0293098 | CN147: 777.6052449
A148: 2021-04-06 | B148: 16 | C148: On | D148: 23.557291 | E148: 0.008010012 | G148: 9.16 | H148: -0.02908905647 | I148: 9.130910944 | J148: 9.057772237 | K148: 0.894 | L148: -0.002839041101 | M148: 0.8911609589 | N148: 0.8840227489 | O148: 17.39 | P148: -0.05522474803 | Q148: 17.33477525 | R148: 17.19592349 | S148: 4.596 | T148: -0.01459533881 | U148: 4.581404661 | V148: 4.544707555 | W148: 3.27 | X148: -0.01038441208 | Y148: 3.259615588 | Z148: 3.233506028 | AA148: 0 | AB148: 0 | AC148: 0 | AD148: 0 | AE148: 35.31 | AF148: -0.1121325965 | AG148: 35.1978674 | AH148: 34.91593206 | AJ148: 67.037 | AK148: -0.2128867989 | AL148: 66.8241132 | AM148: 66.28885125 | AN148: 4.794 | AO148: -0.01522411973 | AP148: 4.77877588 | AQ148: 4.740497828 | AR148: 335.036 | AS148: -1.063960821 | AT148: 333.9720392 | AU148: 331.2969191 | AV148: 36.953 | AW148: -0.1173502078 | AX148: 36.83564979 | AY148: 36.5405958 | AZ148: 169.625 | BA148: -0.5386715287 | BB148: 169.0863285 | BC148: 167.731945 | BD148: 132.779 | BE148: -0.4216611167 | BF148: 132.3573389 | BG148: 131.297155 | BH148: 746.224 | BI148: -2.369754593 | BJ148: 743.8542454 | BK148: 737.895964 | BM148: 76.197 | BN148: -0.2419758554 | BO148: 75.95502414 | BP148: 75.34662349 | BQ148: 5.688 | BR148: -0.01806316083 | BS148: 5.669936839 | BT148: 5.624520577 | BU148: 352.426 | BV148: -1.119185569 | BW148: 351.3068144 | BX148: 348.4928426 | BY148: 41.549 | BZ148: -0.1319455466 | CA148: 41.41705445 | CB148: 41.08530335 | CC148: 172.895 | CD148: -0.5490559408 | CE148: 172.3459441 | CF148: 170.965451 | CG148: 132.779 | CH148: -0.4216611167 | CI148: 132.3573389 | CJ148: 131.297155 | CK148: 781.534 | CL148: -2.48188719 | CM148: 779.0521128 | CN148: 772.811896
A149: 2021-04-06 | B149: 17 | C149: On | D149: 32.468501 | E149: 0.008481845 | G149: 8.646 | H149: 0.04979495697 | I149: 8.695794957 | J149: 8.622038572 | K149: 0.894 | L149: 0.005148819284 | M149: 0.8991488193 | N149: 0.8915223784 | O149: 17.022 | P149: 0.09803490141 | Q149: 17.1200349 | R149: 16.97482542 | S149: 4.502 | T149: 0.0259283942 | U149: 4.527928394 | V149: 4.489523207 | W149: 3.282 | X149: 0.01890204127 | Y149: 3.300902041 | Z149: 3.272904302 | AA149: 0 | AB149: 0 | AC149: 0 | AD149: 0 | AE149: 34.346 | AF149: 0.1978091131 | AG149: 34.54380911 | AH149: 34.25081388 | AJ149: 62.975 | AK149: 0.3626922756 | AL149: 63.33769228 | AM149: 62.80047179 | AN149: 4.689 | AO149: 0.02700538437 | AP149: 4.716005384 | AQ149: 4.676004958 | AR149: 327.68 | AS149: 1.887209288 | AT149: 329.5672093 | AU149: 326.7718713 | AV149: 36.019 | AW149: 0.2074444315 | AX149: 36.22644443 | AY149: 35.91917734 | AZ149: 172.069 | BA149: 0.9909979703 | BB149: 173.059998 | BC149: 171.5921299 | BD149: 131.128 | BE149: 0.7552062361 | BF149: 131.8832062 | BG149: 130.7645933 | BH149: 734.56 | BI149: 4.230555586 | BJ149: 738.7905556 | BK149: 732.5242486 | BM149: 71.621 | BN149: 0.4124872326 | BO149: 72.03348723 | BP149: 71.42251036 | BQ149: 5.583 | BR149: 0.03215420365 | BS149: 5.615154204 | BT149: 5.567527336 | BU149: 344.702 | BV149: 1.985244189 | BW149: 346.6872442 | BX149: 343.7466967 | BY149: 40.521 | BZ149: 0.2333728257 | CA149: 40.75437283 | CB149: 40.40870055 | CC149: 175.351 | CD149: 1.009900012 | CE149: 176.3609 | CF149: 174.8650342 | CG149: 131.128 | CH149: 0.7552062361 | CI149: 131.8832062 | CJ149: 130.7645933 | CK149: 768.906 | CL149: 4.428364699 | CM149: 773.3343647 | CN149: 766.7750625
A150: 2021-04-06 | B150: 18 | C150: On | D150: 21.986027 | E150: 0.008508159 | G150: 8.278 | H150: 0.05223711744 | I150: 8.330237117 | J150: 8.259362136 | K150: 0.776 | L150: 0.004896835363 | M150: 0.7808968354 | N150: 0.7742528409 | O150: 16.494 | P150: 0.1040829929 | Q150: 16.59808299 | R150: 16.45686386 | S150: 4.446 | T150: 0.02805583766 | U150: 4.474055838 | V150: 4.435989859 | W150: 3.274 | X150: 0.02066010178 | Y150: 3.294660102 | Z150: 3.26662861 | AA150: 0 | AB150: 0 | AC150: 0 | AD150: 0 | AE150: 33.268 | AF150: 0.2099328851 | AG150: 33.47793289 | AH150: 33.19309731 | AJ150: 60.624 | AK150: 0.3825589524 | AL150: 61.00655895 | AM150: 60.48750545 | AN150: 4.409 | AO150: 0.02782235453 | AP150: 4.436822355 | AQ150: 4.399073164 | AR150: 320.648 | AS150: 2.023402662 | AT150: 322.6714027 | AU150: 319.9260631 | AV150: 34.864 | AW150: 0.2200042115 | AX150: 35.08400421 | AY150: 34.78550393 | AZ150: 164.879 | BA150: 1.040444997 | BB150: 165.919445 | BC150: 164.507776 | BD150: 129.576 | BE150: 0.81767054 | BF150: 130.3936705 | BG150: 129.2842605 | BH150: 715 | BI150: 4.511903717 | BJ150: 719.5119037 | BK150: 713.390182 | BM150: 68.902 | BN150: 0.4347960698 | BO150: 69.33679607 | BP150: 68.74686758 | BQ150: 5.185 | BR150: 0.03271918989 | BS150: 5.21771919 | BT150: 5.173326005 | BU150: 337.142 | BV150: 2.127485655 | BW150: 339.2694857 | BX150: 336.3829269 | BY150: 39.31 | BZ150: 0.2480600491 | CA150: 39.55806005 | CB150: 39.22149378 | CC150: 168.153 | CD150: 1.061105099 | CE150: 169.2141051 | CF150: 167.7744046 | CG150: 129.576 | CH150: 0.81767054 | CI150: 130.3936705 | CJ150: 129.2842605 | CK150: 748.268 | CL150: 4.721836603 | CM150: 752.9898366 | CN150: 746.5832793
A151: 2021-04-06 | B151: 19 | C151: On | D151: 22.269133 | E151: 0.007893152 | G151: 7.948 | H151: 0.01712542089 | I151: 7.965125421 | J151: 7.902255475 | K151: 0.74 | L151: 0.001594465457 | M151: 0.7415944655 | N151: 0.7357409476 | O151: 16.072 | P151: 0.03463006599 | Q151: 16.10663007 | R151: 15.97949799 | S151: 4.148 | T151: 0.008937625293 | U151: 4.156937625 | V151: 4.124126285 | W151: 3.102 | X151: 0.006683826823 | Y151: 3.108683827 | Z151: 3.084146513 | AA151: 0 | AB151: 0 | AC151: 0 | AD151: 0 | AE151: 32.01 | AF151: 0.06897140445 | AG151: 32.0789714 | AH151: 31.82576721 | AJ151: 58.468 | AK151: 0.1259800086 | AL151: 58.59398001 | AM151: 58.13148882 | AN151: 3.632 | AO151: 0.007825808839 | AP151: 3.639825809 | AQ151: 3.61109611 | AR151: 310.252 | AS151: 0.6684947258 | AT151: 310.9204947 | AU151: 308.466352 | AV151: 32.52 | AW151: 0.0700702928 | AX151: 32.59007029 | AY151: 32.33283191 | AZ151: 158.597 | BA151: 0.3417262678 | BB151: 158.9387263 | BC151: 157.6841987 | BD151: 129.048 | BE151: 0.2780575383 | BF151: 129.3260575 | BG151: 128.3052673 | BH151: 692.517 | BI151: 1.492154642 | BJ151: 694.0091546 | BK151: 688.5312349 | BM151: 66.416 | BN151: 0.1431054295 | BO151: 66.55910543 | BP151: 66.03374429 | BQ151: 4.372 | BR151: 0.009420274297 | BS151: 4.381420274 | BT151: 4.346837058 | BU151: 326.324 | BV151: 0.7031247918 | BW151: 327.0271248 | BX151: 324.44585 | BY151: 36.668 | BZ151: 0.0790079181 | CA151: 36.74700792 | CB151: 36.4569582 | CC151: 161.699 | CD151: 0.3484100946 | CE151: 162.0474101 | CF151: 160.7683453 | CG151: 129.048 | CH151: 0.2780575383 | CI151: 129.3260575 | CJ151: 128.3052673 | CK151: 724.527 | CL151: 1.561126047 | CM151: 726.088126 | CN151: 720.3570021
A152: 2021-04-06 | B152: 20 | C152: On | D152: 50.982029 | E152: 0.007762259 | G152: 7.566 | H152: 0.00696933484 | I152: 7.572969335 | J152: 7.514185985 | K152: 0.694 | L152: 0.000639270206 | M152: 0.6946392702 | N152: 0.6892473003 | O152: 15.82 | P152: 0.01457241305 | Q152: 15.83457241 | R152: 15.71166036 | S152: 3.994 | T152: 0.00367902767 | U152: 3.997679028 | V152: 3.966648008 | W152: 3.048 | X152: 0.00280763053 | Y152: 3.050807631 | Z152: 3.027126472 | AA152: 0 | AB152: 0 | AC152: 0 | AD152: 0 | AE152: 31.122 | AF152: 0.0286676763 | AG152: 31.15066768 | AH152: 30.90886813 | AJ152: 56.521 | AK152: 0.05206367625 | AL152: 56.57306368 | AM152: 56.1339289 | AN152: 3.54 | AO152: 0.003260830734 | AP152: 3.543260831 | AQ152: 3.515757122 | AR152: 299.897 | AS152: 0.2762467103 | AT152: 300.1732467 | AU152: 297.8432242 | AV152: 30.649 | AW152: 0.02823197773 | AX152: 30.67723198 | AY152: 30.43910736 | AZ152: 159.297 | BA152: 0.1467346196 | BB152: 159.4437346 | BC152: 158.2060911 | BD152: 126.095 | BE152: 0.116150975 | BF152: 126.211151 | BG152: 125.2314673 | BH152: 675.999 | BI152: 0.6226887896 | BJ152: 676.6216888 | BK152: 671.369576 | BM152: 64.087 | BN152: 0.05903301109 | BO152: 64.14603301 | BP152: 63.64811489 | BQ152: 4.234 | BR152: 0.00390010094 | BS152: 4.237900101 | BT152: 4.205004423 | BU152: 315.717 | BV152: 0.2908191234 | BW152: 316.0078191 | BX152: 313.5548846 | BY152: 34.643 | BZ152: 0.0319110054 | CA152: 34.67491101 | CB152: 34.40575537 | CC152: 162.345 | CD152: 0.1495422501 | CE152: 162.4945423 | CF152: 161.2332175 | CG152: 126.095 | CH152: 0.116150975 | CI152: 126.211151 | CJ152: 125.2314673 | CK152: 707.121 | CL152: 0.6513564659 | CM152: 707.7723565 | CN152: 702.2784441
A153: 2021-04-06 | B153: 21 | C153: On | D153: 28.930069 | E153: 0.008013367 | G153: 7.48 | H153: 0.05444219257 | I153: 7.534442193 | J153: 7.474065942 | K153: 0.736 | L153: 0.005356878841 | M153: 0.7413568788 | N153: 0.7354161141 | O153: 15.81 | P153: 0.1150709979 | Q153: 15.925071 | R153: 15.79745756 | S153: 3.918 | T153: 0.02851664579 | U153: 3.946516646 | V153: 3.91489176 | W153: 3.068 | X153: 0.02233003299 | Y153: 3.090330033 | Z153: 3.065566084 | AA153: 0 | AB153: 0 | AC153: 0 | AD153: 0 | AE153: 31.012 | AF153: 0.2257167481 | AG153: 31.23771675 | AH153: 30.98739746 | AJ153: 54.57 | AK153: 0.3971805412 | AL153: 54.96718054 | AM153: 54.52670835 | AN153: 3.46 | AO153: 0.02518315325 | AP153: 3.485183153 | AQ153: 3.457255102 | AR153: 292.369 | AS153: 2.127969171 | AT153: 294.4969692 | AU153: 292.1370569 | AV153: 28.366 | AW153: 0.2064581864 | AX153: 28.57245819 | AY153: 28.34349659 | AZ153: 140.461 | BA153: 1.022326846 | BB153: 141.4833268 | BC153: 140.349569 | BD153: 118.913 | BE153: 0.8654925728 | BF153: 119.7784926 | BG153: 118.8186636 | BH153: 638.139 | BI153: 4.644610471 | BJ153: 642.7836105 | BK153: 637.6327495 | BM153: 62.05 | BN153: 0.4516227338 | BO153: 62.50162273 | BP153: 62.00077429 | BQ153: 4.196 | BR153: 0.03054003209 | BS153: 4.226540032 | BT153: 4.192671216 | BU153: 308.179 | BV153: 2.243040169 | BW153: 310.4220402 | BX153: 307.9345144 | BY153: 32.284 | BZ153: 0.2349748322 | CA153: 32.51897483 | CB153: 32.25838835 | CC153: 143.529 | CD153: 1.044656879 | CE153: 144.5736569 | CF153: 143.4151351 | CG153: 118.913 | CH153: 0.8654925728 | CI153: 119.7784926 | CJ153: 118.8186636 | CK153: 669.151 | CL153: 4.870327219 | CM153: 674.0213272 | CN153: 668.620147
A154: 2021-04-06 | B154: 22 | C154: On | D154: 23.087622 | E154: 0.007669129 | G154: 6.98 | H154: 0.104170913 | I154: 7.084170913 | J154: 7.029841492 | K154: 0.66 | L154: 0.009849971715 | M154: 0.6698499717 | N154: 0.6647128059 | O154: 15.618 | P154: 0.2330861489 | Q154: 15.85108615 | R154: 15.72952212 | S154: 3.764 | T154: 0.05617468718 | U154: 3.820174687 | V154: 3.790877275 | W154: 3.042 | X154: 0.04539941509 | Y154: 3.087399415 | Z154: 3.063721751 | AA154: 0 | AB154: 0 | AC154: 0 | AD154: 0 | AE154: 30.064 | AF154: 0.4486811358 | AG154: 30.51268114 | AH154: 30.27867545 | AJ154: 51.763 | AK154: 0.7725213423 | AL154: 52.53552134 | AM154: 52.13261965 | AN154: 3.326 | AO154: 0.04963788777 | AP154: 3.375637888 | AQ154: 3.349749685 | AR154: 282.921 | AS154: 4.222369466 | AT154: 287.1433695 | AU154: 284.9412299 | AV154: 27.476 | AW154: 0.4100573074 | AX154: 27.88605731 | AY154: 27.67219554 | AZ154: 157.876 | BA154: 2.356172931 | BB154: 160.2321729 | BC154: 159.0033317 | BD154: 117.186 | BE154: 1.748907251 | BF154: 118.9349073 | BG154: 118.0227801 | BH154: 640.548 | BI154: 9.559666185 | BJ154: 650.1076662 | BK154: 645.1219066 | BM154: 58.743 | BN154: 0.8766922553 | BO154: 59.61969226 | BP154: 59.16246114 | BQ154: 3.986 | BR154: 0.05948785948 | BS154: 4.045487859 | BT154: 4.014462491 | BU154: 298.539 | BV154: 4.455455615 | BW154: 302.9944556 | BX154: 300.670752 | BY154: 31.24 | BZ154: 0.4662319945 | CA154: 31.70623199 | CB154: 31.46307281 | CC154: 160.918 | CD154: 2.401572346 | CE154: 163.3195723 | CF154: 162.0670535 | CG154: 117.186 | CH154: 1.748907251 | CI154: 118.9349073 | CJ154: 118.0227801 | CK154: 670.612 | CL154: 10.00834732 | CM154: 680.6203473 | CN154: 675.4005821
A155: 2021-04-06 | B155: 23 | C155: On | D155: 20.044127 | E155: 0.007183941 | G155: 6.714 | H155: 0.1371655954 | I155: 6.851165595 | J155: 6.801947226 | K155: 0.498 | L155: 0.01017403433 | M155: 0.5081740343 | N155: 0.504523342 | O155: 15.222 | P155: 0.31098223 | Q155: 15.53298223 | R155: 15.4213942 | S155: 3.65 | T155: 0.0745687255 | U155: 3.724568726 | V155: 3.697811644 | W155: 3.028 | X155: 0.06186139749 | Y155: 3.089861397 | Z155: 3.067664016 | AA155: 0 | AB155: 0 | AC155: 0 | AD155: 0 | AE155: 29.112 | AF155: 0.5947519827 | AG155: 29.70675198 | AH155: 29.49334043 | AJ155: 48.956 | AK155: 1.000160692 | AL155: 49.95616069 | AM155: 49.59727858 | AN155: 3.137 | AO155: 0.06408824436 | AP155: 3.201088244 | AQ155: 3.178091815 | AR155: 274.064 | AS155: 5.599069366 | AT155: 279.6630694 | AU155: 277.6539864 | AV155: 26.184 | AW155: 0.534933564 | AX155: 26.71893356 | AY155: 26.52698632 | AZ155: 161.665 | BA155: 3.302781646 | BB155: 164.9677816 | BC155: 163.7826628 | BD155: 115.878 | BE155: 2.367362952 | BF155: 118.245363 | BG155: 117.3958952 | BH155: 629.884 | BI155: 12.86839646 | BJ155: 642.7523965 | BK155: 638.1349012 | BM155: 55.67 | BN155: 1.137326287 | BO155: 56.80732629 | BP155: 56.39922581 | BQ155: 3.635 | BR155: 0.07426227869 | BS155: 3.709262279 | BT155: 3.682615157 | BU155: 289.286 | BV155: 5.910051596 | BW155: 295.1960516 | BX155: 293.0753806 | BY155: 29.834 | BZ155: 0.6095022895 | CA155: 30.44350229 | CB155: 30.22479797 | CC155: 164.693 | CD155: 3.364643044 | CE155: 168.057643 | CF155: 166.8503269 | CG155: 115.878 | CH155: 2.367362952 | CI155: 118.245363 | CJ155: 117.3958952 | CK155: 658.996 | CL155: 13.46314845 | CM155: 672.4591484 | CN155: 667.6282416
